Workbook

Sheet INTRODUCTION

Sheet FIND_F
A1: Object | B1: Image | C1: A | D1: 616.9818418 | Q1: k = 8,469 | R1: 270.5507776 | S1: a | T1: 12 | V1: b | W1: 1/a | X1: 1/b | Y1: sx^2 | Z1: Sxy | AA1: Sy² | AB1: Sy² | AG1: POINTS OF 1/b vs 1/a using the paraxial theory | AM1: L | AN1: =h_2*h_1-F_LENGTH*h_2+F_LENGTH*h_1 -> -3446.378702 | AV1: bbi | AW1: si | AX1: aai | AY1: sobject | BA1: dcut2 | BB1: 0.0002802402491 | BC1: =f_1 -> -158.079329 | BF1: dxcut = -1 / (F_1 + H1) / 20
A2: -246.7134824 | B2: 542.6878859 | C2: 246.7134824 | D2: 789.4013683 | E2: -3.639250743 | M2: =f_1 -> -158.079329 | N2: =h_1+f_1 -> -185.9533607 | Q2: t = -0,19 | R2: -0.07466470993 | T2: =h_2 -> -3.271535604 | U2: =-ysource/f_2 -> -0.2108645927 | AM2: =1/(h_2+f_2/(1+f_1/(h_1+$C2))) -> 0.001470690374 | AP2: =1/10000 -> 0.0001 | AQ2: =1/AV2 -> 0.005364126014 | AR2: =ap+bp*AS2+cp*AS2^2 -> 0.006036027318 | AS2: =dcut2*(AZ2-1) -> 0 | AV2: =f_2+h_2 -> 186.4236592 | AW2: 100000 | AX2: 100000 | AY2: =f_2+h_2 -> 186.4236592 | AZ2: 1 | BA2: ap | BB2: 0.006036027318 | BC2: =f_1/AY2 -> -0.847957441 | BD2: =f_2/(1+BC2) -> 1247.64537 | BF2: =-1/(f_1+h_1)/20 -> 0.0002688846268
A3: -303.647363 | B3: 370.516274 | C3: 303.647363 | D3: 674.163637 | E3: -2.365738461 | M3: =F_LEFT -> -185.9533607 | P3: 160 | Q3: 8.468533682 | S3: 1,8E+02 = B | AM3: 0.002266491579 | AN3: 0 | AO3: 0.005830183021 | AP3: =(AZ3-1)*dxcut -> 0.0002688846268 | AQ3: =((h_1+f_1)/AX3+1)/((h_1*h_2+f_1*h_2+f_2*h_1)/AX3+h_2+f_2) -> 0.005130545661 | AR3: 0.005775085121 | AS3: 0.0002802402491 | AV3: =AW3+h_2 -> 194.7792019 | AW3: =IF(1+f_1/AY3<>0,f_2/(1+f_1/AY3),100000) -> 198.0507375 | AX3: =1/(dxcut*(AZ3-1)) -> 3719.067214 | AY3: =AX3-h_1 -> 3746.941246 | AZ3: =AZ2+1 -> 2 | BA3: bp | BB3: -0.9234637616 | BC3: -0.04218889986 | BD3: 198.0507375
A4: -360.5812436 | B4: 306.2924034 | C4: 360.5812436 | D4: 666.873647 | E4: -1.598626659 | P4: 330 | Q4: 1,6E+02 = B | S4: 163,710555623235 =G | T4: =-ysource/f_2 -> -0.2108645927 | U4: =F_LEFT -> -185.9533607 | AM4: 0.002792185055 | AN4: 0.006181212548 | AO4: 0 | AP4: 0.0005377692537 | AQ4: 0.004893769311 | AR4: 0.005509841959 | AS4: 0.0005604804981 | AV4: 203.7638536 | AW4: 207.0353892 | AX4: 1859.533607 | AY4: 1887.407639 | AZ4: =AZ3+1 -> 3 | BA4: cp | BB4: -27.3826141 | BC4: -0.08375473627 | BD4: 207.0353892
A5: -417.5151241 | B5: 272.8054681 | C5: 417.5151241 | D5: 690.3205922 | E5: -1.206300781 | P5: =Q3 -> 8.468533682 | T5: =ABS(f_1)+ABS(h_1) -> 185.9533607 | U5: =f_1 -> -158.079329 | AJ5: 1/(h_2+f_2/(1+f_1/(h_1+RC3))) | AM5: 0.0031653372 | AP5: 0.0008066538805 | AQ5: 0.004653730917 | AR5: 0.005240297831 | AS5: 0.0008407207472 | AV5: 213.4514444 | AW5: 216.72298 | AX5: 1239.689071 | AY5: 1267.563103 | AZ5: 4 | BA5: dxcut | BB5: =-1/(f_1+h_1)/20 -> 0.0002688846268 | BC5: -0.1247112105 | BD5: 216.72298
A6: -474.4490047 | B6: 252.0633069 | C6: 474.4490047 | D6: 726.5123116 | E6: -0.9692757676 | K6: ="from the chart a+b vs a we get from the perp asymptote f_1+h_ = "& TEXT(nlysh,"0,00") & " from the other asymptote f_2+h_2 = " & TEXT(llysh-nlysh,"0,00") -> from the chart a+b vs a we get from the perp asymptote f_1+h_ = -178,92 from the other asymptote f_2+h_2 = 165,47 | AM6: 0.003443930349 | AN6: =1/AN4 -> 161.7805555 | AO6: =1/AO3 -> 171.5212021 | AP6: 0.001075538507 | AQ6: 0.0044103626 | AR6: 0.004966452739 | AS6: 0.001120960996 | AV6: 223.9278273 | AW6: 227.1993629 | AX6: 929.7668035 | AY6: 957.6408352 | AZ6: 5 | BC6: -0.1650716252 | BD6: 227.1993629
A7: -531.3828852 | B7: 238.0685328 | C7: 531.3828852 | D7: 769.451418 | E7: -0.811038889 | K7: From the Hyperbolic fit we find from the ASYMPTOTE cut of A+B axis: FOCAL LENGTH = 165,47 we find that minimum of HYPERBOLA: 2(|F1|+|H1|)= 338,85 4(|F1|+|H1|)= 664,25 (ON THE GRAPH THE RED LINE). The ratio of minimum to a = 1,96 | AM7: 0.003659865302 | AN7: =f_2 -> 189.6951948 | AO7: =f_1 -> -158.079329 | AP7: 0.001344423134 | AQ7: 0.004163594585 | AR7: 0.004688306681 | AS7: 0.001401201245 | AV7: 235.2934295 | AW7: 238.5649651 | AX7: 743.8134428 | AY7: 771.6874745 | AZ7: 6 | BC7: -0.2048488983 | BD7: 238.5649651
A8: -588.3167658 | B8: 227.8936941 | C8: 588.3167658 | D8: 816.2104599 | E8: -0.6959992188 | F8: cut x = 0,0118f_left = 85,06 | I8: the dashed line meets the x axis at 5,24E-03 so f = 190,7 and the y axis at 5,87E-03 f right = 170,39 | X8: 338.8483298 | AB8: ap + bp * ActiveSheet.Cells(ii + 1, 45).Value + cp * (ActiveSheet.Cells(ii + 1, 45).Value) ^ 2 | AM8: 0.003832143838 | AP8: 0.001613307761 | AQ8: 0.003913355133 | AR8: 0.004405859658 | AS8: 0.001681441494 | AV8: 247.666482 | AW8: 250.9380176 | AX8: 619.8445357 | AY8: 647.7185673 | AZ8: 7 | BB8: SOBJECT = AII1 - H1 | BC8: -0.2440555775 | BD8: 250.9380176
A9: -645.2506464 | B9: 220.3250651 | C9: 645.2506464 | D9: 865.5757115 | E9: -0.6099081931 | I9: The dotted line is the linear trend line for the data and meets the y axis at 6,18E-03 and the x axis at 5,83E-03 so f RIGHT+h2 = 161,78 , |f LEFT|+|h1| = 171,52 The Green Lines is the parabolic trend line with y cut at 6,04E-03x cut at 5,60E-03 with corresponding f RIGHT+h2 = 165,67 |f LEFT+|h1| = 178,42 | X9: 684.7907635 | AM9: 0.003972789789 | AP9: 0.001882192388 | AQ9: 0.003659570474 | AR9: 0.00411911167 | AS9: 0.001961681743 | AV9: 261.1871479 | AW9: 264.4586835 | AX9: 531.2953163 | AY9: 559.169348 | AZ9: 8 | BB9: If ii = 1 Then | BC9: -0.2827038528 | BD9: 264.4586835
A10: -702.1845269 | B10: 214.1605759 | C10: 702.1845269 | D10: 916.3451028 | E10: -0.5430724433 | F10: ap = 3,48E-03f-right = 287,54 | X10: AMIn = 353,36 VAL= 684,79 | AM10: 0.004089782804 | AP10: 0.002151077015 | AQ10: 0.003402164731 | AR10: 0.003828062717 | AS10: 0.002241921992 | AV10: 276.0228553 | AW10: 279.2943909 | AX10: 464.8834017 | AY10: 492.7574334 | AZ10: 9 | BB10: bbii = F_2 + H2 | BC10: -0.3208055694 | BD10: 279.2943909
A11: -759.1184075 | B11: 209.5789845 | C11: 759.1184075 | D11: 968.697392 | E11: -0.4896884969 | F11: bp = -5,70E-01 | I11: The cut on X- Axos is 0,0056 f = 178,42 | AM11: 0.004188626776 | AP11: 0.002419961642 | AQ11: 0.003141059847 | AR11: 0.003532712799 | AS11: 0.002522162242 | AV11: 292.3752657 | AW11: 295.6468013 | AX11: 413.2296904 | AY11: 441.1037221 | AZ11: 10 | BC11: -0.3583722401 | BD11: 295.6468013
A12: -816.052288 | B12: 205.7167734 | C12: 816.052288 | D12: 1021.769061 | E12: -0.4451260722 | F12: cp = -1,13E+01 | R12: R1 | AA12: value ata amin | AP12: 0.002688846268 | AQ12: 0.002876175505 | AR12: 0.003233061916 | AS12: 0.002802402491 | AV12: 310.4894947 | AW12: 313.7610303 | AX12: 371.9067214 | AY12: 399.7807531 | AZ12: 11 | BB12: Else | BC12: -0.3954150564 | BD12: 313.7610303
A13: -872.9861686 | B13: 202.3315975 | C13: 872.9861686 | D13: 1075.317766 | E13: -0.4088824179 | R13: R2 | AA13: =2*SQRT(Y13)+f_2+h_2-f_1-h_1 -> 372.3770199 | AP13: 0.002957730895 | AQ13: 0.002607429046 | AR13: 0.002929110067 | AS13: 0.00308264274 | AV13: 330.6664833 | AW13: 333.9380189 | AX13: 338.0970194 | AY13: 365.9710511 | AZ13: 12 | BB13: If 1 + F_1 / SOBJECT <> 0 Then | BC13: -0.4319448998 | BD13: 333.9380189
C14: 487.0884585 | D14: 594.1221003 | E14: -0.3774197077 | F14: =f_1 -> -158.079329 | R14: width | AP14: 0.003226615522 | AQ14: 0.002334735383 | AR14: 0.002620857254 | AS14: 0.003362882989 | AV14: 353.27985 | AW14: 356.5513856 | AX14: 309.9222678 | AY14: 337.7962995 | AZ14: 13 | BB14: SI = F_2 / (1 + F_1 / SOBJECT) | BC14: -0.4679723527 | BD14: 356.5513856
C15: 516.9102009 | D15: 622.838665 | E15: -0.3504544733 | F15: =f_2 -> 189.6951948 | R15: Lens_thickness | AC15: Worksheets("FIND_F").Cells(KM + 1, 39).Value = 1 / (H2 + F_2 / (1 + F_1 / (H1 + Worksheets("FIND_F").Cells(KM + 1, 3).Value))) | AP15: 0.003495500149 | AQ15: 0.002058006911 | AR15: 0.002308303475 | AS15: 0.003643123238 | AV15: 378.7992396 | AW15: 382.0707752 | AX15: 286.0820934 | AY15: 313.9561251 | AZ15: 14 | BB15: Else | BC15: -0.5035077082 | BD15: 382.0707752
C16: 546.7319432 | D16: 655.7025867 | R16: f left | W16: -178.9151158 | X16: Nlysh = -178,92 | AP16: 0.003764384776 | AQ16: 0.001777153414 | AR16: 0.001991448731 | AS16: 0.003923363487 | AV16: 407.8232932 | AW16: 411.0948288 | AX16: 265.6476581 | AY16: 293.5216898 | AZ16: 15 | BB16: SI = 100000 | BC16: -0.5385609803 | BD16: 411.0948288
Q17: =1/0.0059 -> 169.4915254 | R17: f right | W17: -13.44187224 | X17: llysh = -13,44 | AC17: vh | AP17: 0.004033269403 | AQ17: 0.001492081964 | AR17: 0.001670293022 | AS17: 0.004203603736 | AV17: 441.1272015 | AW17: 444.3987372 | AX17: 247.9378143 | AY17: 275.8118459 | AZ17: 16 | BB17: End If | BC17: -0.573141913 | BD17: 444.3987372
C18: =-A18 -> 0 | W18: -4027.031584 | X18: mlysh = -4027,03 | AB18: =XB-RB+AC18 -> -27.87403169 | AC18: =(n_2-n_3)/(-n_2*RA)*f_1*dkorf -> 14.76829241 | AD18: h left its position to the right of left end | AP18: 0.004302154029 | AQ18: 0.001202696824 | AR18: 0.001344836348 | AS18: 0.004483843985 | AV18: 479.7329705 | AW18: 483.0045061 | AX18: 232.4417009 | AY18: 260.3157326 | AZ18: 17 | BB18: bbii = SI + H2 | BC18: -0.6072599895 | BD18: 483.0045061
C19: =-A19 -> 0 | AA19: =f_1 -> -158.079329 | AB19: =XA+RA+AC19 -> -3.271535604 | AC19: =-(n_2-n_1)/(n_2*RB)*f_2*dkorf -> -32.2715356 | AD19: h right uts position to the left of right end | AP19: 0.004571038656 | AQ19: 0.0009088993341 | AR19: 0.001015078709 | AS19: 0.004764084234 | AV19: 525.0161463 | AW19: 528.2876819 | AX19: 218.7686596 | AY19: 246.6426913 | AZ19: 18 | BC19: -0.6409244408 | BD19: 528.2876819
C20: 0 | AA20: =h_2 -> -3.271535604 | AB20: =AA20*Z20 -> 0 | AP20: 0.004839923283 | AQ20: 0.0006105878048 | AR20: 0.0006810201043 | AS20: 0.005044324483 | AV20: 578.8731624 | AW20: 582.144698 | AX20: 206.6148452 | AY20: 234.4888769 | AZ20: 19 | BC20: -0.6741442541 | BD20: 582.144698
C21: 0 | AA21: =AA20*AA19 -> 517.1621531 | AB21: =AA21+Z21 -> 517.1621531 | AP21: 0.00510880791 | AQ21: 0.0003076573971 | AR21: 0.0003426605347 | AS21: 0.005324564732 | AV21: 643.9936818 | AW21: 647.2652174 | AX21: 195.7403797 | AY21: 223.6144114 | AZ21: 20 | BC21: -0.7069281807 | BD21: 647.2652174
C22: 0 | AB22: =AB21+AB20 -> 517.1621531 | AN22: =1/(ABS(f_1)+ABS(h_1)) -> 0.005377692537 | AP22: 0.005377692537 | AQ22: -1.376933111e-18 | AR22: -2.168404345e-18 | AS22: 0.005604804981 | AV22: 724.3237637 | AW22: 727.5952993 | AX22: 185.9533607 | AY22: 213.8273924 | AZ22: 21 | BC22: -0.7392847439 | BD22: 727.5952993
C23: 0 | AV23: 825.8964733 | AW23: 829.1680089 | AX23: 177.0984388 | AY23: 204.9724704 | AZ23: 22 | BC23: -0.7712222459 | BD23: 829.1680089
C24: 0 | I24: 187.8738225 | J24: 372.7098534 | AN24: =1/(f_2+h_2) -> 0.005364126014 | AV24: 958.421835 | AW24: 961.6933706 | AX24: 169.0485097 | AY24: 196.9225414 | AZ24: 23 | BC24: -0.8027487756 | BD24: 961.6933706
C25: 0 | P25: =0 -> 0 | Q25: =S26 -> 167.7310549 | S25: FOCAL LENGTH = | AV25: 1138.591607 | AW25: 1141.863143 | AX25: 161.6985745 | AY25: 189.5726062 | AZ25: 24 | BC25: -0.8338722149 | BD25: 1141.863143
C26: 0 | P26: =6*S26 -> 1006.386329 | Q26: =7*S26 -> 1174.117384 | R26: 0 | S26: 167.7310549 | AV26: 1397.729486 | AW26: 1401.001022 | AX26: 154.9611339 | AY26: 182.8351656 | AZ26: 25 | BC26: -0.8646002452 | BD26: 1401.001022
C27: 0 | R27: 0 | S27: 670.9242194 | AV27: 1802.323693 | AW27: 1805.595228 | AX27: 148.7626886 | AY27: 176.6367202 | AZ27: 26 | BC27: -0.8949403544 | BD27: 1805.595228
C28: 0 | P28: FOCAL LENGTH | R28: 335.4621097 | S28: 670.9242194 | AV28: 2522.624551 | AW28: 2525.896087 | AX28: 143.0410467 | AY28: 170.9150784 | AZ28: 27 | BC28: -0.9248998422 | BD28: 2525.896087
C29: 0 | R29: 335.4621097 | S29: 0 | AV29: 4164.555307 | AW29: 4167.826843 | AX29: 137.7432301 | AY29: 165.6172618 | AZ29: 28 | BC29: -0.9544858263 | BD29: 4167.826843
C30: 0 | O30: =x_image-50 -> 228.9624653 | T30: From minimum of HYPERBOLA: 2 X FOCAL LENGTH = 335,46 4 X FOCAL LENGTH = 670,92 | AV30: 11638.2188 | AW30: 11641.49034 | AX30: 132.8238291 | AY30: 160.6978608 | AZ30: 29 | BC30: -0.9837052483 | BD30: 11641.49034
C31: 0 | F31: =MAX(D2:D31) -> 1075.317766 | O31: =x_image-150 -> 128.9624653 | AB31: nlysh = -(f_1+h_1) | AD31: =nlysh -> -178.9151158 | AV31: -15100.52813 | AW31: -15097.2566 | AX31: 128.243697 | AY31: 156.1177287 | AZ31: 30 | BC31: -1.012564878 | BD31: -15097.2566
C32: 0 | O32: =O31+100 -> 228.9624653 | AD32: =f_1+h_1 -> -185.9533607 | AV32: -4621.949162 | AW32: -4618.677627 | AX32: 123.9689071 | AY32: 151.8429388 | AZ32: 31 | BC32: -1.041071322 | BD32: -4618.677627
O33: 400 | AD33: =f_2+h_2 -> 186.4236592 | AV33: -2743.303232 | AW33: -2740.031696 | AX33: 119.9699101 | AY33: 147.8439418 | AZ33: 32 | BC33: -1.069231022 | BD33: -2740.031696
C34: =VALUE(C18) -> 0 | D34: 0 | AV34: -1957.879176 | AW34: -1954.60764 | AX34: 116.2208504 | AY34: 144.0948821 | AZ34: 33 | BC34: -1.097050268 | BD34: -1954.60764
C35: =VALUE(C19) -> 0 | D35: 0 | AV35: -1526.497106 | AW35: -1523.225571 | AX35: 112.6990065 | AY35: 140.5730382 | AZ35: 34 | BC35: -1.124535196 | BD35: -1523.225571
C36: 0 | D36: 0 | AV36: -1253.801878 | AW36: -1250.530343 | AX36: 109.3843298 | AY36: 137.2583615 | AZ36: 35 | BC36: -1.151691797 | BD36: -1250.530343
C37: 0 | D37: 0 | AV37: -1065.835424 | AW37: -1062.563888 | AX37: 106.2590633 | AY37: 134.1330949 | AZ37: 36 | BC37: -1.178525919 | BD37: -1062.563888
C38: 0 | D38: 0 | AV38: -928.4186631 | AW38: -925.1471275 | AX38: 103.3074226 | AY38: 131.1814543 | AZ38: =AZ37+1 -> 37 | BC38: -1.205043273 | BD38: -925.1471275
C39: 0 | D39: 0 | AV39: -823.5770892 | AW39: -820.3055536 | AX39: 100.5153301 | AY39: 128.3893618 | AZ39: 38 | BC39: -1.231249434 | BD39: -820.3055536
C40: 0 | D40: 0 | AV40: -740.9550151 | AW40: -737.6834795 | AX40: 97.87018984 | AY40: 125.7442215 | AZ40: 39 | BC40: -1.257149848 | BD40: -737.6834795
C41: 0 | D41: 0 | AV41: -674.1656291 | AW41: -670.8940935 | AX41: 95.36069779 | AY41: 123.2347295 | AZ41: 40 | BC41: -1.282749836 | BD41: -670.8940935
C42: 0 | D42: 0 | AV42: -619.0558764 | AW42: -615.7843408 | AX42: 92.97668035 | AY42: 120.850712 | AZ42: 41 | BC42: -1.308054594
C43: 0 | D43: 0 | AV43: -572.8084225 | AW43: -569.5368869 | AX43: 90.70895644 | AY43: 118.5829881 | AZ43: 42 | BC43: -1.333069199
C44: 0 | D44: 0 | AV44: -533.4446191 | AW44: -530.1730835 | AX44: 88.54921938 | AY44: 116.4232511 | AZ44: 43 | BC44: -1.357798615
C45: 0 | D45: 0 | AV45: -499.5340376 | AW45: -496.262502 | AX45: 86.48993521 | AY45: 114.3639669 | AZ45: 44 | BC45: -1.38224769
C46: 0 | D46: 0
C47: 0 | D47: 0
C48: 0 | D48: 0

Sheet graph_cuts
H1: coordinates of average | I1: average of cuts: 168,48 , 162,58 | J1: stdev of a points: 3,80 | K1: stdev of b points: 1,79
J2: 162.5830627 | K2: 162.5830627
A3: 164.678548 | B3: 162.5830627 | J3: 162.5830627 | K3: 162.5830627
A4: 172.2872235 | B4: 162.5830627
A5: 168.4828858 | B5: 160.7941872
A6: 168.4828858 | B6: 164.3719381
A30: The average is162,58 168,48

Sheet HUG_METH
K1: =AKTINA+AB_pachos -> 77 | N1: klimaxX | O1: 170 | S1: minimum_xaxis | T1: =-maximum_x_axis -> -110 | W1: x_xekino | X1: =IF(ShmEIO_arxH>minimum_xaxis,ShmEIO_arxH,minimum_xaxis) -> -110 | Y1: X-min2 | Z1: =IF(ShmEIO_arxH>-klimaxx,ShmEIO_arxH,-klimaxx) -> -128 | AA1: X_MINFULL | AB1: =minimum_xaxis -> -110 | AC1: klimaxful | AD1: 110 | AG1: proto | AJ1: deytero | AK1: trito | AL1: tetarto | AM1: num_data | BF1: max2v | BM1: y2 | RS1: 1.460972853
A2: ] | J2: F_APEIRO | K2: 0 | N2: klimaxy | R2: Number of maximum x | T2: 110 | W2: vimata_xek | X2: =-(ShmEIO_arxH-x_xekino)/DT -> 72 | Y2: VIMATA_XEK2 | Z2: =-(ShmEIO_arxH-x_min2)/DT -> 0 | AA2: =IF(ShmEIO_arxH>-klimaxful,ShmEIO_arxH,-klimaxful) -> -110 | AB2: =-(ShmEIO_arxH-X_MINFULL)/DT -> 72 | AC2: VIM_FULL | AJ2: 4 | AK2: 29 | AL2: 30 | AM2: 34 | BF2: =VLOOKUP(2,BJ5:BM65,3,FALSE) -> 18.27942795 | BH2: rminv | BI2: rmaxv | BL2: megy2 | BM2: miny2 | RS2: 0.9322154983
J3: arxikh_tHESH | K3: -128 | L3: =ARXIKH_THESH -> -128 | N3: AKTINA | O3: 30 | W3: object at y = | X3: =object_y -> 16 | BH3: =VLOOKUP(2,BJ5:BM65,2,FALSE) -> 54 | BI3: =VLOOKUP(1,BJ6:BM65,2,FALSE) -> 16 | BL3: =MAX(BM5:BM65) -> 8.443428246 | BM3: =MIN(BM5:BM65) -> -8.443428246 | RS3: 0.8689822247
D4: MOVE WAVES | J4: thesif | K4: 75 | M4: 90 | N4: old_x | BL4: x2 | BM4: y2 | RS4: 0.8130398432
A5: object y | B5: 16 | D5: Initial position | H5: =ARXIKH_THESH -> -128 | J5: DEIKT_HUYGENS_DIATHLASIS" | K5: 183 | L5: =DEIKTHS_DIATHLASIS/100 -> 1.83 | M5: index of refraction | BH5: =IF(BK5<rmaxv,max2v,IF(BK5>rminv,max2v,BL5)) -> 18.27942795 | BI5: =IF(BK5<rmaxv,maxy2,IF(BK5>rminv,miny2,BM5)) -> 8.443428246 | BJ5: =IF(OR(BM5=maxy2,BM5=miny2),1+SUM(BJ$2:BJ4),0) -> 0 | BK5: =5 -> 5 | BL5: =AD80 -> 15.82904852 | BM5: =AP80 -> 7.605700979 | RS5: 0.7608609034
A6: SHOW IMAGE | B6: FALSE | C6: 1 | D6: IF 1 TRUE | J6: width | K6: 47 | M6: piso_koryfh | N6: =AB_pachos-AKTINA -> 17 | O6: mikos1 | BH6: =IF(BK6<rmaxv,max2v,IF(BK6>rminv,max2v,BL6)) -> 18.27942795 | BI6: =IF(BK6<rmaxv,maxy2,IF(BK6>rminv,miny2,BM6)) -> 8.443428246 | BJ6: =IF(OR(BM6=maxy2,BM6=miny2),1+SUM(BJ$2:BJ5),0) -> 0 | BK6: =BK5+1 -> 6 | BL6: =AD81 -> 16.2019239 | BM6: =AP81 -> 7.647375578 | RS6: 0.711029457
D7: FOCUS | E7: 0 | J7: xronos_lf | K7: =-AKTINA-ARXIKH_THESH+AB_pachos*DEIKT_HUYGENS+(thesif-piso_koryfh)*DEIKT_BACK -> 256.51 | M7: deikt_back | N7: 1.25 | Q7: 124 | BH7: =IF(BK7<rmaxv,max2v,IF(BK7>rminv,max2v,BL7)) -> 18.27942795 | BI7: =IF(BK7<rmaxv,maxy2,IF(BK7>rminv,miny2,BM7)) -> 8.443428246 | BJ7: =IF(OR(BM7=maxy2,BM7=miny2),1+SUM(BJ$2:BJ6),0) -> 0 | BK7: =BK6+1 -> 7 | BL7: 16.56456614 | BM7: 7.709115895 | RS7: 0.6627754267
D8: Index of refraction | BH8: =IF(BK8<rmaxv,max2v,IF(BK8>rminv,max2v,BL8)) -> 18.27942795 | BI8: =IF(BK8<rmaxv,maxy2,IF(BK8>rminv,miny2,BM8)) -> 8.443428246 | BJ8: =IF(OR(BM8=maxy2,BM8=miny2),1+SUM(BJ$2:BJ7),0) -> 0 | BK8: 8 | BL8: 16.90818561 | BM8: 7.788917786 | RS8: 0.6156889329
W9: =0 -> 0 | X9: =20*COS(W9) -> 20 | Y9: =20*SIN(W9) -> 0 | BH9: =IF(BK9<rmaxv,max2v,IF(BK9>rminv,max2v,BL9)) -> 18.27942795 | BI9: =IF(BK9<rmaxv,maxy2,IF(BK9>rminv,miny2,BM9)) -> 8.443428246 | BJ9: =IF(OR(BM9=maxy2,BM9=miny2),1+SUM(BJ$2:BJ8),0) -> 0 | BK9: 9 | BL9: 17.22454513 | BM9: 7.883376837 | RS9: 0.569471881
BH10: =IF(BK10<rmaxv,max2v,IF(BK10>rminv,max2v,BL10)) -> 18.27942795 | BI10: =IF(BK10<rmaxv,maxy2,IF(BK10>rminv,miny2,BM10)) -> 8.443428246 | BJ10: =IF(OR(BM10=maxy2,BM10=miny2),1+SUM(BJ$2:BJ9),0) -> 0 | BK10: 10 | BL10: 17.5064209 | BM10: 7.987749865 | RS10: 0.5239628033
BH11: =IF(BK11<rmaxv,max2v,IF(BK11>rminv,max2v,BL11)) -> 18.27942795 | BI11: =IF(BK11<rmaxv,maxy2,IF(BK11>rminv,miny2,BM11)) -> 8.443428246 | BJ11: =IF(OR(BM11=maxy2,BM11=miny2),1+SUM(BJ$2:BJ10),0) -> 0 | BK11: 11 | BL11: 17.74802155 | BM11: 8.096110976
BH12: =IF(BK12<rmaxv,max2v,IF(BK12>rminv,max2v,BL12)) -> 18.27942795 | BI12: =IF(BK12<rmaxv,maxy2,IF(BK12>rminv,miny2,BM12)) -> 8.443428246 | BJ12: =IF(OR(BM12=maxy2,BM12=miny2),1+SUM(BJ$2:BJ11),0) -> 0 | BK12: 12 | BL12: 17.94531789 | BM12: 8.201596869
BH13: =IF(BK13<rmaxv,max2v,IF(BK13>rminv,max2v,BL13)) -> 18.27942795 | BI13: =IF(BK13<rmaxv,maxy2,IF(BK13>rminv,miny2,BM13)) -> 8.443428246 | BJ13: =IF(OR(BM13=maxy2,BM13=miny2),1+SUM(BJ$2:BJ12),0) -> 0 | BK13: 13 | BL13: 18.09624295 | BM13: 8.296723995
BH14: =IF(BK14<rmaxv,max2v,IF(BK14>rminv,max2v,BL14)) -> 18.27942795 | BI14: =IF(BK14<rmaxv,maxy2,IF(BK14>rminv,miny2,BM14)) -> 8.443428246 | BJ14: =IF(OR(BM14=maxy2,BM14=miny2),1+SUM(BJ$2:BJ13),0) -> 0 | BK14: 14 | BL14: 18.2007377 | BM14: 8.373749656
BH15: =IF(BK15<rmaxv,max2v,IF(BK15>rminv,max2v,BL15)) -> 18.27942795 | BI15: =IF(BK15<rmaxv,maxy2,IF(BK15>rminv,miny2,BM15)) -> 8.443428246 | BJ15: =IF(OR(BM15=maxy2,BM15=miny2),1+SUM(BJ$2:BJ14),0) -> 0 | BK15: 15 | BL15: 18.26063885 | BM15: 8.42504259
J16: XronosLF = mikos1 + MIKOS2 * DEIKT_HUYGENS + mikos3 | V16: =SHOW_IMAGE -> FALSE | BH16: =IF(BK16<rmaxv,max2v,IF(BK16>rminv,max2v,BL16)) -> 18.27942795 | BI16: =IF(BK16<rmaxv,maxy2,IF(BK16>rminv,miny2,BM16)) -> 8.443428246 | BJ16: =IF(OR(BM16=maxy2,BM16=miny2),1+SUM(BJ$2:BJ15),0) -> 1 | BK16: 16 | BL16: 18.27942795 | BM16: 8.443428246
V17: MOVE WAVE FRONTS | BH17: =IF(BK17<rmaxv,max2v,IF(BK17>rminv,max2v,BL17)) -> 18.26187891 | BI17: =IF(BK17<rmaxv,maxy2,IF(BK17>rminv,miny2,BM17)) -> 8.422479662 | BJ17: =IF(OR(BM17=maxy2,BM17=miny2),1+SUM(BJ$2:BJ16),0) -> 0 | BK17: 17 | BL17: 18.26187891 | BM17: 8.422479662
BH18: =IF(BK18<rmaxv,max2v,IF(BK18>rminv,max2v,BL18)) -> 18.21365055 | BI18: =IF(BK18<rmaxv,maxy2,IF(BK18>rminv,miny2,BM18)) -> 8.356735229 | BJ18: =IF(OR(BM18=maxy2,BM18=miny2),1+SUM(BJ$2:BJ17),0) -> 0 | BK18: 18 | BL18: 18.21365055 | BM18: 8.356735229
BH19: =IF(BK19<rmaxv,max2v,IF(BK19>rminv,max2v,BL19)) -> 18.14087132 | BI19: =IF(BK19<rmaxv,maxy2,IF(BK19>rminv,miny2,BM19)) -> 8.241836658 | BJ19: =IF(OR(BM19=maxy2,BM19=miny2),1+SUM(BJ$2:BJ18),0) -> 0 | BK19: 19 | BL19: 18.14087132 | BM19: 8.241836658
BH20: =IF(BK20<rmaxv,max2v,IF(BK20>rminv,max2v,BL20)) -> 18.04975527 | BI20: =IF(BK20<rmaxv,maxy2,IF(BK20>rminv,miny2,BM20)) -> 8.074591378 | BJ20: =IF(OR(BM20=maxy2,BM20=miny2),1+SUM(BJ$2:BJ19),0) -> 0 | BK20: 20 | BL20: 18.04975527 | BM20: 8.074591378
BH21: =IF(BK21<rmaxv,max2v,IF(BK21>rminv,max2v,BL21)) -> 17.94627677 | BI21: =IF(BK21<rmaxv,maxy2,IF(BK21>rminv,miny2,BM21)) -> 7.852971374 | BJ21: =IF(OR(BM21=maxy2,BM21=miny2),1+SUM(BJ$2:BJ20),0) -> 0 | BK21: 21 | BL21: 17.94627677 | BM21: 7.852971374
BH22: =IF(BK22<rmaxv,max2v,IF(BK22>rminv,max2v,BL22)) -> 17.83591854 | BI22: =IF(BK22<rmaxv,maxy2,IF(BK22>rminv,miny2,BM22)) -> 7.576064381 | BJ22: =IF(OR(BM22=maxy2,BM22=miny2),1+SUM(BJ$2:BJ21),0) -> 0 | BK22: 22 | BL22: 17.83591854 | BM22: 7.576064381
BH23: =IF(BK23<rmaxv,max2v,IF(BK23>rminv,max2v,BL23)) -> 17.72349667 | BI23: =IF(BK23<rmaxv,maxy2,IF(BK23>rminv,miny2,BM23)) -> 7.243993815 | BJ23: =IF(OR(BM23=maxy2,BM23=miny2),1+SUM(BJ$2:BJ22),0) -> 0 | BK23: 23 | BL23: 17.72349667 | BM23: 7.243993815
BH24: =IF(BK24<rmaxv,max2v,IF(BK24>rminv,max2v,BL24)) -> 17.61305834 | BI24: =IF(BK24<rmaxv,maxy2,IF(BK24>rminv,miny2,BM24)) -> 6.857821845 | BJ24: =IF(OR(BM24=maxy2,BM24=miny2),1+SUM(BJ$2:BJ23),0) -> 0 | BK24: 24 | BL24: 17.61305834 | BM24: 6.857821845
BH25: =IF(BK25<rmaxv,max2v,IF(BK25>rminv,max2v,BL25)) -> 17.50784355 | BI25: =IF(BK25<rmaxv,maxy2,IF(BK25>rminv,miny2,BM25)) -> 6.41944678 | BJ25: =IF(OR(BM25=maxy2,BM25=miny2),1+SUM(BJ$2:BJ24),0) -> 0 | BK25: 25 | BL25: 17.50784355 | BM25: 6.41944678
BH26: =IF(BK26<rmaxv,max2v,IF(BK26>rminv,max2v,BL26)) -> 17.41029989 | BI26: =IF(BK26<rmaxv,maxy2,IF(BK26>rminv,miny2,BM26)) -> 5.931502422 | BJ26: =IF(OR(BM26=maxy2,BM26=miny2),1+SUM(BJ$2:BJ25),0) -> 0 | BK26: 26 | BL26: 17.41029989 | BM26: 5.931502422
BH27: =IF(BK27<rmaxv,max2v,IF(BK27>rminv,max2v,BL27)) -> 17.32213917 | BI27: =IF(BK27<rmaxv,maxy2,IF(BK27>rminv,miny2,BM27)) -> 5.397263804 | BJ27: =IF(OR(BM27=maxy2,BM27=miny2),1+SUM(BJ$2:BJ26),0) -> 0 | BK27: 27 | BL27: 17.32213917 | BM27: 5.397263804
BH28: =IF(BK28<rmaxv,max2v,IF(BK28>rminv,max2v,BL28)) -> 17.24442529 | BI28: =IF(BK28<rmaxv,maxy2,IF(BK28>rminv,miny2,BM28)) -> 4.82056121 | BJ28: =IF(OR(BM28=maxy2,BM28=miny2),1+SUM(BJ$2:BJ27),0) -> 0 | BK28: 28 | BL28: 17.24442529 | BM28: 4.82056121
BH29: =IF(BK29<rmaxv,max2v,IF(BK29>rminv,max2v,BL29)) -> 17.17768365 | BI29: =IF(BK29<rmaxv,maxy2,IF(BK29>rminv,miny2,BM29)) -> 4.20570255 | BJ29: =IF(OR(BM29=maxy2,BM29=miny2),1+SUM(BJ$2:BJ28),0) -> 0 | BK29: 29 | BL29: 17.17768365 | BM29: 4.20570255
O30: -2.642598016e-07 | BH30: =IF(BK30<rmaxv,max2v,IF(BK30>rminv,max2v,BL30)) -> 17.12202321 | BI30: =IF(BK30<rmaxv,maxy2,IF(BK30>rminv,miny2,BM30)) -> 3.55740308 | BJ30: =IF(OR(BM30=maxy2,BM30=miny2),1+SUM(BJ$2:BJ29),0) -> 0 | BK30: 30 | BL30: 17.12202321 | BM30: 3.55740308
O31: 2.722250559e-06 | BH31: =IF(BK31<rmaxv,max2v,IF(BK31>rminv,max2v,BL31)) -> 17.07726288 | BI31: =IF(BK31<rmaxv,maxy2,IF(BK31>rminv,miny2,BM31)) -> 2.880720863 | BJ31: =IF(OR(BM31=maxy2,BM31=miny2),1+SUM(BJ$2:BJ30),0) -> 0 | BK31: 31 | BL31: 17.07726288 | BM31: 2.880720863
O32: -1.54715373e-07 | S32: klimax back lens | T32: X` | BH32: =IF(BK32<rmaxv,max2v,IF(BK32>rminv,max2v,BL32)) -> 17.04305471 | BI32: =IF(BK32<rmaxv,maxy2,IF(BK32>rminv,miny2,BM32)) -> 2.180996306 | BJ32: =IF(OR(BM32=maxy2,BM32=miny2),1+SUM(BJ$2:BJ31),0) -> 0 | BK32: 32 | BL32: 17.04305471 | BM32: 2.180996306
BH33: =IF(BK33<rmaxv,max2v,IF(BK33>rminv,max2v,BL33)) -> 17.01899649 | BI33: =IF(BK33<rmaxv,maxy2,IF(BK33>rminv,miny2,BM33)) -> 1.463794235 | BJ33: =IF(OR(BM33=maxy2,BM33=miny2),1+SUM(BJ$2:BJ32),0) -> 0 | BK33: 33 | BL33: 17.01899649 | BM33: 1.463794235
BH34: =IF(BK34<rmaxv,max2v,IF(BK34>rminv,max2v,BL34)) -> 17.00472725 | BI34: =IF(BK34<rmaxv,maxy2,IF(BK34>rminv,miny2,BM34)) -> 0.7348473087 | BJ34: =IF(OR(BM34=maxy2,BM34=miny2),1+SUM(BJ$2:BJ33),0) -> 0 | BK34: 34 | BL34: 17.00472725 | BM34: 0.7348473087
BH35: =IF(BK35<rmaxv,max2v,IF(BK35>rminv,max2v,BL35)) -> 17 | BI35: =IF(BK35<rmaxv,maxy2,IF(BK35>rminv,miny2,BM35)) -> -9.184442855e-15 | BJ35: =IF(OR(BM35=maxy2,BM35=miny2),1+SUM(BJ$2:BJ34),0) -> 0 | BK35: 35 | BL35: 17 | BM35: -9.184442855e-15
A36: NUMTERMS= 4 | BH36: =IF(BK36<rmaxv,max2v,IF(BK36>rminv,max2v,BL36)) -> 17.00472725 | BI36: =IF(BK36<rmaxv,maxy2,IF(BK36>rminv,miny2,BM36)) -> -0.7348473087 | BJ36: =IF(OR(BM36=maxy2,BM36=miny2),1+SUM(BJ$2:BJ35),0) -> 0 | BK36: 36 | BL36: 17.00472725 | BM36: -0.7348473087
A37: TERMS = 2 | BH37: =IF(BK37<rmaxv,max2v,IF(BK37>rminv,max2v,BL37)) -> 17.01899649 | BI37: =IF(BK37<rmaxv,maxy2,IF(BK37>rminv,miny2,BM37)) -> -1.463794235 | BJ37: =IF(OR(BM37=maxy2,BM37=miny2),1+SUM(BJ$2:BJ36),0) -> 0 | BK37: 37 | BL37: 17.01899649 | BM37: -1.463794235
A38: no of data = 163 | BE38: 0.9066286284 | BH38: =IF(BK38<rmaxv,max2v,IF(BK38>rminv,max2v,BL38)) -> 17.04305471 | BI38: =IF(BK38<rmaxv,maxy2,IF(BK38>rminv,miny2,BM38)) -> -2.180996306 | BJ38: =IF(OR(BM38=maxy2,BM38=miny2),1+SUM(BJ$2:BJ37),0) -> 0 | BK38: 38 | BL38: 17.04305471 | BM38: -2.180996306
BE39: 0.8389090039 | BH39: =IF(BK39<rmaxv,max2v,IF(BK39>rminv,max2v,BL39)) -> 17.07726288 | BI39: =IF(BK39<rmaxv,maxy2,IF(BK39>rminv,miny2,BM39)) -> -2.880720863 | BJ39: =IF(OR(BM39=maxy2,BM39=miny2),1+SUM(BJ$2:BJ38),0) -> 0 | BK39: 39 | BL39: 17.07726288 | BM39: -2.880720863
A40: Number of points: 81 | B40: Slope for X1 = 2,1155E-01 Slope for X2 = 2,2387E-01 Slope for X3 = -6,4488E-02 Slope for X4 = 5,4283E-03 | O40: 17 | BE40: 0.7655201343 | BH40: =IF(BK40<rmaxv,max2v,IF(BK40>rminv,max2v,BL40)) -> 17.12202321 | BI40: =IF(BK40<rmaxv,maxy2,IF(BK40>rminv,miny2,BM40)) -> -3.55740308 | BJ40: =IF(OR(BM40=maxy2,BM40=miny2),1+SUM(BJ$2:BJ39),0) -> 0 | BK40: 40 | BL40: =AD115 -> 17.12202321 | BM40: =AP115 -> -3.55740308
A41: R^2 = 0,22985 | O41: -0.6003058654 | BE41: 0.6858475783 | BH41: =IF(BK41<rmaxv,max2v,IF(BK41>rminv,max2v,BL41)) -> 17.17768365 | BI41: =IF(BK41<rmaxv,maxy2,IF(BK41>rminv,miny2,BM41)) -> -4.20570255 | BJ41: =IF(OR(BM41=maxy2,BM41=miny2),1+SUM(BJ$2:BJ40),0) -> 0 | BK41: 41 | BL41: 17.17768365 | BM41: -4.20570255 | RL41: miki 91
A42: Adjusted R^2adj = 0,17918 | O42: -24.50390858 | R42: =B_0 ->  | BE42: 0.5997848327 | BH42: =IF(BK42<rmaxv,max2v,IF(BK42>rminv,max2v,BL42)) -> 17.24442529 | BI42: =IF(BK42<rmaxv,maxy2,IF(BK42>rminv,miny2,BM42)) -> -4.82056121 | BJ42: =IF(OR(BM42=maxy2,BM42=miny2),1+SUM(BJ$2:BJ41),0) -> 0 | BK42: 42 | BL42: 17.24442529 | BM42: -4.82056121 | RL42: miki 92
A43: Intercept = 1,5973E+01 | BE43: 0.5073318975 | BH43: =IF(BK43<rmaxv,max2v,IF(BK43>rminv,max2v,BL43)) -> 17.32213917 | BI43: =IF(BK43<rmaxv,maxy2,IF(BK43>rminv,miny2,BM43)) -> -5.397263804 | BJ43: =IF(OR(BM43=maxy2,BM43=miny2),1+SUM(BJ$2:BJ42),0) -> 0 | BK43: 43 | BL43: 17.32213917 | BM43: -5.397263804 | RL43: miki 93
A44: B(0) =1,4213E+03 | BE44: 0.408521543 | BH44: =IF(BK44<rmaxv,max2v,IF(BK44>rminv,max2v,BL44)) -> 17.41029989 | BI44: =IF(BK44<rmaxv,maxy2,IF(BK44>rminv,miny2,BM44)) -> -5.931502422 | BJ44: =IF(OR(BM44=maxy2,BM44=miny2),1+SUM(BJ$2:BJ43),0) -> 0 | BK44: 44 | BL44: 17.41029989 | BM44: -5.931502422 | RL44: miki 94
A45: Regression SS = 3,4904E+02 | BE45: 0.3033046137 | BH45: =IF(BK45<rmaxv,max2v,IF(BK45>rminv,max2v,BL45)) -> 17.50784355 | BI45: =IF(BK45<rmaxv,maxy2,IF(BK45>rminv,miny2,BM45)) -> -6.41944678 | BJ45: =IF(OR(BM45=maxy2,BM45=miny2),1+SUM(BJ$2:BJ44),0) -> 0 | BK45: 45 | BL45: 17.50784355 | BM45: -6.41944678 | RL45: miki 95
A46: Regression df = 4,E+00 | BE46: 0.1914271407 | BH46: =IF(BK46<rmaxv,max2v,IF(BK46>rminv,max2v,BL46)) -> 17.61305834 | BI46: =IF(BK46<rmaxv,maxy2,IF(BK46>rminv,miny2,BM46)) -> -6.857821845 | BJ46: =IF(OR(BM46=maxy2,BM46=miny2),1+SUM(BJ$2:BJ45),0) -> 0 | BK46: 46 | BL46: 17.61305834 | BM46: -6.857821845 | RL46: miki 96
A47: Residual SS = 2,7157E+02 | BE47: 0.07261876982 | BH47: =IF(BK47<rmaxv,max2v,IF(BK47>rminv,max2v,BL47)) -> 17.72349667 | BI47: =IF(BK47<rmaxv,maxy2,IF(BK47>rminv,miny2,BM47)) -> -7.243993815 | BJ47: =IF(OR(BM47=maxy2,BM47=miny2),1+SUM(BJ$2:BJ46),0) -> 0 | BK47: 47 | BL47: 17.72349667 | BM47: -7.243993815 | RL47: miki 97
A48: Residual df = 7,6E+01 | BE48: -0.05254702049 | BH48: =IF(BK48<rmaxv,max2v,IF(BK48>rminv,max2v,BL48)) -> 17.83591854 | BI48: =IF(BK48<rmaxv,maxy2,IF(BK48>rminv,miny2,BM48)) -> -7.576064381 | BJ48: =IF(OR(BM48=maxy2,BM48=miny2),1+SUM(BJ$2:BJ47),0) -> 0 | BK48: 48 | BL48: 17.83591854 | BM48: -7.576064381 | RL48: miki 98
A49: Total SS = 3,5262E+02 | BE49: -0.1816042724 | BH49: =IF(BK49<rmaxv,max2v,IF(BK49>rminv,max2v,BL49)) -> 17.94627677 | BI49: =IF(BK49<rmaxv,maxy2,IF(BK49>rminv,miny2,BM49)) -> -7.852971374 | BJ49: =IF(OR(BM49=maxy2,BM49=miny2),1+SUM(BJ$2:BJ48),0) -> 0 | BK49: 49 | BL49: 17.94627677 | BM49: -7.852971374 | RL49: miki 99
A50: Total df = 5,E+00 | BE50: -0.3101863564 | BH50: =IF(BK50<rmaxv,max2v,IF(BK50>rminv,max2v,BL50)) -> 18.04975527 | BI50: =IF(BK50<rmaxv,maxy2,IF(BK50>rminv,miny2,BM50)) -> -8.074591378 | BJ50: =IF(OR(BM50=maxy2,BM50=miny2),1+SUM(BJ$2:BJ49),0) -> 0 | BK50: 50 | BL50: 18.04975527 | BM50: -8.074591378 | RL50: miki 100
A51: S^2 = 3,5733E+00 | BE51: -0.433631711 | BH51: =IF(BK51<rmaxv,max2v,IF(BK51>rminv,max2v,BL51)) -> 18.14087132 | BI51: =IF(BK51<rmaxv,maxy2,IF(BK51>rminv,miny2,BM51)) -> -8.241836658 | BJ51: =IF(OR(BM51=maxy2,BM51=miny2),1+SUM(BJ$2:BJ50),0) -> 0 | BK51: 51 | BL51: 18.14087132 | BM51: -8.241836658 | RM51: =RM52-$VK$52 -> 18.52700075 | RN51: 18.37133997 | RO51: 18.2130119 | RP51: 18.05207004 | RR51: 17.88856859 | RS51: 17.7225624 | RT51: 17.554107 | RU51: 17.38325859 | RV51: 17.21007402 | RW51: 17.03461079 | RX51: 16.85692707 | RY51: 16.67708162 | RZ51: 16.49513388 | SA51: 16.31114389 | SB51: 16.1251723 | SC51: 15.93728036 | SD51: 15.74752993 | SE51: 15.55598345 | SF51: 15.36270392 | SG51: 15.16775492 | SH51: 14.97120055 | SI51: 14.77310548 | SJ51: 14.57353486 | SK51: 14.37255439 | SL51: 14.17023023 | SM51: 13.96662902 | SN51: 13.76181788 | SO51: 13.55586433 | SP51: 13.34883635 | SQ51: 13.1408023 | SR51: 12.93183094 | SS51: 12.72199138 | ST51: 12.51135307 | SU51: 12.29998578 | SV51: 12.08795958 | SW51: 11.8753448 | SX51: 11.66221201 | SY51: 11.44863201 | SZ51: 11.23467579 | TA51: 11.0204145 | TB51: 10.80591941 | TC51: 10.59126192 | TD51: 10.37651348 | TE51: 10.16174559 | TF51: 9.94702976 | TG51: 9.732437474 | TH51: 9.518040154 | TI51: 9.303909129 | TJ51: 9.090115596 | TK51: 8.876730584 | TL51: 8.663824915 | TM51: 8.451469169 | TN51: 8.239733639 | TO51: 8.028688295 | TP51: 7.818402741 | TQ51: 7.608946175 | TR51: 7.400387344 | TS51: 7.192794505 | TT51: 6.986235377 | TU51: 6.780777101 | TV51: 6.576486195 | TW51: 6.373428506 | TX51: 6.171669167 | TY51: 5.971272553 | TZ51: =TZ52-$VK$52 -> 5.772302233 | UA51: 5.574820923 | UB51: 5.378890444 | UC51: 5.184571672 | UD51: 4.991924492 | UE51: 4.801007756 | UF51: 4.611879233 | UG51: 4.424595564 | UH51: 4.239212218 | UI51: 4.055783448 | UJ51: 3.874362243 | UK51: 3.695000286 | UL51: 3.517747915 | UM51: 3.342654072 | UN51: 3.169766269 | UO51: 2.999130543 | UP51: 2.830791418 | UQ51: 2.664791867 | UR51: 2.501173272 | US51: 2.33997539 | UT51: 2.181236316 | UU51: 2.024992452 | UV51: 1.871278474 | UW51: 1.720127298 | UX51: 1.571570058 | UY51: 1.425636072 | UZ51: 1.282352821 | VA51: 1.141745922 | VB51: 1.003839109 | VC51: 0.8686542111 | VD51: 0.7362111359 | VE51: 0.6065278525 | VF51: 0.4796203783 | VG51: 0.3555027668 | VH51: 0.2341870981 | VI51: 0.1156834716 | VJ51: =VJ52-$VK$52 -> 0
A52: F = 5,6705E+00 | BE52: -0.5485568129 | BH52: =IF(BK52<rmaxv,max2v,IF(BK52>rminv,max2v,BL52)) -> 18.21365055 | BI52: =IF(BK52<rmaxv,maxy2,IF(BK52>rminv,miny2,BM52)) -> -8.356735229 | BJ52: =IF(OR(BM52=maxy2,BM52=miny2),1+SUM(BJ$2:BJ51),0) -> 0 | BK52: 52 | BL52: 18.21365055 | BM52: -8.356735229 | RL52: m1+nm2 | RM52: =RM56+DEIKT_HUYGENS*RM53 -> 205.6909786 | RN52: =RN56+DEIKT_HUYGENS*RN53 -> 205.5353178 | RO52: =RO56+DEIKT_HUYGENS*RO53 -> 205.3769898 | RP52: =RP56+DEIKT_HUYGENS*RP53 -> 205.2160479 | RR52: =RR56+DEIKT_HUYGENS*RR53 -> 205.0525465 | RS52: 204.8865403 | RT52: 204.7180849 | RU52: 204.5472365 | RV52: 204.3740519 | RW52: 204.1985887 | RX52: 204.0209049 | RY52: 203.8410595 | RZ52: 203.6591118 | SA52: 203.4751218 | SB52: 203.2891502 | SC52: 203.1012582 | SD52: 202.9115078 | SE52: 202.7199613 | SF52: 202.5266818 | SG52: 202.3317328 | SH52: 202.1351784 | SI52: 201.9370833 | SJ52: 201.7375127 | SK52: 201.5365323 | SL52: 201.3342081 | SM52: 201.1306069 | SN52: 200.9257957 | SO52: 200.7198422 | SP52: 200.5128142 | SQ52: 200.3047802 | SR52: 200.0958088 | SS52: 199.8859693 | ST52: 199.6753309 | SU52: 199.4639637 | SV52: 199.2519374 | SW52: 199.0393227 | SX52: =SX56+DEIKT_HUYGENS*SX53 -> 198.8261899 | SY52: 198.6126099 | SZ52: 198.3986537 | TA52: 198.1843924 | TB52: 197.9698973 | TC52: 197.7552398 | TD52: 197.5404913 | TE52: 197.3257235 | TF52: 197.1110076 | TG52: 196.8964153 | TH52: 196.682018 | TI52: 196.467887 | TJ52: 196.2540935 | TK52: 196.0407085 | TL52: 195.8278028 | TM52: 195.615447 | TN52: 195.4037115 | TO52: 195.1926662 | TP52: 194.9823806 | TQ52: 194.772924 | TR52: 194.5643652 | TS52: 194.3567724 | TT52: 194.1502132 | TU52: 193.944755 | TV52: 193.7404641 | TW52: 193.5374064 | TX52: 193.335647 | TY52: 193.1352504 | TZ52: 192.9362801 | UA52: 192.7387988 | UB52: 192.5428683 | UC52: 192.3485495 | UD52: =UD56+DEIKT_HUYGENS*UD53 -> 192.1559024 | UE52: 191.9649856 | UF52: 191.7758571 | UG52: 191.5885734 | UH52: 191.4031901 | UI52: 191.2197613 | UJ52: 191.0383401 | UK52: 190.8589782 | UL52: 190.6817258 | UM52: 190.5066319 | UN52: 190.3337441 | UO52: 190.1631084 | UP52: 189.9947693 | UQ52: 189.8287697 | UR52: 189.6651511 | US52: 189.5039533 | UT52: 189.3452142 | UU52: 189.1889703 | UV52: 189.0352563 | UW52: 188.8841052 | UX52: 188.7355479 | UY52: 188.5896139 | UZ52: 188.4463307 | VA52: 188.3057238 | VB52: 188.167817 | VC52: 188.0326321 | VD52: 187.900189 | VE52: 187.7705057 | VF52: 187.6435982 | VG52: 187.5194806 | VH52: 187.398165 | VI52: 187.2796613 | VJ52: =VJ56+DEIKT_HUYGENS*VJ53 -> 187.1639779 | VK52: =MIN(RM52:VJ52) -> 187.1639779
BE53: -0.6533395369 | BH53: =IF(BK53<rmaxv,max2v,IF(BK53>rminv,max2v,BL53)) -> 18.26187891 | BI53: =IF(BK53<rmaxv,maxy2,IF(BK53>rminv,miny2,BM53)) -> -8.422479662 | BJ53: =IF(OR(BM53=maxy2,BM53=miny2),1+SUM(BJ$2:BJ52),0) -> 0 | BK53: 53 | BL53: 18.26187891 | BM53: -8.422479662 | RL53: m2 | RM53: =SQRT(RM55^2+RM54^2) -> 45.68365911 | RN53: =SQRT(RN55^2+RN54^2) -> 45.80374486 | RO53: 45.92213059 | RP53: 46.0388108 | RR53: 46.15378009 | RS53: 46.26703314 | RT53: 46.37856474 | RU53: 46.48836973 | RV53: 46.59644306 | RW53: 46.70277977 | RX53: 46.80737497 | RY53: 46.91022387 | RZ53: 47.01132176 | SA53: 47.11066401 | SB53: 47.20824608 | SC53: 47.30406352 | SD53: 47.39811197 | SE53: 47.49038714 | SF53: 47.58088483 | SG53: 47.66960093 | SH53: 47.75653142 | SI53: 47.84167235 | SJ53: 47.92501986 | SK53: 48.00657018 | SL53: 48.08631963 | SM53: 48.16426459 | SN53: 48.24040156 | SO53: 48.31472709 | SP53: 48.38723783 | SQ53: 48.45793052 | SR53: 48.52680197 | SS53: 48.5938491 | ST53: 48.65906888 | SU53: 48.72245838 | SV53: 48.78401476 | SW53: 48.84373525 | SX53: 48.90161719 | SY53: 48.95765797 | SZ53: 49.01185509 | TA53: 49.06420612 | TB53: 49.11470872 | TC53: 49.16336062 | TD53: 49.21015966 | TE53: 49.25510375 | TF53: 49.29819087 | TG53: 49.33941911 | TH53: 49.37878662 | TI53: 49.41629166 | TJ53: 49.45193253 | TK53: 49.48570767 | TL53: 49.51761556 | TM53: 49.54765478 | TN53: 49.575824 | TO53: 49.60212196 | TP53: 49.62654748 | TQ53: 49.6490995 | TR53: 49.66977699 | TS53: 49.68857904 | TT53: 49.70550481 | TU53: 49.72055356 | TV53: 49.73372461 | TW53: 49.74501738 | TX53: 49.75443136 | TY53: 49.76196614 | TZ53: 49.76762138 | UA53: =SQRT(UA55^2+UA54^2) -> 49.77139683 | UB53: 49.77329233 | UC53: 49.77330778 | UD53: 49.77144319 | UE53: 49.76769864 | UF53: 49.7620743 | UG53: 49.75457042 | UH53: 49.74518733 | UI53: 49.73392545 | UJ53: 49.72078527 | UK53: 49.70576739 | UL53: 49.68887246 | UM53: 49.67010125 | UN53: 49.64945459 | UO53: 49.62693338 | UP53: 49.60253865 | UQ53: 49.57627146 | UR53: 49.548133 | US53: 49.51812451 | UT53: 49.48624733 | UU53: 49.45250288 | UV53: 49.41689266 | UW53: 49.37941826 | UX53: 49.34008135 | UY53: 49.29888369 | UZ53: 49.25582711 | VA53: 49.21091353 | VB53: 49.16414497 | VC53: 49.11552351 | VD53: 49.06505132 | VE53: 49.01273066 | VF53: 48.95856387 | VG53: 48.90255338 | VH53: 48.84470169 | VI53: 48.78501139 | VJ53: 48.72348517
BE54: -0.7476521811 | BH54: =IF(BK54<rmaxv,max2v,IF(BK54>rminv,max2v,BL54)) -> 18.27942795 | BI54: =IF(BK54<rmaxv,maxy2,IF(BK54>rminv,miny2,BM54)) -> -8.443428246 | BJ54: =IF(OR(BM54=maxy2,BM54=miny2),1+SUM(BJ$2:BJ53),0) -> 2 | BK54: 54 | BL54: 18.27942795 | BM54: -8.443428246 | RM54: =$RL$55-RM58 -> 36.60017498 | RN54: =$RL$55-RN58 -> 36.48125655 | RO54: 36.35785708 | RP54: 36.22999604 | RR54: 36.09769359 | RS54: 35.9609706 | RT54: 35.81984865 | RU54: 35.67434999 | RV54: 35.52449757 | RW54: 35.37031504 | RX54: 35.21182672 | RY54: 35.0490576 | RZ54: 34.88203336 | SA54: 34.71078036 | SB54: 34.5353256 | SC54: 34.35569676 | SD54: 34.17192218 | SE54: 33.98403084 | SF54: 33.7920524 | SG54: 33.59601712 | SH54: 33.39595594 | SI54: 33.19190041 | SJ54: 32.98388272 | SK54: 32.77193569 | SL54: 32.55609275 | SM54: 32.33638795 | SN54: 32.11285594 | SO54: 31.885532 | SP54: 31.65445196 | SQ54: 31.4196523 | SR54: 31.18117004 | SS54: 30.93904282 | ST54: 30.69330881 | SU54: 30.44400679 | SV54: 30.19117608 | SW54: 29.93485656 | SX54: 29.67508867 | SY54: 29.41191339 | SZ54: 29.14537223 | TA54: 28.87550723 | TB54: 28.60236097 | TC54: 28.32597654 | TD54: 28.04639753 | TE54: 27.76366804 | TF54: 27.47783268 | TG54: 27.18893653 | TH54: 26.89702517 | TI54: 26.60214464 | TJ54: 26.30434147 | TK54: 26.00366262 | TL54: 25.70015553 | TM54: 25.39386807 | TN54: 25.08484857 | TO54: 24.77314576 | TP54: 24.45880883 | TQ54: 24.14188734 | TR54: 23.82243131 | TS54: 23.50049111 | TT54: 23.17611754 | TU54: 22.84936176 | TV54: 22.52027531 | TW54: 22.18891012 | TX54: 21.85531845 | TY54: 21.51955292 | TZ54: 21.1816665 | UA54: =$RL$55-UA58 -> 20.84171249 | UB54: 20.49974452 | UC54: 20.15581653 | UD54: 19.80998277 | UE54: 19.4622978 | UF54: 19.11281646 | UG54: 18.76159388 | UH54: 18.40868548 | UI54: 18.05414691 | UJ54: 17.6980341 | UK54: 17.34040323 | UL54: 16.98131072 | UM54: 16.6208132 | UN54: 16.25896756 | UO54: 15.89583086 | UP54: 15.53146039 | UQ54: 15.16591362 | UR54: 14.79924823 | US54: 14.43152205 | UT54: 14.06279309 | UU54: 13.69311952 | UV54: 13.32255964 | UW54: 12.95117192 | UX54: 12.57901493 | UY54: 12.20614739 | UZ54: 11.83262811 | VA54: 11.45851602 | VB54: 11.08387012 | VC54: 10.70874953 | VD54: 10.3332134 | VE54: 9.95732099 | VF54: 9.581131583 | VG54: 9.204704525 | VH54: 8.828099197 | VI54: 8.451375006 | VJ54: 8.074591378
BE55: -0.8319289507 | BH55: =IF(BK55<rmaxv,max2v,IF(BK55>rminv,max2v,BL55)) -> 18.27942795 | BI55: =IF(BK55<rmaxv,maxy2,IF(BK55>rminv,miny2,BM55)) -> -8.443428246 | BJ55: =IF(OR(BM55=maxy2,BM55=miny2),1+SUM(BJ$2:BJ54),0) -> 0 | BK55: 55 | BL55: 18.26063885 | BM55: -8.42504259 | RK55: =$AD$95 -> 18.04975527 | RL55: =$AF$95 -> 8.074591378 | RM55: =$RK$55-RM59 -> 27.3390545 | RN55: =$RK$55-RN59 -> 27.69658759 | RO55: 28.05259892 | RP55: 28.40703235 | RR55: 28.75983196 | RS55: 29.11094209 | RT55: 29.46030737 | RU55: 29.80787267 | RV55: 30.15358318 | RW55: 30.49738435 | RX55: 30.83922196 | RY55: 31.17904208 | RZ55: 31.51679111 | SA55: 31.85241577 | SB55: 32.1858631 | SC55: 32.51708053 | SD55: 32.84601579 | SE55: 33.17261699 | SF55: 33.49683262 | SG55: 33.81861154 | SH55: 34.13790298 | SI55: 34.45465658 | SJ55: 34.76882237 | SK55: 35.08035079 | SL55: 35.3891927 | SM55: 35.69529938 | SN55: 35.99862255 | SO55: 36.29911435 | SP55: 36.59672739 | SQ55: 36.89141471 | SR55: 37.18312984 | SS55: 37.47182675 | ST55: 37.7574599 | SU55: 38.03998424 | SV55: 38.3193552 | SW55: 38.59552871 | SX55: 38.8684612 | SY55: 39.13810962 | SZ55: 39.40443144 | TA55: 39.66738464 | TB55: 39.92692774 | TC55: 40.18301981 | TD55: 40.43562043 | TE55: 40.68468978 | TF55: 40.93018855 | TG55: 41.17207802 | TH55: 41.41032004 | TI55: 41.64487701 | TJ55: 41.87571195 | TK55: 42.10278844 | TL55: 42.32607065 | TM55: 42.54552337 | TN55: 42.76111198 | TO55: 42.97280246 | TP55: 43.18056144 | TQ55: 43.38435612 | TR55: 43.58415437 | TS55: 43.77992467 | TT55: 43.97163614 | TU55: 44.15925853 | TV55: 44.34276224 | TW55: 44.52211834 | TX55: 44.69729852 | TY55: 44.86827516 | TZ55: 45.03502128 | UA55: =$RK$55-UA59 -> 45.19751058 | UB55: 45.35571743 | UC55: 45.50961687 | UD55: 45.65918462 | UE55: 45.80439709 | UF55: 45.94523137 | UG55: 46.08166526 | UH55: 46.21367721 | UI55: 46.34124642 | UJ55: 46.46435276 | UK55: 46.5829768 | UL55: 46.69709984 | UM55: 46.80670387 | UN55: 46.9117716 | UO55: 47.01228646 | UP55: 47.1082326 | UQ55: 47.19959487 | UR55: 47.28635887 | US55: 47.36851091 | UT55: 47.44603803 | UU55: 47.518928 | UV55: 47.58716933 | UW55: 47.65075124 | UX55: 47.70966371 | UY55: 47.76389744 | UZ55: 47.81344388 | VA55: 47.85829522 | VB55: 47.89844438 | VC55: 47.93388502 | VD55: 47.96461156 | VE55: 47.99061914 | VF55: 48.01190367 | VG55: 48.02846178 | VH55: 48.04029088 | VI55: 48.04738908 | VJ55: 48.04975527
BE56: -0.9066286284 | BH56: =IF(BK56<rmaxv,max2v,IF(BK56>rminv,max2v,BL56)) -> 18.27942795 | BI56: =IF(BK56<rmaxv,maxy2,IF(BK56>rminv,miny2,BM56)) -> -8.443428246 | BJ56: =IF(OR(BM56=maxy2,BM56=miny2),1+SUM(BJ$2:BJ55),0) -> 0 | BK56: 56 | BL56: 18.2007377 | BM56: -8.373749656 | RL56: m1 | RM56: =SQRT(RM58^2+RM57^2) -> 122.0898825 | RN56: =SQRT(RN58^2+RN57^2) -> 121.7144647 | RO56: 121.3394908 | RP56: 120.9650241 | RR56: 120.5911289 | RS56: 120.2178696 | RT56: 119.8453114 | RU56: 119.4735199 | RV56: 119.1025611 | RW56: 118.7325017 | RX56: 118.3634087 | RY56: 117.9953498 | RZ56: 117.6283929 | SA56: 117.2626066 | SB56: 116.8980598 | SC56: 116.534822 | SD56: 116.1729629 | SE56: 115.8125529 | SF56: 115.4536626 | SG56: 115.0963631 | SH56: 114.7407259 | SI56: 114.3868229 | SJ56: 114.0347264 | SK56: 113.6845088 | SL56: 113.3362432 | SM56: 112.9900027 | SN56: 112.6458609 | SO56: 112.3038916 | SP56: 111.964169 | SQ56: 111.6267673 | SR56: 111.2917612 | SS56: 110.9592254 | ST56: 110.6292349 | SU56: 110.3018648 | SV56: 109.9771904 | SW56: 109.6552871 | SX56: 109.3362304 | SY56: 109.0200958 | SZ56: 108.7069588 | TA56: 108.3968952 | TB56: 108.0899803 | TC56: 107.7862898 | TD56: 107.4858992 | TE56: 107.1888836 | TF56: 106.8953183 | TG56: 106.6052784 | TH56: 106.3188385 | TI56: 106.0360733 | TJ56: 105.7570569 | TK56: 105.4818634 | TL56: 105.2105663 | TM56: 104.9432388 | TN56: 104.6799536 | TO56: 104.420783 | TP56: 104.1657987 | TQ56: 103.915072 | TR56: 103.6686733 | TS56: 103.4266727 | TT56: 103.1891394 | TU56: 102.956142 | TV56: 102.727748 | TW56: 102.5040246 | TX56: 102.2850376 | TY56: 102.0708524 | TZ56: 101.861533 | UA56: =SQRT(UA58^2+UA57^2) -> 101.6571426 | UB56: 101.4577434 | UC56: 101.2633963 | UD56: 101.0741613 | UE56: 100.8900971 | UF56: 100.7112611 | UG56: 100.5377096 | UH56: 100.3694973 | UI56: 100.2066777 | UJ56: 100.0493031 | UK56: 99.89742384 | UL56: 99.75108917 | UM56: 99.61034665 | UN56: 99.47524225 | UO56: 99.34582032 | UP56: 99.22212356 | UQ56: 99.10419296 | UR56: 98.99206775 | US56: 98.88578541 | UT56: 98.78538157 | UU56: 98.69089006 | UV56: 98.60234278 | UW56: 98.51976975 | UX56: 98.44319906 | UY56: 98.37265679 | UZ56: 98.30816708 | VA56: 98.24975202 | VB56: 98.19743168 | VC56: 98.15122406 | VD56: 98.11114509 | VE56: 98.07720861 | VF56: 98.04942636 | VG56: 98.02780795 | VH56: 98.01236088 | VI56: 98.00309049 | VJ56: 98
BH57: =IF(BK57<rmaxv,max2v,IF(BK57>rminv,max2v,BL57)) -> 18.27942795 | BI57: =IF(BK57<rmaxv,maxy2,IF(BK57>rminv,miny2,BM57)) -> -8.443428246 | BJ57: =IF(OR(BM57=maxy2,BM57=miny2),1+SUM(BJ$2:BJ56),0) -> 0 | BK57: 57 | BL57: 18.09624295 | BM57: -8.296723995 | RM57: =RM59-ShmEIO_arxH -> 118.7107008 | RN57: =RN59-ShmEIO_arxH -> 118.3531677 | RO57: =RO59-ShmEIO_arxH -> 117.9971563 | RP57: =RP59-ShmEIO_arxH -> 117.6427229 | RR57: =RR59-ShmEIO_arxH -> 117.2899233 | RS57: 116.9388132 | RT57: 116.5894479 | RU57: 116.2418826 | RV57: 115.8961721 | RW57: 115.5523709 | RX57: 115.2105333 | RY57: 114.8707132 | RZ57: 114.5329642 | SA57: 114.1973395 | SB57: 113.8638922 | SC57: 113.5326747 | SD57: 113.2037395 | SE57: 112.8771383 | SF57: 112.5529226 | SG57: 112.2311437 | SH57: 111.9118523 | SI57: 111.5950987 | SJ57: 111.2809329 | SK57: 110.9694045 | SL57: 110.6605626 | SM57: 110.3544559 | SN57: 110.0511327 | SO57: 109.7506409 | SP57: 109.4530279 | SQ57: 109.1583406 | SR57: 108.8666254 | SS57: 108.5779285 | ST57: 108.2922954 | SU57: 108.009771 | SV57: 107.7304001 | SW57: 107.4542266 | SX57: =SX59-ShmEIO_arxH -> 107.1812941 | SY57: 106.9116456 | SZ57: 106.6453238 | TA57: 106.3823706 | TB57: 106.1228275 | TC57: 105.8667355 | TD57: 105.6141348 | TE57: 105.3650655 | TF57: 105.1195667 | TG57: 104.8776772 | TH57: 104.6394352 | TI57: 104.4048783 | TJ57: 104.1740433 | TK57: 103.9469668 | TL57: 103.7236846 | TM57: 103.5042319 | TN57: 103.2886433 | TO57: 103.0769528 | TP57: 102.8691938 | TQ57: 102.6653991 | TR57: 102.4656009 | TS57: 102.2698306 | TT57: 102.0781191 | TU57: 101.8904967 | TV57: 101.706993 | TW57: 101.5276369 | TX57: 101.3524567 | TY57: 101.1814801 | TZ57: 101.014734 | UA57: 100.8522447 | UB57: 100.6940378 | UC57: 100.5401384 | UD57: =UD59-ShmEIO_arxH -> 100.3905707 | UE57: 100.2453582 | UF57: 100.1045239 | UG57: 99.96809001 | UH57: 99.83607806 | UI57: 99.70850885 | UJ57: 99.58540252 | UK57: 99.46677847 | UL57: 99.35265544 | UM57: 99.2430514 | UN57: 99.13798367 | UO57: 99.03746881 | UP57: 98.94152267 | UQ57: 98.8501604 | UR57: 98.7633964 | US57: 98.68124436 | UT57: 98.60371724 | UU57: 98.53082727 | UV57: 98.46258594 | UW57: 98.39900403 | UX57: 98.34009156 | UY57: 98.28585783 | UZ57: 98.23631139 | VA57: 98.19146005 | VB57: 98.15131089 | VC57: 98.11587025 | VD57: 98.08514372 | VE57: 98.05913613 | VF57: 98.0378516 | VG57: 98.02129349 | VH57: 98.00946439 | VI57: 98.00236619 | VJ57: 98
BH58: =IF(BK58<rmaxv,max2v,IF(BK58>rminv,max2v,BL58)) -> 18.27942795 | BI58: =IF(BK58<rmaxv,maxy2,IF(BK58>rminv,miny2,BM58)) -> -8.443428246 | BJ58: =IF(OR(BM58=maxy2,BM58=miny2),1+SUM(BJ$2:BJ57),0) -> 0 | BK58: 58 | BL58: 17.94531789 | BM58: -8.201596869 | RM58: =AKTINA*SIN(RM64) -> -28.5255836 | RN58: =AKTINA*SIN(RN64) -> -28.40666517 | RO58: =AKTINA*SIN(RO64) -> -28.2832657 | RP58: =AKTINA*SIN(RP64) -> -28.15540466 | RR58: =AKTINA*SIN(RR64) -> -28.02310221 | RS58: -27.88637922 | RT58: -27.74525727 | RU58: -27.59975861 | RV58: -27.44990619 | RW58: -27.29572366 | RX58: -27.13723534 | RY58: -26.97446622 | RZ58: -26.80744198 | SA58: -26.63618898 | SB58: -26.46073422 | SC58: -26.28110538 | SD58: -26.0973308 | SE58: -25.90943946 | SF58: -25.71746102 | SG58: -25.52142574 | SH58: -25.32136456 | SI58: -25.11730903 | SJ58: -24.90929135 | SK58: -24.69734432 | SL58: -24.48150137 | SM58: -24.26179657 | SN58: -24.03826457 | SO58: -23.81094062 | SP58: -23.57986059 | SQ58: -23.34506092 | SR58: -23.10657867 | SS58: -22.86445144 | ST58: -22.61871743 | SU58: -22.36941541 | SV58: -22.1165847 | SW58: -21.86026518 | SX58: =AKTINA*SIN(SX64) -> -21.60049729 | SY58: -21.33732201 | SZ58: -21.07078085 | TA58: -20.80091586 | TB58: -20.5277696 | TC58: -20.25138516 | TD58: -19.97180615 | TE58: -19.68907666 | TF58: -19.4032413 | TG58: -19.11434515 | TH58: -18.82243379 | TI58: -18.52755326 | TJ58: -18.22975009 | TK58: -17.92907124 | TL58: -17.62556415 | TM58: -17.31927669 | TN58: -17.01025719 | TO58: -16.69855439 | TP58: -16.38421745 | TQ58: -16.06729597 | TR58: -15.74783993 | TS58: -15.42589973 | TT58: -15.10152616 | TU58: -14.77477038 | TV58: -14.44568393 | TW58: -14.11431874 | TX58: -13.78072707 | TY58: -13.44496154 | TZ58: -13.10707512 | UA58: -12.76712111 | UB58: -12.42515314 | UC58: -12.08122515 | UD58: =AKTINA*SIN(UD64) -> -11.73539139 | UE58: -11.38770642 | UF58: -11.03822508 | UG58: -10.68700251 | UH58: -10.3340941 | UI58: -9.979555527 | UJ58: -9.62344272 | UK58: -9.265811853 | UL58: -8.90671934 | UM58: -8.546221826 | UN58: -8.184376179 | UO58: -7.821239479 | UP58: -7.456869008 | UQ58: -7.091322246 | UR58: -6.724656854 | US58: -6.356930675 | UT58: -5.988201714 | UU58: -5.618528138 | UV58: -5.247968261 | UW58: -4.876580537 | UX58: -4.504423551 | UY58: -4.131556011 | UZ58: -3.758036733 | VA58: -3.38392464 | VB58: -3.009278745 | VC58: -2.634158149 | VD58: -2.258622025 | VE58: -1.882729611 | VF58: -1.506540205 | VG58: -1.130113147 | VH58: -0.7535078189 | VI58: -0.3767836275 | VJ58: 8.75341466e-14
BH59: =IF(BK59<rmaxv,max2v,IF(BK59>rminv,max2v,BL59)) -> 18.27942795 | BI59: =IF(BK59<rmaxv,maxy2,IF(BK59>rminv,miny2,BM59)) -> -8.443428246 | BJ59: =IF(OR(BM59=maxy2,BM59=miny2),1+SUM(BJ$2:BJ58),0) -> 0 | BK59: 59 | BL59: 17.74802155 | BM59: -8.096110976 | RM59: =-AKTINA*COS(RM64) -> -9.28929923 | RN59: =-AKTINA*COS(RN64) -> -9.646832317 | RO59: =-AKTINA*COS(RO64) -> -10.00284365 | RP59: =-AKTINA*COS(RP64) -> -10.35727708 | RR59: =-AKTINA*COS(RR64) -> -10.71007669 | RS59: -11.06118682 | RT59: -11.41055209 | RU59: -11.7581174 | RV59: -12.10382791 | RW59: -12.44762908 | RX59: -12.78946669 | RY59: -13.12928681 | RZ59: -13.46703584 | SA59: -13.80266049 | SB59: -14.13610783 | SC59: -14.46732526 | SD59: -14.79626051 | SE59: -15.12286172 | SF59: -15.44707735 | SG59: -15.76885627 | SH59: -16.08814771 | SI59: -16.40490131 | SJ59: -16.7190671 | SK59: -17.03059552 | SL59: -17.33943743 | SM59: -17.64554411 | SN59: -17.94886728 | SO59: -18.24935908 | SP59: -18.54697212 | SQ59: -18.84165944 | SR59: -19.13337457 | SS59: -19.42207148 | ST59: -19.70770463 | SU59: -19.99022897 | SV59: -20.26959993 | SW59: -20.54577344 | SX59: =-AKTINA*COS(SX64) -> -20.81870593 | SY59: -21.08835435 | SZ59: -21.35467617 | TA59: -21.61762937 | TB59: -21.87717247 | TC59: -22.13326454 | TD59: -22.38586516 | TE59: -22.63493451 | TF59: -22.88043328 | TG59: -23.12232275 | TH59: -23.36056477 | TI59: -23.59512174 | TJ59: -23.82595668 | TK59: -24.05303317 | TL59: -24.27631538 | TM59: -24.4957681 | TN59: -24.71135671 | TO59: -24.92304719 | TP59: -25.13080617 | TQ59: -25.33460085 | TR59: -25.5343991 | TS59: -25.7301694 | TT59: -25.92188087 | TU59: -26.10950326 | TV59: -26.29300697 | TW59: -26.47236307 | TX59: -26.64754325 | TY59: -26.81851989 | TZ59: -26.98526601 | UA59: -27.14775531 | UB59: -27.30596216 | UC59: -27.4598616 | UD59: =-AKTINA*COS(UD64) -> -27.60942935 | UE59: -27.75464182 | UF59: -27.8954761 | UG59: -28.03190999 | UH59: -28.16392194 | UI59: -28.29149115 | UJ59: -28.41459748 | UK59: -28.53322153 | UL59: -28.64734456 | UM59: -28.7569486 | UN59: -28.86201633 | UO59: -28.96253119 | UP59: -29.05847733 | UQ59: -29.1498396 | UR59: -29.2366036 | US59: -29.31875564 | UT59: -29.39628276 | UU59: -29.46917273 | UV59: -29.53741406 | UW59: -29.60099597 | UX59: -29.65990844 | UY59: -29.71414217 | UZ59: -29.76368861 | VA59: -29.80853995 | VB59: -29.84868911 | VC59: -29.88412975 | VD59: -29.91485628 | VE59: -29.94086387 | VF59: -29.9621484 | VG59: -29.97870651 | VH59: -29.99053561 | VI59: -29.99763381 | VJ59: -30
BH60: =IF(BK60<rmaxv,max2v,IF(BK60>rminv,max2v,BL60)) -> 18.27942795 | BI60: =IF(BK60<rmaxv,maxy2,IF(BK60>rminv,miny2,BM60)) -> -8.443428246 | BJ60: =IF(OR(BM60=maxy2,BM60=miny2),1+SUM(BJ$2:BJ59),0) -> 0 | BK60: 60 | BL60: =AD135 -> 17.5064209 | BM60: =AP135 -> -7.987749865 | RN60: =HLOOKUP(1,RN61:VJ64,3,FALSE) ->  | RO60: =DEGREES(HLOOKUP(1,RN61:VK64,4,FALSE)) ->  | RP60: =HLOOKUP(2,RP61:VL64,3,FALSE) ->  | RR60: =DEGREES(HLOOKUP(2,RR61:VM64,4,FALSE)) ->  | SS60: =SUM(SO61:SR61) -> 0
BH61: =IF(BK61<rmaxv,max2v,IF(BK61>rminv,max2v,BL61)) -> 18.27942795 | BI61: =IF(BK61<rmaxv,maxy2,IF(BK61>rminv,miny2,BM61)) -> -8.443428246 | BJ61: =IF(OR(BM61=maxy2,BM61=miny2),1+SUM(BJ$2:BJ60),0) -> 0 | BK61: 61 | BL61: 17.22454513 | BM61: -7.883376837 | LE61: 1 | LF61: =LE61+1 -> 2 | LG61: =LF61+1 -> 3 | LH61: 4 | LI61: 5 | LJ61: 6 | LK61: 7 | LL61: 8 | LM61: 9 | LN61: 10 | LO61: 11 | LP61: 12 | LQ61: 13 | LR61: 14 | LS61: 15 | LT61: 16 | LU61: 17 | LV61: 18 | LW61: 19 | LX61: 20 | LY61: 21 | LZ61: 22 | MA61: 23 | RL61: =199 -> 199 | RO61: =IF(RN62*RO62>0,0,1+SUM($RM61:RN61)) -> 0 | RP61: =IF(RO62*RP62>0,0,1+SUM($RM61:RO61)) -> 0 | RR61: =IF(RP62*RR62>0,0,1+SUM($RM61:RP61)) -> 0 | RS61: =IF(RR62*RS62>0,0,1+SUM($RM61:RR61)) -> 0 | RT61: =IF(RS62*RT62>0,0,1+SUM($RM61:RS61)) -> 0 | RU61: =IF(RT62*RU62>0,0,1+SUM($RM61:RT61)) -> 0 | RV61: =IF(RU62*RV62>0,0,1+SUM($RM61:RU61)) -> 0 | RW61: =IF(RV62*RW62>0,0,1+SUM($RM61:RV61)) -> 0 | RX61: =IF(RW62*RX62>0,0,1+SUM($RM61:RW61)) -> 0 | RY61: =IF(RX62*RY62>0,0,1+SUM($RM61:RX61)) -> 0 | RZ61: =IF(RY62*RZ62>0,0,1+SUM($RM61:RY61)) -> 0 | SA61: =IF(RZ62*SA62>0,0,1+SUM($RM61:RZ61)) -> 0 | SB61: =IF(SA62*SB62>0,0,1+SUM($RM61:SA61)) -> 0 | SC61: =IF(SB62*SC62>0,0,1+SUM($RM61:SB61)) -> 0 | SD61: =IF(SC62*SD62>0,0,1+SUM($RM61:SC61)) -> 0 | SE61: =IF(SD62*SE62>0,0,1+SUM($RM61:SD61)) -> 0 | SF61: =IF(SE62*SF62>0,0,1+SUM($RM61:SE61)) -> 0 | SG61: =IF(SF62*SG62>0,0,1+SUM($RM61:SF61)) -> 0 | SH61: =IF(SG62*SH62>0,0,1+SUM($RM61:SG61)) -> 0 | SI61: =IF(SH62*SI62>0,0,1+SUM($RM61:SH61)) -> 0 | SJ61: =IF(SI62*SJ62>0,0,1+SUM($RM61:SI61)) -> 0 | SK61: =IF(SJ62*SK62>0,0,1+SUM($RM61:SJ61)) -> 0 | SL61: =IF(SK62*SL62>0,0,1+SUM($RM61:SK61)) -> 0 | SM61: =IF(SL62*SM62>0,0,1+SUM($RM61:SL61)) -> 0 | SN61: =IF(SM62*SN62>0,0,1+SUM($RM61:SM61)) -> 0 | SO61: =IF(SN62*SO62>0,0,1+SUM($RM61:SN61)) -> 0 | SP61: =IF(SO62*SP62>0,0,1+SUM($RM61:SO61)) -> 0 | SQ61: =IF(SP62*SQ62>0,0,1+SUM($RM61:SP61)) -> 0 | SR61: =IF(SQ62*SR62>0,0,1+SUM($RM61:SQ61)) -> 0 | SS61: =IF(SR62*SS62>0,0,1+SUM($RM61:SR61)) -> 0 | ST61: =IF(SS62*ST62>0,0,1+SUM($RM61:SS61)) -> 0 | SU61: =IF(ST62*SU62>0,0,1+SUM($RM61:ST61)) -> 0 | SV61: =IF(SU62*SV62>0,0,1+SUM($RM61:SU61)) -> 0 | SW61: =IF(SV62*SW62>0,0,1+SUM($RM61:SV61)) -> 0 | SX61: =IF(SW62*SX62>0,0,1+SUM($RM61:SW61)) -> 0 | SY61: =IF(SX62*SY62>0,0,1+SUM($RM61:SX61)) -> 0 | SZ61: =IF(SY62*SZ62>0,0,1+SUM($RM61:SY61)) -> 0 | TA61: =IF(SZ62*TA62>0,0,1+SUM($RM61:SZ61)) -> 0 | TB61: =IF(TA62*TB62>0,0,1+SUM($RM61:TA61)) -> 0 | TC61: =IF(TB62*TC62>0,0,1+SUM($RM61:TB61)) -> 0 | TD61: =IF(TC62*TD62>0,0,1+SUM($RM61:TC61)) -> 0 | TE61: =IF(TD62*TE62>0,0,1+SUM($RM61:TD61)) -> 0 | TF61: =IF(TE62*TF62>0,0,1+SUM($RM61:TE61)) -> 0 | TG61: =IF(TF62*TG62>0,0,1+SUM($RM61:TF61)) -> 0 | TH61: =IF(TG62*TH62>0,0,1+SUM($RM61:TG61)) -> 0 | TI61: =IF(TH62*TI62>0,0,1+SUM($RM61:TH61)) -> 0 | TJ61: =IF(TI62*TJ62>0,0,1+SUM($RM61:TI61)) -> 0 | TK61: =IF(TJ62*TK62>0,0,1+SUM($RM61:TJ61)) -> 0 | TL61: =IF(TK62*TL62>0,0,1+SUM($RM61:TK61)) -> 0 | TM61: =IF(TL62*TM62>0,0,1+SUM($RM61:TL61)) -> 0 | TN61: =IF(TM62*TN62>0,0,1+SUM($RM61:TM61)) -> 0 | TO61: =IF(TN62*TO62>0,0,1+SUM($RM61:TN61)) -> 0 | TP61: =IF(TO62*TP62>0,0,1+SUM($RM61:TO61)) -> 0 | TQ61: =IF(TP62*TQ62>0,0,1+SUM($RM61:TP61)) -> 0 | TR61: =IF(TQ62*TR62>0,0,1+SUM($RM61:TQ61)) -> 0 | TS61: =IF(TR62*TS62>0,0,1+SUM($RM61:TR61)) -> 0 | TT61: =IF(TS62*TT62>0,0,1+SUM($RM61:TS61)) -> 0 | TU61: =IF(TT62*TU62>0,0,1+SUM($RM61:TT61)) -> 0 | TV61: =IF(TU62*TV62>0,0,1+SUM($RM61:TU61)) -> 0 | TW61: =IF(TV62*TW62>0,0,1+SUM($RM61:TV61)) -> 0 | TX61: =IF(TW62*TX62>0,0,1+SUM($RM61:TW61)) -> 0 | TY61: =IF(TX62*TY62>0,0,1+SUM($RM61:TX61)) -> 0 | TZ61: =IF(TY62*TZ62>0,0,1+SUM($RM61:TY61)) -> 0 | UA61: =IF(TZ62*UA62>0,0,1+SUM($RM61:TZ61)) -> 0 | UB61: =IF(UA62*UB62>0,0,1+SUM($RM61:UA61)) -> 0 | UC61: =IF(UB62*UC62>0,0,1+SUM($RM61:UB61)) -> 0 | UD61: =IF(UC62*UD62>0,0,1+SUM($RM61:UC61)) -> 0 | UE61: =IF(UD62*UE62>0,0,1+SUM($RM61:UD61)) -> 0 | UF61: =IF(UE62*UF62>0,0,1+SUM($RM61:UE61)) -> 0 | UG61: =IF(UF62*UG62>0,0,1+SUM($RM61:UF61)) -> 0 | UH61: =IF(UG62*UH62>0,0,1+SUM($RM61:UG61)) -> 0 | UI61: =IF(UH62*UI62>0,0,1+SUM($RM61:UH61)) -> 0 | UJ61: =IF(UI62*UJ62>0,0,1+SUM($RM61:UI61)) -> 0 | UK61: =IF(UJ62*UK62>0,0,1+SUM($RM61:UJ61)) -> 0 | UL61: =IF(UK62*UL62>0,0,1+SUM($RM61:UK61)) -> 0 | UM61: =IF(UL62*UM62>0,0,1+SUM($RM61:UL61)) -> 0 | UN61: =IF(UM62*UN62>0,0,1+SUM($RM61:UM61)) -> 0 | UO61: =IF(UN62*UO62>0,0,1+SUM($RM61:UN61)) -> 0 | UP61: =IF(UO62*UP62>0,0,1+SUM($RM61:UO61)) -> 0 | UQ61: =IF(UP62*UQ62>0,0,1+SUM($RM61:UP61)) -> 0 | UR61: =IF(UQ62*UR62>0,0,1+SUM($RM61:UQ61)) -> 0 | US61: =IF(UR62*US62>0,0,1+SUM($RM61:UR61)) -> 0 | UT61: =IF(US62*UT62>0,0,1+SUM($RM61:US61)) -> 0 | UU61: =IF(UT62*UU62>0,0,1+SUM($RM61:UT61)) -> 0 | UV61: =IF(UU62*UV62>0,0,1+SUM($RM61:UU61)) -> 0 | UW61: =IF(UV62*UW62>0,0,1+SUM($RM61:UV61)) -> 0 | UX61: =IF(UW62*UX62>0,0,1+SUM($RM61:UW61)) -> 0 | UY61: =IF(UX62*UY62>0,0,1+SUM($RM61:UX61)) -> 0 | UZ61: =IF(UY62*UZ62>0,0,1+SUM($RM61:UY61)) -> 0 | VA61: =IF(UZ62*VA62>0,0,1+SUM($RM61:UZ61)) -> 0 | VB61: =IF(VA62*VB62>0,0,1+SUM($RM61:VA61)) -> 0 | VC61: =IF(VB62*VC62>0,0,1+SUM($RM61:VB61)) -> 0 | VD61: =IF(VC62*VD62>0,0,1+SUM($RM61:VC61)) -> 0 | VE61: =IF(VD62*VE62>0,0,1+SUM($RM61:VD61)) -> 0 | VF61: =IF(VE62*VF62>0,0,1+SUM($RM61:VE61)) -> 0 | VG61: =IF(VF62*VG62>0,0,1+SUM($RM61:VF61)) -> 0 | VH61: =IF(VG62*VH62>0,0,1+SUM($RM61:VG61)) -> 0 | VI61: =IF(VH62*VI62>0,0,1+SUM($RM61:VH61)) -> 0 | VJ61: =IF(VI62*VJ62>0,0,1+SUM($RM61:VI61)) -> 0 | VK61: =SUM(RN61:VJ61) -> 0
BH62: =IF(BK62<rmaxv,max2v,IF(BK62>rminv,max2v,BL62)) -> 18.27942795 | BI62: =IF(BK62<rmaxv,maxy2,IF(BK62>rminv,miny2,BM62)) -> -8.443428246 | BJ62: =IF(OR(BM62=maxy2,BM62=miny2),1+SUM(BJ$2:BJ61),0) -> 0 | BK62: 62 | BL62: 16.90818561 | BM62: -7.788917786 | LW62: y^6 | RM62: c | RN62: =myfxfifind(AKTINA,ARXIKH_THESH,object_y,$AD$185,$AF$81,RN64,DEIKT_HUYGENS) -> 0.2431945836 | RO62: =myfxfifind(AKTINA,ARXIKH_THESH,object_y,$AD$185,$AF$81,RO64,DEIKT_HUYGENS) -> 0.2477039227 | RP62: =myfxfifind(AKTINA,ARXIKH_THESH,object_y,$AD$185,$AF$81,RP64,DEIKT_HUYGENS) -> 0.2521426998 | RR62: =myfxfifind(AKTINA,ARXIKH_THESH,object_y,$AD$185,$AF$81,RR64,DEIKT_HUYGENS) -> 0.2565099 | RS62: 0.2608045107 | RT62: 0.2650255221 | RU62: 0.2691719279 | RV62: 0.2732427253 | RW62: 0.2772369157 | RX62: 0.2811535049 | RY62: 0.2849915041 | RZ62: 0.2887499295 | SA62: 0.292427804 | SB62: 0.2960241565 | SC62: 0.2995380235 | SD62: 0.3029684492 | SE62: 0.306314486 | SF62: 0.3095751957 | SG62: 0.3127496496 | SH62: 0.3158369294 | SI62: 0.3188361281 | SJ62: 0.3217463505 | SK62: 0.3245667142 | SL62: 0.3272963502 | SM62: 0.3299344037 | SN62: 0.3324800355 | SO62: 0.334932422 | SP62: 0.3372907569 | SQ62: 0.3395542518 | SR62: 0.3417221371 | SS62: 0.3437936632 | ST62: 0.3457681012 | SU62: 0.3476447446 | SV62: 0.3494229094 | SW62: 0.3511019362 | SX62: =myfxfifind(AKTINA,ARXIKH_THESH,object_y,$AD$185,$AF$81,SX64,DEIKT_HUYGENS) -> 0.3526811905 | SY62: 0.3541600643 | SZ62: 0.3555379774 | TA62: 0.3568143779 | TB62: 0.3579887442 | TC62: 0.3590605857 | TD62: 0.3600294442 | TE62: 0.3608948951 | TF62: 0.361656549 | TG62: 0.3623140523 | TH62: 0.3628670892 | TI62: 0.3633153825 | TJ62: 0.3636586952 | TK62: 0.3638968318 | TL62: 0.3640296391 | TM62: 0.3640570084 | TN62: 0.363978876 | TO62: 0.3637952248 | TP62: 0.3635060858 | TQ62: 0.3631115389 | TR62: 0.3626117146 | TS62: 0.3620067948 | TT62: 0.3612970145 | TU62: 0.3604826626 | TV62: 0.359564083 | TW62: 0.3585416762 | TX62: 0.3574158998 | TY62: 0.3561872698 | TZ62: 0.3548563616 | UA62: 0.3534238109 | UB62: 0.3518903146 | UC62: 0.3502566314 | UD62: =myfxfifind(AKTINA,ARXIKH_THESH,object_y,$AD$185,$AF$81,UD64,DEIKT_HUYGENS) -> 0.3485235828 | UE62: 0.3466920538 | UF62: 0.3447629934 | UG62: 0.3427374149 | UH62: 0.3406163969 | UI62: 0.3384010831 | UJ62: 0.336092683 | UK62: 0.3336924718 | UL62: 0.3312017907 | UM62: 0.3286220468 | UN62: 0.3259547129 | UO62: 0.3232013274 | UP62: 0.3203634939 | UQ62: 0.3174428808 | UR62: 0.3144412209 | US62: 0.3113603104 | UT62: 0.3082020083 | UU62: 0.3049682356 | UV62: 0.3016609741 | UW62: 0.2982822655 | UX62: 0.2948342098 | UY62: 0.2913189641 | UZ62: 0.2877387413 | VA62: 0.2840958081 | VB62: 0.2803924836 | VC62: 0.2766311374 | VD62: 0.2728141875 | VE62: 0.2689440982 | VF62: 0.2650233782 | VG62: 0.2610545782 | VH62: 0.2570402885 | VI62: 0.2529831366 | VJ62: 0.2488857844
... 77 more rows

Sheet hyperbola
A1: =Cah/Ah -> 1.83 | B1: e | D1: =theta00/50 -> 0.01462854423 | E1: =SQRT((3*Ah+Cah)^2+8*BAH^2) -> 194.7 | F1: =BAH*SQRT(8) -> 130.0464532 | H1: =X_AT_MEGISTO -> -13.5 | I1: =(H2^2+2*Ah)^2/Ah^2-Y_MEGISTO^2/BAH^2 -> 62.22267965 | J1: thet_ymeg | K1: =ACOS(Ah/(2*Ah+x_meg2)) -> 0.8695619622 | L1: dthm | M1: =thet_ymegisto/50 -> 0.01739123924 | N1: =ATAN(max_y/M2) -> 0.4056461834 | O1: =AKTINA -> 30 | Q1: y=t*(x-s) | T1: RC16+SQRT(RC18))/RC15 | Y1: Ah | Z1: =AKTINA -> 30 | AA1: PACHOS | AB1: =AB_pachos -> 47 | AD1: =dEIKTHS -> 1.83 | AI1: y_megistof | AJ1: =vres_ksi10(ShmEIO_arxH,xronos_lryp,thesif,AB_pachos,DEIKT_HUYGENS,DEIKT_BACK,Ah,BAH,Cah) -> 54.45088636 | AM1: SHMEIO ARXHS | AO1: 128 | AW1: Y MEGISTO | AX1: 79.41017755 | AY1: =Ah*SQRT(1+y_megistof^2/BAH^2)-2*Ah -> -13.5 | BC1: =xsource -> -510 | EI1: shmeio_arxh | EJ1: -100 | MU1: y=Y0+t*(x-s)
A2: =Ah*(epsil^2-1) -> 70.467 | B2: a(e2-1) | D2: theta00 | E2: =ATAN(F1/(3*Ah+Cah)) -> 0.7314272114 | G2: =Y_MEGISTO -> 79.41017755 | H2: =Ah*SQRT(y_megistof^2/BAH^2+1)-2*Ah -> -13.5 | I2: r_ymegisto | J2: =SQRT(Y_MEGISTO^2+(x_meg2+Cah)^2) -> 89.55409705 | K2: =Ah -> 30 | L2: =ATAN(max_y/ABS(ARXIKH_THESH-x_meg2)) -> 0.4438999214 | M2: =SQRT((x_meg2-ARXIKH_THESH)^2+max_y^2) -> 126.787811 | N2: =ABS(-AKTINA-ShmEIO_arxH) -> 98 | O2: =ABS(ShmEIO_arxH+AKTINA)+ABS(AB_pachos-AKTINA)+thesif-AB_pachos -> 143 | Q2: y=bsqrt((x+2a)^2/a^2-1) | T2: beta+sqrt(d8scr)/alfa | Y2: Bah | Z2: =SQRT(AA2) -> 45.97836448 | AA2: =Cah^2-Ah^2 -> 2114.01 | AF2: kat=y1/(BAH/Ah)^2*(x1+2*Ah) | AJ2: kathx=1/sqrt(1+ | AT2: =xronos_lryp -> 256.51 | AW2: X AT MEGISTO | AX2: =AY1 -> -13.5 | MU2: y=b·sqrt((x+K)^2/a^2-1)
E3: =Ah/20 -> 1.5 | H3: x_meg2 | K3: max_y | L3: =K5 -> 54.45088636 | M3: mikos2 | N3: =ABS(O3-(-AKTINA))*DEIKT_HUYGENS -> 86.01 | O3: =-AKTINA+AB_pachos -> 17 | Q3: t^2*(x-s)^2=b^2(x+2a)^2/a^2-b^2 | Y3: Cah | Z3: =DEIKT_HUYGENS*Ah -> 54.9 | EI3: =vimata -> 2787 | EJ3: =Ah -> 30 | MU3: t^2*(x-s)^2+Y0^2+2y0*t*(x-s)=b^2(x+k)^2/a^2-b^2
C4: =1 -> 1 | D4: =C4+1 -> 2 | E4: 3 | F4: 4 | G4: 5 | H4: 6 | I4: 7 | K4: deltay | L4: =max_y/10 -> 5.445088636 | M4: mikos3 | N4: =(thesif-(-AKTINA+AB_pachos))*DEIKT_BACK -> 72.5 | O4: =O3-(-AKTINA) -> 47 | Q4: (at)^2(x-s)^2=b^2x^2+4b^2a^2+4b^2ax-a^2b^2 | Y4: mikos1= | Z4: =ABS(ShmEIO_arxH-(-Ah)) -> 98 | AA4: mikos2 | AB4: y=b*sqrt((x+2a)²/a²-1) dy/x=b²/a²(x+2a)/y | AG4: inc=theta-atan(kathy/kathx) | AX4: =xronos_lryp -> 256.51 | BE4: =xronos_lryp -> 256.51 | EI4: =dvim -> 50 | EJ4: =BAH -> 45.97836448 | MU4: t²(x²-2xs+s²)+y0²+2y0·t·x-2y0ts=b²x²/a²+2b²kx/a²+b²k²/a²-b²
A5: HYPERBOLIC SAHL | D5: x | E5: x | F5: y | G5: gonia t | H5: HYPERBOLA | I5: y=b tant | K5: =vres_ksi10(ARXIKH_THESH,xronos_lryp,thesif,AB_pachos,DEIKT_HUYGENS,DEIKT_BACK,Ah,BAH,Cah) -> 54.45088636 | M5: xronos_lryp | N5: =SUM(N2:N4) -> 256.51 | Q5: (at)^2*x^2+(at)^2*s^2-2sx(at)^2=b^2x^2+4b^2a^2+4ab^2x-a^2b^2 | Y5: xronos_lryp | Z5: =mikos1+mikos2+mikos3 -> 256.51 | AA5: old_x | AG5: dinc/dthea=1-1/(1+(kathy/kathx)²)*d(kathy/kathx)/dtheta=1-1/(1+kath²)*dkath/dtheta | EI5: =ShmEIO_arxH -> -128 | MU5: t²x²-2t²xs+t²s²+y0²+2y0·t·x-2y0ts=b²x²/a²+2b²kx/a²+b²k²/a²-b²
G6: =thet_ymegisto -> 0.8695619622 | H6: =-2*Ah+Ah/COS(G6) -> -13.5 | I6: =BAH*TAN(G6) -> 54.45088636 | K6: =VRES_KSI0() -> 52.31694659 | Q6: ((at)²-b²)x²-2(s(at)²+2*b²a)x+(sat)²-4ab²+b²a² | Y6: MEGISTH_GONIA | Z6: =0.25*ATAN(AKTINA/(Ah+AKTINA)) -> 0.1159119023 | BA6: PSAXIMOHYP | BB6: =MAX(BB38:BB58) -> 48.87925189 | BD6: =X_AT_MEGISTO -> -13.5 | EI6: =dvim -> 50 | MU6: 0=(b²-a²t²)x²+2(b²k+a²t²s-y0a²t)x+b²(k²-a²)-a²t²s²-a²y0²+2y0a²ts
G7: =G6-dthm -> 0.852170723 | H7: -14.43158672 | I7: 52.56837977 | N7: =xronos_lf -> 256.51 | Q7: alfa=(at)^2-b^2 | S7: DALFA/DF=-A²·2T/COS²(FI) | V7: DBETA/DFI=2S·a²t/cos²fi | Y7: ddisc/dfi=2beta·dbeta/df-alfa*dgama/df-gama*dalfa/df | AF7: √(DX·²+Dy²) | BB7: =piso_koryfh -> 17 | BD7: =Y_MEGISTO -> 79.41017755 | BM7: =dEIKTHS -> 1.83 | MU7: alfa=b²-(at)²
G8: 0.8347794837 | H8: -15.31332959 | I8: 50.75928403 | L8: FI | N8: =BAH -> 45.97836448 | Q8: beta=-(s(at)²+2b^2a) | S8: gama=-3a²b²+(sat)² | V8: dgama/dfi=2S²·a²t/cos²f | Z8: =ARXIKH_THESH -> -128 | AO8: OMEGA-FI-DIATHLASIS | AT8: ypoloipo | AY8: x2'-x1'=ξ | AZ8: x'2=x'1+ξ | BC8: =BC14^2 -> 0.142920589 | BI8: =IF(vimata_xek=0,SQRT((AX8-AY8)^2+(BB8-BC8)^2),SQRT((ShmEIO_arxH+vimata_xek*DT*COS($AQ8)-$AJ8)^2+($AN8-vimata_xek*DT*SIN($AQ8))^2)) -> 110 | BM8: =DEIKT_HUYGENS -> 1.83 | CA8: =IF(vimata-R78C[-8]*dvim>=0;IF(vimata-R78C[-8]*dvim<=RC48;RC[-6];IF(vimata-R78C[-8]*dvim<=RC60;RC[-5];RC[-4]));ShmEIO_arxH+vimata_xek*DT*COS(RC42)) | FV8: =vimata--GD9*dvim-$BL$13 -> 2889 | MU8: beta=(b²k+a²t²s-y0a²t)
G9: 0.8173882445 | H9: -16.148586 | I9: 49.01835429 | J9: =I4+1 -> 8 | K9: =J9+1 -> 9 | L9: =K9+1 -> 10 | M9: 11 | N9: 12 | O9: 13 | P9: 14 | Q9: 15 | R9: 16 | S9: 17 | T9: 18 | V9: =T9+1 -> 19 | W9: 20 | X9: 21 | Y9: 22 | Z9: 23 | AA9: 24 | AB9: 25 | AC9: 26 | AD9: 27 | AE9: 28 | AF9: 29 | AG9: 30 | AH9: 31 | AI9: 32 | AJ9: 33 | AK9: 34 | AL9: 35 | AM9: 36 | AN9: 37 | AO9: 38 | AP9: 39 | AQ9: 40 | AR9: 41 | AS9: 42 | AT9: 43 | AU9: 44 | AV9: 45 | AW9: 46 | AX9: 47 | AY9: 48 | AZ9: 49 | BA9: 50 | BB9: 51 | BC9: 52 | BD9: 53 | BE9: 54 | BF9: 55 | BX9: =vimata -> 2787 | CG9: 0 | CH9: 0 | CQ9: =CG9+1 -> 1 | CR9: =CQ9 -> 1 | DA9: =CQ9+1 -> 2 | DB9: =CR9+1 -> 2 | DK9: =DA9+1 -> 3 | DL9: =DB9+1 -> 3 | DU9: =DK9+1 -> 4 | DV9: =DL9+1 -> 4 | EE9: =DU9+1 -> 5 | EF9: =DV9+1 -> 5 | EO9: =EE9+1 -> 6 | EP9: =EF9+1 -> 6 | EY9: =EO9+1 -> 7 | EZ9: =EP9+1 -> 7 | FI9: =EY9+1 -> 8 | FJ9: =EZ9+1 -> 8 | FS9: =FI9+1 -> 9 | FT9: =FJ9+1 -> 9 | GC9: =FS9+1 -> 10 | GD9: =FT9+1 -> 10 | GM9: =GC9+1 -> 11 | GN9: =GD9+1 -> 11 | GW9: =GM9+1 -> 12 | GX9: =GN9+1 -> 12 | HG9: =GW9+1 -> 13 | HH9: =GX9+1 -> 13 | HQ9: =HG9+1 -> 14 | HR9: =HH9+1 -> 14 | IA9: =HQ9+1 -> 15 | IB9: =HR9+1 -> 15 | IK9: =IA9+1 -> 16 | IL9: =IB9+1 -> 16 | IU9: =IK9+1 -> 17 | IV9: =IL9+1 -> 17 | JE9: =IU9+1 -> 18 | JF9: =IV9+1 -> 18 | JO9: =JE9+1 -> 19 | JP9: =JF9+1 -> 19 | JY9: =JO9+1 -> 20 | JZ9: =JP9+1 -> 20 | KI9: =JY9+1 -> 21 | KJ9: =JZ9+1 -> 21 | KS9: =KI9+1 -> 22 | KT9: =KJ9+1 -> 22 | LC9: =KS9+1 -> 23 | LD9: =KT9+1 -> 23 | LM9: =LC9+1 -> 24 | LN9: =LD9+1 -> 24 | LW9: =LM9+1 -> 25 | LX9: =LN9+1 -> 25 | MG9: =LW9+1 -> 26 | MH9: =LX9+1 -> 26 | MQ9: =MG9+1 -> 27 | MR9: =MH9+1 -> 27 | MU9: gama=b²(k²-a²)-a²t²s²-a²y0²+2y0a²ts | NA9: =MQ9+1 -> 28 | NB9: =NA9 -> 28
G10: 0.7999970052 | H10: -16.94040678 | I10: 47.34081318 | J10: 10 | N10: tangent | O10: alfa | P10: beta | Q10: gama | R10: DISCRIMINANT | S10: X1 | T10: Y1 | U10: THETA | Z10: DX | AA10: DY | AB10: DY/DX | AC10: KTXY | AD10: KATHX | AE10: KATHY | AF10: METRO1 | AG10: kathmetro | AH10: ext prod | AI10: sin(inc) | AJ10: incidence | AK10: diathlasis | AL10: degrinc | AM10: degrefr | AN10: strofis | AO10: STROFIS | AP10: FI | AQ10: OMEGA=THETA-FI | AR10: COS(ω) | AS10: tan(ω) | AT10: L | AU10: epsilon | AV10: δ | AW10: Ln+ecosω | AX10: discriminant | AY10: ξ/cosω | AZ10: x2 | BA10: x2-x1 | BB10: y2 | BC10: y2-y1 | BD10: metro2 | BE10: thesif-x2 | BF10: 0-y2 | BG10: metro3 | BH10: TOTAL TIME | BI10: metro1 | BJ10: metro2 | BK10: metro3 | BL10: vimata 1 | BM10: RES1=MIKOS1-N*DT | BN10: compl1 | BO10: x1 entos | BP10: y1 entos | BQ10: metro2 | BR10: vimata2 | BS10: xronos2 | BT10: ypoloipo2 | BU10: compl2 | BV10: x2ektos | BW10: y2ektos | BX10: v1+v2 | BY10: v-(v1+v2) | BZ10: v-v1 | CA10: x left | CB10: x in | CC10: X RIGHT | CD10: yleft | CE10: y in | CF10: yright | CG10: ="Metopo"& TEXT(CQ9,"0") -> Metopo1 | CH10: ="metopo"&TEXT(CR9,"0")&"Y" -> metopo1Y | CI10: v-(v1+v2) | CJ10: v-v1 | CK10: x left | CL10: x in | CM10: X RIGHT | CN10: yleft | CO10: y in | CP10: yright | CQ10: ="Metopo"& TEXT(DA9,"0") -> Metopo2 | CR10: ="metopo"&TEXT(DB9,"0")&"Y" -> metopo2Y | CS10: v-(v1+v2) | CT10: v-v1 | CU10: x left | CV10: x in | CW10: X RIGHT | CX10: yleft | CY10: y in | CZ10: yright | DA10: ="Metopo"& TEXT(DK9,"0") -> Metopo3 | DB10: ="metopo"&TEXT(DL9,"0")&"Y" -> metopo3Y | DC10: v-(v1+v2) | DD10: v-v1 | DE10: x left | DF10: x in | DG10: X RIGHT | DH10: yleft | DI10: y in | DJ10: yright | DK10: ="Metopo"& TEXT(DU9,"0") -> Metopo4 | DL10: ="metopo"&TEXT(DV9,"0")&"Y" -> metopo4Y | DM10: v-(v1+v2) | DN10: v-v1 | DO10: x left | DP10: x in | DQ10: X RIGHT | DR10: yleft | DS10: y in | DT10: yright | DU10: ="Metopo"& TEXT(EE9,"0") -> Metopo5 | DV10: ="metopo"&TEXT(EF9,"0")&"Y" -> metopo5Y | DW10: v-(v1+v2) | DX10: v-v1 | DY10: x left | DZ10: x in | EA10: X RIGHT | EB10: yleft | EC10: y in | ED10: yright | EE10: ="Metopo"& TEXT(EO9,"0") -> Metopo6 | EF10: ="metopo"&TEXT(EP9,"0")&"Y" -> metopo6Y | EG10: v-(v1+v2) | EH10: v-v1 | EI10: x left | EJ10: x in | EK10: X RIGHT | EL10: yleft | EM10: y in | EN10: yright | EO10: ="Metopo"& TEXT(EY9,"0") -> Metopo7 | EP10: ="metopo"&TEXT(EZ9,"0")&"Y" -> metopo7Y | EQ10: v-(v1+v2) | ER10: v-v1 | ES10: x left | ET10: x in | EU10: X RIGHT | EV10: yleft | EW10: y in | EX10: yright | EY10: ="Metopo"& TEXT(FI9,"0") -> Metopo8 | EZ10: ="metopo"&TEXT(FJ9,"0")&"Y" -> metopo8Y | FA10: v-(v1+v2) | FB10: v-v1 | FC10: x left | FD10: x in | FE10: X RIGHT | FF10: yleft | FG10: y in | FH10: yright | FI10: ="Metopo"& TEXT(FS9,"0") -> Metopo9 | FJ10: ="metopo"&TEXT(FT9,"0")&"Y" -> metopo9Y | FK10: v-(v1+v2) | FL10: v-v1 | FM10: x left | FN10: x in | FO10: X RIGHT | FP10: yleft | FQ10: y in | FR10: yright | FS10: ="Metopo"& TEXT(GC9,"0") -> Metopo10 | FT10: ="metopo"&TEXT(GD9,"0")&"Y" -> metopo10Y | FU10: v-(v1+v2) | FV10: v-v1 | FW10: x left | FX10: x in | FY10: X RIGHT | FZ10: yleft | GA10: y in | GB10: yright | GC10: ="Metopo"& TEXT(GM9,"0") -> Metopo11 | GD10: ="metopo"&TEXT(GN9,"0")&"Y" -> metopo11Y | GE10: v-(v1+v2) | GF10: v-v1 | GG10: x left | GH10: x in | GI10: X RIGHT | GJ10: yleft | GK10: y in | GL10: yright | GM10: ="Metopo"& TEXT(GW9,"0") -> Metopo12 | GN10: ="metopo"&TEXT(GX9,"0")&"Y" -> metopo12Y | GO10: v-(v1+v2) | GP10: v-v1 | GQ10: x left | GR10: x in | GS10: X RIGHT | GT10: yleft | GU10: y in | GV10: yright | GW10: ="Metopo"& TEXT(HG9,"0") -> Metopo13 | GX10: ="metopo"&TEXT(HH9,"0")&"Y" -> metopo13Y | GY10: v-(v1+v2) | GZ10: v-v1 | HA10: x left | HB10: x in | HC10: X RIGHT | HD10: yleft | HE10: y in | HF10: yright | HG10: ="Metopo"& TEXT(HQ9,"0") -> Metopo14 | HH10: ="metopo"&TEXT(HR9,"0")&"Y" -> metopo14Y | HI10: v-(v1+v2) | HJ10: v-v1 | HK10: x left | HL10: x in | HM10: X RIGHT | HN10: yleft | HO10: y in | HP10: yright | HQ10: ="Metopo"& TEXT(IA9,"0") -> Metopo15 | HR10: ="metopo"&TEXT(IB9,"0")&"Y" -> metopo15Y | HS10: v-(v1+v2) | HT10: v-v1 | HU10: x left | HV10: x in | HW10: X RIGHT | HX10: yleft | HY10: y in | HZ10: yright | IA10: ="Metopo"& TEXT(IK9,"0") -> Metopo16 | IB10: ="metopo"&TEXT(IL9,"0")&"Y" -> metopo16Y | IC10: v-(v1+v2) | ID10: v-v1 | IE10: x left | IF10: x in | IG10: X RIGHT | IH10: yleft | II10: y in | IJ10: yright | IK10: ="Metopo"& TEXT(IU9,"0") -> Metopo17 | IL10: ="metopo"&TEXT(IV9,"0")&"Y" -> metopo17Y | IM10: v-(v1+v2) | IN10: v-v1 | IO10: x left | IP10: x in | IQ10: X RIGHT | IR10: yleft | IS10: y in | IT10: yright | IU10: ="Metopo"& TEXT(JE9,"0") -> Metopo18 | IV10: ="metopo"&TEXT(JF9,"0")&"Y" -> metopo18Y | IW10: v-(v1+v2) | IX10: v-v1 | IY10: x left | IZ10: x in | JA10: X RIGHT | JB10: yleft | JC10: y in | JD10: yright | JE10: ="Metopo"& TEXT(JO9,"0") -> Metopo19 | JF10: ="metopo"&TEXT(JP9,"0")&"Y" -> metopo19Y | JG10: v-(v1+v2) | JH10: v-v1 | JI10: x left | JJ10: x in | JK10: X RIGHT | JL10: yleft | JM10: y in | JN10: yright | JO10: ="Metopo"& TEXT(JY9,"0") -> Metopo20 | JP10: ="metopo"&TEXT(JZ9,"0")&"Y" -> metopo20Y | JQ10: v-(v1+v2) | JR10: v-v1 | JS10: x left | JT10: x in | JU10: X RIGHT | JV10: yleft | JW10: y in | JX10: yright | JY10: ="Metopo"& TEXT(KI9,"0") -> Metopo21 | JZ10: ="metopo"&TEXT(KJ9,"0")&"Y" -> metopo21Y | KA10: v-(v1+v2) | KB10: v-v1 | KC10: x left | KD10: x in | KE10: X RIGHT | KF10: yleft | KG10: y in | KH10: yright | KI10: ="Metopo"& TEXT(KS9,"0") -> Metopo22 | KJ10: ="metopo"&TEXT(KT9,"0")&"Y" -> metopo22Y | KK10: v-(v1+v2) | KL10: v-v1 | KM10: x left | KN10: x in | KO10: X RIGHT | KP10: yleft | KQ10: y in | KR10: yright | KS10: ="Metopo"& TEXT(LC9,"0") -> Metopo23 | KT10: ="metopo"&TEXT(LD9,"0")&"Y" -> metopo23Y | KU10: v-(v1+v2) | KV10: v-v1 | KW10: x left | KX10: x in | KY10: X RIGHT | KZ10: yleft | LA10: y in | LB10: yright | LC10: ="Metopo"& TEXT(LM9,"0") -> Metopo24 | LD10: ="metopo"&TEXT(LN9,"0")&"Y" -> metopo24Y | LE10: v-(v1+v2) | LF10: v-v1 | LG10: x left | LH10: x in | LI10: X RIGHT | LJ10: yleft | LK10: y in | LL10: yright | LM10: ="Metopo"& TEXT(LW9,"0") -> Metopo25 | LN10: ="metopo"&TEXT(LX9,"0")&"Y" -> metopo25Y | LO10: v-(v1+v2) | LP10: v-v1 | LQ10: x left | LR10: x in | LS10: X RIGHT | LT10: yleft | LU10: y in | LV10: yright | LW10: ="Metopo"& TEXT(MG9,"0") -> Metopo26 | LX10: ="metopo"&TEXT(MH9,"0")&"Y" -> metopo26Y | LY10: v-(v1+v2) | LZ10: v-v1 | MA10: x left | MB10: x in | MC10: X RIGHT | MD10: yleft | ME10: y in | MF10: yright | MG10: ="Metopo"& TEXT(MQ9,"0") -> Metopo27 | MH10: ="metopo"&TEXT(MR9,"0")&"Y" -> metopo27Y | MI10: v-(v1+v2) | MJ10: v-v1 | MK10: x left | ML10: x in | MM10: X RIGHT | MN10: yleft | MO10: y in | MP10: yright | MQ10: ="Metopo"& TEXT(NA9,"0") -> Metopo28 | MR10: ="metopo"&TEXT(NA9,"0")&"Y" -> metopo28Y | MT10: THETA
C11: =C10+1 -> 1 | G11: 0.782605766 | H11: -17.69156998 | I11: 45.72229912 | J11: =J10+1 -> 11 | K11: =max_y -> 54.45088636 | L11: =ATAN(K11/ABS(ShmEIO_arxH-S11)) -> 0.4438999214 | M11: =DEGREES(L11) -> 25.43359202 | N11: =TAN(L11) -> 0.4755535926 | O11: =(N11*Ah)^2-BAH^2 -> -1910.473902 | P11: =-(2*Ah*BAH^2+(N11*Ah)^2*ARXIKH_THESH) -> -100787.9795 | Q11: =-3*(Ah*BAH)^2+(N11*Ah*ARXIKH_THESH)^2 -> -2373091.578 | R11: =P11^2-O11*Q11 -> 5624487287 | S11: =Ah*SQRT(T11^2/BAH^2+1)-2*Ah -> -13.5 | T11: =K11 -> 54.45088636 | U11: =ATAN(T11/(S11-ShmEIO_arxH)) -> 0.4438999214 | V11: =ARXIKH_THESH -> -128 | W11: =ATAN(AC11) -> -0.4624674008 | X11: =CONCATENATE("ray",TEXT(Y11,"0")) -> ray1 | Y11: =1 -> 1 | Z11: =S11-ShmEIO_arxH -> 114.5 | AA11: =T11 -> 54.45088636 | AB11: =(BAH/Ah)^2*(S11+2*Ah)/T11 -> 2.005915005 | AC11: =-1/AB11 -> -0.4985256092 | AD11: =1/SQRT(1+AC11^2) -> 0.8949543731 | AE11: =AC11*AD11 -> -0.446157674 | AF11: =SQRT(Z11^2+AA11^2) -> 126.787811 | AG11: =AD11^2+AE11^2 -> 1 | AH11: =$Z11*$AE11-$AA11*$AD11 -> -99.81611254 | AI11: =AH11/AF11 -> -0.7872689948 | AJ11: =W11-U11 -> -0.9063673222 | AK11: =ASIN(AI11/DEIKT_HUYGENS) -> -0.4447161274 | AL11: =DEGREES(AJ11) -> -51.93102225 | AM11: =DEGREES(AK11) -> -25.48035718 | AN11: =AL11-AM11 -> -26.45066507 | AO11: =RADIANS(AN11) -> -0.4616511949 | AP11: =ATAN(AE11/AD11) -> -0.4624674008 | AQ11: =-(AK11-AP11) -> -0.01775127348 | AR11: =COS(AQ11) -> 0.9998424503 | AS11: =TAN(AQ11) -> -0.01775313823 | AT11: =xronos_lryp-$AF11 -> 129.722189 | AU11: =$S11-thesif+$T11*AS11 -> -89.46667411 | AV11: =($S11-thesif)^2+$T11^2 -> 10797.14903 | AW11: =AT11*DEIKT_HUYGENS+DEIKT_BACK^2*AU11*AR11 -> 97.62195166 | AX11: =AW11^2-(DEIKT_HUYGENS^2-DEIKT_BACK^2)*(AT11^2-DEIKT_BACK^2*AV11) -> 9606.32301 | AY11: =(AW11-SQRT(AX11))/(DEIKT_HUYGENS^2-DEIKT_BACK^2) -> -0.2182600294 | AZ11: =IF(ABS($T11+$AS11*($AY11*$AR11))>Y_MEGISTO,$S11,IF($S11+$AY11*$AR11>$S11,$S11+$AY11*$AR11,$S11)) -> -13.5 | BA11: =AZ11-$S11 -> 0 | BB11: =IF($BA11>0,IF(ABS($T11+BA11*$AS11)>Y_MEGISTO,$T11,$T11+BA11*$AS11),$T11) -> 54.45088636 | BC11: =BB11-T11 -> 0 | BD11: =SQRT(BA11^2+BC11^2) -> 0 | BE11: =IF(BD11>0,thesif-AZ11,0) -> 0 | BF11: =IF(BD11>0,0-BB11,0) -> 0 | BG11: =SQRT(BE11^2+BF11^2) -> 0 | BH11: =AF11+dEIKTHS*BD11+BG11*DEIKT_BACK -> 126.787811 | BI11: =IF(vimata_xek=0,AF11,SQRT((ShmEIO_arxH+vimata_xek*DT*COS($L11)-$S11)^2+(vimata_xek*DT*SIN($L11)-$T11)^2)) -> 108.787811 | BJ11: =BD11 -> 0 | BK11: =BG11 -> 0 | BL11: =INT(BI11/DT) -> 435 | BM11: =BI11-BL11*DT -> 0.03781102693 | BN11: =DT-BM11 -> 0.2121889731 | BO11: =$S11+BN11/DEIKT_HUYGENS*COS(BD11) -> -13.38404974 | BP11: =$T11+TAN($AP11*(BO11-$S11)) -> 54.39721169 | BQ11: =SQRT((BO11-$AZ11)^2+(BP11-$BB11)^2) -> 0.1277710168 | BR11: =INT(BQ11*DEIKT_HUYGENS/DT) -> 0 | BS11: =$BQ11*DEIKT_HUYGENS -> 0.2338209607 | BT11: =$BS11-$BR11*DT -> 0.2338209607 | BU11: =DT-BT11 -> 0.01617903925 | BV11: =$AZ11+COS($AQ11)*BU11 -> -13.48382351 | BW11: =$BB11+TAN($AQ11)*(BV11-$AZ11) -> 54.45059917 | BX11: =$BL11+$BR11 -> 435 | BY11: =(vimata-CG$9*dvim)-$BX11 -> 2352 | BZ11: =(vimata-CH$9*dvim)-$BL11 -> 2352 | CA11: =IF(BZ11<0,ShmEIO_arxH+COS($L11)*((vimata-CG$9*dvim+vimata_xek))*DT,$AZ11) -> -13.5 | CB11: =IF(BY11*BZ11<0,$BO11+BZ11*DT/DEIKT_HUYGENS*COS($AQ11),IF(BZ11>0,$BV11,0)) -> -13.48382351 | CC11: =IF(BY11>0,$BV11+BY11*COS(ATAN((0-$BW11)/(thesif-$BV11)))*DT/DEIKT_BACK,0) -> 387.1382383 | CD11: =vimata_xek*DT*SIN($L11)+TAN($L11)*(CA11-(ShmEIO_arxH+vimata_xek*DT*COS($L11))) -> 54.45088636 | CE11: =IF(BZ11*BY11<=0,$BP11+TAN($AQ11)*(CB11-$BO11),0) -> 0 | CF11: =IF(BY11>0,$BW11+(0-$BW11)/(thesif-$BV11)*(CC11-$BV11),0) -> -192.0815967 | CG11: =IF(SHOW_IMAGE=FALSE,IF(vimata-CG$9*dvim>0,IF(BZ11<0,CA11,IF(BY11*BZ11<=0,CB11,CC11)),ShmEIO_arxH)) -> 387.1382383 | CH11: =IF(SHOW_IMAGE=FALSE,IF(vimata-CH$9*dvim>0,IF(BZ11<0,CD11,IF(BY11*BZ11<0,CE11,CF11))),0) -> -192.0815967 | CI11: =(vimata-CQ$9*dvim)-$BX11 -> 2302 | CJ11: =(vimata-CR$9*dvim)-$BL11 -> 2302 | CK11: =IF(CJ11<0,ShmEIO_arxH+COS($L11)*((vimata-CQ$9*dvim+vimata_xek))*DT,$AZ11) -> -13.5 | CL11: =IF(CI11*CJ11<0,$BO11+CJ11*DT/DEIKT_HUYGENS*COS($AQ11),IF(CJ11>0,$BV11,0)) -> -13.48382351 | CM11: =IF(CI11>0,$BV11+CI11*COS(ATAN((0-$BW11)/(thesif-$BV11)))*DT/DEIKT_BACK,0) -> 378.6216128 | CN11: =vimata_xek*DT*SIN($L11)+TAN($L11)*(CK11-(ShmEIO_arxH+vimata_xek*DT*COS($L11))) -> 54.45088636 | CO11: =IF(CJ11*CI11<=0,$BP11+TAN($AQ11)*(CL11-$BO11),0) -> 0 | CP11: =IF(CI11>0,$BW11+(0-$BW11)/(thesif-$BV11)*(CM11-$BV11),0) -> -186.8406912 | CQ11: =IF(SHOW_IMAGE=FALSE,IF(vimata-CQ$9*dvim>0,IF(CJ11<0,CK11,IF(CI11*CJ11<=0,CL11,CM11)),ShmEIO_arxH)) -> 378.6216128 | CR11: =IF(SHOW_IMAGE=FALSE,IF(vimata-CR$9*dvim>0,IF(CJ11<0,CN11,IF(CI11*CJ11<0,CO11,CP11))),0) -> -186.8406912 | CS11: =(vimata-DA$9*dvim)-$BX11 -> 2252 | CT11: =(vimata-DB$9*dvim)-$BL11 -> 2252 | CU11: =IF(CT11<0,ShmEIO_arxH+COS($L11)*((vimata-DA$9*dvim+vimata_xek))*DT,$AZ11) -> -13.5 | CV11: =IF(CS11*CT11<0,$BO11+CT11*DT/DEIKT_HUYGENS*COS($AQ11),IF(CT11>0,$BV11,0)) -> -13.48382351 | CW11: =IF(CS11>0,$BV11+CS11*COS(ATAN((0-$BW11)/(thesif-$BV11)))*DT/DEIKT_BACK,0) -> 370.1049874 | CX11: =vimata_xek*DT*SIN($L11)+TAN($L11)*(CU11-(ShmEIO_arxH+vimata_xek*DT*COS($L11))) -> 54.45088636 | CY11: =IF(CT11*CS11<=0,$BP11+TAN($AQ11)*(CV11-$BO11),0) -> 0 | CZ11: =IF(CS11>0,$BW11+(0-$BW11)/(thesif-$BV11)*(CW11-$BV11),0) -> -181.5997856 | DA11: =IF(SHOW_IMAGE=FALSE,IF(vimata-DA$9*dvim>0,IF(CT11<0,CU11,IF(CS11*CT11<=0,CV11,CW11)),ShmEIO_arxH)) -> 370.1049874 | DB11: =IF(SHOW_IMAGE=FALSE,IF(vimata-DB$9*dvim>0,IF(CT11<0,CX11,IF(CS11*CT11<0,CY11,CZ11))),0) -> -181.5997856 | DC11: =(vimata-DK$9*dvim)-$BX11 -> 2202 | DD11: =(vimata-DL$9*dvim)-$BL11 -> 2202 | DE11: =IF(DD11<0,ShmEIO_arxH+COS($L11)*((vimata-DK$9*dvim+vimata_xek))*DT,$AZ11) -> -13.5 | DF11: =IF(DC11*DD11<0,$BO11+DD11*DT/DEIKT_HUYGENS*COS($AQ11),IF(DD11>0,$BV11,0)) -> -13.48382351 | DG11: =IF(DC11>0,$BV11+DC11*COS(ATAN((0-$BW11)/(thesif-$BV11)))*DT/DEIKT_BACK,0) -> 361.5883619 | DH11: =vimata_xek*DT*SIN($L11)+TAN($L11)*(DE11-(ShmEIO_arxH+vimata_xek*DT*COS($L11))) -> 54.45088636 | DI11: =IF(DD11*DC11<=0,$BP11+TAN($AQ11)*(DF11-$BO11),0) -> 0 | DJ11: =IF(DC11>0,$BW11+(0-$BW11)/(thesif-$BV11)*(DG11-$BV11),0) -> -176.3588801 | DK11: =IF(SHOW_IMAGE=FALSE,IF(vimata-DK$9*dvim>0,IF(DD11<0,DE11,IF(DC11*DD11<=0,DF11,DG11)),ShmEIO_arxH)) -> 361.5883619 | DL11: =IF(SHOW_IMAGE=FALSE,IF(vimata-DL$9*dvim>0,IF(DD11<0,DH11,IF(DC11*DD11<0,DI11,DJ11))),0) -> -176.3588801 | DM11: =(vimata-DU$9*dvim)-$BX11 -> 2152 | DN11: =(vimata-DV$9*dvim)-$BL11 -> 2152 | DO11: =IF(DN11<0,ShmEIO_arxH+COS($L11)*((vimata-DU$9*dvim+vimata_xek))*DT,$AZ11) -> -13.5 | DP11: =IF(DM11*DN11<0,$BO11+DN11*DT/DEIKT_HUYGENS*COS($AQ11),IF(DN11>0,$BV11,0)) -> -13.48382351 | DQ11: =IF(DM11>0,$BV11+DM11*COS(ATAN((0-$BW11)/(thesif-$BV11)))*DT/DEIKT_BACK,0) -> 353.0717364 | DR11: =vimata_xek*DT*SIN($L11)+TAN($L11)*(DO11-(ShmEIO_arxH+vimata_xek*DT*COS($L11))) -> 54.45088636 | DS11: =IF(DN11*DM11<=0,$BP11+TAN($AQ11)*(DP11-$BO11),0) -> 0 | DT11: =IF(DM11>0,$BW11+(0-$BW11)/(thesif-$BV11)*(DQ11-$BV11),0) -> -171.1179746 | DU11: =IF(SHOW_IMAGE=FALSE,IF(vimata-DU$9*dvim>0,IF(DN11<0,DO11,IF(DM11*DN11<=0,DP11,DQ11)),ShmEIO_arxH)) -> 353.0717364 | DV11: =IF(SHOW_IMAGE=FALSE,IF(vimata-DV$9*dvim>0,IF(DN11<0,DR11,IF(DM11*DN11<0,DS11,DT11))),0) -> -171.1179746 | DW11: =(vimata-EE$9*dvim)-$BX11 -> 2102 | DX11: =(vimata-EF$9*dvim)-$BL11 -> 2102 | DY11: =IF(DX11<0,ShmEIO_arxH+COS($L11)*((vimata-EE$9*dvim+vimata_xek))*DT,$AZ11) -> -13.5 | DZ11: =IF(DW11*DX11<0,$BO11+DX11*DT/DEIKT_HUYGENS*COS($AQ11),IF(DX11>0,$BV11,0)) -> -13.48382351 | EA11: =IF(DW11>0,$BV11+DW11*COS(ATAN((0-$BW11)/(thesif-$BV11)))*DT/DEIKT_BACK,0) -> 344.555111 | EB11: =vimata_xek*DT*SIN($L11)+TAN($L11)*(DY11-(ShmEIO_arxH+vimata_xek*DT*COS($L11))) -> 54.45088636 | EC11: =IF(DX11*DW11<=0,$BP11+TAN($AQ11)*(DZ11-$BO11),0) -> 0 | ED11: =IF(DW11>0,$BW11+(0-$BW11)/(thesif-$BV11)*(EA11-$BV11),0) -> -165.8770691 | EE11: =IF(SHOW_IMAGE=FALSE,IF(vimata-EE$9*dvim>0,IF(DX11<0,DY11,IF(DW11*DX11<=0,DZ11,EA11)),ShmEIO_arxH)) -> 344.555111 | EF11: =IF(SHOW_IMAGE=FALSE,IF(vimata-EF$9*dvim>0,IF(DX11<0,EB11,IF(DW11*DX11<0,EC11,ED11))),0) -> -165.8770691 | EG11: =(vimata-EO$9*dvim)-$BX11 -> 2052 | EH11: =(vimata-EP$9*dvim)-$BL11 -> 2052 | EI11: =IF(EH11<0,ShmEIO_arxH+COS($L11)*((vimata-EO$9*dvim+vimata_xek))*DT,$AZ11) -> -13.5 | EJ11: =IF(EG11*EH11<0,$BO11+EH11*DT/DEIKT_HUYGENS*COS($AQ11),IF(EH11>0,$BV11,0)) -> -13.48382351 | EK11: =IF(EG11>0,$BV11+EG11*COS(ATAN((0-$BW11)/(thesif-$BV11)))*DT/DEIKT_BACK,0) -> 336.0384855 | EL11: =vimata_xek*DT*SIN($L11)+TAN($L11)*(EI11-(ShmEIO_arxH+vimata_xek*DT*COS($L11))) -> 54.45088636 | EM11: =IF(EH11*EG11<=0,$BP11+TAN($AQ11)*(EJ11-$BO11),0) -> 0 | EN11: =IF(EG11>0,$BW11+(0-$BW11)/(thesif-$BV11)*(EK11-$BV11),0) -> -160.6361635 | EO11: =IF(SHOW_IMAGE=FALSE,IF(vimata-EO$9*dvim>0,IF(EH11<0,EI11,IF(EG11*EH11<=0,EJ11,EK11)),ShmEIO_arxH)) -> 336.0384855 | EP11: =IF(SHOW_IMAGE=FALSE,IF(vimata-EP$9*dvim>0,IF(EH11<0,EL11,IF(EG11*EH11<0,EM11,EN11))),0) -> -160.6361635 | EQ11: =(vimata-EY$9*dvim)-$BX11 -> 2002 | ER11: =(vimata-EZ$9*dvim)-$BL11 -> 2002 | ES11: =IF(ER11<0,ShmEIO_arxH+COS($L11)*((vimata-EY$9*dvim+vimata_xek))*DT,$AZ11) -> -13.5 | ET11: =IF(EQ11*ER11<0,$BO11+ER11*DT/DEIKT_HUYGENS*COS($AQ11),IF(ER11>0,$BV11,0)) -> -13.48382351 | EU11: =IF(EQ11>0,$BV11+EQ11*COS(ATAN((0-$BW11)/(thesif-$BV11)))*DT/DEIKT_BACK,0) -> 327.5218601 | EV11: =vimata_xek*DT*SIN($L11)+TAN($L11)*(ES11-(ShmEIO_arxH+vimata_xek*DT*COS($L11))) -> 54.45088636 | EW11: =IF(ER11*EQ11<=0,$BP11+TAN($AQ11)*(ET11-$BO11),0) -> 0 | EX11: =IF(EQ11>0,$BW11+(0-$BW11)/(thesif-$BV11)*(EU11-$BV11),0) -> -155.395258 | EY11: =IF(SHOW_IMAGE=FALSE,IF(vimata-EY$9*dvim>0,IF(ER11<0,ES11,IF(EQ11*ER11<=0,ET11,EU11)),ShmEIO_arxH)) -> 327.5218601 | EZ11: =IF(SHOW_IMAGE=FALSE,IF(vimata-EZ$9*dvim>0,IF(ER11<0,EV11,IF(EQ11*ER11<0,EW11,EX11))),0) -> -155.395258 | FA11: =(vimata-FI$9*dvim)-$BX11 -> 1952 | FB11: =(vimata-FJ$9*dvim)-$BL11 -> 1952 | FC11: =IF(FB11<0,ShmEIO_arxH+COS($L11)*((vimata-FI$9*dvim+vimata_xek))*DT,$AZ11) -> -13.5 | FD11: =IF(FA11*FB11<0,$BO11+FB11*DT/DEIKT_HUYGENS*COS($AQ11),IF(FB11>0,$BV11,0)) -> -13.48382351 | FE11: =IF(FA11>0,$BV11+FA11*COS(ATAN((0-$BW11)/(thesif-$BV11)))*DT/DEIKT_BACK,0) -> 319.0052346 | FF11: =vimata_xek*DT*SIN($L11)+TAN($L11)*(FC11-(ShmEIO_arxH+vimata_xek*DT*COS($L11))) -> 54.45088636 | FG11: =IF(FB11*FA11<=0,$BP11+TAN($AQ11)*(FD11-$BO11),0) -> 0 | FH11: =IF(FA11>0,$BW11+(0-$BW11)/(thesif-$BV11)*(FE11-$BV11),0) -> -150.1543525 | FI11: =IF(SHOW_IMAGE=FALSE,IF(vimata-FI$9*dvim>0,IF(FB11<0,FC11,IF(FA11*FB11<=0,FD11,FE11)),ShmEIO_arxH)) -> 319.0052346 | FJ11: =IF(SHOW_IMAGE=FALSE,IF(vimata-FJ$9*dvim>0,IF(FB11<0,FF11,IF(FA11*FB11<0,FG11,FH11))),0) -> -150.1543525 | FK11: =(vimata-FS$9*dvim)-$BX11 -> 1902 | FL11: =(vimata-FT$9*dvim)-$BL11 -> 1902 | FM11: =IF(FL11<0,ShmEIO_arxH+COS($L11)*((vimata-FS$9*dvim+vimata_xek))*DT,$AZ11) -> -13.5 | FN11: =IF(FK11*FL11<0,$BO11+FL11*DT/DEIKT_HUYGENS*COS($AQ11),IF(FL11>0,$BV11,0)) -> -13.48382351 | FO11: =IF(FK11>0,$BV11+FK11*COS(ATAN((0-$BW11)/(thesif-$BV11)))*DT/DEIKT_BACK,0) -> 310.4886091 | FP11: =vimata_xek*DT*SIN($L11)+TAN($L11)*(FM11-(ShmEIO_arxH+vimata_xek*DT*COS($L11))) -> 54.45088636 | FQ11: =IF(FL11*FK11<=0,$BP11+TAN($AQ11)*(FN11-$BO11),0) -> 0 | FR11: =IF(FK11>0,$BW11+(0-$BW11)/(thesif-$BV11)*(FO11-$BV11),0) -> -144.913447 | FS11: =IF(SHOW_IMAGE=FALSE,IF(vimata-FS$9*dvim>0,IF(FL11<0,FM11,IF(FK11*FL11<=0,FN11,FO11)),ShmEIO_arxH)) -> 310.4886091 | FT11: =IF(SHOW_IMAGE=FALSE,IF(vimata-FT$9*dvim>0,IF(FL11<0,FP11,IF(FK11*FL11<0,FQ11,FR11))),0) -> -144.913447 | FU11: =(vimata-GC$9*dvim)-$BX11 -> 1852 | FV11: =(vimata-GD$9*dvim)-$BL11 -> 1852 | FW11: =IF(FV11<0,ShmEIO_arxH+COS($L11)*((vimata-GC$9*dvim+vimata_xek))*DT,$AZ11) -> -13.5 | FX11: =IF(FU11*FV11<0,$BO11+FV11*DT/DEIKT_HUYGENS*COS($AQ11),IF(FV11>0,$BV11,0)) -> -13.48382351 | FY11: =IF(FU11>0,$BV11+FU11*COS(ATAN((0-$BW11)/(thesif-$BV11)))*DT/DEIKT_BACK,0) -> 301.9719837 | FZ11: =vimata_xek*DT*SIN($L11)+TAN($L11)*(FW11-(ShmEIO_arxH+vimata_xek*DT*COS($L11))) -> 54.45088636 | GA11: =IF(FV11*FU11<=0,$BP11+TAN($AQ11)*(FX11-$BO11),0) -> 0 | GB11: =IF(FU11>0,$BW11+(0-$BW11)/(thesif-$BV11)*(FY11-$BV11),0) -> -139.6725414 | GC11: =IF(SHOW_IMAGE=FALSE,IF(vimata-GC$9*dvim>0,IF(FV11<0,FW11,IF(FU11*FV11<=0,FX11,FY11)),ShmEIO_arxH)) -> 301.9719837 | GD11: =IF(SHOW_IMAGE=FALSE,IF(vimata-GD$9*dvim>0,IF(FV11<0,FZ11,IF(FU11*FV11<0,GA11,GB11))),0) -> -139.6725414 | GE11: =(vimata-GM$9*dvim)-$BX11 -> 1802 | GF11: =(vimata-GN$9*dvim)-$BL11 -> 1802 | GG11: =IF(GF11<0,ShmEIO_arxH+COS($L11)*((vimata-GM$9*dvim+vimata_xek))*DT,$AZ11) -> -13.5 | GH11: =IF(GE11*GF11<0,$BO11+GF11*DT/DEIKT_HUYGENS*COS($AQ11),IF(GF11>0,$BV11,0)) -> -13.48382351 | GI11: =IF(GE11>0,$BV11+GE11*COS(ATAN((0-$BW11)/(thesif-$BV11)))*DT/DEIKT_BACK,0) -> 293.4553582 | GJ11: =vimata_xek*DT*SIN($L11)+TAN($L11)*(GG11-(ShmEIO_arxH+vimata_xek*DT*COS($L11))) -> 54.45088636 | GK11: =IF(GF11*GE11<=0,$BP11+TAN($AQ11)*(GH11-$BO11),0) -> 0 | GL11: =IF(GE11>0,$BW11+(0-$BW11)/(thesif-$BV11)*(GI11-$BV11),0) -> -134.4316359 | GM11: =IF(SHOW_IMAGE=FALSE,IF(vimata-GM$9*dvim>0,IF(GF11<0,GG11,IF(GE11*GF11<=0,GH11,GI11)),ShmEIO_arxH)) -> 293.4553582 | GN11: =IF(SHOW_IMAGE=FALSE,IF(vimata-GN$9*dvim>0,IF(GF11<0,GJ11,IF(GE11*GF11<0,GK11,GL11))),0) -> -134.4316359 | GO11: =(vimata-GW$9*dvim)-$BX11 -> 1752 | GP11: =(vimata-GX$9*dvim)-$BL11 -> 1752 | GQ11: =IF(GP11<0,ShmEIO_arxH+COS($L11)*((vimata-GW$9*dvim+vimata_xek))*DT,$AZ11) -> -13.5 | GR11: =IF(GO11*GP11<0,$BO11+GP11*DT/DEIKT_HUYGENS*COS($AQ11),IF(GP11>0,$BV11,0)) -> -13.48382351 | GS11: =IF(GO11>0,$BV11+GO11*COS(ATAN((0-$BW11)/(thesif-$BV11)))*DT/DEIKT_BACK,0) -> 284.9387327 | GT11: =vimata_xek*DT*SIN($L11)+TAN($L11)*(GQ11-(ShmEIO_arxH+vimata_xek*DT*COS($L11))) -> 54.45088636 | GU11: =IF(GP11*GO11<=0,$BP11+TAN($AQ11)*(GR11-$BO11),0) -> 0 | GV11: =IF(GO11>0,$BW11+(0-$BW11)/(thesif-$BV11)*(GS11-$BV11),0) -> -129.1907304 | GW11: =IF(SHOW_IMAGE=FALSE,IF(vimata-GW$9*dvim>0,IF(GP11<0,GQ11,IF(GO11*GP11<=0,GR11,GS11)),ShmEIO_arxH)) -> 284.9387327 | GX11: =IF(SHOW_IMAGE=FALSE,IF(vimata-GX$9*dvim>0,IF(GP11<0,GT11,IF(GO11*GP11<0,GU11,GV11))),0) -> -129.1907304 | GY11: =(vimata-HG$9*dvim)-$BX11 -> 1702 | GZ11: =(vimata-HH$9*dvim)-$BL11 -> 1702 | HA11: =IF(GZ11<0,ShmEIO_arxH+COS($L11)*((vimata-HG$9*dvim+vimata_xek))*DT,$AZ11) -> -13.5 | HB11: =IF(GY11*GZ11<0,$BO11+GZ11*DT/DEIKT_HUYGENS*COS($AQ11),IF(GZ11>0,$BV11,0)) -> -13.48382351 | HC11: =IF(GY11>0,$BV11+GY11*COS(ATAN((0-$BW11)/(thesif-$BV11)))*DT/DEIKT_BACK,0) -> 276.4221073 | HD11: =vimata_xek*DT*SIN($L11)+TAN($L11)*(HA11-(ShmEIO_arxH+vimata_xek*DT*COS($L11))) -> 54.45088636 | HE11: =IF(GZ11*GY11<=0,$BP11+TAN($AQ11)*(HB11-$BO11),0) -> 0 | HF11: =IF(GY11>0,$BW11+(0-$BW11)/(thesif-$BV11)*(HC11-$BV11),0) -> -123.9498249 | HG11: =IF(SHOW_IMAGE=FALSE,IF(vimata-HG$9*dvim>0,IF(GZ11<0,HA11,IF(GY11*GZ11<=0,HB11,HC11)),ShmEIO_arxH)) -> 276.4221073 | HH11: =IF(SHOW_IMAGE=FALSE,IF(vimata-HH$9*dvim>0,IF(GZ11<0,HD11,IF(GY11*GZ11<0,HE11,HF11))),0) -> -123.9498249 | HI11: =(vimata-HQ$9*dvim)-$BX11 -> 1652 | HJ11: =(vimata-HR$9*dvim)-$BL11 -> 1652 | HK11: =IF(HJ11<0,ShmEIO_arxH+COS($L11)*((vimata-HQ$9*dvim+vimata_xek))*DT,$AZ11) -> -13.5 | HL11: =IF(HI11*HJ11<0,$BO11+HJ11*DT/DEIKT_HUYGENS*COS($AQ11),IF(HJ11>0,$BV11,0)) -> -13.48382351 | HM11: =IF(HI11>0,$BV11+HI11*COS(ATAN((0-$BW11)/(thesif-$BV11)))*DT/DEIKT_BACK,0) -> 267.9054818 | HN11: =vimata_xek*DT*SIN($L11)+TAN($L11)*(HK11-(ShmEIO_arxH+vimata_xek*DT*COS($L11))) -> 54.45088636 | HO11: =IF(HJ11*HI11<=0,$BP11+TAN($AQ11)*(HL11-$BO11),0) -> 0 | HP11: =IF(HI11>0,$BW11+(0-$BW11)/(thesif-$BV11)*(HM11-$BV11),0) -> -118.7089193 | HQ11: =IF(SHOW_IMAGE=FALSE,IF(vimata-HQ$9*dvim>0,IF(HJ11<0,HK11,IF(HI11*HJ11<=0,HL11,HM11)),ShmEIO_arxH)) -> 267.9054818 | HR11: =IF(SHOW_IMAGE=FALSE,IF(vimata-HR$9*dvim>0,IF(HJ11<0,HN11,IF(HI11*HJ11<0,HO11,HP11))),0) -> -118.7089193 | HS11: =(vimata-IA$9*dvim)-$BX11 -> 1602 | HT11: =(vimata-IB$9*dvim)-$BL11 -> 1602 | HU11: =IF(HT11<0,ShmEIO_arxH+COS($L11)*((vimata-IA$9*dvim+vimata_xek))*DT,$AZ11) -> -13.5 | HV11: =IF(HS11*HT11<0,$BO11+HT11*DT/DEIKT_HUYGENS*COS($AQ11),IF(HT11>0,$BV11,0)) -> -13.48382351 | HW11: =IF(HS11>0,$BV11+HS11*COS(ATAN((0-$BW11)/(thesif-$BV11)))*DT/DEIKT_BACK,0) -> 259.3888563 | HX11: =vimata_xek*DT*SIN($L11)+TAN($L11)*(HU11-(ShmEIO_arxH+vimata_xek*DT*COS($L11))) -> 54.45088636 | HY11: =IF(HT11*HS11<=0,$BP11+TAN($AQ11)*(HV11-$BO11),0) -> 0 | HZ11: =IF(HS11>0,$BW11+(0-$BW11)/(thesif-$BV11)*(HW11-$BV11),0) -> -113.4680138 | IA11: =IF(SHOW_IMAGE=FALSE,IF(vimata-IA$9*dvim>0,IF(HT11<0,HU11,IF(HS11*HT11<=0,HV11,HW11)),ShmEIO_arxH)) -> 259.3888563 | IB11: =IF(SHOW_IMAGE=FALSE,IF(vimata-IB$9*dvim>0,IF(HT11<0,HX11,IF(HS11*HT11<0,HY11,HZ11))),0) -> -113.4680138 | IC11: =(vimata-IK$9*dvim)-$BX11 -> 1552 | ID11: =(vimata-IL$9*dvim)-$BL11 -> 1552 | IE11: =IF(ID11<0,ShmEIO_arxH+COS($L11)*((vimata-IK$9*dvim+vimata_xek))*DT,$AZ11) -> -13.5 | IF11: =IF(IC11*ID11<0,$BO11+ID11*DT/DEIKT_HUYGENS*COS($AQ11),IF(ID11>0,$BV11,0)) -> -13.48382351 | IG11: =IF(IC11>0,$BV11+IC11*COS(ATAN((0-$BW11)/(thesif-$BV11)))*DT/DEIKT_BACK,0) -> 250.8722309 | IH11: =vimata_xek*DT*SIN($L11)+TAN($L11)*(IE11-(ShmEIO_arxH+vimata_xek*DT*COS($L11))) -> 54.45088636 | II11: =IF(ID11*IC11<=0,$BP11+TAN($AQ11)*(IF11-$BO11),0) -> 0 | IJ11: =IF(IC11>0,$BW11+(0-$BW11)/(thesif-$BV11)*(IG11-$BV11),0) -> -108.2271083 | IK11: =IF(SHOW_IMAGE=FALSE,IF(vimata-IK$9*dvim>0,IF(ID11<0,IE11,IF(IC11*ID11<=0,IF11,IG11)),ShmEIO_arxH)) -> 250.8722309 | IL11: =IF(SHOW_IMAGE=FALSE,IF(vimata-IL$9*dvim>0,IF(ID11<0,IH11,IF(IC11*ID11<0,II11,IJ11))),0) -> -108.2271083 | IM11: =(vimata-IU$9*dvim)-$BX11 -> 1502 | IN11: =(vimata-IV$9*dvim)-$BL11 -> 1502 | IO11: =IF(IN11<0,ShmEIO_arxH+COS($L11)*((vimata-IU$9*dvim+vimata_xek))*DT,$AZ11) -> -13.5 | IP11: =IF(IM11*IN11<0,$BO11+IN11*DT/DEIKT_HUYGENS*COS($AQ11),IF(IN11>0,$BV11,0)) -> -13.48382351 | IQ11: =IF(IM11>0,$BV11+IM11*COS(ATAN((0-$BW11)/(thesif-$BV11)))*DT/DEIKT_BACK,0) -> 242.3556054 | IR11: =vimata_xek*DT*SIN($L11)+TAN($L11)*(IO11-(ShmEIO_arxH+vimata_xek*DT*COS($L11))) -> 54.45088636 | IS11: =IF(IN11*IM11<=0,$BP11+TAN($AQ11)*(IP11-$BO11),0) -> 0 | IT11: =IF(IM11>0,$BW11+(0-$BW11)/(thesif-$BV11)*(IQ11-$BV11),0) -> -102.9862028 | IU11: =IF(SHOW_IMAGE=FALSE,IF(vimata-IU$9*dvim>0,IF(IN11<0,IO11,IF(IM11*IN11<=0,IP11,IQ11)),ShmEIO_arxH)) -> 242.3556054 | IV11: =IF(SHOW_IMAGE=FALSE,IF(vimata-IV$9*dvim>0,IF(IN11<0,IR11,IF(IM11*IN11<0,IS11,IT11))),0) -> -102.9862028 | IW11: =(vimata-JE$9*dvim)-$BX11 -> 1452 | IX11: =(vimata-JF$9*dvim)-$BL11 -> 1452 | IY11: =IF(IX11<0,ShmEIO_arxH+COS($L11)*((vimata-JE$9*dvim+vimata_xek))*DT,$AZ11) -> -13.5 | IZ11: =IF(IW11*IX11<0,$BO11+IX11*DT/DEIKT_HUYGENS*COS($AQ11),IF(IX11>0,$BV11,0)) -> -13.48382351 | JA11: =IF(IW11>0,$BV11+IW11*COS(ATAN((0-$BW11)/(thesif-$BV11)))*DT/DEIKT_BACK,0) -> 233.83898 | JB11: =vimata_xek*DT*SIN($L11)+TAN($L11)*(IY11-(ShmEIO_arxH+vimata_xek*DT*COS($L11))) -> 54.45088636 | JC11: =IF(IX11*IW11<=0,$BP11+TAN($AQ11)*(IZ11-$BO11),0) -> 0 | JD11: =IF(IW11>0,$BW11+(0-$BW11)/(thesif-$BV11)*(JA11-$BV11),0) -> -97.74529725 | JE11: =IF(SHOW_IMAGE=FALSE,IF(vimata-JE$9*dvim>0,IF(IX11<0,IY11,IF(IW11*IX11<=0,IZ11,JA11)),ShmEIO_arxH)) -> 233.83898 | JF11: =IF(SHOW_IMAGE=FALSE,IF(vimata-JF$9*dvim>0,IF(IX11<0,JB11,IF(IW11*IX11<0,JC11,JD11))),0) -> -97.74529725 | JG11: =(vimata-JO$9*dvim)-$BX11 -> 1402 | JH11: =(vimata-JP$9*dvim)-$BL11 -> 1402 | JI11: =IF(JH11<0,ShmEIO_arxH+COS($L11)*((vimata-JO$9*dvim+vimata_xek))*DT,$AZ11) -> -13.5 | JJ11: =IF(JG11*JH11<0,$BO11+JH11*DT/DEIKT_HUYGENS*COS($AQ11),IF(JH11>0,$BV11,0)) -> -13.48382351 | JK11: =IF(JG11>0,$BV11+JG11*COS(ATAN((0-$BW11)/(thesif-$BV11)))*DT/DEIKT_BACK,0) -> 225.3223545 | JL11: =vimata_xek*DT*SIN($L11)+TAN($L11)*(JI11-(ShmEIO_arxH+vimata_xek*DT*COS($L11))) -> 54.45088636 | JM11: =IF(JH11*JG11<=0,$BP11+TAN($AQ11)*(JJ11-$BO11),0) -> 0 | JN11: =IF(JG11>0,$BW11+(0-$BW11)/(thesif-$BV11)*(JK11-$BV11),0) -> -92.50439172 | JO11: =IF(SHOW_IMAGE=FALSE,IF(vimata-JO$9*dvim>0,IF(JH11<0,JI11,IF(JG11*JH11<=0,JJ11,JK11)),ShmEIO_arxH)) -> 225.3223545 | JP11: =IF(SHOW_IMAGE=FALSE,IF(vimata-JP$9*dvim>0,IF(JH11<0,JL11,IF(JG11*JH11<0,JM11,JN11))),0) -> -92.50439172 | JQ11: =(vimata-JY$9*dvim)-$BX11 -> 1352 | JR11: =(vimata-JZ$9*dvim)-$BL11 -> 1352 | JS11: =IF(JR11<0,ShmEIO_arxH+COS($L11)*((vimata-JY$9*dvim+vimata_xek))*DT,$AZ11) -> -13.5 | JT11: =IF(JQ11*JR11<0,$BO11+JR11*DT/DEIKT_HUYGENS*COS($AQ11),IF(JR11>0,$BV11,0)) -> -13.48382351 | JU11: =IF(JQ11>0,$BV11+JQ11*COS(ATAN((0-$BW11)/(thesif-$BV11)))*DT/DEIKT_BACK,0) -> 216.805729 | JV11: =vimata_xek*DT*SIN($L11)+TAN($L11)*(JS11-(ShmEIO_arxH+vimata_xek*DT*COS($L11))) -> 54.45088636 | JW11: =IF(JR11*JQ11<=0,$BP11+TAN($AQ11)*(JT11-$BO11),0) -> 0 | JX11: =IF(JQ11>0,$BW11+(0-$BW11)/(thesif-$BV11)*(JU11-$BV11),0) -> -87.2634862 | JY11: =IF(SHOW_IMAGE=FALSE,IF(vimata-JY$9*dvim>0,IF(JR11<0,JS11,IF(JQ11*JR11<=0,JT11,JU11)),ShmEIO_arxH)) -> 216.805729 | JZ11: =IF(SHOW_IMAGE=FALSE,IF(vimata-JZ$9*dvim>0,IF(JR11<0,JV11,IF(JQ11*JR11<0,JW11,JX11))),0) -> -87.2634862 | KA11: =(vimata-KI$9*dvim)-$BX11 -> 1302 | KB11: =(vimata-KJ$9*dvim)-$BL11 -> 1302 | KC11: =IF(KB11<0,ShmEIO_arxH+COS($L11)*((vimata-KI$9*dvim+vimata_xek))*DT,$AZ11) -> -13.5 | KD11: =IF(KA11*KB11<0,$BO11+KB11*DT/DEIKT_HUYGENS*COS($AQ11),IF(KB11>0,$BV11,0)) -> -13.48382351 | KE11: =IF(KA11>0,$BV11+KA11*COS(ATAN((0-$BW11)/(thesif-$BV11)))*DT/DEIKT_BACK,0) -> 208.2891036 | KF11: =vimata_xek*DT*SIN($L11)+TAN($L11)*(KC11-(ShmEIO_arxH+vimata_xek*DT*COS($L11))) -> 54.45088636 | KG11: =IF(KB11*KA11<=0,$BP11+TAN($AQ11)*(KD11-$BO11),0) -> 0 | KH11: =IF(KA11>0,$BW11+(0-$BW11)/(thesif-$BV11)*(KE11-$BV11),0) -> -82.02258067 | KI11: =IF(SHOW_IMAGE=FALSE,IF(vimata-KI$9*dvim>0,IF(KB11<0,KC11,IF(KA11*KB11<=0,KD11,KE11)),ShmEIO_arxH)) -> 208.2891036 | KJ11: =IF(SHOW_IMAGE=FALSE,IF(vimata-KJ$9*dvim>0,IF(KB11<0,KF11,IF(KA11*KB11<0,KG11,KH11))),0) -> -82.02258067 | KK11: =(vimata-KS$9*dvim)-$BX11 -> 1252 | KL11: =(vimata-KT$9*dvim)-$BL11 -> 1252 | KM11: =IF(KL11<0,ShmEIO_arxH+COS($L11)*((vimata-KS$9*dvim+vimata_xek))*DT,$AZ11) -> -13.5 | KN11: =IF(KK11*KL11<0,$BO11+KL11*DT/DEIKT_HUYGENS*COS($AQ11),IF(KL11>0,$BV11,0)) -> -13.48382351 | KO11: =IF(KK11>0,$BV11+KK11*COS(ATAN((0-$BW11)/(thesif-$BV11)))*DT/DEIKT_BACK,0) -> 199.7724781 | KP11: =vimata_xek*DT*SIN($L11)+TAN($L11)*(KM11-(ShmEIO_arxH+vimata_xek*DT*COS($L11))) -> 54.45088636 | KQ11: =IF(KL11*KK11<=0,$BP11+TAN($AQ11)*(KN11-$BO11),0) -> 0 | KR11: =IF(KK11>0,$BW11+(0-$BW11)/(thesif-$BV11)*(KO11-$BV11),0) -> -76.78167515 | KS11: =IF(SHOW_IMAGE=FALSE,IF(vimata-KS$9*dvim>0,IF(KL11<0,KM11,IF(KK11*KL11<=0,KN11,KO11)),ShmEIO_arxH)) -> 199.7724781 | KT11: =IF(SHOW_IMAGE=FALSE,IF(vimata-KT$9*dvim>0,IF(KL11<0,KP11,IF(KK11*KL11<0,KQ11,KR11))),0) -> -76.78167515 | KU11: =(vimata-LC$9*dvim)-$BX11 -> 1202 | KV11: =(vimata-LD$9*dvim)-$BL11 -> 1202 | KW11: =IF(KV11<0,ShmEIO_arxH+COS($L11)*((vimata-LC$9*dvim+vimata_xek))*DT,$AZ11) -> -13.5 | KX11: =IF(KU11*KV11<0,$BO11+KV11*DT/DEIKT_HUYGENS*COS($AQ11),IF(KV11>0,$BV11,0)) -> -13.48382351 | KY11: =IF(KU11>0,$BV11+KU11*COS(ATAN((0-$BW11)/(thesif-$BV11)))*DT/DEIKT_BACK,0) -> 191.2558526 | KZ11: =vimata_xek*DT*SIN($L11)+TAN($L11)*(KW11-(ShmEIO_arxH+vimata_xek*DT*COS($L11))) -> 54.45088636 | LA11: =IF(KV11*KU11<=0,$BP11+TAN($AQ11)*(KX11-$BO11),0) -> 0 | LB11: =IF(KU11>0,$BW11+(0-$BW11)/(thesif-$BV11)*(KY11-$BV11),0) -> -71.54076963 | LC11: =IF(SHOW_IMAGE=FALSE,IF(vimata-LC$9*dvim>0,IF(KV11<0,KW11,IF(KU11*KV11<=0,KX11,KY11)),ShmEIO_arxH)) -> 191.2558526 | LD11: =IF(SHOW_IMAGE=FALSE,IF(vimata-LD$9*dvim>0,IF(KV11<0,KZ11,IF(KU11*KV11<0,LA11,LB11))),0) -> -71.54076963 | LE11: =(vimata-LM$9*dvim)-$BX11 -> 1152 | LF11: =(vimata-LN$9*dvim)-$BL11 -> 1152 | LG11: =IF(LF11<0,ShmEIO_arxH+COS($L11)*((vimata-LM$9*dvim+vimata_xek))*DT,$AZ11) -> -13.5 | LH11: =IF(LE11*LF11<0,$BO11+LF11*DT/DEIKT_HUYGENS*COS($AQ11),IF(LF11>0,$BV11,0)) -> -13.48382351 | LI11: =IF(LE11>0,$BV11+LE11*COS(ATAN((0-$BW11)/(thesif-$BV11)))*DT/DEIKT_BACK,0) -> 182.7392272 | LJ11: =vimata_xek*DT*SIN($L11)+TAN($L11)*(LG11-(ShmEIO_arxH+vimata_xek*DT*COS($L11))) -> 54.45088636 | LK11: =IF(LF11*LE11<=0,$BP11+TAN($AQ11)*(LH11-$BO11),0) -> 0 | LL11: =IF(LE11>0,$BW11+(0-$BW11)/(thesif-$BV11)*(LI11-$BV11),0) -> -66.2998641 | LM11: =IF(SHOW_IMAGE=FALSE,IF(vimata-LM$9*dvim>0,IF(LF11<0,LG11,IF(LE11*LF11<=0,LH11,LI11)),ShmEIO_arxH)) -> 182.7392272 | LN11: =IF(SHOW_IMAGE=FALSE,IF(vimata-LN$9*dvim>0,IF(LF11<0,LJ11,IF(LE11*LF11<0,LK11,LL11))),0) -> -66.2998641 | LO11: =(vimata-LW$9*dvim)-$BX11 -> 1102 | LP11: =(vimata-LX$9*dvim)-$BL11 -> 1102 | LQ11: =IF(LP11<0,ShmEIO_arxH+COS($L11)*((vimata-LW$9*dvim+vimata_xek))*DT,$AZ11) -> -13.5 | LR11: =IF(LO11*LP11<0,$BO11+LP11*DT/DEIKT_HUYGENS*COS($AQ11),IF(LP11>0,$BV11,0)) -> -13.48382351 | LS11: =IF(LO11>0,$BV11+LO11*COS(ATAN((0-$BW11)/(thesif-$BV11)))*DT/DEIKT_BACK,0) -> 174.2226017 | LT11: =vimata_xek*DT*SIN($L11)+TAN($L11)*(LQ11-(ShmEIO_arxH+vimata_xek*DT*COS($L11))) -> 54.45088636 | LU11: =IF(LP11*LO11<=0,$BP11+TAN($AQ11)*(LR11-$BO11),0) -> 0 | LV11: =IF(LO11>0,$BW11+(0-$BW11)/(thesif-$BV11)*(LS11-$BV11),0) -> -61.05895858 | LW11: =IF(SHOW_IMAGE=FALSE,IF(vimata-LW$9*dvim>0,IF(LP11<0,LQ11,IF(LO11*LP11<=0,LR11,LS11)),ShmEIO_arxH)) -> 174.2226017 | LX11: =IF(SHOW_IMAGE=FALSE,IF(vimata-LX$9*dvim>0,IF(LP11<0,LT11,IF(LO11*LP11<0,LU11,LV11))),0) -> -61.05895858 | LY11: =(vimata-MG$9*dvim)-$BX11 -> 1052 | LZ11: =(vimata-MH$9*dvim)-$BL11 -> 1052 | MA11: =IF(LZ11<0,ShmEIO_arxH+COS($L11)*((vimata-MG$9*dvim+vimata_xek))*DT,$AZ11) -> -13.5 | MB11: =IF(LY11*LZ11<0,$BO11+LZ11*DT/DEIKT_HUYGENS*COS($AQ11),IF(LZ11>0,$BV11,0)) -> -13.48382351 | MC11: =IF(LY11>0,$BV11+LY11*COS(ATAN((0-$BW11)/(thesif-$BV11)))*DT/DEIKT_BACK,0) -> 165.7059762 | MD11: =vimata_xek*DT*SIN($L11)+TAN($L11)*(MA11-(ShmEIO_arxH+vimata_xek*DT*COS($L11))) -> 54.45088636 | ME11: =IF(LZ11*LY11<=0,$BP11+TAN($AQ11)*(MB11-$BO11),0) -> 0 | MF11: =IF(LY11>0,$BW11+(0-$BW11)/(thesif-$BV11)*(MC11-$BV11),0) -> -55.81805305 | MG11: =IF(SHOW_IMAGE=FALSE,IF(vimata-MG$9*dvim>0,IF(LZ11<0,MA11,IF(LY11*LZ11<=0,MB11,MC11)),ShmEIO_arxH)) -> 165.7059762 | MH11: =IF(SHOW_IMAGE=FALSE,IF(vimata-MH$9*dvim>0,IF(LZ11<0,MD11,IF(LY11*LZ11<0,ME11,MF11))),0) -> -55.81805305 | MI11: =(vimata-MQ$9*dvim)-$BX11 -> 1002 | MJ11: =(vimata-MR$9*dvim)-$BL11 -> 1002 | MK11: =IF(MJ11<0,ShmEIO_arxH+COS($L11)*((vimata-MQ$9*dvim+vimata_xek))*DT,$AZ11) -> -13.5 | ML11: =IF(MI11*MJ11<0,$BO11+MJ11*DT/DEIKT_HUYGENS*COS($AQ11),IF(MJ11>0,$BV11,0)) -> -13.48382351 | MM11: =IF(MI11>0,$BV11+MI11*COS(ATAN((0-$BW11)/(thesif-$BV11)))*DT/DEIKT_BACK,0) -> 157.1893508 | MN11: =vimata_xek*DT*SIN($L11)+TAN($L11)*(MK11-(ShmEIO_arxH+vimata_xek*DT*COS($L11))) -> 54.45088636 | MO11: =IF(MJ11*MI11<=0,$BP11+TAN($AQ11)*(ML11-$BO11),0) -> 0 | MP11: =IF(MI11>0,$BW11+(0-$BW11)/(thesif-$BV11)*(MM11-$BV11),0) -> -50.57714753 | MQ11: =IF(SHOW_IMAGE=FALSE,IF(vimata-MQ$9*dvim>0,IF(MJ11<0,MK11,IF(MI11*MJ11<=0,ML11,MM11)),ShmEIO_arxH)) -> 157.1893508 | MR11: =IF(SHOW_IMAGE=FALSE,IF(vimata-MR$9*dvim>0,IF(MJ11<0,MN11,IF(MI11*MJ11<0,MO11,MP11))),0) -> -50.57714753 | MS11: =1+10 -> 11
C12: =C11+1 -> 2 | G12: 0.7652145267 | H12: -18.4046101 | I12: 44.15882118 | J12: =J11+1 -> 12 | K12: =K11-deltay -> 49.00579772 | L12: 0.4129612762 | M12: =DEGREES(L12) -> 23.66093823 | N12: =TAN(L12) -> 0.4381564261 | O12: -1941.227052 | P12: -104724.3826 | Q12: -2876951.174 | R12: 5382380868 | S12: -16.15456124 | T12: =K12 -> 49.00579772 | U12: 0.4129612762 | V12: -128 | W12: =ATAN(AC12) -> -0.4441313051 | X12: =CONCATENATE("ray",TEXT(Y12,"0")) -> ray2 | Y12: =Y11+1 -> 2 | Z12: 111.8454388 | AA12: 49.00579772 | AB12: =(BAH/Ah)^2*(S12+2*Ah)/T12 -> 2.101558507 | AC12: =-1/AB12 -> -0.4758373353 | AD12: =1/SQRT(1+AC12^2) -> 0.9029842613 | AE12: =AC12*AD12 -> -0.4296736247 | AF12: =SQRT(Z12^2+AA12^2) -> 122.1104843 | AG12: =AD12^2+AE12^2 -> 1 | AH12: =Z12*AE12-AA12*AD12 -> -92.30849914 | AI12: =AH12/AF12 -> -0.7559424537 | AJ12: =W12-U12 -> -0.8570925814 | AK12: -0.4258371442 | AL12: =DEGREES(AJ12) -> -49.10778756 | AM12: =DEGREES(AK12) -> -24.39867113 | AN12: =AL12-AM12 -> -24.70911644 | AO12: =RADIANS(AN12) -> -0.4312554371 | AP12: =ATAN(AE12/AD12) -> -0.4441313051 | AQ12: =-(AK12-AP12) -> -0.01829416087 | AR12: =COS(AQ12) -> 0.9998326665 | AS12: =TAN(AQ12) -> -0.01829620202 | AT12: =xronos_lryp-AF12 -> 134.3995157 | AU12: -92.05118122 | AV12: 10710.72225 | AW12: 102.1452106 | AX12: =AW12^2-(DEIKT_HUYGENS^2-DEIKT_BACK^2)*(AT12^2-DEIKT_BACK^2*AV12) -> 8061.793778 | AY12: 6.917665858 | AZ12: -9.23805294 | BA12: =AZ12-$S12 -> 6.916508301 | BB12: 48.87925189 | BC12: -0.1265458331 | BD12: =SQRT(BA12^2+BC12^2) -> 6.917665858 | BE12: 84.23805294 | BF12: =IF(BD12>0,0-BB12,0) -> -48.87925189 | BG12: =SQRT(BE12^2+BF12^2) -> 97.39214973 | BH12: 256.51 | BI12: 104.1104843 | BJ12: =BD12 -> 6.917665858 | BK12: =BG12 -> 97.39214973 | BL12: 416 | BM12: 0.1104843227 | BN12: 0.1395156773 | BO12: -16.09316064 | BP12: 48.97852103 | BQ12: =SQRT((BO12-$AZ12)^2+(BP12-$BB12)^2) -> 6.855826425 | BR12: 50 | BS12: 12.54616236 | BT12: 0.04616235737 | BU12: 0.2038376426 | BV12: =$AZ12+COS($AQ12)*BU12 -> -9.034249406 | BW12: =$BB12+TAN($AQ12)*(BV12-$AZ12) -> 48.87552306 | BX12: =$BL12+$BR12 -> 466 | BY12: =(vimata-CG$9*dvim)-$BX12 -> 2321 | BZ12: =(vimata-CH$9*dvim)-$BL12 -> 2371 | CA12: =IF(BZ12<0,ShmEIO_arxH+COS($L12)*((vimata-CG$9*dvim+vimata_xek))*DT,$AZ12) -> -9.23805294 | CB12: =IF(BY12*BZ12<0,$BO12+BZ12*DT/DEIKT_HUYGENS*COS($AQ12),IF(BZ12>0,$BV12,0)) -> -9.034249406 | CC12: =IF(BY12>0,$BV12+BY12*COS(ATAN((0-$BW12)/(thesif-$BV12)))*DT/DEIKT_BACK,0) -> 392.2318015 | CD12: =vimata_xek*DT*SIN($L12)+TAN($L12)*(CA12-(ShmEIO_arxH+vimata_xek*DT*COS($L12))) -> 52.03631028 | CE12: =IF(BZ12*BY12<=0,$BP12+TAN($AQ12)*(CB12-$BO12),0) -> 0 | CF12: =IF(BY12>0,$BW12+(0-$BW12)/(thesif-$BV12)*(CC12-$BV12),0) -> -184.5065594 | CG12: =IF(SHOW_IMAGE=FALSE,IF($BJ12<>0,IF(vimata-CG$9*dvim>0,IF(BZ12<0,CA12,IF($BJ12<>0,IF(BY12*BZ12<=0,CB12,CC12),$S12)),ShmEIO_arxH),ARXIKH_THESH),ShmEIO_arxH) -> 392.2318015 | CH12: =IF(SHOW_IMAGE=FALSE,IF($BJ12<>0,IF(vimata-CH$9*dvim>0,IF(BZ12<0,CD12,IF($BJ12<>0,IF(BY12*BZ12<0,CE12,CF12),$T12))),0),0) -> -184.5065594 | CI12: =(vimata-CQ$9*dvim)-$BX12 -> 2271 | CJ12: =(vimata-CR$9*dvim)-$BL12 -> 2321 | CK12: =IF(CJ12<0,ShmEIO_arxH+COS($L12)*((vimata-CQ$9*dvim+vimata_xek))*DT,$AZ12) -> -9.23805294 | CL12: =IF(CI12*CJ12<0,$BO12+CJ12*DT/DEIKT_HUYGENS*COS($AQ12),IF(CJ12>0,$BV12,0)) -> -9.034249406 | CM12: =IF(CI12>0,$BV12+CI12*COS(ATAN((0-$BW12)/(thesif-$BV12)))*DT/DEIKT_BACK,0) -> 383.5875522 | CN12: =vimata_xek*DT*SIN($L12)+TAN($L12)*(CK12-(ShmEIO_arxH+vimata_xek*DT*COS($L12))) -> 52.03631028 | CO12: =IF(CJ12*CI12<=0,$BP12+TAN($AQ12)*(CL12-$BO12),0) -> 0 | CP12: =IF(CI12>0,$BW12+(0-$BW12)/(thesif-$BV12)*(CM12-$BV12),0) -> -179.4789402 | CQ12: 383.5875522 | CR12: -179.4789402 | CS12: 2221 | CT12: 2271 | CU12: -9.23805294 | CV12: -9.034249406 | CW12: 374.943303 | CX12: 52.03631028 | CY12: 0 | CZ12: -174.451321 | DA12: 374.943303 | DB12: -174.451321 | DC12: 2171 | DD12: 2221 | DE12: -9.23805294 | DF12: -9.034249406 | DG12: 366.2990537 | DH12: 52.03631028 | DI12: 0 | DJ12: -169.4237018 | DK12: 366.2990537 | DL12: -169.4237018 | DM12: 2121 | DN12: 2171 | DO12: -9.23805294 | DP12: -9.034249406 | DQ12: 357.6548044 | DR12: 52.03631028 | DS12: 0 | DT12: -164.3960827 | DU12: 357.6548044 | DV12: -164.3960827 | DW12: 2071 | DX12: 2121 | DY12: -9.23805294 | DZ12: -9.034249406 | EA12: 349.0105552 | EB12: 52.03631028 | EC12: 0 | ED12: -159.3684635 | EE12: 349.0105552 | EF12: -159.3684635 | EG12: 2021 | EH12: 2071 | EI12: -9.23805294 | EJ12: -9.034249406 | EK12: 340.3663059 | EL12: 52.03631028 | EM12: 0 | EN12: -154.3408443 | EO12: 340.3663059 | EP12: -154.3408443 | EQ12: 1971 | ER12: 2021 | ES12: -9.23805294 | ET12: -9.034249406 | EU12: 331.7220566 | EV12: 52.03631028 | EW12: 0 | EX12: -149.3132251 | EY12: 331.7220566 | EZ12: -149.3132251 | FA12: 1921 | FB12: 1971 | FC12: -9.23805294 | FD12: -9.034249406 | FE12: 323.0778074 | FF12: 52.03631028 | FG12: 0 | FH12: -144.2856059 | FI12: 323.0778074 | FJ12: -144.2856059 | FK12: 1871 | FL12: 1921 | FM12: -9.23805294 | FN12: -9.034249406 | FO12: 314.4335581 | FP12: 52.03631028 | FQ12: 0 | FR12: -139.2579867 | FS12: 314.4335581 | FT12: -139.2579867 | FU12: 1821 | FV12: 1871 | FW12: -9.23805294 | FX12: -9.034249406 | FY12: 305.7893088 | FZ12: 52.03631028 | GA12: 0 | GB12: -134.2303676 | GC12: 305.7893088 | GD12: -134.2303676 | GE12: 1771 | GF12: 1821 | GG12: -9.23805294 | GH12: -9.034249406 | GI12: 297.1450596 | GJ12: 52.03631028 | GK12: 0 | GL12: -129.2027484 | GM12: 297.1450596 | GN12: -129.2027484 | GO12: 1721 | GP12: 1771 | GQ12: -9.23805294 | GR12: -9.034249406 | GS12: 288.5008103 | GT12: 52.03631028 | GU12: 0 | GV12: -124.1751292 | GW12: 288.5008103 | GX12: -124.1751292 | GY12: 1671 | GZ12: 1721 | HA12: -9.23805294 | HB12: -9.034249406 | HC12: 279.856561 | HD12: 52.03631028 | HE12: 0 | HF12: -119.14751 | HG12: 279.856561 | HH12: -119.14751 | HI12: 1621 | HJ12: 1671 | HK12: -9.23805294 | HL12: -9.034249406 | HM12: 271.2123118 | HN12: 52.03631028 | HO12: 0 | HP12: -114.1198908 | HQ12: 271.2123118 | HR12: -114.1198908 | HS12: 1571 | HT12: 1621 | HU12: -9.23805294 | HV12: -9.034249406 | HW12: 262.5680625 | HX12: 52.03631028 | HY12: 0 | HZ12: -109.0922716 | IA12: 262.5680625 | IB12: -109.0922716 | IC12: 1521 | ID12: 1571 | IE12: -9.23805294 | IF12: -9.034249406 | IG12: 253.9238132 | IH12: 52.03631028 | II12: 0 | IJ12: -104.0646525 | IK12: 253.9238132 | IL12: -104.0646525 | IM12: 1471 | IN12: 1521 | IO12: -9.23805294 | IP12: -9.034249406 | IQ12: 245.279564 | IR12: 52.03631028 | IS12: 0 | IT12: -99.03703328 | IU12: 245.279564 | IV12: -99.03703328 | IW12: 1421 | IX12: 1471 | IY12: -9.23805294 | IZ12: -9.034249406 | JA12: 236.6353147 | JB12: 52.03631028 | JC12: 0 | JD12: -94.0094141 | JE12: 236.6353147 | JF12: -94.0094141 | JG12: 1371 | JH12: 1421 | JI12: -9.23805294 | JJ12: -9.034249406 | JK12: 227.9910654 | JL12: 52.03631028 | JM12: 0 | JN12: -88.98179492 | JO12: 227.9910654 | JP12: -88.98179492 | JQ12: 1321 | JR12: 1371 | JS12: -9.23805294 | JT12: -9.034249406 | JU12: 219.3468162 | JV12: 52.03631028 | JW12: 0 | JX12: -83.95417574 | JY12: 219.3468162 | JZ12: -83.95417574 | KA12: 1271 | KB12: 1321 | KC12: -9.23805294 | KD12: -9.034249406 | KE12: 210.7025669 | KF12: 52.03631028 | KG12: 0 | KH12: -78.92655655 | KI12: 210.7025669 | KJ12: -78.92655655 | KK12: 1221 | KL12: 1271 | KM12: -9.23805294 | KN12: -9.034249406 | KO12: 202.0583177 | KP12: 52.03631028 | KQ12: 0 | KR12: -73.89893737 | KS12: 202.0583177 | KT12: -73.89893737 | KU12: 1171 | KV12: 1221 | KW12: -9.23805294 | KX12: -9.034249406 | KY12: 193.4140684 | KZ12: 52.03631028 | LA12: 0 | LB12: -68.87131819 | LC12: 193.4140684 | LD12: -68.87131819 | LE12: 1121 | LF12: 1171 | LG12: -9.23805294 | LH12: -9.034249406 | LI12: 184.7698191 | LJ12: 52.03631028 | LK12: 0 | LL12: -63.84369901 | LM12: 184.7698191 | LN12: -63.84369901 | LO12: 1071 | LP12: 1121 | LQ12: -9.23805294 | LR12: -9.034249406 | LS12: 176.1255699 | LT12: 52.03631028 | LU12: 0 | LV12: -58.81607982 | LW12: 176.1255699 | LX12: -58.81607982 | LY12: 1021 | LZ12: 1071 | MA12: -9.23805294 | MB12: -9.034249406 | MC12: 167.4813206 | MD12: 52.03631028 | ME12: 0 | MF12: -53.78846064 | MG12: 167.4813206 | MH12: -53.78846064 | MI12: 971 | MJ12: 1021 | MK12: -9.23805294 | ML12: -9.034249406 | MM12: 158.8370713 | MN12: 52.03631028 | MO12: 0 | MP12: -48.76084146 | MQ12: 158.8370713 | MR12: -48.76084146
C13: 3 | G13: 0.7478232875 | H13: -19.08184382 | I13: 42.64671983 | J13: 13 | K13: 43.56070909 | L13: 0.379167531 | M13: 21.72469925 | N13: 0.3984477688 | O13: -1971.125438 | P13: -108551.3761 | Q13: -3366806.336 | R13: 5147003632 | S13: -18.67397914 | T13: 43.56070909 | U13: 0.379167531 | V13: -128 | W13: -0.4218159693 | X13: ray3 | Y13: =Y12+1 -> 3 | Z13: 109.3260209 | AA13: 43.56070909 | AB13: =(BAH/Ah)^2*(S13+2*Ah)/T13 -> 2.228400144 | AC13: -0.4487524392 | AD13: 0.9123469547 | AE13: -0.4094179213 | AF13: 117.6848088 | AG13: 1 | AH13: -84.50251248 | AI13: -0.7180409551 | AJ13: =W13-U13 -> -0.8009835003 | AK13: -0.4032090975 | AL13: -45.89297402 | AM13: -23.10217955 | AN13: -22.79079448 | AO13: -0.3977744027 | AP13: -0.4218159693 | AQ13: -0.01860687178 | AR13: 0.9998268972 | AS13: -0.01860901941 | AT13: 138.8251912 | AU13: -94.48460122 | AV13: 10672.34974 | AW13: =AT13*DEIKT_HUYGENS+DEIKT_BACK^2*AU13*AR13 -> 106.4434661 | AX13: 6691.132099 | AY13: 13.79541293 | AZ13: -4.880954237 | BA13: 13.7930249 | BB13: 43.30403442 | BC13: -0.2566746682 | BD13: 13.79541293 | BE13: 79.88095424 | BF13: -43.30403442 | BG13: 90.86366846 | BH13: 256.51 | BI13: 99.68480876 | BJ13: 13.79541293 | BK13: 90.86366846 | BL13: 398 | BM13: 0.1848087595 | BN13: 0.0651912405 | BO13: -18.66204023 | BP13: 43.55567302 | BQ13: 13.78338323 | BR13: 100 | BS13: 25.22359131 | BT13: 0.2235913063 | BU13: 0.02640869367 | BV13: -4.854550115 | BW13: 43.30354306 | BX13: 498 | BY13: 2289 | BZ13: 2389 | CA13: -4.880954237 | CB13: -4.854550115 | CC13: 397.5818603 | CD13: 49.05650908 | CE13: 0 | CF13: -174.9297624 | CG13: 397.5818603 | CH13: -174.9297624 | CI13: 2239 | CJ13: 2339 | CK13: -4.880954237 | CL13: -4.854550115 | CM13: 388.7912004 | CN13: 49.05650908 | CO13: 0 | CP13: -170.1627614 | CQ13: 388.7912004 | CR13: -170.1627614 | CS13: 2189 | CT13: 2289 | CU13: -4.880954237 | CV13: -4.854550115 | CW13: 380.0005405 | CX13: 49.05650908 | CY13: 0 | CZ13: -165.3957604 | DA13: 380.0005405 | DB13: -165.3957604 | DC13: 2139 | DD13: 2239 | DE13: -4.880954237 | DF13: -4.854550115 | DG13: 371.2098805 | DH13: 49.05650908 | DI13: 0 | DJ13: -160.6287594 | DK13: 371.2098805 | DL13: -160.6287594 | DM13: 2089 | DN13: 2189 | DO13: -4.880954237 | DP13: -4.854550115 | DQ13: 362.4192206 | DR13: 49.05650908 | DS13: 0 | DT13: -155.8617584 | DU13: 362.4192206 | DV13: -155.8617584 | DW13: 2039 | DX13: 2139 | DY13: -4.880954237 | DZ13: -4.854550115 | EA13: 353.6285607 | EB13: 49.05650908 | EC13: 0 | ED13: -151.0947574 | EE13: 353.6285607 | EF13: -151.0947574 | EG13: 1989 | EH13: 2089 | EI13: -4.880954237 | EJ13: -4.854550115 | EK13: 344.8379008 | EL13: 49.05650908 | EM13: 0 | EN13: -146.3277564 | EO13: 344.8379008 | EP13: -146.3277564 | EQ13: 1939 | ER13: 2039 | ES13: -4.880954237 | ET13: -4.854550115 | EU13: 336.0472409 | EV13: 49.05650908 | EW13: 0 | EX13: -141.5607554 | EY13: 336.0472409 | EZ13: -141.5607554 | FA13: 1889 | FB13: 1989 | FC13: -4.880954237 | FD13: -4.854550115 | FE13: 327.256581 | FF13: 49.05650908 | FG13: 0 | FH13: -136.7937544 | FI13: 327.256581 | FJ13: -136.7937544 | FK13: 1839 | FL13: 1939 | FM13: -4.880954237 | FN13: -4.854550115 | FO13: 318.4659211 | FP13: 49.05650908 | FQ13: 0 | FR13: -132.0267534 | FS13: 318.4659211 | FT13: -132.0267534 | FU13: 1789 | FV13: 1889 | FW13: -4.880954237 | FX13: -4.854550115 | FY13: 309.6752612 | FZ13: 49.05650908 | GA13: 0 | GB13: -127.2597525 | GC13: 309.6752612 | GD13: -127.2597525 | GE13: 1739 | GF13: 1839 | GG13: -4.880954237 | GH13: -4.854550115 | GI13: 300.8846013 | GJ13: 49.05650908 | GK13: 0 | GL13: -122.4927515 | GM13: 300.8846013 | GN13: -122.4927515 | GO13: 1689 | GP13: 1789 | GQ13: -4.880954237 | GR13: -4.854550115 | GS13: 292.0939414 | GT13: 49.05650908 | GU13: 0 | GV13: -117.7257505 | GW13: 292.0939414 | GX13: -117.7257505 | GY13: 1639 | GZ13: 1739 | HA13: -4.880954237 | HB13: -4.854550115 | HC13: 283.3032815 | HD13: 49.05650908 | HE13: 0 | HF13: -112.9587495 | HG13: 283.3032815 | HH13: -112.9587495 | HI13: 1589 | HJ13: 1689 | HK13: -4.880954237 | HL13: -4.854550115 | HM13: 274.5126216 | HN13: 49.05650908 | HO13: 0 | HP13: -108.1917485 | HQ13: 274.5126216 | HR13: -108.1917485 | HS13: 1539 | HT13: 1639 | HU13: -4.880954237 | HV13: -4.854550115 | HW13: 265.7219617 | HX13: 49.05650908 | HY13: 0 | HZ13: -103.4247475 | IA13: 265.7219617 | IB13: -103.4247475 | IC13: 1489 | ID13: 1589 | IE13: -4.880954237 | IF13: -4.854550115 | IG13: 256.9313018 | IH13: 49.05650908 | II13: 0 | IJ13: -98.6577465 | IK13: 256.9313018 | IL13: -98.6577465 | IM13: 1439 | IN13: 1539 | IO13: -4.880954237 | IP13: -4.854550115 | IQ13: 248.1406419 | IR13: 49.05650908 | IS13: 0 | IT13: -93.89074551 | IU13: 248.1406419 | IV13: -93.89074551 | IW13: 1389 | IX13: 1489 | IY13: -4.880954237 | IZ13: -4.854550115 | JA13: 239.349982 | JB13: 49.05650908 | JC13: 0 | JD13: -89.12374451 | JE13: 239.349982 | JF13: -89.12374451 | JG13: 1339 | JH13: 1439 | JI13: -4.880954237 | JJ13: -4.854550115 | JK13: 230.5593221 | JL13: 49.05650908 | JM13: 0 | JN13: -84.35674352 | JO13: 230.5593221 | JP13: -84.35674352 | JQ13: 1289 | JR13: 1389 | JS13: -4.880954237 | JT13: -4.854550115 | JU13: 221.7686622 | JV13: 49.05650908 | JW13: 0 | JX13: -79.58974253 | JY13: 221.7686622 | JZ13: -79.58974253 | KA13: 1239 | KB13: 1339 | KC13: -4.880954237 | KD13: -4.854550115 | KE13: 212.9780023 | KF13: 49.05650908 | KG13: 0 | KH13: -74.82274154 | KI13: 212.9780023 | KJ13: -74.82274154 | KK13: 1189 | KL13: 1289 | KM13: -4.880954237 | KN13: -4.854550115 | KO13: 204.1873424 | KP13: 49.05650908 | KQ13: 0 | KR13: -70.05574054 | KS13: 204.1873424 | KT13: -70.05574054 | KU13: 1139 | KV13: 1239 | KW13: -4.880954237 | KX13: -4.854550115 | KY13: 195.3966825 | KZ13: 49.05650908 | LA13: 0 | LB13: -65.28873955 | LC13: 195.3966825 | LD13: -65.28873955 | LE13: 1089 | LF13: 1189 | LG13: -4.880954237 | LH13: -4.854550115 | LI13: 186.6060226 | LJ13: 49.05650908 | LK13: 0 | LL13: -60.52173856 | LM13: 186.6060226 | LN13: -60.52173856 | LO13: 1039 | LP13: 1139 | LQ13: -4.880954237 | LR13: -4.854550115 | LS13: 177.8153627 | LT13: 49.05650908 | LU13: 0 | LV13: -55.75473757 | LW13: 177.8153627 | LX13: -55.75473757 | LY13: 989 | LZ13: 1089 | MA13: -4.880954237 | MB13: -4.854550115 | MC13: 169.0247028 | MD13: 49.05650908 | ME13: 0 | MF13: -50.98773657 | MG13: 169.0247028 | MH13: -50.98773657 | MI13: 939 | MJ13: 1039 | MK13: -4.880954237 | ML13: -4.854550115 | MM13: 160.2340429 | MN13: 49.05650908 | MO13: 0 | MP13: -46.22073558 | MQ13: 160.2340429 | MR13: -46.22073558
C14: 4 | G14: 0.7304320483 | H14: -19.72539231 | I14: 41.18263238 | J14: 14 | K14: 38.11562045 | L14: 0.342300565 | M14: 19.6123777 | N14: 0.3563274249 | O14: -1999.73769 | P14: -112213.7443 | Q14: -3835589.467 | R14: 4921751585 | S14: -21.03203239 | T14: 38.11562045 | U14: 0.342300565 | V14: -128 | W14: -0.3945802131 | X14: ray4 | Y14: 4 | Z14: 106.9679676 | AA14: 38.11562045 | AB14: 2.401426451 | AC14: -0.4164191661 | AD14: 0.9231580205 | AE14: -0.3844206931 | AF14: 113.5559185 | AG14: 1 | AH14: -76.30744097 | AI14: -0.6719811878 | AJ14: -0.7368807781 | AK14: -0.37599998 | AL14: -42.22015859 | AM14: -21.54321195 | AN14: -20.67694663 | AO14: -0.360880798 | AP14: -0.3945802131 | AQ14: -0.01858023306 | AR14: 0.9998273924 | AS14: -0.01858237148 | AT14: 142.9540815 | AU14: -96.740311 | AV14: 10674.95177 | AW14: 110.4753241 | AX14: 5494.619199 | AY14: =(AW14-SQRT(AX14))/(DEIKT_HUYGENS^2-DEIKT_BACK^2) -> 20.34797662 | AZ14: -0.6875679839 | BA14: 20.3444644 | BB14: 37.73757205 | BC14: -0.3780483951 | BD14: 20.34797662 | BE14: 75.68756798 | BF14: -37.73757205 | BG14: 84.57382746 | BH14: 256.51 | BI14: 95.55591846 | BJ14: 20.34797662 | BK14: 84.57382746 | BL14: 382 | BM14: 0.05591846229 | BN14: 0.1940815377 | BO14: -21.02436325 | BP14: 38.11259435 | BQ14: 20.34025279 | BR14: 148 | BS14: 37.2226626 | BT14: 0.2226626036 | BU14: 0.02733739635 | BV14: -0.6602353062 | BW14: 37.73706415 | BX14: 530 | BY14: 2257 | BZ14: 2405 | CA14: -0.6875679839 | CB14: -0.6602353062 | CC14: 403.2827247 | CD14: 45.36491106 | CE14: 0 | CF14: -163.7376118 | CG14: 403.2827247 | CH14: -163.7376118 | CI14: 2207 | CJ14: 2355 | CK14: -0.6875679839 | CL14: -0.6602353062 | CM14: 394.3340548 | CN14: 45.36491106 | CO14: 0 | CP14: -159.2742827 | CQ14: 394.3340548 | CR14: -159.2742827 | CS14: 2157 | CT14: 2305 | CU14: -0.6875679839 | CV14: -0.6602353062 | CW14: 385.3853849 | CX14: 45.36491106 | CY14: 0 | CZ14: -154.8109536 | DA14: 385.3853849 | DB14: -154.8109536 | DC14: 2107 | DD14: 2255 | DE14: -0.6875679839 | DF14: -0.6602353062 | DG14: 376.4367149 | DH14: 45.36491106 | DI14: 0 | DJ14: -150.3476245 | DK14: 376.4367149 | DL14: -150.3476245 | DM14: 2057 | DN14: 2205 | DO14: -0.6875679839 | DP14: -0.6602353062 | DQ14: 367.488045 | DR14: 45.36491106 | DS14: 0 | DT14: -145.8842954 | DU14: 367.488045 | DV14: -145.8842954 | DW14: 2007 | DX14: 2155 | DY14: -0.6875679839 | DZ14: -0.6602353062 | EA14: 358.5393751 | EB14: 45.36491106 | EC14: 0 | ED14: -141.4209663 | EE14: 358.5393751 | EF14: -141.4209663 | EG14: 1957 | EH14: 2105 | EI14: -0.6875679839 | EJ14: -0.6602353062 | EK14: 349.5907052 | EL14: 45.36491106 | EM14: 0 | EN14: -136.9576372 | EO14: 349.5907052 | EP14: -136.9576372 | EQ14: 1907 | ER14: 2055 | ES14: -0.6875679839 | ET14: -0.6602353062 | EU14: 340.6420353 | EV14: 45.36491106 | EW14: 0 | EX14: -132.4943081 | EY14: 340.6420353 | EZ14: -132.4943081 | FA14: 1857 | FB14: 2005 | FC14: -0.6875679839 | FD14: -0.6602353062 | FE14: 331.6933654 | FF14: 45.36491106 | FG14: 0 | FH14: -128.030979 | FI14: 331.6933654 | FJ14: -128.030979 | FK14: 1807 | FL14: 1955 | FM14: -0.6875679839 | FN14: -0.6602353062 | FO14: 322.7446955 | FP14: 45.36491106 | FQ14: 0 | FR14: -123.5676499 | FS14: 322.7446955 | FT14: -123.5676499 | FU14: 1757 | FV14: 1905 | FW14: -0.6875679839 | FX14: -0.6602353062 | FY14: 313.7960255 | FZ14: 45.36491106 | GA14: 0 | GB14: -119.1043208 | GC14: 313.7960255 | GD14: -119.1043208 | GE14: 1707 | GF14: 1855 | GG14: -0.6875679839 | GH14: -0.6602353062 | GI14: 304.8473556 | GJ14: 45.36491106 | GK14: 0 | GL14: -114.6409916 | GM14: 304.8473556 | GN14: -114.6409916 | GO14: 1657 | GP14: 1805 | GQ14: -0.6875679839 | GR14: -0.6602353062 | GS14: 295.8986857 | GT14: 45.36491106 | GU14: 0 | GV14: -110.1776625 | GW14: 295.8986857 | GX14: -110.1776625 | GY14: 1607 | GZ14: 1755 | HA14: -0.6875679839 | HB14: -0.6602353062 | HC14: 286.9500158 | HD14: 45.36491106 | HE14: 0 | HF14: -105.7143334 | HG14: 286.9500158 | HH14: -105.7143334 | HI14: 1557 | HJ14: 1705 | HK14: -0.6875679839 | HL14: -0.6602353062 | HM14: 278.0013459 | HN14: 45.36491106 | HO14: 0 | HP14: -101.2510043 | HQ14: 278.0013459 | HR14: -101.2510043 | HS14: 1507 | HT14: 1655 | HU14: -0.6875679839 | HV14: -0.6602353062 | HW14: 269.052676 | HX14: 45.36491106 | HY14: 0 | HZ14: -96.78767521 | IA14: 269.052676 | IB14: -96.78767521 | IC14: 1457 | ID14: 1605 | IE14: -0.6875679839 | IF14: -0.6602353062 | IG14: 260.104006 | IH14: 45.36491106 | II14: 0 | IJ14: -92.3243461 | IK14: 260.104006 | IL14: -92.3243461 | IM14: 1407 | IN14: 1555 | IO14: -0.6875679839 | IP14: -0.6602353062 | IQ14: 251.1553361 | IR14: 45.36491106 | IS14: 0 | IT14: -87.86101699 | IU14: 251.1553361 | IV14: -87.86101699 | IW14: 1357 | IX14: 1505 | IY14: -0.6875679839 | IZ14: -0.6602353062 | JA14: 242.2066662 | JB14: 45.36491106 | JC14: 0 | JD14: -83.39768788 | JE14: 242.2066662 | JF14: -83.39768788 | JG14: 1307 | JH14: 1455 | JI14: -0.6875679839 | JJ14: -0.6602353062 | JK14: 233.2579963 | JL14: 45.36491106 | JM14: 0 | JN14: -78.93435877 | JO14: 233.2579963 | JP14: -78.93435877 | JQ14: 1257 | JR14: 1405 | JS14: -0.6875679839 | JT14: -0.6602353062 | JU14: 224.3093264 | JV14: 45.36491106 | JW14: 0 | JX14: -74.47102966 | JY14: 224.3093264 | JZ14: -74.47102966 | KA14: 1207 | KB14: 1355 | KC14: -0.6875679839 | KD14: -0.6602353062 | KE14: 215.3606565 | KF14: 45.36491106 | KG14: 0 | KH14: -70.00770055 | KI14: 215.3606565 | KJ14: -70.00770055 | KK14: 1157 | KL14: 1305 | KM14: -0.6875679839 | KN14: -0.6602353062 | KO14: 206.4119865 | KP14: 45.36491106 | KQ14: 0 | KR14: -65.54437144 | KS14: 206.4119865 | KT14: -65.54437144 | KU14: 1107 | KV14: 1255 | KW14: -0.6875679839 | KX14: -0.6602353062 | KY14: 197.4633166 | KZ14: 45.36491106 | LA14: 0 | LB14: -61.08104233 | LC14: 197.4633166 | LD14: -61.08104233 | LE14: 1057 | LF14: 1205 | LG14: -0.6875679839 | LH14: -0.6602353062 | LI14: 188.5146467 | LJ14: 45.36491106 | LK14: 0 | LL14: -56.61771322 | LM14: 188.5146467 | LN14: -56.61771322 | LO14: 1007 | LP14: 1155 | LQ14: -0.6875679839 | LR14: -0.6602353062 | LS14: 179.5659768 | LT14: 45.36491106 | LU14: 0 | LV14: -52.15438411 | LW14: 179.5659768 | LX14: -52.15438411 | LY14: 957 | LZ14: 1105 | MA14: -0.6875679839 | MB14: -0.6602353062 | MC14: 170.6173069 | MD14: 45.36491106 | ME14: 0 | MF14: -47.691055 | MG14: 170.6173069 | MH14: -47.691055 | MI14: 907 | MJ14: 1055 | MK14: -0.6875679839 | ML14: -0.6602353062 | MM14: 161.668637 | MN14: 45.36491106 | MO14: 0 | MP14: -43.22772589 | MQ14: 161.668637 | MR14: -43.22772589
C15: 5 | G15: 0.713040809 | H15: -20.337201 | I15: 39.7634627 | J15: 15 | K15: 32.67053181 | L15: 0.3021876362 | M15: 17.31407618 | N15: 0.3117348454 | O15: -2026.549248 | P15: -115645.6237 | Q15: -4274870.032 | R15: 4710675631 | S15: -23.19769029 | T15: 32.67053181 | U15: 0.3021876362 | V15: -128 | W15: -0.3613409443 | X15: ray5 | Y15: 5 | Z15: 104.8023097 | AA15: 32.67053181 | AB15: 2.645960763 | AC15: -0.3779345537 | AD15: 0.9354236023 | AE15: -0.3535289017 | AF15: 109.7765356 | AG15: 1 | AH15: -67.611432 | AI15: -0.6159005805 | AJ15: -0.6635285805 | AK15: -0.3432589374 | AL15: -38.01738725 | AM15: -19.66728839 | AN15: -18.35009885 | AO15: -0.3202696431 | AP15: -0.3613409443 | AQ15: -0.01808200683 | AR15: 0.999836525 | AS15: -0.01808397778 | AT15: 146.7334644 | AU15: -98.78850346 | AV15: 10710.15003 | AW15: 114.1904367 | AX15: 4471.702517 | AY15: 26.4888306 | AZ15: 3.286810052 | BA15: 26.48450034 | BB15: 32.1915867 | BC15: -0.4789451157 | BD15: 26.4888306 | BE15: 71.71318995 | BF15: -32.1915867 | BG15: 78.60712351 | BH15: 256.51 | BI15: 91.77653561 | BJ15: 26.4888306 | BK15: 78.60712351 | BL15: 367 | BM15: 0.02653560564 | BN15: 0.2234643944 | BO15: -23.17167304 | BP15: 32.66113044 | BQ15: 26.46264912 | BR15: 193 | BS15: 48.4266479 | BT15: 0.1766478969 | BU15: 0.07335210314 | BV15: 3.360150164 | BW15: 32.19026042 | BX15: 560 | BY15: 2227 | BZ15: 2420 | CA15: 3.286810052 | CB15: 3.360150164 | CC15: 409.6310964 | CD15: 40.92667343 | CE15: 0 | CF15: -150.3613165 | CG15: 409.6310964 | CH15: -150.3613165 | CI15: 2177 | CJ15: 2370 | CK15: 3.286810052 | CL15: 3.360150164 | CM15: 400.5096113 | CN15: 40.92667343 | CO15: 0 | CP15: -146.262718 | CQ15: 400.5096113 | CR15: -146.262718 | CS15: 2127 | CT15: 2320 | CU15: 3.286810052 | CV15: 3.360150164 | CW15: 391.3881262 | CX15: 40.92667343 | CY15: 0 | CZ15: -142.1641195 | DA15: 391.3881262 | DB15: -142.1641195 | DC15: 2077 | DD15: 2270 | DE15: 3.286810052 | DF15: 3.360150164 | DG15: 382.2666411 | DH15: 40.92667343 | DI15: 0 | DJ15: -138.065521 | DK15: 382.2666411 | DL15: -138.065521 | DM15: 2027 | DN15: 2220 | DO15: 3.286810052 | DP15: 3.360150164 | DQ15: 373.145156 | DR15: 40.92667343 | DS15: 0 | DT15: -133.9669225 | DU15: 373.145156 | DV15: -133.9669225 | DW15: 1977 | DX15: 2170 | DY15: 3.286810052 | DZ15: 3.360150164 | EA15: 364.0236709 | EB15: 40.92667343 | EC15: 0 | ED15: -129.8683241 | EE15: 364.0236709 | EF15: -129.8683241 | EG15: 1927 | EH15: 2120 | EI15: 3.286810052 | EJ15: 3.360150164 | EK15: 354.9021858 | EL15: 40.92667343 | EM15: 0 | EN15: -125.7697256 | EO15: 354.9021858 | EP15: -125.7697256 | EQ15: 1877 | ER15: 2070 | ES15: 3.286810052 | ET15: 3.360150164 | EU15: 345.7807007 | EV15: 40.92667343 | EW15: 0 | EX15: -121.6711271 | EY15: 345.7807007 | EZ15: -121.6711271 | FA15: 1827 | FB15: 2020 | FC15: 3.286810052 | FD15: 3.360150164 | FE15: 336.6592156 | FF15: 40.92667343 | FG15: 0 | FH15: -117.5725286 | FI15: 336.6592156 | FJ15: -117.5725286 | FK15: 1777 | FL15: 1970 | FM15: 3.286810052 | FN15: 3.360150164 | FO15: 327.5377305 | FP15: 40.92667343 | FQ15: 0 | FR15: -113.4739301 | FS15: 327.5377305 | FT15: -113.4739301 | FU15: 1727 | FV15: 1920 | FW15: 3.286810052 | FX15: 3.360150164 | FY15: 318.4162454 | FZ15: 40.92667343 | GA15: 0 | GB15: -109.3753316 | GC15: 318.4162454 | GD15: -109.3753316 | GE15: 1677 | GF15: 1870 | GG15: 3.286810052 | GH15: 3.360150164 | GI15: 309.2947603 | GJ15: 40.92667343 | GK15: 0 | GL15: -105.2767331 | GM15: 309.2947603 | GN15: -105.2767331 | GO15: 1627 | GP15: 1820 | GQ15: 3.286810052 | GR15: 3.360150164 | GS15: 300.1732752 | GT15: 40.92667343 | GU15: 0 | GV15: -101.1781346 | GW15: 300.1732752 | GX15: -101.1781346 | GY15: 1577 | GZ15: 1770 | HA15: 3.286810052 | HB15: 3.360150164 | HC15: 291.0517901 | HD15: 40.92667343 | HE15: 0 | HF15: -97.0795361 | HG15: 291.0517901 | HH15: -97.0795361 | HI15: 1527 | HJ15: 1720 | HK15: 3.286810052 | HL15: 3.360150164 | HM15: 281.930305 | HN15: 40.92667343 | HO15: 0 | HP15: -92.9809376 | HQ15: 281.930305 | HR15: -92.9809376 | HS15: 1477 | HT15: 1670 | HU15: 3.286810052 | HV15: 3.360150164 | HW15: 272.8088199 | HX15: 40.92667343 | HY15: 0 | HZ15: -88.88233911 | IA15: 272.8088199 | IB15: -88.88233911 | IC15: 1427 | ID15: 1620 | IE15: 3.286810052 | IF15: 3.360150164 | IG15: 263.6873348 | IH15: 40.92667343 | II15: 0 | IJ15: -84.78374061 | IK15: 263.6873348 | IL15: -84.78374061 | IM15: 1377 | IN15: 1570 | IO15: 3.286810052 | IP15: 3.360150164 | IQ15: 254.5658497 | IR15: 40.92667343 | IS15: 0 | IT15: -80.68514212 | IU15: 254.5658497 | IV15: -80.68514212 | IW15: 1327 | IX15: 1520 | IY15: 3.286810052 | IZ15: 3.360150164 | JA15: 245.4443646 | JB15: 40.92667343 | JC15: 0 | JD15: -76.58654362 | JE15: 245.4443646 | JF15: -76.58654362 | JG15: 1277 | JH15: 1470 | JI15: 3.286810052 | JJ15: 3.360150164 | JK15: 236.3228796 | JL15: 40.92667343 | JM15: 0 | JN15: -72.48794513 | JO15: 236.3228796 | JP15: -72.48794513 | JQ15: 1227 | JR15: 1420 | JS15: 3.286810052 | JT15: 3.360150164 | JU15: 227.2013945 | JV15: 40.92667343 | JW15: 0 | JX15: -68.38934663 | JY15: 227.2013945 | JZ15: -68.38934663 | KA15: 1177 | KB15: 1370 | KC15: 3.286810052 | KD15: 3.360150164 | KE15: 218.0799094 | KF15: 40.92667343 | KG15: 0 | KH15: -64.29074814 | KI15: 218.0799094 | KJ15: -64.29074814 | KK15: 1127 | KL15: 1320 | KM15: 3.286810052 | KN15: 3.360150164 | KO15: 208.9584243 | KP15: 40.92667343 | KQ15: 0 | KR15: -60.19214965 | KS15: 208.9584243 | KT15: -60.19214965 | KU15: 1077 | KV15: 1270 | KW15: 3.286810052 | KX15: 3.360150164 | KY15: 199.8369392 | KZ15: 40.92667343 | LA15: 0 | LB15: -56.09355115 | LC15: 199.8369392 | LD15: -56.09355115 | LE15: 1027 | LF15: 1220 | LG15: 3.286810052 | LH15: 3.360150164 | LI15: 190.7154541 | LJ15: 40.92667343 | LK15: 0 | LL15: -51.99495266 | LM15: 190.7154541 | LN15: -51.99495266 | LO15: 977 | LP15: 1170 | LQ15: 3.286810052 | LR15: 3.360150164 | LS15: 181.593969 | LT15: 40.92667343 | LU15: 0 | LV15: -47.89635416 | LW15: 181.593969 | LX15: -47.89635416 | LY15: 927 | LZ15: 1120 | MA15: 3.286810052 | MB15: 3.360150164 | MC15: 172.4724839 | MD15: 40.92667343 | ME15: 0 | MF15: -43.79775567 | MG15: 172.4724839 | MH15: -43.79775567 | MI15: 877 | MJ15: 1070 | MK15: 3.286810052 | ML15: 3.360150164 | MM15: 163.3509988 | MN15: 40.92667343 | MO15: 0 | MP15: -39.69915717 | MQ15: 163.3509988 | MR15: -39.69915717
C16: 6 | G16: 0.6956495698 | H16: -20.91905689 | I16: 38.38635457 | J16: 16 | K16: 27.22544318 | L16: 0.2587390429 | M16: 14.82465515 | N16: 0.264671802 | O16: -2050.963954 | P16: -118770.7061 | Q16: -4674880.575 | R16: 4518469070 | S16: -25.1350821 | T16: 27.22544318 | U16: 0.2587390429 | V16: -128 | W16: -0.3209522047 | X16: ray6 | Y16: 6 | Z16: 102.8649179 | AA16: 27.22544318 | AB16: 3.008002665 | AC16: -0.3324465139 | AD16: 0.948935456 | AE16: -0.3154702843 | AF16: 106.4068423 | AG16: 1 | AH16: -58.28601323 | AI16: -0.5477656508 | AJ16: -0.5796912476 | AK16: -0.3039856563 | AL16: -33.21386191 | AM16: -17.41709514 | AN16: -15.79676677 | AO16: -0.2757055913 | AP16: -0.3209522047 | AQ16: -0.01696654838 | AR16: 0.9998560716 | AS16: -0.01696817658 | AT16: 150.1031577 | AU16: -100.5970482 | AV16: 10768.25942 | AW16: 117.5285138 | AX16: 3620.552394 | AY16: 32.10786364 | AZ16: 6.968160301 | BA16: 32.1032424 | BB16: 26.68070969 | BC16: -0.544733486 | BD16: 32.10786364 | BE16: 68.0318397 | BF16: -26.68070969 | BG16: 73.07661379 | BH16: 256.51 | BI16: 88.40684231 | BJ16: 32.10786364 | BK16: 73.07661379 | BL16: 353 | BM16: 0.1568423097 | BN16: 0.09315769035 | BO16: -25.09588402 | BP16: 27.2128618 | BQ16: 32.06845996 | BR16: 234 | BS16: 58.68528172 | BT16: 0.1852817181 | BU16: 0.0647182819 | BV16: 7.032869268 | BW16: 26.6796117 | BX16: 587 | BY16: 2200 | BZ16: 2434 | CA16: 6.968160301 | CB16: 7.032869268 | CC16: 416.6081397 | CD16: 35.72226619 | CE16: 0 | CF16: -134.0938248 | CG16: 416.6081397 | CH16: -134.0938248 | CI16: 2150 | CJ16: 2384 | CK16: 6.968160301 | CL16: 7.032869268 | CM16: 407.2996108 | CN16: 35.72226619 | CO16: 0 | CP16: -130.439883 | CQ16: 407.2996108 | CR16: -130.439883 | CS16: 2100 | CT16: 2334 | CU16: 6.968160301 | CV16: 7.032869268 | CW16: 397.9910819 | CX16: 35.72226619 | CY16: 0 | CZ16: -126.7859413 | DA16: 397.9910819 | DB16: -126.7859413 | DC16: 2050 | DD16: 2284 | DE16: 6.968160301 | DF16: 7.032869268 | DG16: 388.682553 | DH16: 35.72226619 | DI16: 0 | DJ16: -123.1319996 | DK16: 388.682553 | DL16: -123.1319996 | DM16: 2000 | DN16: 2234 | DO16: 6.968160301 | DP16: 7.032869268 | DQ16: 379.3740242 | DR16: 35.72226619 | DS16: 0 | DT16: -119.4780578 | DU16: 379.3740242 | DV16: -119.4780578 | DW16: 1950 | DX16: 2184 | DY16: 6.968160301 | DZ16: 7.032869268 | EA16: 370.0654953 | EB16: 35.72226619 | EC16: 0 | ED16: -115.8241161 | EE16: 370.0654953 | EF16: -115.8241161 | EG16: 1900 | EH16: 2134 | EI16: 6.968160301 | EJ16: 7.032869268 | EK16: 360.7569664 | EL16: 35.72226619 | EM16: 0 | EN16: -112.1701744 | EO16: 360.7569664 | EP16: -112.1701744 | EQ16: 1850 | ER16: 2084 | ES16: 6.968160301 | ET16: 7.032869268 | EU16: 351.4484376 | EV16: 35.72226619 | EW16: 0 | EX16: -108.5162326 | EY16: 351.4484376 | EZ16: -108.5162326 | FA16: 1800 | FB16: 2034 | FC16: 6.968160301 | FD16: 7.032869268 | FE16: 342.1399087 | FF16: 35.72226619 | FG16: 0 | FH16: -104.8622909 | FI16: 342.1399087 | FJ16: -104.8622909 | FK16: 1750 | FL16: 1984 | FM16: 6.968160301 | FN16: 7.032869268 | FO16: 332.8313798 | FP16: 35.72226619 | FQ16: 0 | FR16: -101.2083491 | FS16: 332.8313798 | FT16: -101.2083491 | FU16: 1700 | FV16: 1934 | FW16: 6.968160301 | FX16: 7.032869268 | FY16: 323.5228509 | FZ16: 35.72226619 | GA16: 0 | GB16: -97.5544074 | GC16: 323.5228509 | GD16: -97.5544074 | GE16: 1650 | GF16: 1884 | GG16: 6.968160301 | GH16: 7.032869268 | GI16: 314.2143221 | GJ16: 35.72226619 | GK16: 0 | GL16: -93.90046566 | GM16: 314.2143221 | GN16: -93.90046566 | GO16: 1600 | GP16: 1834 | GQ16: 6.968160301 | GR16: 7.032869268 | GS16: 304.9057932 | GT16: 35.72226619 | GU16: 0 | GV16: -90.24652393 | GW16: 304.9057932 | GX16: -90.24652393 | GY16: 1550 | GZ16: 1784 | HA16: 6.968160301 | HB16: 7.032869268 | HC16: 295.5972643 | HD16: 35.72226619 | HE16: 0 | HF16: -86.59258219 | HG16: 295.5972643 | HH16: -86.59258219 | HI16: 1500 | HJ16: 1734 | HK16: 6.968160301 | HL16: 7.032869268 | HM16: 286.2887354 | HN16: 35.72226619 | HO16: 0 | HP16: -82.93864045 | HQ16: 286.2887354 | HR16: -82.93864045 | HS16: 1450 | HT16: 1684 | HU16: 6.968160301 | HV16: 7.032869268 | HW16: 276.9802066 | HX16: 35.72226619 | HY16: 0 | HZ16: -79.28469871 | IA16: 276.9802066 | IB16: -79.28469871 | IC16: 1400 | ID16: 1634 | IE16: 6.968160301 | IF16: 7.032869268 | IG16: 267.6716777 | IH16: 35.72226619 | II16: 0 | IJ16: -75.63075697 | IK16: 267.6716777 | IL16: -75.63075697 | IM16: 1350 | IN16: 1584 | IO16: 6.968160301 | IP16: 7.032869268 | IQ16: 258.3631488 | IR16: 35.72226619 | IS16: 0 | IT16: -71.97681523 | IU16: 258.3631488 | IV16: -71.97681523 | IW16: 1300 | IX16: 1534 | IY16: 6.968160301 | IZ16: 7.032869268 | JA16: 249.05462 | JB16: 35.72226619 | JC16: 0 | JD16: -68.3228735 | JE16: 249.05462 | JF16: -68.3228735 | JG16: 1250 | JH16: 1484 | JI16: 6.968160301 | JJ16: 7.032869268 | JK16: 239.7460911 | JL16: 35.72226619 | JM16: 0 | JN16: -64.66893176 | JO16: 239.7460911 | JP16: -64.66893176 | JQ16: 1200 | JR16: 1434 | JS16: 6.968160301 | JT16: 7.032869268 | JU16: 230.4375622 | JV16: 35.72226619 | JW16: 0 | JX16: -61.01499002 | JY16: 230.4375622 | JZ16: -61.01499002 | KA16: 1150 | KB16: 1384 | KC16: 6.968160301 | KD16: 7.032869268 | KE16: 221.1290333 | KF16: 35.72226619 | KG16: 0 | KH16: -57.36104828 | KI16: 221.1290333 | KJ16: -57.36104828 | KK16: 1100 | KL16: 1334 | KM16: 6.968160301 | KN16: 7.032869268 | KO16: 211.8205045 | KP16: 35.72226619 | KQ16: 0 | KR16: -53.70710654 | KS16: 211.8205045 | KT16: -53.70710654 | KU16: 1050 | KV16: 1284 | KW16: 6.968160301 | KX16: 7.032869268 | KY16: 202.5119756 | KZ16: 35.72226619 | LA16: 0 | LB16: -50.0531648 | LC16: 202.5119756 | LD16: -50.0531648 | LE16: 1000 | LF16: 1234 | LG16: 6.968160301 | LH16: 7.032869268 | LI16: 193.2034467 | LJ16: 35.72226619 | LK16: 0 | LL16: -46.39922307 | LM16: 193.2034467 | LN16: -46.39922307 | LO16: 950 | LP16: 1184 | LQ16: 6.968160301 | LR16: 7.032869268 | LS16: 183.8949178 | LT16: 35.72226619 | LU16: 0 | LV16: -42.74528133 | LW16: 183.8949178 | LX16: -42.74528133 | LY16: 900 | LZ16: 1134 | MA16: 6.968160301 | MB16: 7.032869268 | MC16: 174.586389 | MD16: 35.72226619 | ME16: 0 | MF16: -39.09133959 | MG16: 174.586389 | MH16: -39.09133959 | MI16: 850 | MJ16: 1084 | MK16: 6.968160301 | ML16: 7.032869268 | MM16: 165.2778601 | MN16: 35.72226619 | MO16: 0 | MP16: -35.43739785 | MQ16: 165.2778601 | MR16: -35.43739785
C17: 7 | G17: 0.6782583305 | H17: -21.47260382 | I17: 37.04866808 | J17: 17 | K17: 21.78035454 | L17: 0.2119958573 | M17: 12.14646789 | N17: 0.2152298636 | O17: -2072.318495 | P17: -121504.0874 | Q17: -5024753.386 | R17: 4350353877 | S17: -26.80421714 | T17: 21.78035454 | U17: 0.2119958573 | V17: -128 | W17: -0.2723872568 | X17: ray7 | Y17: 7 | Z17: 101.1957829 | AA17: 21.78035454 | AB17: 3.579995643 | AC17: -0.2793299489 | AD17: 0.9631313943 | AE17: -0.2690314431 | AF17: 103.5131408 | AG17: 1 | AH17: -48.20219074 | AI17: -0.4656625273 | AJ17: -0.4843831141 | AK17: -0.2572896931 | AL17: -27.7531081 | AM17: -14.74161352 | AN17: -13.01149458 | AO17: -0.227093421 | AP17: -0.2723872568 | AQ17: -0.01509756378 | AR17: 0.9998860339 | AS17: -0.01509871098 | AT17: 152.9968592 | AU17: -102.1330724 | AV17: 10838.48247 | AW17: 120.4195138 | AX17: 2937.652744 | AY17: 37.06862752 | AZ17: 10.26018582 | BA17: 37.06440296 | BB17: 21.22072983 | BC17: -0.5596247077 | BD17: 37.06862752 | BE17: 64.73981418 | BF17: -21.22072983 | BG17: 68.12901669 | BH17: 256.51 | BI17: 85.51314078 | BJ17: 37.06862752 | BK17: 68.12901669 | BL17: 342 | BM17: 0.01314077738 | BN17: 0.2368592226 | BO17: -26.69967005 | BP17: 21.75186955 | BQ17: 36.96367211 | BR17: 270 | BS17: 67.64351996 | BT17: 0.1435199567 | BU17: 0.1064800433 | BV17: 10.36665373 | BW17: 21.21912231 | BX17: 612 | BY17: 2175 | BZ17: 2445 | CA17: 10.26018582 | CB17: 10.36665373 | CC17: 423.6637299 | CD17: 29.75772094 | CE17: 0 | CF17: -114.4662741 | CG17: 423.6637299 | CH17: -114.4662741 | CI17: 2125 | CJ17: 2395 | CK17: 10.26018582 | CL17: 10.36665373 | CM17: 414.1626477 | CN17: 29.75772094 | CO17: 0 | CP17: -111.3470696 | CQ17: 414.1626477 | CR17: -111.3470696 | CS17: 2075 | CT17: 2345 | CU17: 10.26018582 | CV17: 10.36665373 | CW17: 404.6615655 | CX17: 29.75772094 | CY17: 0 | CZ17: -108.2278651 | DA17: 404.6615655 | DB17: -108.2278651 | DC17: 2025 | DD17: 2295 | DE17: 10.26018582 | DF17: 10.36665373 | DG17: 395.1604833 | DH17: 29.75772094 | DI17: 0 | DJ17: -105.1086605 | DK17: 395.1604833 | DL17: -105.1086605 | DM17: 1975 | DN17: 2245 | DO17: 10.26018582 | DP17: 10.36665373 | DQ17: 385.6594011 | DR17: 29.75772094 | DS17: 0 | DT17: -101.989456 | DU17: 385.6594011 | DV17: -101.989456 | DW17: 1925 | DX17: 2195 | DY17: 10.26018582 | DZ17: 10.36665373 | EA17: 376.1583189 | EB17: 29.75772094 | EC17: 0 | ED17: -98.87025152 | EE17: 376.1583189 | EF17: -98.87025152 | EG17: 1875 | EH17: 2145 | EI17: 10.26018582 | EJ17: 10.36665373 | EK17: 366.6572367 | EL17: 29.75772094 | EM17: 0 | EN17: -95.751047 | EO17: 366.6572367 | EP17: -95.751047 | EQ17: 1825 | ER17: 2095 | ES17: 10.26018582 | ET17: 10.36665373 | EU17: 357.1561545 | EV17: 29.75772094 | EW17: 0 | EX17: -92.63184249 | EY17: 357.1561545 | EZ17: -92.63184249 | FA17: 1775 | FB17: 2045 | FC17: 10.26018582 | FD17: 10.36665373 | FE17: 347.6550722 | FF17: 29.75772094 | FG17: 0 | FH17: -89.51263797 | FI17: 347.6550722 | FJ17: -89.51263797 | FK17: 1725 | FL17: 1995 | FM17: 10.26018582 | FN17: 10.36665373 | FO17: 338.15399 | FP17: 29.75772094 | FQ17: 0 | FR17: -86.39343346 | FS17: 338.15399 | FT17: -86.39343346 | FU17: 1675 | FV17: 1945 | FW17: 10.26018582 | FX17: 10.36665373 | FY17: 328.6529078 | FZ17: 29.75772094 | GA17: 0 | GB17: -83.27422894 | GC17: 328.6529078 | GD17: -83.27422894 | GE17: 1625 | GF17: 1895 | GG17: 10.26018582 | GH17: 10.36665373 | GI17: 319.1518256 | GJ17: 29.75772094 | GK17: 0 | GL17: -80.15502443 | GM17: 319.1518256 | GN17: -80.15502443 | GO17: 1575 | GP17: 1845 | GQ17: 10.26018582 | GR17: 10.36665373 | GS17: 309.6507434 | GT17: 29.75772094 | GU17: 0 | GV17: -77.03581991 | GW17: 309.6507434 | GX17: -77.03581991 | GY17: 1525 | GZ17: 1795 | HA17: 10.26018582 | HB17: 10.36665373 | HC17: 300.1496612 | HD17: 29.75772094 | HE17: 0 | HF17: -73.9166154 | HG17: 300.1496612 | HH17: -73.9166154 | HI17: 1475 | HJ17: 1745 | HK17: 10.26018582 | HL17: 10.36665373 | HM17: 290.648579 | HN17: 29.75772094 | HO17: 0 | HP17: -70.79741088 | HQ17: 290.648579 | HR17: -70.79741088 | HS17: 1425 | HT17: 1695 | HU17: 10.26018582 | HV17: 10.36665373 | HW17: 281.1474968 | HX17: 29.75772094 | HY17: 0 | HZ17: -67.67820637 | IA17: 281.1474968 | IB17: -67.67820637 | IC17: 1375 | ID17: 1645 | IE17: 10.26018582 | IF17: 10.36665373 | IG17: 271.6464146 | IH17: 29.75772094 | II17: 0 | IJ17: -64.55900185 | IK17: 271.6464146 | IL17: -64.55900185 | IM17: 1325 | IN17: 1595 | IO17: 10.26018582 | IP17: 10.36665373 | IQ17: 262.1453323 | IR17: 29.75772094 | IS17: 0 | IT17: -61.43979734 | IU17: 262.1453323 | IV17: -61.43979734 | IW17: 1275 | IX17: 1545 | IY17: 10.26018582 | IZ17: 10.36665373 | JA17: 252.6442501 | JB17: 29.75772094 | JC17: 0 | JD17: -58.32059282 | JE17: 252.6442501 | JF17: -58.32059282 | JG17: 1225 | JH17: 1495 | JI17: 10.26018582 | JJ17: 10.36665373 | JK17: 243.1431679 | JL17: 29.75772094 | JM17: 0 | JN17: -55.20138831 | JO17: 243.1431679 | JP17: -55.20138831 | JQ17: 1175 | JR17: 1445 | JS17: 10.26018582 | JT17: 10.36665373 | JU17: 233.6420857 | JV17: 29.75772094 | JW17: 0 | JX17: -52.08218379 | JY17: 233.6420857 | JZ17: -52.08218379 | KA17: 1125 | KB17: 1395 | KC17: 10.26018582 | KD17: 10.36665373 | KE17: 224.1410035 | KF17: 29.75772094 | KG17: 0 | KH17: -48.96297928 | KI17: 224.1410035 | KJ17: -48.96297928 | KK17: 1075 | KL17: 1345 | KM17: 10.26018582 | KN17: 10.36665373 | KO17: 214.6399213 | KP17: 29.75772094 | KQ17: 0 | KR17: -45.84377476 | KS17: 214.6399213 | KT17: -45.84377476 | KU17: 1025 | KV17: 1295 | KW17: 10.26018582 | KX17: 10.36665373 | KY17: 205.1388391 | KZ17: 29.75772094 | LA17: 0 | LB17: -42.72457025 | LC17: 205.1388391 | LD17: -42.72457025 | LE17: 975 | LF17: 1245 | LG17: 10.26018582 | LH17: 10.36665373 | LI17: 195.6377569 | LJ17: 29.75772094 | LK17: 0 | LL17: -39.60536573 | LM17: 195.6377569 | LN17: -39.60536573 | LO17: 925 | LP17: 1195 | LQ17: 10.26018582 | LR17: 10.36665373 | LS17: 186.1366746 | LT17: 29.75772094 | LU17: 0 | LV17: -36.48616122 | LW17: 186.1366746 | LX17: -36.48616122 | LY17: 875 | LZ17: 1145 | MA17: 10.26018582 | MB17: 10.36665373 | MC17: 176.6355924 | MD17: 29.75772094 | ME17: 0 | MF17: -33.3669567 | MG17: 176.6355924 | MH17: -33.3669567 | MI17: 825 | MJ17: 1095 | MK17: 10.26018582 | ML17: 10.36665373 | MM17: 167.1345102 | MN17: 29.75772094 | MO17: 0 | MP17: -30.24775219 | MQ17: 167.1345102 | MR17: -30.24775219
C18: 8 | G18: 0.6608670913 | H18: -21.99935607 | I18: 35.74795874 | J18: 18 | K18: 16.33526591 | L18: 0.1621820731 | M18: 9.292348299 | N18: 0.1636191545 | O18: -2089.915895 | P18: -123756.5546 | Q18: -5313069.185 | R18: 4211817058 | S18: -28.16287544 | T18: 16.33526591 | U18: 0.1621820731 | V18: -128 | W18: -0.2150597614 | X18: ray8 | Y18: 8 | Z18: 99.83712456 | AA18: 16.33526591 | AB18: 4.577961712 | AC18: -0.2184378252 | AD18: 0.9769636425 | AE18: -0.2134058133 | AF18: 101.1646794 | AG18: 1 | AH18: -37.26478365 | AI18: -0.3683576509 | AJ18: -0.3772418344 | AK18: -0.2026729979 | AL18: -21.61436497 | AM18: -11.6123074 | AN18: -10.00205757 | AO18: -0.1745688365 | AP18: -0.2150597614 | AQ18: -0.01238676345 | AR18: 0.999923285 | AS18: -0.01238739699 | AT18: 155.3453206 | AU18: -103.3652269 | AV18: 10909.41978 | AW18: 122.7861599 | AX18: 2417.65296 | AY18: 41.20942977 | AZ18: 13.04339294 | BA18: 41.20626839 | BB18: 15.8248275 | BC18: -0.5104384051 | BD18: 41.20942977 | BE18: 61.95660706 | BF18: -15.8248275 | BG18: 63.94565133 | BH18: 256.51 | BI18: 83.16467937 | BJ18: 41.20942977 | BK18: 63.94565133 | BL18: 332 | BM18: 0.1646793692 | BN18: 0.08532063077 | BO18: -28.20636507 | BP18: 16.34461905 | BQ18: 41.25303285 | BR18: 301 | BS18: 75.49305012 | BT18: 0.2430501219 | BU18: 0.006949878096 | BV18: 13.05034229 | BW18: 15.82474142 | BX18: 633 | BY18: 2154 | BZ18: 2455 | CA18: 13.04339294 | CB18: 13.05034229 | CC18: 430.4474801 | CD18: 23.0774007 | CE18: 0 | CF18: -90.79734525 | CG18: 430.4474801 | CH18: -90.79734525 | CI18: 2104 | CJ18: 2405 | CK18: 13.04339294 | CL18: 13.05034229 | CM18: 420.7585957 | CN18: 23.0774007 | CO18: 0 | CP18: -88.32236645 | CQ18: 420.7585957 | CR18: -88.32236645 | CS18: 2054 | CT18: 2355 | CU18: 13.04339294 | CV18: 13.05034229 | CW18: 411.0697114 | CX18: 23.0774007 | CY18: 0 | CZ18: -85.84738766 | DA18: 411.0697114 | DB18: -85.84738766 | DC18: 2004 | DD18: 2305 | DE18: 13.04339294 | DF18: 13.05034229 | DG18: 401.380827 | DH18: 23.0774007 | DI18: 0 | DJ18: -83.37240886 | DK18: 401.380827 | DL18: -83.37240886 | DM18: 1954 | DN18: 2255 | DO18: 13.04339294 | DP18: 13.05034229 | DQ18: 391.6919427 | DR18: 23.0774007 | DS18: 0 | DT18: -80.89743006 | DU18: 391.6919427 | DV18: -80.89743006 | DW18: 1904 | DX18: 2205 | DY18: 13.04339294 | DZ18: 13.05034229 | EA18: 382.0030583 | EB18: 23.0774007 | EC18: 0 | ED18: -78.42245126 | EE18: 382.0030583 | EF18: -78.42245126 | EG18: 1854 | EH18: 2155 | EI18: 13.04339294 | EJ18: 13.05034229 | EK18: 372.314174 | EL18: 23.0774007 | EM18: 0 | EN18: -75.94747246 | EO18: 372.314174 | EP18: -75.94747246 | EQ18: 1804 | ER18: 2105 | ES18: 13.04339294 | ET18: 13.05034229 | EU18: 362.6252896 | EV18: 23.0774007 | EW18: 0 | EX18: -73.47249366 | EY18: 362.6252896 | EZ18: -73.47249366 | FA18: 1754 | FB18: 2055 | FC18: 13.04339294 | FD18: 13.05034229 | FE18: 352.9364053 | FF18: 23.0774007 | FG18: 0 | FH18: -70.99751486 | FI18: 352.9364053 | FJ18: -70.99751486 | FK18: 1704 | FL18: 2005 | FM18: 13.04339294 | FN18: 13.05034229 | FO18: 343.2475209 | FP18: 23.0774007 | FQ18: 0 | FR18: -68.52253606 | FS18: 343.2475209 | FT18: -68.52253606 | FU18: 1654 | FV18: 1955 | FW18: 13.04339294 | FX18: 13.05034229 | FY18: 333.5586366 | FZ18: 23.0774007 | GA18: 0 | GB18: -66.04755726 | GC18: 333.5586366 | GD18: -66.04755726 | GE18: 1604 | GF18: 1905 | GG18: 13.04339294 | GH18: 13.05034229 | GI18: 323.8697522 | GJ18: 23.0774007 | GK18: 0 | GL18: -63.57257846 | GM18: 323.8697522 | GN18: -63.57257846 | GO18: 1554 | GP18: 1855 | GQ18: 13.04339294 | GR18: 13.05034229 | GS18: 314.1808679 | GT18: 23.0774007 | GU18: 0 | GV18: -61.09759966 | GW18: 314.1808679 | GX18: -61.09759966 | GY18: 1504 | GZ18: 1805 | HA18: 13.04339294 | HB18: 13.05034229 | HC18: 304.4919835 | HD18: 23.0774007 | HE18: 0 | HF18: -58.62262086 | HG18: 304.4919835 | HH18: -58.62262086 | HI18: 1454 | HJ18: 1755 | HK18: 13.04339294 | HL18: 13.05034229 | HM18: 294.8030992 | HN18: 23.0774007 | HO18: 0 | HP18: -56.14764206 | HQ18: 294.8030992 | HR18: -56.14764206 | HS18: 1404 | HT18: 1705 | HU18: 13.04339294 | HV18: 13.05034229 | HW18: 285.1142148 | HX18: 23.0774007 | HY18: 0 | HZ18: -53.67266327 | IA18: 285.1142148 | IB18: -53.67266327 | IC18: 1354 | ID18: 1655 | IE18: 13.04339294 | IF18: 13.05034229 | IG18: 275.4253305 | IH18: 23.0774007 | II18: 0 | IJ18: -51.19768447 | IK18: 275.4253305 | IL18: -51.19768447 | IM18: 1304 | IN18: 1605 | IO18: 13.04339294 | IP18: 13.05034229 | IQ18: 265.7364461 | IR18: 23.0774007 | IS18: 0 | IT18: -48.72270567 | IU18: 265.7364461 | IV18: -48.72270567 | IW18: 1254 | IX18: 1555 | IY18: 13.04339294 | IZ18: 13.05034229 | JA18: 256.0475618 | JB18: 23.0774007 | JC18: 0 | JD18: -46.24772687 | JE18: 256.0475618 | JF18: -46.24772687 | JG18: 1204 | JH18: 1505 | JI18: 13.04339294 | JJ18: 13.05034229 | JK18: 246.3586774 | JL18: 23.0774007 | JM18: 0 | JN18: -43.77274807 | JO18: 246.3586774 | JP18: -43.77274807 | JQ18: 1154 | JR18: 1455 | JS18: 13.04339294 | JT18: 13.05034229 | JU18: 236.6697931 | JV18: 23.0774007 | JW18: 0 | JX18: -41.29776927 | JY18: 236.6697931 | JZ18: -41.29776927 | KA18: 1104 | KB18: 1405 | KC18: 13.04339294 | KD18: 13.05034229 | KE18: 226.9809087 | KF18: 23.0774007 | KG18: 0 | KH18: -38.82279047 | KI18: 226.9809087 | KJ18: -38.82279047 | KK18: 1054 | KL18: 1355 | KM18: 13.04339294 | KN18: 13.05034229 | KO18: 217.2920244 | KP18: 23.0774007 | KQ18: 0 | KR18: -36.34781167 | KS18: 217.2920244 | KT18: -36.34781167 | KU18: 1004 | KV18: 1305 | KW18: 13.04339294 | KX18: 13.05034229 | KY18: 207.60314 | KZ18: 23.0774007 | LA18: 0 | LB18: -33.87283287 | LC18: 207.60314 | LD18: -33.87283287 | LE18: 954 | LF18: 1255 | LG18: 13.04339294 | LH18: 13.05034229 | LI18: 197.9142557 | LJ18: 23.0774007 | LK18: 0 | LL18: -31.39785407 | LM18: 197.9142557 | LN18: -31.39785407 | LO18: 904 | LP18: 1205 | LQ18: 13.04339294 | LR18: 13.05034229 | LS18: 188.2253713 | LT18: 23.0774007 | LU18: 0 | LV18: -28.92287527 | LW18: 188.2253713 | LX18: -28.92287527 | LY18: 854 | LZ18: 1155 | MA18: 13.04339294 | MB18: 13.05034229 | MC18: 178.536487 | MD18: 23.0774007 | ME18: 0 | MF18: -26.44789647 | MG18: 178.536487 | MH18: -26.44789647 | MI18: 804 | MJ18: 1105 | MK18: 13.04339294 | ML18: 13.05034229 | MM18: 168.8476026 | MN18: 23.0774007 | MO18: 0 | MP18: -23.97291767 | MQ18: 168.8476026 | MR18: -23.97291767
C19: 9 | G19: 0.643475852 | H19: -22.50071032 | I19: 34.48195892 | J19: 19 | K19: 10.89017727 | L19: 0.1097482271 | M19: 6.288110224 | N19: 0.1101909876 | O19: -2103.082152 | P19: -125441.8354 | Q19: -5528785.132 | R19: 4108164739 | S19: -29.16998216 | T19: 10.89017727 | U19: 0.1097482271 | V19: -128 | W19: -0.1492637879 | X19: ray9 | Y19: 9 | Z19: 98.83001784 | AA19: 10.89017727 | AB19: 6.649719936 | AC19: -0.1503822732 | AD19: 0.9888808281 | AE19: -0.1487101468 | AF19: 99.4282072 | AG19: 1 | AH19: -25.46611398 | AI19: -0.2561256479 | AJ19: -0.2590120151 | AK19: -0.1404203811 | AL19: -14.84029531 | AM19: -8.045495196 | AN19: -6.794800112 | AO19: -0.118591634 | AP19: -0.1492637879 | AQ19: -0.008843406818 | AR19: 0.9999608973 | AS19: -0.00884363736 | AT19: 157.0817928 | AU19: -104.2662909 | AV19: 10969.98114 | AW19: 124.5499717 | AX19: 2053.789762 | AY19: 44.35244872 | AZ19: 15.18073226 | BA19: 44.35071442 | BB19: 10.49795564 | BC19: -0.392221635 | BD19: 44.35244872 | BE19: 59.81926774 | BF19: -10.49795564 | BG19: 60.73344931 | BH19: 256.51 | BI19: 81.4282072 | BJ19: 44.35244872 | BK19: 60.73344931 | BL19: 325 | BM19: 0.178207201 | BN19: 0.07179279899 | BO19: -29.13340814 | BP19: 10.88471804 | BQ19: 44.31582815 | BR19: 324 | BS19: 81.09796552 | BT19: 0.09796551939 | BU19: 0.1520344806 | BV19: 15.3327608 | BW19: 10.49661115 | BX19: 649 | BY19: 2138 | BZ19: 2462 | CA19: 15.18073226 | CB19: 15.3327608 | CC19: 436.4658928 | CD19: 15.77722629 | CE19: 0 | CF19: -63.58877957 | CG19: 436.4658928 | CH19: -63.58877957 | CI19: 2088 | CJ19: 2412 | CK19: 15.18073226 | CL19: 15.3327608 | CM19: 426.6171292 | CN19: 15.77722629 | CO19: 0 | CP19: -61.85619326 | CQ19: 426.6171292 | CR19: -61.85619326 | CS19: 2038 | CT19: 2362 | CU19: 15.18073226 | CV19: 15.3327608 | CW19: 416.7683656 | CX19: 15.77722629 | CY19: 0 | CZ19: -60.12360695 | DA19: 416.7683656 | DB19: -60.12360695 | DC19: 1988 | DD19: 2312 | DE19: 15.18073226 | DF19: 15.3327608 | DG19: 406.919602 | DH19: 15.77722629 | DI19: 0 | DJ19: -58.39102063 | DK19: 406.919602 | DL19: -58.39102063 | DM19: 1938 | DN19: 2262 | DO19: 15.18073226 | DP19: 15.3327608 | DQ19: 397.0708384 | DR19: 15.77722629 | DS19: 0 | DT19: -56.65843432 | DU19: 397.0708384 | DV19: -56.65843432 | DW19: 1888 | DX19: 2212 | DY19: 15.18073226 | DZ19: 15.3327608 | EA19: 387.2220748 | EB19: 15.77722629 | EC19: 0 | ED19: -54.92584801 | EE19: 387.2220748 | EF19: -54.92584801 | EG19: 1838 | EH19: 2162 | EI19: 15.18073226 | EJ19: 15.3327608 | EK19: 377.3733111 | EL19: 15.77722629 | EM19: 0 | EN19: -53.1932617 | EO19: 377.3733111 | EP19: -53.1932617 | EQ19: 1788 | ER19: 2112 | ES19: 15.18073226 | ET19: 15.3327608 | EU19: 367.5245475 | EV19: 15.77722629 | EW19: 0 | EX19: -51.46067538 | EY19: 367.5245475 | EZ19: -51.46067538 | FA19: 1738 | FB19: 2062 | FC19: 15.18073226 | FD19: 15.3327608 | FE19: 357.6757839 | FF19: 15.77722629 | FG19: 0 | FH19: -49.72808907 | FI19: 357.6757839 | FJ19: -49.72808907 | FK19: 1688 | FL19: 2012 | FM19: 15.18073226 | FN19: 15.3327608 | FO19: 347.8270203 | FP19: 15.77722629 | FQ19: 0 | FR19: -47.99550276 | FS19: 347.8270203 | FT19: -47.99550276 | FU19: 1638 | FV19: 1962 | FW19: 15.18073226 | FX19: 15.3327608 | FY19: 337.9782567 | FZ19: 15.77722629 | GA19: 0 | GB19: -46.26291645 | GC19: 337.9782567 | GD19: -46.26291645 | GE19: 1588 | GF19: 1912 | GG19: 15.18073226 | GH19: 15.3327608 | GI19: 328.1294931 | GJ19: 15.77722629 | GK19: 0 | GL19: -44.53033013 | GM19: 328.1294931 | GN19: -44.53033013 | GO19: 1538 | GP19: 1862 | GQ19: 15.18073226 | GR19: 15.3327608 | GS19: 318.2807295 | GT19: 15.77722629 | GU19: 0 | GV19: -42.79774382 | GW19: 318.2807295 | GX19: -42.79774382 | GY19: 1488 | GZ19: 1812 | HA19: 15.18073226 | HB19: 15.3327608 | HC19: 308.4319659 | HD19: 15.77722629 | HE19: 0 | HF19: -41.06515751 | HG19: 308.4319659 | HH19: -41.06515751 | HI19: 1438 | HJ19: 1762 | HK19: 15.18073226 | HL19: 15.3327608 | HM19: 298.5832023 | HN19: 15.77722629 | HO19: 0 | HP19: -39.3325712 | HQ19: 298.5832023 | HR19: -39.3325712 | HS19: 1388 | HT19: 1712 | HU19: 15.18073226 | HV19: 15.3327608 | HW19: 288.7344386 | HX19: 15.77722629 | HY19: 0 | HZ19: -37.59998488 | IA19: 288.7344386 | IB19: -37.59998488 | IC19: 1338 | ID19: 1662 | IE19: 15.18073226 | IF19: 15.3327608 | IG19: 278.885675 | IH19: 15.77722629 | II19: 0 | IJ19: -35.86739857 | IK19: 278.885675 | IL19: -35.86739857 | IM19: 1288 | IN19: 1612 | IO19: 15.18073226 | IP19: 15.3327608 | IQ19: 269.0369114 | IR19: 15.77722629 | IS19: 0 | IT19: -34.13481226 | IU19: 269.0369114 | IV19: -34.13481226 | IW19: 1238 | IX19: 1562 | IY19: 15.18073226 | IZ19: 15.3327608 | JA19: 259.1881478 | JB19: 15.77722629 | JC19: 0 | JD19: -32.40222595 | JE19: 259.1881478 | JF19: -32.40222595 | JG19: 1188 | JH19: 1512 | JI19: 15.18073226 | JJ19: 15.3327608 | JK19: 249.3393842 | JL19: 15.77722629 | JM19: 0 | JN19: -30.66963963 | JO19: 249.3393842 | JP19: -30.66963963 | JQ19: 1138 | JR19: 1462 | JS19: 15.18073226 | JT19: 15.3327608 | JU19: 239.4906206 | JV19: 15.77722629 | JW19: 0 | JX19: -28.93705332 | JY19: 239.4906206 | JZ19: -28.93705332 | KA19: 1088 | KB19: 1412 | KC19: 15.18073226 | KD19: 15.3327608 | KE19: 229.641857 | KF19: 15.77722629 | KG19: 0 | KH19: -27.20446701 | KI19: 229.641857 | KJ19: -27.20446701 | KK19: 1038 | KL19: 1362 | KM19: 15.18073226 | KN19: 15.3327608 | KO19: 219.7930934 | KP19: 15.77722629 | KQ19: 0 | KR19: -25.4718807 | KS19: 219.7930934 | KT19: -25.4718807 | KU19: 988 | KV19: 1312 | KW19: 15.18073226 | KX19: 15.3327608 | KY19: 209.9443298 | KZ19: 15.77722629 | LA19: 0 | LB19: -23.73929438 | LC19: 209.9443298 | LD19: -23.73929438 | LE19: 938 | LF19: 1262 | LG19: 15.18073226 | LH19: 15.3327608 | LI19: 200.0955661 | LJ19: 15.77722629 | LK19: 0 | LL19: -22.00670807 | LM19: 200.0955661 | LN19: -22.00670807 | LO19: 888 | LP19: 1212 | LQ19: 15.18073226 | LR19: 15.3327608 | LS19: 190.2468025 | LT19: 15.77722629 | LU19: 0 | LV19: -20.27412176 | LW19: 190.2468025 | LX19: -20.27412176 | LY19: 838 | LZ19: 1162 | MA19: 15.18073226 | MB19: 15.3327608 | MC19: 180.3980389 | MD19: 15.77722629 | ME19: 0 | MF19: -18.54153545 | MG19: 180.3980389 | MH19: -18.54153545 | MI19: 788 | MJ19: 1112 | MK19: 15.18073226 | ML19: 15.3327608 | MM19: 170.5492753 | MN19: 15.77722629 | MO19: 0 | MP19: -16.80894913 | MQ19: 170.5492753 | MR19: -16.80894913
C20: 10 | G20: 0.6260846128 | H20: -22.97795637 | I20: 33.24856138 | J20: 20 | K20: 5.445088636 | L20: 0.05538681735 | M20: 3.173430875 | N20: 0.05544352364 | O20: -2111.243414 | P20: -126486.477 | Q20: -5662499.257 | R20: 4043914602 | S20: -29.7903575 | T20: 5.445088636 | U20: 0.05538681735 | V20: -128 | W20: -0.07658515379 | X20: ray10 | Y20: 10 | Z20: 98.2096425 | AA20: 5.445088636 | AB20: 13.03182262 | AC20: -0.07673523719 | AD20: 0.9970687902 | AE20: -0.07651031011 | AF20: 98.36047413 | AG20: 1 | AH20: -12.94317814 | AI20: -0.1315892207 | AJ20: -0.1319719711 | AK20: -0.07196878905 | AL20: -7.561436961 | AM20: -4.123507869 | AN20: -3.437929091 | AO20: -0.06000318209 | AP20: -0.07658515379 | AQ20: -0.004616364743 | AR20: 0.9999893446 | AS20: -0.004616397536 | AT20: 158.1495259 | AU20: -104.8154942 | AV20: 11010.66802 | AW20: 125.6411678 | AX20: 1839.092876 | AY20: 46.32586296 | AZ20: 16.53501184 | BA20: 46.32536934 | BB20: 5.231232315 | BC20: -0.2138563209 | BD20: 46.32586296 | BE20: 58.46498816 | BF20: -5.231232315 | BG20: 58.69855732 | BH20: 256.51 | BI20: 80.36047413 | BJ20: 46.32586296 | BK20: 58.69855732 | BL20: 321 | BM20: 0.110474126 | BN20: 0.139525874 | BO20: -29.84358478 | BP20: 5.449165077 | BQ20: 46.37910865 | BR20: 339 | BS20: 84.87376882 | BT20: 0.1237688236 | BU20: 0.1262311764 | BV20: 16.66124167 | BW20: 5.230649588 | BX20: 660 | BY20: 2127 | BZ20: 2466 | CA20: 16.53501184 | CB20: 16.66124167 | CC20: 440.3616072 | CD20: 8.013530346 | CE20: 0 | CF20: -32.75829988 | CG20: 440.3616072 | CH20: -32.75829988 | CI20: 2077 | CJ20: 2416 | CK20: 16.53501184 | CL20: 16.66124167 | CM20: 430.401561 | CN20: 8.013530346 | CO20: 0 | CP20: -31.86528273 | CQ20: 430.401561 | CR20: -31.86528273 | CS20: 2027 | CT20: 2366 | CU20: 16.53501184 | CV20: 16.66124167 | CW20: 420.4415148 | CX20: 8.013530346 | CY20: 0 | CZ20: -30.97226558 | DA20: 420.4415148 | DB20: -30.97226558 | DC20: 1977 | DD20: 2316 | DE20: 16.53501184 | DF20: 16.66124167 | DG20: 410.4814686 | DH20: 8.013530346 | DI20: 0 | DJ20: -30.07924844 | DK20: 410.4814686 | DL20: -30.07924844 | DM20: 1927 | DN20: 2266 | DO20: 16.53501184 | DP20: 16.66124167 | DQ20: 400.5214224 | DR20: 8.013530346 | DS20: 0 | DT20: -29.18623129 | DU20: 400.5214224 | DV20: -29.18623129 | DW20: 1877 | DX20: 2216 | DY20: 16.53501184 | DZ20: 16.66124167 | EA20: 390.5613761 | EB20: 8.013530346 | EC20: 0 | ED20: -28.29321414 | EE20: 390.5613761 | EF20: -28.29321414 | EG20: 1827 | EH20: 2166 | EI20: 16.53501184 | EJ20: 16.66124167 | EK20: 380.6013299 | EL20: 8.013530346 | EM20: 0 | EN20: -27.40019699 | EO20: 380.6013299 | EP20: -27.40019699 | EQ20: 1777 | ER20: 2116 | ES20: 16.53501184 | ET20: 16.66124167 | EU20: 370.6412837 | EV20: 8.013530346 | EW20: 0 | EX20: -26.50717984 | EY20: 370.6412837 | EZ20: -26.50717984 | FA20: 1727 | FB20: 2066 | FC20: 16.53501184 | FD20: 16.66124167 | FE20: 360.6812375 | FF20: 8.013530346 | FG20: 0 | FH20: -25.6141627 | FI20: 360.6812375 | FJ20: -25.6141627 | FK20: 1677 | FL20: 2016 | FM20: 16.53501184 | FN20: 16.66124167 | FO20: 350.7211913 | FP20: 8.013530346 | FQ20: 0 | FR20: -24.72114555 | FS20: 350.7211913 | FT20: -24.72114555 | FU20: 1627 | FV20: 1966 | FW20: 16.53501184 | FX20: 16.66124167 | FY20: 340.7611451 | FZ20: 8.013530346 | GA20: 0 | GB20: -23.8281284 | GC20: 340.7611451 | GD20: -23.8281284 | GE20: 1577 | GF20: 1916 | GG20: 16.53501184 | GH20: 16.66124167 | GI20: 330.8010989 | GJ20: 8.013530346 | GK20: 0 | GL20: -22.93511125 | GM20: 330.8010989 | GN20: -22.93511125 | GO20: 1527 | GP20: 1866 | GQ20: 16.53501184 | GR20: 16.66124167 | GS20: 320.8410527 | GT20: 8.013530346 | GU20: 0 | GV20: -22.04209411 | GW20: 320.8410527 | GX20: -22.04209411 | GY20: 1477 | GZ20: 1816 | HA20: 16.53501184 | HB20: 16.66124167 | HC20: 310.8810065 | HD20: 8.013530346 | HE20: 0 | HF20: -21.14907696 | HG20: 310.8810065 | HH20: -21.14907696 | HI20: 1427 | HJ20: 1766 | HK20: 16.53501184 | HL20: 16.66124167 | HM20: 300.9209603 | HN20: 8.013530346 | HO20: 0 | HP20: -20.25605981 | HQ20: 300.9209603 | HR20: -20.25605981 | HS20: 1377 | HT20: 1716 | HU20: 16.53501184 | HV20: 16.66124167 | HW20: 290.9609141 | HX20: 8.013530346 | HY20: 0 | HZ20: -19.36304266 | IA20: 290.9609141 | IB20: -19.36304266 | IC20: 1327 | ID20: 1666 | IE20: 16.53501184 | IF20: 16.66124167 | IG20: 281.0008679 | IH20: 8.013530346 | II20: 0 | IJ20: -18.47002551 | IK20: 281.0008679 | IL20: -18.47002551 | IM20: 1277 | IN20: 1616 | IO20: 16.53501184 | IP20: 16.66124167 | IQ20: 271.0408217 | IR20: 8.013530346 | IS20: 0 | IT20: -17.57700837 | IU20: 271.0408217 | IV20: -17.57700837 | IW20: 1227 | IX20: 1566 | IY20: 16.53501184 | IZ20: 16.66124167 | JA20: 261.0807755 | JB20: 8.013530346 | JC20: 0 | JD20: -16.68399122 | JE20: 261.0807755 | JF20: -16.68399122 | JG20: 1177 | JH20: 1516 | JI20: 16.53501184 | JJ20: 16.66124167 | JK20: 251.1207293 | JL20: 8.013530346 | JM20: 0 | JN20: -15.79097407 | JO20: 251.1207293 | JP20: -15.79097407 | JQ20: 1127 | JR20: 1466 | JS20: 16.53501184 | JT20: 16.66124167 | JU20: 241.1606831 | JV20: 8.013530346 | JW20: 0 | JX20: -14.89795692 | JY20: 241.1606831 | JZ20: -14.89795692 | KA20: 1077 | KB20: 1416 | KC20: 16.53501184 | KD20: 16.66124167 | KE20: 231.2006369 | KF20: 8.013530346 | KG20: 0 | KH20: -14.00493978 | KI20: 231.2006369 | KJ20: -14.00493978 | KK20: 1027 | KL20: 1366 | KM20: 16.53501184 | KN20: 16.66124167 | KO20: 221.2405907 | KP20: 8.013530346 | KQ20: 0 | KR20: -13.11192263 | KS20: 221.2405907 | KT20: -13.11192263 | KU20: 977 | KV20: 1316 | KW20: 16.53501184 | KX20: 16.66124167 | KY20: 211.2805445 | KZ20: 8.013530346 | LA20: 0 | LB20: -12.21890548 | LC20: 211.2805445 | LD20: -12.21890548 | LE20: 927 | LF20: 1266 | LG20: 16.53501184 | LH20: 16.66124167 | LI20: 201.3204983 | LJ20: 8.013530346 | LK20: 0 | LL20: -11.32588833 | LM20: 201.3204983 | LN20: -11.32588833 | LO20: 877 | LP20: 1216 | LQ20: 16.53501184 | LR20: 16.66124167 | LS20: 191.3604521 | LT20: 8.013530346 | LU20: 0 | LV20: -10.43287118 | LW20: 191.3604521 | LX20: -10.43287118 | LY20: 827 | LZ20: 1166 | MA20: 16.53501184 | MB20: 16.66124167 | MC20: 181.4004059 | MD20: 8.013530346 | ME20: 0 | MF20: -9.539854037 | MG20: 181.4004059 | MH20: -9.539854037 | MI20: 777 | MJ20: 1116 | MK20: 16.53501184 | ML20: 16.66124167 | MM20: 171.4403597 | MN20: 8.013530346 | MO20: 0 | MP20: -8.646836889 | MQ20: 171.4403597 | MR20: -8.646836889
C21: 11 | G21: 0.6086933735 | H21: -23.43228662 | I21: 32.04580453 | J21: 21 | K21: 0 | L21: 0 | M21: 0 | N21: 0 | O21: -2114.01 | P21: -126840.6 | Q21: -5707827 | R21: 4022134452 | S21: -30 | T21: 0 | U21: 0 | V21: -128 | W21: 0 | X21: ray11 | Y21: 11 | Z21: 98 | AA21: 0 | AC21: 0 | AD21: 1 | AE21: 0 | AF21: 98 | AG21: 1 | AH21: 0 | AI21: 0 | AJ21: 0 | AK21: 0 | AL21: 0 | AM21: 0 | AN21: 0 | AO21: 0 | AP21: 0 | AQ21: 0 | AR21: 1 | AS21: 0 | AT21: 158.51 | AU21: -105 | AV21: 11025 | AW21: 126.0108 | AX21: 1768.2025 | AY21: 47 | AZ21: 17 | BA21: 47 | BB21: 0 | BC21: 0 | BD21: 47 | BE21: 58 | BF21: 0 | BG21: 58 | BH21: 256.51 | BI21: 80 | BJ21: 47 | BK21: 58 | BL21: 320 | BM21: 0 | BN21: 0.25 | BO21: -30.13556495 | BP21: 0 | BQ21: 47.13556495 | BR21: 345 | BS21: 86.25808387 | BT21: 0.008083867288 | BU21: 0.2419161327 | BV21: 17.24191613 | BW21: 0 | BX21: 665 | BY21: 2122 | BZ21: 2467 | CA21: 17 | CB21: 17.24191613 | CC21: 441.6419161 | CD21: 0 | CE21: 0 | CF21: 0 | CG21: 441.6419161 | CH21: 0 | CI21: 2072 | CJ21: 2417 | CK21: 17 | CL21: 17.24191613 | CM21: 431.6419161 | CN21: 0 | CO21: 0 | CP21: 0 | CQ21: 431.6419161 | CR21: 0 | CS21: 2022 | CT21: 2367 | CU21: 17 | CV21: 17.24191613 | CW21: 421.6419161 | CX21: 0 | CY21: 0 | CZ21: 0 | DA21: 421.6419161 | DB21: 0 | DC21: 1972 | DD21: 2317 | DE21: 17 | DF21: 17.24191613 | DG21: 411.6419161 | DH21: 0 | DI21: 0 | DJ21: 0 | DK21: 411.6419161 | DL21: 0 | DM21: 1922 | DN21: 2267 | DO21: 17 | DP21: 17.24191613 | DQ21: 401.6419161 | DR21: 0 | DS21: 0 | DT21: 0 | DU21: 401.6419161 | DV21: 0 | DW21: 1872 | DX21: 2217 | DY21: 17 | DZ21: 17.24191613 | EA21: 391.6419161 | EB21: 0 | EC21: 0 | ED21: 0 | EE21: 391.6419161 | EF21: 0 | EG21: 1822 | EH21: 2167 | EI21: 17 | EJ21: 17.24191613 | EK21: 381.6419161 | EL21: 0 | EM21: 0 | EN21: 0 | EO21: 381.6419161 | EP21: 0 | EQ21: 1772 | ER21: 2117 | ES21: 17 | ET21: 17.24191613 | EU21: 371.6419161 | EV21: 0 | EW21: 0 | EX21: 0 | EY21: 371.6419161 | EZ21: 0 | FA21: 1722 | FB21: 2067 | FC21: 17 | FD21: 17.24191613 | FE21: 361.6419161 | FF21: 0 | FG21: 0 | FH21: 0 | FI21: 361.6419161 | FJ21: 0 | FK21: 1672 | FL21: 2017 | FM21: 17 | FN21: 17.24191613 | FO21: 351.6419161 | FP21: 0 | FQ21: 0 | FR21: 0 | FS21: 351.6419161 | FT21: 0 | FU21: 1622 | FV21: 1967 | FW21: 17 | FX21: 17.24191613 | FY21: 341.6419161 | FZ21: 0 | GA21: 0 | GB21: 0 | GC21: 341.6419161 | GD21: 0 | GE21: 1572 | GF21: 1917 | GG21: 17 | GH21: 17.24191613 | GI21: 331.6419161 | GJ21: 0 | GK21: 0 | GL21: 0 | GM21: 331.6419161 | GN21: 0 | GO21: 1522 | GP21: 1867 | GQ21: 17 | GR21: 17.24191613 | GS21: 321.6419161 | GT21: 0 | GU21: 0 | GV21: 0 | GW21: 321.6419161 | GX21: 0 | GY21: 1472 | GZ21: 1817 | HA21: 17 | HB21: 17.24191613 | HC21: 311.6419161 | HD21: 0 | HE21: 0 | HF21: 0 | HG21: 311.6419161 | HH21: 0 | HI21: 1422 | HJ21: 1767 | HK21: 17 | HL21: 17.24191613 | HM21: 301.6419161 | HN21: 0 | HO21: 0 | HP21: 0 | HQ21: 301.6419161 | HR21: 0 | HS21: 1372 | HT21: 1717 | HU21: 17 | HV21: 17.24191613 | HW21: 291.6419161 | HX21: 0 | HY21: 0 | HZ21: 0 | IA21: 291.6419161 | IB21: 0 | IC21: 1322 | ID21: 1667 | IE21: 17 | IF21: 17.24191613 | IG21: 281.6419161 | IH21: 0 | II21: 0 | IJ21: 0 | IK21: 281.6419161 | IL21: 0 | IM21: 1272 | IN21: 1617 | IO21: 17 | IP21: 17.24191613 | IQ21: 271.6419161 | IR21: 0 | IS21: 0 | IT21: 0 | IU21: 271.6419161 | IV21: 0 | IW21: 1222 | IX21: 1567 | IY21: 17 | IZ21: 17.24191613 | JA21: 261.6419161 | JB21: 0 | JC21: 0 | JD21: 0 | JE21: 261.6419161 | JF21: 0 | JG21: 1172 | JH21: 1517 | JI21: 17 | JJ21: 17.24191613 | JK21: 251.6419161 | JL21: 0 | JM21: 0 | JN21: 0 | JO21: 251.6419161 | JP21: 0 | JQ21: 1122 | JR21: 1467 | JS21: 17 | JT21: 17.24191613 | JU21: 241.6419161 | JV21: 0 | JW21: 0 | JX21: 0 | JY21: 241.6419161 | JZ21: 0 | KA21: 1072 | KB21: 1417 | KC21: 17 | KD21: 17.24191613 | KE21: 231.6419161 | KF21: 0 | KG21: 0 | KH21: 0 | KI21: 231.6419161 | KJ21: 0 | KK21: 1022 | KL21: 1367 | KM21: 17 | KN21: 17.24191613 | KO21: 221.6419161 | KP21: 0 | KQ21: 0 | KR21: 0 | KS21: 221.6419161 | KT21: 0 | KU21: 972 | KV21: 1317 | KW21: 17 | KX21: 17.24191613 | KY21: 211.6419161 | KZ21: 0 | LA21: 0 | LB21: 0 | LC21: 211.6419161 | LD21: 0 | LE21: 922 | LF21: 1267 | LG21: 17 | LH21: 17.24191613 | LI21: 201.6419161 | LJ21: 0 | LK21: 0 | LL21: 0 | LM21: 201.6419161 | LN21: 0 | LO21: 872 | LP21: 1217 | LQ21: 17 | LR21: 17.24191613 | LS21: 191.6419161 | LT21: 0 | LU21: 0 | LV21: 0 | LW21: 191.6419161 | LX21: 0 | LY21: 822 | LZ21: 1167 | MA21: 17 | MB21: 17.24191613 | MC21: 181.6419161 | MD21: 0 | ME21: 0 | MF21: 0 | MG21: 181.6419161 | MH21: 0 | MI21: 772 | MJ21: 1117 | MK21: 17 | ML21: 17.24191613 | MM21: 171.6419161 | MN21: 0 | MO21: 0 | MP21: 0 | MQ21: 171.6419161 | MR21: 0
C22: 12 | G22: 0.5913021343 | H22: -23.86480456 | I22: 30.87185924 | J22: 22 | K22: -5.445088636 | L22: -0.05538681735 | M22: -3.173430875 | N22: -0.05544352364 | O22: -2111.243414 | P22: -126486.477 | Q22: -5662499.257 | R22: 4043914602 | S22: -29.7903575 | T22: -5.445088636 | U22: -0.05538681735 | V22: -128 | W22: 0.07658515379 | X22: ray12 | Y22: 12 | Z22: 98.2096425 | AA22: -5.445088636 | AB22: -13.03182262 | AC22: 0.07673523719 | AD22: 0.9970687902 | AE22: 0.07651031011 | AF22: 98.36047413 | AG22: 1 | AH22: 12.94317814 | AI22: 0.1315892207 | AJ22: 0.1319719711 | AK22: 0.07196878905 | AL22: 7.561436961 | AM22: 4.123507869 | AN22: 3.437929091 | AO22: 0.06000318209 | AP22: 0.07658515379 | AQ22: 0.004616364743 | AR22: 0.9999893446 | AS22: 0.004616397536 | AT22: 158.1495259 | AU22: -104.8154942 | AV22: 11010.66802 | AW22: 125.6411678 | AX22: 1839.092876 | AY22: 46.32586296 | AZ22: 16.53501184 | BA22: 46.32536934 | BB22: -5.231232315 | BC22: 0.2138563209 | BD22: 46.32586296 | BE22: 58.46498816 | BF22: 5.231232315 | BG22: 58.69855732 | BH22: 256.51 | BI22: 80.36047413 | BJ22: 46.32586296 | BK22: 58.69855732 | BL22: 321 | BM22: 0.110474126 | BN22: 0.139525874 | BO22: -29.84358478 | BP22: -5.449165077 | BQ22: 46.37910865 | BR22: 339 | BS22: 84.87376882 | BT22: 0.1237688236 | BU22: 0.1262311764 | BV22: 16.66124167 | BW22: -5.230649588 | BX22: 660 | BY22: 2127 | BZ22: 2466 | CA22: 16.53501184 | CB22: 16.66124167 | CC22: 440.3616072 | CD22: -8.013530346 | CE22: 0 | CF22: 32.75829988 | CG22: 440.3616072 | CH22: 32.75829988 | CI22: 2077 | CJ22: 2416 | CK22: 16.53501184 | CL22: 16.66124167 | CM22: 430.401561 | CN22: -8.013530346 | CO22: 0 | CP22: 31.86528273 | CQ22: 430.401561 | CR22: 31.86528273 | CS22: 2027 | CT22: 2366 | CU22: 16.53501184 | CV22: 16.66124167 | CW22: 420.4415148 | CX22: -8.013530346 | CY22: 0 | CZ22: 30.97226558 | DA22: 420.4415148 | DB22: 30.97226558 | DC22: 1977 | DD22: 2316 | DE22: 16.53501184 | DF22: 16.66124167 | DG22: 410.4814686 | DH22: -8.013530346 | DI22: 0 | DJ22: 30.07924844 | DK22: 410.4814686 | DL22: 30.07924844 | DM22: 1927 | DN22: 2266 | DO22: 16.53501184 | DP22: 16.66124167 | DQ22: 400.5214224 | DR22: -8.013530346 | DS22: 0 | DT22: 29.18623129 | DU22: 400.5214224 | DV22: 29.18623129 | DW22: 1877 | DX22: 2216 | DY22: 16.53501184 | DZ22: 16.66124167 | EA22: 390.5613761 | EB22: -8.013530346 | EC22: 0 | ED22: 28.29321414 | EE22: 390.5613761 | EF22: 28.29321414 | EG22: 1827 | EH22: 2166 | EI22: 16.53501184 | EJ22: 16.66124167 | EK22: 380.6013299 | EL22: -8.013530346 | EM22: 0 | EN22: 27.40019699 | EO22: 380.6013299 | EP22: 27.40019699 | EQ22: 1777 | ER22: 2116 | ES22: 16.53501184 | ET22: 16.66124167 | EU22: 370.6412837 | EV22: -8.013530346 | EW22: 0 | EX22: 26.50717984 | EY22: 370.6412837 | EZ22: 26.50717984 | FA22: 1727 | FB22: 2066 | FC22: 16.53501184 | FD22: 16.66124167 | FE22: 360.6812375 | FF22: -8.013530346 | FG22: 0 | FH22: 25.6141627 | FI22: 360.6812375 | FJ22: 25.6141627 | FK22: 1677 | FL22: 2016 | FM22: 16.53501184 | FN22: 16.66124167 | FO22: 350.7211913 | FP22: -8.013530346 | FQ22: 0 | FR22: 24.72114555 | FS22: 350.7211913 | FT22: 24.72114555 | FU22: 1627 | FV22: 1966 | FW22: 16.53501184 | FX22: 16.66124167 | FY22: 340.7611451 | FZ22: -8.013530346 | GA22: 0 | GB22: 23.8281284 | GC22: 340.7611451 | GD22: 23.8281284 | GE22: 1577 | GF22: 1916 | GG22: 16.53501184 | GH22: 16.66124167 | GI22: 330.8010989 | GJ22: -8.013530346 | GK22: 0 | GL22: 22.93511125 | GM22: 330.8010989 | GN22: 22.93511125 | GO22: 1527 | GP22: 1866 | GQ22: 16.53501184 | GR22: 16.66124167 | GS22: 320.8410527 | GT22: -8.013530346 | GU22: 0 | GV22: 22.04209411 | GW22: 320.8410527 | GX22: 22.04209411 | GY22: 1477 | GZ22: 1816 | HA22: 16.53501184 | HB22: 16.66124167 | HC22: 310.8810065 | HD22: -8.013530346 | HE22: 0 | HF22: 21.14907696 | HG22: 310.8810065 | HH22: 21.14907696 | HI22: 1427 | HJ22: 1766 | HK22: 16.53501184 | HL22: 16.66124167 | HM22: 300.9209603 | HN22: -8.013530346 | HO22: 0 | HP22: 20.25605981 | HQ22: 300.9209603 | HR22: 20.25605981 | HS22: 1377 | HT22: 1716 | HU22: 16.53501184 | HV22: 16.66124167 | HW22: 290.9609141 | HX22: -8.013530346 | HY22: 0 | HZ22: 19.36304266 | IA22: 290.9609141 | IB22: 19.36304266 | IC22: 1327 | ID22: 1666 | IE22: 16.53501184 | IF22: 16.66124167 | IG22: 281.0008679 | IH22: -8.013530346 | II22: 0 | IJ22: 18.47002551 | IK22: 281.0008679 | IL22: 18.47002551 | IM22: 1277 | IN22: 1616 | IO22: 16.53501184 | IP22: 16.66124167 | IQ22: 271.0408217 | IR22: -8.013530346 | IS22: 0 | IT22: 17.57700837 | IU22: 271.0408217 | IV22: 17.57700837 | IW22: 1227 | IX22: 1566 | IY22: 16.53501184 | IZ22: 16.66124167 | JA22: 261.0807755 | JB22: -8.013530346 | JC22: 0 | JD22: 16.68399122 | JE22: 261.0807755 | JF22: 16.68399122 | JG22: 1177 | JH22: 1516 | JI22: 16.53501184 | JJ22: 16.66124167 | JK22: 251.1207293 | JL22: -8.013530346 | JM22: 0 | JN22: 15.79097407 | JO22: 251.1207293 | JP22: 15.79097407 | JQ22: 1127 | JR22: 1466 | JS22: 16.53501184 | JT22: 16.66124167 | JU22: 241.1606831 | JV22: -8.013530346 | JW22: 0 | JX22: 14.89795692 | JY22: 241.1606831 | JZ22: 14.89795692 | KA22: 1077 | KB22: 1416 | KC22: 16.53501184 | KD22: 16.66124167 | KE22: 231.2006369 | KF22: -8.013530346 | KG22: 0 | KH22: 14.00493978 | KI22: 231.2006369 | KJ22: 14.00493978 | KK22: 1027 | KL22: 1366 | KM22: 16.53501184 | KN22: 16.66124167 | KO22: 221.2405907 | KP22: -8.013530346 | KQ22: 0 | KR22: 13.11192263 | KS22: 221.2405907 | KT22: 13.11192263 | KU22: 977 | KV22: 1316 | KW22: 16.53501184 | KX22: 16.66124167 | KY22: 211.2805445 | KZ22: -8.013530346 | LA22: 0 | LB22: 12.21890548 | LC22: 211.2805445 | LD22: 12.21890548 | LE22: 927 | LF22: 1266 | LG22: 16.53501184 | LH22: 16.66124167 | LI22: 201.3204983 | LJ22: -8.013530346 | LK22: 0 | LL22: 11.32588833 | LM22: 201.3204983 | LN22: 11.32588833 | LO22: 877 | LP22: 1216 | LQ22: 16.53501184 | LR22: 16.66124167 | LS22: 191.3604521 | LT22: -8.013530346 | LU22: 0 | LV22: 10.43287118 | LW22: 191.3604521 | LX22: 10.43287118 | LY22: 827 | LZ22: 1166 | MA22: 16.53501184 | MB22: 16.66124167 | MC22: 181.4004059 | MD22: -8.013530346 | ME22: 0 | MF22: 9.539854037 | MG22: 181.4004059 | MH22: 9.539854037 | MI22: 777 | MJ22: 1116 | MK22: 16.53501184 | ML22: 16.66124167 | MM22: 171.4403597 | MN22: -8.013530346 | MO22: 0 | MP22: 8.646836889 | MQ22: 171.4403597 | MR22: 8.646836889
C23: 13 | G23: 0.5739108951 | H23: -24.27653241 | I23: 29.72501705 | J23: 23 | K23: -10.89017727 | L23: -0.1097482271 | M23: -6.288110224 | N23: -0.1101909876 | O23: -2103.082152 | P23: -125441.8354 | Q23: -5528785.132 | R23: 4108164739 | S23: -29.16998216 | T23: -10.89017727 | U23: -0.1097482271 | V23: -128 | W23: 0.1492637879 | X23: ray13 | Y23: 13 | Z23: 98.83001784 | AA23: -10.89017727 | AB23: -6.649719936 | AC23: 0.1503822732 | AD23: 0.9888808281 | AE23: 0.1487101468 | AF23: 99.4282072 | AG23: 1 | AH23: 25.46611398 | AI23: 0.2561256479 | AJ23: 0.2590120151 | AK23: 0.1404203811 | AL23: 14.84029531 | AM23: 8.045495196 | AN23: 6.794800112 | AO23: 0.118591634 | AP23: 0.1492637879 | AQ23: 0.008843406818 | AR23: 0.9999608973 | AS23: 0.00884363736 | AT23: 157.0817928 | AU23: -104.2662909 | AV23: 10969.98114 | AW23: 124.5499717 | AX23: 2053.789762 | AY23: 44.35244872 | AZ23: 15.18073226 | BA23: 44.35071442 | BB23: -10.49795564 | BC23: 0.392221635 | BD23: 44.35244872 | BE23: 59.81926774 | BF23: 10.49795564 | BG23: 60.73344931 | BH23: 256.51 | BI23: 81.4282072 | BJ23: 44.35244872 | BK23: 60.73344931 | BL23: 325 | BM23: 0.178207201 | BN23: 0.07179279899 | BO23: -29.13340814 | BP23: -10.88471804 | BQ23: 44.31582815 | BR23: 324 | BS23: 81.09796552 | BT23: 0.09796551939 | BU23: 0.1520344806 | BV23: 15.3327608 | BW23: -10.49661115 | BX23: 649 | BY23: 2138 | BZ23: 2462 | CA23: 15.18073226 | CB23: 15.3327608 | CC23: 436.4658928 | CD23: -15.77722629 | CE23: 0 | CF23: 63.58877957 | CG23: 436.4658928 | CH23: 63.58877957 | CI23: 2088 | CJ23: 2412 | CK23: 15.18073226 | CL23: 15.3327608 | CM23: 426.6171292 | CN23: -15.77722629 | CO23: 0 | CP23: 61.85619326 | CQ23: 426.6171292 | CR23: 61.85619326 | CS23: 2038 | CT23: 2362 | CU23: 15.18073226 | CV23: 15.3327608 | CW23: 416.7683656 | CX23: -15.77722629 | CY23: 0 | CZ23: 60.12360695 | DA23: 416.7683656 | DB23: 60.12360695 | DC23: 1988 | DD23: 2312 | DE23: 15.18073226 | DF23: 15.3327608 | DG23: 406.919602 | DH23: -15.77722629 | DI23: 0 | DJ23: 58.39102063 | DK23: 406.919602 | DL23: 58.39102063 | DM23: 1938 | DN23: 2262 | DO23: 15.18073226 | DP23: 15.3327608 | DQ23: 397.0708384 | DR23: -15.77722629 | DS23: 0 | DT23: 56.65843432 | DU23: 397.0708384 | DV23: 56.65843432 | DW23: 1888 | DX23: 2212 | DY23: 15.18073226 | DZ23: 15.3327608 | EA23: 387.2220748 | EB23: -15.77722629 | EC23: 0 | ED23: 54.92584801 | EE23: 387.2220748 | EF23: 54.92584801 | EG23: 1838 | EH23: 2162 | EI23: 15.18073226 | EJ23: 15.3327608 | EK23: 377.3733111 | EL23: -15.77722629 | EM23: 0 | EN23: 53.1932617 | EO23: 377.3733111 | EP23: 53.1932617 | EQ23: 1788 | ER23: 2112 | ES23: 15.18073226 | ET23: 15.3327608 | EU23: 367.5245475 | EV23: -15.77722629 | EW23: 0 | EX23: 51.46067538 | EY23: 367.5245475 | EZ23: 51.46067538 | FA23: 1738 | FB23: 2062 | FC23: 15.18073226 | FD23: 15.3327608 | FE23: 357.6757839 | FF23: -15.77722629 | FG23: 0 | FH23: 49.72808907 | FI23: 357.6757839 | FJ23: 49.72808907 | FK23: 1688 | FL23: 2012 | FM23: 15.18073226 | FN23: 15.3327608 | FO23: 347.8270203 | FP23: -15.77722629 | FQ23: 0 | FR23: 47.99550276 | FS23: 347.8270203 | FT23: 47.99550276 | FU23: 1638 | FV23: 1962 | FW23: 15.18073226 | FX23: 15.3327608 | FY23: 337.9782567 | FZ23: -15.77722629 | GA23: 0 | GB23: 46.26291645 | GC23: 337.9782567 | GD23: 46.26291645 | GE23: 1588 | GF23: 1912 | GG23: 15.18073226 | GH23: 15.3327608 | GI23: 328.1294931 | GJ23: -15.77722629 | GK23: 0 | GL23: 44.53033013 | GM23: 328.1294931 | GN23: 44.53033013 | GO23: 1538 | GP23: 1862 | GQ23: 15.18073226 | GR23: 15.3327608 | GS23: 318.2807295 | GT23: -15.77722629 | GU23: 0 | GV23: 42.79774382 | GW23: 318.2807295 | GX23: 42.79774382 | GY23: 1488 | GZ23: 1812 | HA23: 15.18073226 | HB23: 15.3327608 | HC23: 308.4319659 | HD23: -15.77722629 | HE23: 0 | HF23: 41.06515751 | HG23: 308.4319659 | HH23: 41.06515751 | HI23: 1438 | HJ23: 1762 | HK23: 15.18073226 | HL23: 15.3327608 | HM23: 298.5832023 | HN23: -15.77722629 | HO23: 0 | HP23: 39.3325712 | HQ23: 298.5832023 | HR23: 39.3325712 | HS23: 1388 | HT23: 1712 | HU23: 15.18073226 | HV23: 15.3327608 | HW23: 288.7344386 | HX23: -15.77722629 | HY23: 0 | HZ23: 37.59998488 | IA23: 288.7344386 | IB23: 37.59998488 | IC23: 1338 | ID23: 1662 | IE23: 15.18073226 | IF23: 15.3327608 | IG23: 278.885675 | IH23: -15.77722629 | II23: 0 | IJ23: 35.86739857 | IK23: 278.885675 | IL23: 35.86739857 | IM23: 1288 | IN23: 1612 | IO23: 15.18073226 | IP23: 15.3327608 | IQ23: 269.0369114 | IR23: -15.77722629 | IS23: 0 | IT23: 34.13481226 | IU23: 269.0369114 | IV23: 34.13481226 | IW23: 1238 | IX23: 1562 | IY23: 15.18073226 | IZ23: 15.3327608 | JA23: 259.1881478 | JB23: -15.77722629 | JC23: 0 | JD23: 32.40222595 | JE23: 259.1881478 | JF23: 32.40222595 | JG23: 1188 | JH23: 1512 | JI23: 15.18073226 | JJ23: 15.3327608 | JK23: 249.3393842 | JL23: -15.77722629 | JM23: 0 | JN23: 30.66963963 | JO23: 249.3393842 | JP23: 30.66963963 | JQ23: 1138 | JR23: 1462 | JS23: 15.18073226 | JT23: 15.3327608 | JU23: 239.4906206 | JV23: -15.77722629 | JW23: 0 | JX23: 28.93705332 | JY23: 239.4906206 | JZ23: 28.93705332 | KA23: 1088 | KB23: 1412 | KC23: 15.18073226 | KD23: 15.3327608 | KE23: 229.641857 | KF23: -15.77722629 | KG23: 0 | KH23: 27.20446701 | KI23: 229.641857 | KJ23: 27.20446701 | KK23: 1038 | KL23: 1362 | KM23: 15.18073226 | KN23: 15.3327608 | KO23: 219.7930934 | KP23: -15.77722629 | KQ23: 0 | KR23: 25.4718807 | KS23: 219.7930934 | KT23: 25.4718807 | KU23: 988 | KV23: 1312 | KW23: 15.18073226 | KX23: 15.3327608 | KY23: 209.9443298 | KZ23: -15.77722629 | LA23: 0 | LB23: 23.73929438 | LC23: 209.9443298 | LD23: 23.73929438 | LE23: 938 | LF23: 1262 | LG23: 15.18073226 | LH23: 15.3327608 | LI23: 200.0955661 | LJ23: -15.77722629 | LK23: 0 | LL23: 22.00670807 | LM23: 200.0955661 | LN23: 22.00670807 | LO23: 888 | LP23: 1212 | LQ23: 15.18073226 | LR23: 15.3327608 | LS23: 190.2468025 | LT23: -15.77722629 | LU23: 0 | LV23: 20.27412176 | LW23: 190.2468025 | LX23: 20.27412176 | LY23: 838 | LZ23: 1162 | MA23: 15.18073226 | MB23: 15.3327608 | MC23: 180.3980389 | MD23: -15.77722629 | ME23: 0 | MF23: 18.54153545 | MG23: 180.3980389 | MH23: 18.54153545 | MI23: 788 | MJ23: 1112 | MK23: 15.18073226 | ML23: 15.3327608 | MM23: 170.5492753 | MN23: -15.77722629 | MO23: 0 | MP23: 16.80894913 | MQ23: 170.5492753 | MR23: 16.80894913
C24: 14 | G24: 0.5565196558 | H24: -24.66841786 | I24: 28.60367957 | J24: 24 | K24: -16.33526591 | L24: -0.1621820731 | M24: -9.292348299 | N24: -0.1636191545 | O24: -2089.915895 | P24: -123756.5546 | Q24: -5313069.185 | R24: 4211817058 | S24: -28.16287544 | T24: -16.33526591 | U24: -0.1621820731 | V24: -128 | W24: 0.2150597614 | X24: ray14 | Y24: 14 | Z24: 99.83712456 | AA24: -16.33526591 | AB24: -4.577961712 | AC24: 0.2184378252 | AD24: 0.9769636425 | AE24: 0.2134058133 | AF24: 101.1646794 | AG24: 1 | AH24: 37.26478365 | AI24: 0.3683576509 | AJ24: 0.3772418344 | AK24: 0.2026729979 | AL24: 21.61436497 | AM24: 11.6123074 | AN24: 10.00205757 | AO24: 0.1745688365 | AP24: 0.2150597614 | AQ24: 0.01238676345 | AR24: 0.999923285 | AS24: 0.01238739699 | AT24: 155.3453206 | AU24: -103.3652269 | AV24: 10909.41978 | AW24: 122.7861599 | AX24: 2417.65296 | AY24: 41.20942977 | AZ24: 13.04339294 | BA24: 41.20626839 | BB24: -15.8248275 | BC24: 0.5104384051 | BD24: 41.20942977 | BE24: 61.95660706 | BF24: 15.8248275 | BG24: 63.94565133 | BH24: 256.51 | BI24: 83.16467937 | BJ24: 41.20942977 | BK24: 63.94565133 | BL24: 332 | BM24: 0.1646793692 | BN24: 0.08532063077 | BO24: -28.20636507 | BP24: -16.34461905 | BQ24: 41.25303285 | BR24: 301 | BS24: 75.49305012 | BT24: 0.2430501219 | BU24: 0.006949878096 | BV24: 13.05034229 | BW24: -15.82474142 | BX24: 633 | BY24: 2154 | BZ24: 2455 | CA24: 13.04339294 | CB24: 13.05034229 | CC24: 430.4474801 | CD24: -23.0774007 | CE24: 0 | CF24: 90.79734525 | CG24: 430.4474801 | CH24: 90.79734525 | CI24: 2104 | CJ24: 2405 | CK24: 13.04339294 | CL24: 13.05034229 | CM24: 420.7585957 | CN24: -23.0774007 | CO24: 0 | CP24: 88.32236645 | CQ24: 420.7585957 | CR24: 88.32236645 | CS24: 2054 | CT24: 2355 | CU24: 13.04339294 | CV24: 13.05034229 | CW24: 411.0697114 | CX24: -23.0774007 | CY24: 0 | CZ24: 85.84738766 | DA24: 411.0697114 | DB24: 85.84738766 | DC24: 2004 | DD24: 2305 | DE24: 13.04339294 | DF24: 13.05034229 | DG24: 401.380827 | DH24: -23.0774007 | DI24: 0 | DJ24: 83.37240886 | DK24: 401.380827 | DL24: 83.37240886 | DM24: 1954 | DN24: 2255 | DO24: 13.04339294 | DP24: 13.05034229 | DQ24: 391.6919427 | DR24: -23.0774007 | DS24: 0 | DT24: 80.89743006 | DU24: 391.6919427 | DV24: 80.89743006 | DW24: 1904 | DX24: 2205 | DY24: 13.04339294 | DZ24: 13.05034229 | EA24: 382.0030583 | EB24: -23.0774007 | EC24: 0 | ED24: 78.42245126 | EE24: 382.0030583 | EF24: 78.42245126 | EG24: 1854 | EH24: 2155 | EI24: 13.04339294 | EJ24: 13.05034229 | EK24: 372.314174 | EL24: -23.0774007 | EM24: 0 | EN24: 75.94747246 | EO24: 372.314174 | EP24: 75.94747246 | EQ24: 1804 | ER24: 2105 | ES24: 13.04339294 | ET24: 13.05034229 | EU24: 362.6252896 | EV24: -23.0774007 | EW24: 0 | EX24: 73.47249366 | EY24: 362.6252896 | EZ24: 73.47249366 | FA24: 1754 | FB24: 2055 | FC24: 13.04339294 | FD24: 13.05034229 | FE24: 352.9364053 | FF24: -23.0774007 | FG24: 0 | FH24: 70.99751486 | FI24: 352.9364053 | FJ24: 70.99751486 | FK24: 1704 | FL24: 2005 | FM24: 13.04339294 | FN24: 13.05034229 | FO24: 343.2475209 | FP24: -23.0774007 | FQ24: 0 | FR24: 68.52253606 | FS24: 343.2475209 | FT24: 68.52253606 | FU24: 1654 | FV24: 1955 | FW24: 13.04339294 | FX24: 13.05034229 | FY24: 333.5586366 | FZ24: -23.0774007 | GA24: 0 | GB24: 66.04755726 | GC24: 333.5586366 | GD24: 66.04755726 | GE24: 1604 | GF24: 1905 | GG24: 13.04339294 | GH24: 13.05034229 | GI24: 323.8697522 | GJ24: -23.0774007 | GK24: 0 | GL24: 63.57257846 | GM24: 323.8697522 | GN24: 63.57257846 | GO24: 1554 | GP24: 1855 | GQ24: 13.04339294 | GR24: 13.05034229 | GS24: 314.1808679 | GT24: -23.0774007 | GU24: 0 | GV24: 61.09759966 | GW24: 314.1808679 | GX24: 61.09759966 | GY24: 1504 | GZ24: 1805 | HA24: 13.04339294 | HB24: 13.05034229 | HC24: 304.4919835 | HD24: -23.0774007 | HE24: 0 | HF24: 58.62262086 | HG24: 304.4919835 | HH24: 58.62262086 | HI24: 1454 | HJ24: 1755 | HK24: 13.04339294 | HL24: 13.05034229 | HM24: 294.8030992 | HN24: -23.0774007 | HO24: 0 | HP24: 56.14764206 | HQ24: 294.8030992 | HR24: 56.14764206 | HS24: 1404 | HT24: 1705 | HU24: 13.04339294 | HV24: 13.05034229 | HW24: 285.1142148 | HX24: -23.0774007 | HY24: 0 | HZ24: 53.67266327 | IA24: 285.1142148 | IB24: 53.67266327 | IC24: 1354 | ID24: 1655 | IE24: 13.04339294 | IF24: 13.05034229 | IG24: 275.4253305 | IH24: -23.0774007 | II24: 0 | IJ24: 51.19768447 | IK24: 275.4253305 | IL24: 51.19768447 | IM24: 1304 | IN24: 1605 | IO24: 13.04339294 | IP24: 13.05034229 | IQ24: 265.7364461 | IR24: -23.0774007 | IS24: 0 | IT24: 48.72270567 | IU24: 265.7364461 | IV24: 48.72270567 | IW24: 1254 | IX24: 1555 | IY24: 13.04339294 | IZ24: 13.05034229 | JA24: 256.0475618 | JB24: -23.0774007 | JC24: 0 | JD24: 46.24772687 | JE24: 256.0475618 | JF24: 46.24772687 | JG24: 1204 | JH24: 1505 | JI24: 13.04339294 | JJ24: 13.05034229 | JK24: 246.3586774 | JL24: -23.0774007 | JM24: 0 | JN24: 43.77274807 | JO24: 246.3586774 | JP24: 43.77274807 | JQ24: 1154 | JR24: 1455 | JS24: 13.04339294 | JT24: 13.05034229 | JU24: 236.6697931 | JV24: -23.0774007 | JW24: 0 | JX24: 41.29776927 | JY24: 236.6697931 | JZ24: 41.29776927 | KA24: 1104 | KB24: 1405 | KC24: 13.04339294 | KD24: 13.05034229 | KE24: 226.9809087 | KF24: -23.0774007 | KG24: 0 | KH24: 38.82279047 | KI24: 226.9809087 | KJ24: 38.82279047 | KK24: 1054 | KL24: 1355 | KM24: 13.04339294 | KN24: 13.05034229 | KO24: 217.2920244 | KP24: -23.0774007 | KQ24: 0 | KR24: 36.34781167 | KS24: 217.2920244 | KT24: 36.34781167 | KU24: 1004 | KV24: 1305 | KW24: 13.04339294 | KX24: 13.05034229 | KY24: 207.60314 | KZ24: -23.0774007 | LA24: 0 | LB24: 33.87283287 | LC24: 207.60314 | LD24: 33.87283287 | LE24: 954 | LF24: 1255 | LG24: 13.04339294 | LH24: 13.05034229 | LI24: 197.9142557 | LJ24: -23.0774007 | LK24: 0 | LL24: 31.39785407 | LM24: 197.9142557 | LN24: 31.39785407 | LO24: 904 | LP24: 1205 | LQ24: 13.04339294 | LR24: 13.05034229 | LS24: 188.2253713 | LT24: -23.0774007 | LU24: 0 | LV24: 28.92287527 | LW24: 188.2253713 | LX24: 28.92287527 | LY24: 854 | LZ24: 1155 | MA24: 13.04339294 | MB24: 13.05034229 | MC24: 178.536487 | MD24: -23.0774007 | ME24: 0 | MF24: 26.44789647 | MG24: 178.536487 | MH24: 26.44789647 | MI24: 804 | MJ24: 1105 | MK24: 13.04339294 | ML24: 13.05034229 | MM24: 168.8476026 | MN24: -23.0774007 | MO24: 0 | MP24: 23.97291767 | MQ24: 168.8476026 | MR24: 23.97291767
C25: 15 | G25: 0.5391284166 | H25: -25.04134022 | I25: 27.50634893 | J25: 25 | K25: -21.78035454 | L25: -0.2119958573 | M25: -12.14646789 | N25: -0.2152298636 | O25: -2072.318495 | P25: -121504.0874 | Q25: -5024753.386 | R25: 4350353877 | S25: -26.80421714 | T25: -21.78035454 | U25: -0.2119958573 | V25: -128 | W25: 0.2723872568 | X25: ray15 | Y25: 15 | Z25: 101.1957829 | AA25: -21.78035454 | AB25: -3.579995643 | AC25: 0.2793299489 | AD25: 0.9631313943 | AE25: 0.2690314431 | AF25: 103.5131408 | AG25: 1 | AH25: 48.20219074 | AI25: 0.4656625273 | AJ25: 0.4843831141 | AK25: 0.2572896931 | AL25: 27.7531081 | AM25: 14.74161352 | AN25: 13.01149458 | AO25: 0.227093421 | AP25: 0.2723872568 | AQ25: 0.01509756378 | AR25: 0.9998860339 | AS25: 0.01509871098 | AT25: 152.9968592 | AU25: -102.1330724 | AV25: 10838.48247 | AW25: 120.4195138 | AX25: 2937.652744 | AY25: 37.06862752 | AZ25: 10.26018582 | BA25: 37.06440296 | BB25: -21.22072983 | BC25: 0.5596247077 | BD25: 37.06862752 | BE25: 64.73981418 | BF25: 21.22072983 | BG25: 68.12901669 | BH25: 256.51 | BI25: 85.51314078 | BJ25: 37.06862752 | BK25: 68.12901669 | BL25: 342 | BM25: 0.01314077738 | BN25: 0.2368592226 | BO25: -26.69967005 | BP25: -21.75186955 | BQ25: 36.96367211 | BR25: 270 | BS25: 67.64351996 | BT25: 0.1435199567 | BU25: 0.1064800433 | BV25: 10.36665373 | BW25: -21.21912231 | BX25: 612 | BY25: 2175 | BZ25: 2445 | CA25: 10.26018582 | CB25: 10.36665373 | CC25: 423.6637299 | CD25: -29.75772094 | CE25: 0 | CF25: 114.4662741 | CG25: 423.6637299 | CH25: 114.4662741 | CI25: 2125 | CJ25: 2395 | CK25: 10.26018582 | CL25: 10.36665373 | CM25: 414.1626477 | CN25: -29.75772094 | CO25: 0 | CP25: 111.3470696 | CQ25: 414.1626477 | CR25: 111.3470696 | CS25: 2075 | CT25: 2345 | CU25: 10.26018582 | CV25: 10.36665373 | CW25: 404.6615655 | CX25: -29.75772094 | CY25: 0 | CZ25: 108.2278651 | DA25: 404.6615655 | DB25: 108.2278651 | DC25: 2025 | DD25: 2295 | DE25: 10.26018582 | DF25: 10.36665373 | DG25: 395.1604833 | DH25: -29.75772094 | DI25: 0 | DJ25: 105.1086605 | DK25: 395.1604833 | DL25: 105.1086605 | DM25: 1975 | DN25: 2245 | DO25: 10.26018582 | DP25: 10.36665373 | DQ25: 385.6594011 | DR25: -29.75772094 | DS25: 0 | DT25: 101.989456 | DU25: 385.6594011 | DV25: 101.989456 | DW25: 1925 | DX25: 2195 | DY25: 10.26018582 | DZ25: 10.36665373 | EA25: 376.1583189 | EB25: -29.75772094 | EC25: 0 | ED25: 98.87025152 | EE25: 376.1583189 | EF25: 98.87025152 | EG25: 1875 | EH25: 2145 | EI25: 10.26018582 | EJ25: 10.36665373 | EK25: 366.6572367 | EL25: -29.75772094 | EM25: 0 | EN25: 95.751047 | EO25: 366.6572367 | EP25: 95.751047 | EQ25: 1825 | ER25: 2095 | ES25: 10.26018582 | ET25: 10.36665373 | EU25: 357.1561545 | EV25: -29.75772094 | EW25: 0 | EX25: 92.63184249 | EY25: 357.1561545 | EZ25: 92.63184249 | FA25: 1775 | FB25: 2045 | FC25: 10.26018582 | FD25: 10.36665373 | FE25: 347.6550722 | FF25: -29.75772094 | FG25: 0 | FH25: 89.51263797 | FI25: 347.6550722 | FJ25: 89.51263797 | FK25: 1725 | FL25: 1995 | FM25: 10.26018582 | FN25: 10.36665373 | FO25: 338.15399 | FP25: -29.75772094 | FQ25: 0 | FR25: 86.39343346 | FS25: 338.15399 | FT25: 86.39343346 | FU25: 1675 | FV25: 1945 | FW25: 10.26018582 | FX25: 10.36665373 | FY25: 328.6529078 | FZ25: -29.75772094 | GA25: 0 | GB25: 83.27422894 | GC25: 328.6529078 | GD25: 83.27422894 | GE25: 1625 | GF25: 1895 | GG25: 10.26018582 | GH25: 10.36665373 | GI25: 319.1518256 | GJ25: -29.75772094 | GK25: 0 | GL25: 80.15502443 | GM25: 319.1518256 | GN25: 80.15502443 | GO25: 1575 | GP25: 1845 | GQ25: 10.26018582 | GR25: 10.36665373 | GS25: 309.6507434 | GT25: -29.75772094 | GU25: 0 | GV25: 77.03581991 | GW25: 309.6507434 | GX25: 77.03581991 | GY25: 1525 | GZ25: 1795 | HA25: 10.26018582 | HB25: 10.36665373 | HC25: 300.1496612 | HD25: -29.75772094 | HE25: 0 | HF25: 73.9166154 | HG25: 300.1496612 | HH25: 73.9166154 | HI25: 1475 | HJ25: 1745 | HK25: 10.26018582 | HL25: 10.36665373 | HM25: 290.648579 | HN25: -29.75772094 | HO25: 0 | HP25: 70.79741088 | HQ25: 290.648579 | HR25: 70.79741088 | HS25: 1425 | HT25: 1695 | HU25: 10.26018582 | HV25: 10.36665373 | HW25: 281.1474968 | HX25: -29.75772094 | HY25: 0 | HZ25: 67.67820637 | IA25: 281.1474968 | IB25: 67.67820637 | IC25: 1375 | ID25: 1645 | IE25: 10.26018582 | IF25: 10.36665373 | IG25: 271.6464146 | IH25: -29.75772094 | II25: 0 | IJ25: 64.55900185 | IK25: 271.6464146 | IL25: 64.55900185 | IM25: 1325 | IN25: 1595 | IO25: 10.26018582 | IP25: 10.36665373 | IQ25: 262.1453323 | IR25: -29.75772094 | IS25: 0 | IT25: 61.43979734 | IU25: 262.1453323 | IV25: 61.43979734 | IW25: 1275 | IX25: 1545 | IY25: 10.26018582 | IZ25: 10.36665373 | JA25: 252.6442501 | JB25: -29.75772094 | JC25: 0 | JD25: 58.32059282 | JE25: 252.6442501 | JF25: 58.32059282 | JG25: 1225 | JH25: 1495 | JI25: 10.26018582 | JJ25: 10.36665373 | JK25: 243.1431679 | JL25: -29.75772094 | JM25: 0 | JN25: 55.20138831 | JO25: 243.1431679 | JP25: 55.20138831 | JQ25: 1175 | JR25: 1445 | JS25: 10.26018582 | JT25: 10.36665373 | JU25: 233.6420857 | JV25: -29.75772094 | JW25: 0 | JX25: 52.08218379 | JY25: 233.6420857 | JZ25: 52.08218379 | KA25: 1125 | KB25: 1395 | KC25: 10.26018582 | KD25: 10.36665373 | KE25: 224.1410035 | KF25: -29.75772094 | KG25: 0 | KH25: 48.96297928 | KI25: 224.1410035 | KJ25: 48.96297928 | KK25: 1075 | KL25: 1345 | KM25: 10.26018582 | KN25: 10.36665373 | KO25: 214.6399213 | KP25: -29.75772094 | KQ25: 0 | KR25: 45.84377476 | KS25: 214.6399213 | KT25: 45.84377476 | KU25: 1025 | KV25: 1295 | KW25: 10.26018582 | KX25: 10.36665373 | KY25: 205.1388391 | KZ25: -29.75772094 | LA25: 0 | LB25: 42.72457025 | LC25: 205.1388391 | LD25: 42.72457025 | LE25: 975 | LF25: 1245 | LG25: 10.26018582 | LH25: 10.36665373 | LI25: 195.6377569 | LJ25: -29.75772094 | LK25: 0 | LL25: 39.60536573 | LM25: 195.6377569 | LN25: 39.60536573 | LO25: 925 | LP25: 1195 | LQ25: 10.26018582 | LR25: 10.36665373 | LS25: 186.1366746 | LT25: -29.75772094 | LU25: 0 | LV25: 36.48616122 | LW25: 186.1366746 | LX25: 36.48616122 | LY25: 875 | LZ25: 1145 | MA25: 10.26018582 | MB25: 10.36665373 | MC25: 176.6355924 | MD25: -29.75772094 | ME25: 0 | MF25: 33.3669567 | MG25: 176.6355924 | MH25: 33.3669567 | MI25: 825 | MJ25: 1095 | MK25: 10.26018582 | ML25: 10.36665373 | MM25: 167.1345102 | MN25: -29.75772094 | MO25: 0 | MP25: 30.24775219 | MQ25: 167.1345102 | MR25: 30.24775219
C26: 16 | G26: 0.5217371773 | H26: -25.39611592 | I26: 26.43161918 | J26: 26 | K26: -27.22544318 | L26: -0.2587390429 | M26: -14.82465515 | N26: -0.264671802 | O26: -2050.963954 | P26: -118770.7061 | Q26: -4674880.575 | R26: 4518469070 | S26: -25.1350821 | T26: -27.22544318 | U26: -0.2587390429 | V26: -128 | W26: 0.3209522047 | X26: ray16 | Y26: 16 | Z26: 102.8649179 | AA26: -27.22544318 | AB26: -3.008002665 | AC26: 0.3324465139 | AD26: 0.948935456 | AE26: 0.3154702843 | AF26: 106.4068423 | AG26: 1 | AH26: 58.28601323 | AI26: 0.5477656508 | AJ26: 0.5796912476 | AK26: 0.3039856563 | AL26: 33.21386191 | AM26: 17.41709514 | AN26: 15.79676677 | AO26: 0.2757055913 | AP26: 0.3209522047 | AQ26: 0.01696654838 | AR26: 0.9998560716 | AS26: 0.01696817658 | AT26: 150.1031577 | AU26: -100.5970482 | AV26: 10768.25942 | AW26: 117.5285138 | AX26: 3620.552394 | AY26: 32.10786364 | AZ26: 6.968160301 | BA26: 32.1032424 | BB26: -26.68070969 | BC26: 0.544733486 | BD26: 32.10786364 | BE26: 68.0318397 | BF26: 26.68070969 | BG26: 73.07661379 | BH26: 256.51 | BI26: 88.40684231 | BJ26: 32.10786364 | BK26: 73.07661379 | BL26: 353 | BM26: 0.1568423097 | BN26: 0.09315769035 | BO26: -25.09588402 | BP26: -27.2128618 | BQ26: 32.06845996 | BR26: 234 | BS26: 58.68528172 | BT26: 0.1852817181 | BU26: 0.0647182819 | BV26: 7.032869268 | BW26: -26.6796117 | BX26: 587 | BY26: 2200 | BZ26: 2434 | CA26: 6.968160301 | CB26: 7.032869268 | CC26: 416.6081397 | CD26: -35.72226619 | CE26: 0 | CF26: 134.0938248 | CG26: 416.6081397 | CH26: 134.0938248 | CI26: 2150 | CJ26: 2384 | CK26: 6.968160301 | CL26: 7.032869268 | CM26: 407.2996108 | CN26: -35.72226619 | CO26: 0 | CP26: 130.439883 | CQ26: 407.2996108 | CR26: 130.439883 | CS26: 2100 | CT26: 2334 | CU26: 6.968160301 | CV26: 7.032869268 | CW26: 397.9910819 | CX26: -35.72226619 | CY26: 0 | CZ26: 126.7859413 | DA26: 397.9910819 | DB26: 126.7859413 | DC26: 2050 | DD26: 2284 | DE26: 6.968160301 | DF26: 7.032869268 | DG26: 388.682553 | DH26: -35.72226619 | DI26: 0 | DJ26: 123.1319996 | DK26: 388.682553 | DL26: 123.1319996 | DM26: 2000 | DN26: 2234 | DO26: 6.968160301 | DP26: 7.032869268 | DQ26: 379.3740242 | DR26: -35.72226619 | DS26: 0 | DT26: 119.4780578 | DU26: 379.3740242 | DV26: 119.4780578 | DW26: 1950 | DX26: 2184 | DY26: 6.968160301 | DZ26: 7.032869268 | EA26: 370.0654953 | EB26: -35.72226619 | EC26: 0 | ED26: 115.8241161 | EE26: 370.0654953 | EF26: 115.8241161 | EG26: 1900 | EH26: 2134 | EI26: 6.968160301 | EJ26: 7.032869268 | EK26: 360.7569664 | EL26: -35.72226619 | EM26: 0 | EN26: 112.1701744 | EO26: 360.7569664 | EP26: 112.1701744 | EQ26: 1850 | ER26: 2084 | ES26: 6.968160301 | ET26: 7.032869268 | EU26: 351.4484376 | EV26: -35.72226619 | EW26: 0 | EX26: 108.5162326 | EY26: 351.4484376 | EZ26: 108.5162326 | FA26: 1800 | FB26: 2034 | FC26: 6.968160301 | FD26: 7.032869268 | FE26: 342.1399087 | FF26: -35.72226619 | FG26: 0 | FH26: 104.8622909 | FI26: 342.1399087 | FJ26: 104.8622909 | FK26: 1750 | FL26: 1984 | FM26: 6.968160301 | FN26: 7.032869268 | FO26: 332.8313798 | FP26: -35.72226619 | FQ26: 0 | FR26: 101.2083491 | FS26: 332.8313798 | FT26: 101.2083491 | FU26: 1700 | FV26: 1934 | FW26: 6.968160301 | FX26: 7.032869268 | FY26: 323.5228509 | FZ26: -35.72226619 | GA26: 0 | GB26: 97.5544074 | GC26: 323.5228509 | GD26: 97.5544074 | GE26: 1650 | GF26: 1884 | GG26: 6.968160301 | GH26: 7.032869268 | GI26: 314.2143221 | GJ26: -35.72226619 | GK26: 0 | GL26: 93.90046566 | GM26: 314.2143221 | GN26: 93.90046566 | GO26: 1600 | GP26: 1834 | GQ26: 6.968160301 | GR26: 7.032869268 | GS26: 304.9057932 | GT26: -35.72226619 | GU26: 0 | GV26: 90.24652393 | GW26: 304.9057932 | GX26: 90.24652393 | GY26: 1550 | GZ26: 1784 | HA26: 6.968160301 | HB26: 7.032869268 | HC26: 295.5972643 | HD26: -35.72226619 | HE26: 0 | HF26: 86.59258219 | HG26: 295.5972643 | HH26: 86.59258219 | HI26: 1500 | HJ26: 1734 | HK26: 6.968160301 | HL26: 7.032869268 | HM26: 286.2887354 | HN26: -35.72226619 | HO26: 0 | HP26: 82.93864045 | HQ26: 286.2887354 | HR26: 82.93864045 | HS26: 1450 | HT26: 1684 | HU26: 6.968160301 | HV26: 7.032869268 | HW26: 276.9802066 | HX26: -35.72226619 | HY26: 0 | HZ26: 79.28469871 | IA26: 276.9802066 | IB26: 79.28469871 | IC26: 1400 | ID26: 1634 | IE26: 6.968160301 | IF26: 7.032869268 | IG26: 267.6716777 | IH26: -35.72226619 | II26: 0 | IJ26: 75.63075697 | IK26: 267.6716777 | IL26: 75.63075697 | IM26: 1350 | IN26: 1584 | IO26: 6.968160301 | IP26: 7.032869268 | IQ26: 258.3631488 | IR26: -35.72226619 | IS26: 0 | IT26: 71.97681523 | IU26: 258.3631488 | IV26: 71.97681523 | IW26: 1300 | IX26: 1534 | IY26: 6.968160301 | IZ26: 7.032869268 | JA26: 249.05462 | JB26: -35.72226619 | JC26: 0 | JD26: 68.3228735 | JE26: 249.05462 | JF26: 68.3228735 | JG26: 1250 | JH26: 1484 | JI26: 6.968160301 | JJ26: 7.032869268 | JK26: 239.7460911 | JL26: -35.72226619 | JM26: 0 | JN26: 64.66893176 | JO26: 239.7460911 | JP26: 64.66893176 | JQ26: 1200 | JR26: 1434 | JS26: 6.968160301 | JT26: 7.032869268 | JU26: 230.4375622 | JV26: -35.72226619 | JW26: 0 | JX26: 61.01499002 | JY26: 230.4375622 | JZ26: 61.01499002 | KA26: 1150 | KB26: 1384 | KC26: 6.968160301 | KD26: 7.032869268 | KE26: 221.1290333 | KF26: -35.72226619 | KG26: 0 | KH26: 57.36104828 | KI26: 221.1290333 | KJ26: 57.36104828 | KK26: 1100 | KL26: 1334 | KM26: 6.968160301 | KN26: 7.032869268 | KO26: 211.8205045 | KP26: -35.72226619 | KQ26: 0 | KR26: 53.70710654 | KS26: 211.8205045 | KT26: 53.70710654 | KU26: 1050 | KV26: 1284 | KW26: 6.968160301 | KX26: 7.032869268 | KY26: 202.5119756 | KZ26: -35.72226619 | LA26: 0 | LB26: 50.0531648 | LC26: 202.5119756 | LD26: 50.0531648 | LE26: 1000 | LF26: 1234 | LG26: 6.968160301 | LH26: 7.032869268 | LI26: 193.2034467 | LJ26: -35.72226619 | LK26: 0 | LL26: 46.39922307 | LM26: 193.2034467 | LN26: 46.39922307 | LO26: 950 | LP26: 1184 | LQ26: 6.968160301 | LR26: 7.032869268 | LS26: 183.8949178 | LT26: -35.72226619 | LU26: 0 | LV26: 42.74528133 | LW26: 183.8949178 | LX26: 42.74528133 | LY26: 900 | LZ26: 1134 | MA26: 6.968160301 | MB26: 7.032869268 | MC26: 174.586389 | MD26: -35.72226619 | ME26: 0 | MF26: 39.09133959 | MG26: 174.586389 | MH26: 39.09133959 | MI26: 850 | MJ26: 1084 | MK26: 6.968160301 | ML26: 7.032869268 | MM26: 165.2778601 | MN26: -35.72226619 | MO26: 0 | MP26: 35.43739785 | MQ26: 165.2778601 | MR26: 35.43739785
C27: 17 | G27: 0.5043459381 | H27: -25.73350343 | I27: 25.37816852 | J27: 27 | K27: -32.67053181 | L27: -0.3021876362 | M27: -17.31407618 | N27: -0.3117348454 | O27: -2026.549248 | P27: -115645.6237 | Q27: -4274870.032 | R27: 4710675631 | S27: -23.19769029 | T27: -32.67053181 | U27: -0.3021876362 | V27: -128 | W27: 0.3613409443 | X27: ray17 | Y27: 17 | Z27: 104.8023097 | AA27: -32.67053181 | AB27: -2.645960763 | AC27: 0.3779345537 | AD27: 0.9354236023 | AE27: 0.3535289017 | AF27: 109.7765356 | AG27: 1 | AH27: 67.611432 | AI27: 0.6159005805 | AJ27: 0.6635285805 | AK27: 0.3432589374 | AL27: 38.01738725 | AM27: 19.66728839 | AN27: 18.35009885 | AO27: 0.3202696431 | AP27: 0.3613409443 | AQ27: 0.01808200683 | AR27: 0.999836525 | AS27: 0.01808397778 | AT27: 146.7334644 | AU27: -98.78850346 | AV27: 10710.15003 | AW27: 114.1904367 | AX27: 4471.702517 | AY27: 26.4888306 | AZ27: 3.286810052 | BA27: 26.48450034 | BB27: -32.1915867 | BC27: 0.4789451157 | BD27: 26.4888306 | BE27: 71.71318995 | BF27: 32.1915867 | BG27: 78.60712351 | BH27: 256.51 | BI27: 91.77653561 | BJ27: 26.4888306 | BK27: 78.60712351 | BL27: 367 | BM27: 0.02653560564 | BN27: 0.2234643944 | BO27: -23.17167304 | BP27: -32.66113044 | BQ27: 26.46264912 | BR27: 193 | BS27: 48.4266479 | BT27: 0.1766478969 | BU27: 0.07335210314 | BV27: 3.360150164 | BW27: -32.19026042 | BX27: 560 | BY27: 2227 | BZ27: 2420 | CA27: 3.286810052 | CB27: 3.360150164 | CC27: 409.6310964 | CD27: -40.92667343 | CE27: 0 | CF27: 150.3613165 | CG27: 409.6310964 | CH27: 150.3613165 | CI27: 2177 | CJ27: 2370 | CK27: 3.286810052 | CL27: 3.360150164 | CM27: 400.5096113 | CN27: -40.92667343 | CO27: 0 | CP27: 146.262718 | CQ27: 400.5096113 | CR27: 146.262718 | CS27: 2127 | CT27: 2320 | CU27: 3.286810052 | CV27: 3.360150164 | CW27: 391.3881262 | CX27: -40.92667343 | CY27: 0 | CZ27: 142.1641195 | DA27: 391.3881262 | DB27: 142.1641195 | DC27: 2077 | DD27: 2270 | DE27: 3.286810052 | DF27: 3.360150164 | DG27: 382.2666411 | DH27: -40.92667343 | DI27: 0 | DJ27: 138.065521 | DK27: 382.2666411 | DL27: 138.065521 | DM27: 2027 | DN27: 2220 | DO27: 3.286810052 | DP27: 3.360150164 | DQ27: 373.145156 | DR27: -40.92667343 | DS27: 0 | DT27: 133.9669225 | DU27: 373.145156 | DV27: 133.9669225 | DW27: 1977 | DX27: 2170 | DY27: 3.286810052 | DZ27: 3.360150164 | EA27: 364.0236709 | EB27: -40.92667343 | EC27: 0 | ED27: 129.8683241 | EE27: 364.0236709 | EF27: 129.8683241 | EG27: 1927 | EH27: 2120 | EI27: 3.286810052 | EJ27: 3.360150164 | EK27: 354.9021858 | EL27: -40.92667343 | EM27: 0 | EN27: 125.7697256 | EO27: 354.9021858 | EP27: 125.7697256 | EQ27: 1877 | ER27: 2070 | ES27: 3.286810052 | ET27: 3.360150164 | EU27: 345.7807007 | EV27: -40.92667343 | EW27: 0 | EX27: 121.6711271 | EY27: 345.7807007 | EZ27: 121.6711271 | FA27: 1827 | FB27: 2020 | FC27: 3.286810052 | FD27: 3.360150164 | FE27: 336.6592156 | FF27: -40.92667343 | FG27: 0 | FH27: 117.5725286 | FI27: 336.6592156 | FJ27: 117.5725286 | FK27: 1777 | FL27: 1970 | FM27: 3.286810052 | FN27: 3.360150164 | FO27: 327.5377305 | FP27: -40.92667343 | FQ27: 0 | FR27: 113.4739301 | FS27: 327.5377305 | FT27: 113.4739301 | FU27: 1727 | FV27: 1920 | FW27: 3.286810052 | FX27: 3.360150164 | FY27: 318.4162454 | FZ27: -40.92667343 | GA27: 0 | GB27: 109.3753316 | GC27: 318.4162454 | GD27: 109.3753316 | GE27: 1677 | GF27: 1870 | GG27: 3.286810052 | GH27: 3.360150164 | GI27: 309.2947603 | GJ27: -40.92667343 | GK27: 0 | GL27: 105.2767331 | GM27: 309.2947603 | GN27: 105.2767331 | GO27: 1627 | GP27: 1820 | GQ27: 3.286810052 | GR27: 3.360150164 | GS27: 300.1732752 | GT27: -40.92667343 | GU27: 0 | GV27: 101.1781346 | GW27: 300.1732752 | GX27: 101.1781346 | GY27: 1577 | GZ27: 1770 | HA27: 3.286810052 | HB27: 3.360150164 | HC27: 291.0517901 | HD27: -40.92667343 | HE27: 0 | HF27: 97.0795361 | HG27: 291.0517901 | HH27: 97.0795361 | HI27: 1527 | HJ27: 1720 | HK27: 3.286810052 | HL27: 3.360150164 | HM27: 281.930305 | HN27: -40.92667343 | HO27: 0 | HP27: 92.9809376 | HQ27: 281.930305 | HR27: 92.9809376 | HS27: 1477 | HT27: 1670 | HU27: 3.286810052 | HV27: 3.360150164 | HW27: 272.8088199 | HX27: -40.92667343 | HY27: 0 | HZ27: 88.88233911 | IA27: 272.8088199 | IB27: 88.88233911 | IC27: 1427 | ID27: 1620 | IE27: 3.286810052 | IF27: 3.360150164 | IG27: 263.6873348 | IH27: -40.92667343 | II27: 0 | IJ27: 84.78374061 | IK27: 263.6873348 | IL27: 84.78374061 | IM27: 1377 | IN27: 1570 | IO27: 3.286810052 | IP27: 3.360150164 | IQ27: 254.5658497 | IR27: -40.92667343 | IS27: 0 | IT27: 80.68514212 | IU27: 254.5658497 | IV27: 80.68514212 | IW27: 1327 | IX27: 1520 | IY27: 3.286810052 | IZ27: 3.360150164 | JA27: 245.4443646 | JB27: -40.92667343 | JC27: 0 | JD27: 76.58654362 | JE27: 245.4443646 | JF27: 76.58654362 | JG27: 1277 | JH27: 1470 | JI27: 3.286810052 | JJ27: 3.360150164 | JK27: 236.3228796 | JL27: -40.92667343 | JM27: 0 | JN27: 72.48794513 | JO27: 236.3228796 | JP27: 72.48794513 | JQ27: 1227 | JR27: 1420 | JS27: 3.286810052 | JT27: 3.360150164 | JU27: 227.2013945 | JV27: -40.92667343 | JW27: 0 | JX27: 68.38934663 | JY27: 227.2013945 | JZ27: 68.38934663 | KA27: 1177 | KB27: 1370 | KC27: 3.286810052 | KD27: 3.360150164 | KE27: 218.0799094 | KF27: -40.92667343 | KG27: 0 | KH27: 64.29074814 | KI27: 218.0799094 | KJ27: 64.29074814 | KK27: 1127 | KL27: 1320 | KM27: 3.286810052 | KN27: 3.360150164 | KO27: 208.9584243 | KP27: -40.92667343 | KQ27: 0 | KR27: 60.19214965 | KS27: 208.9584243 | KT27: 60.19214965 | KU27: 1077 | KV27: 1270 | KW27: 3.286810052 | KX27: 3.360150164 | KY27: 199.8369392 | KZ27: -40.92667343 | LA27: 0 | LB27: 56.09355115 | LC27: 199.8369392 | LD27: 56.09355115 | LE27: 1027 | LF27: 1220 | LG27: 3.286810052 | LH27: 3.360150164 | LI27: 190.7154541 | LJ27: -40.92667343 | LK27: 0 | LL27: 51.99495266 | LM27: 190.7154541 | LN27: 51.99495266 | LO27: 977 | LP27: 1170 | LQ27: 3.286810052 | LR27: 3.360150164 | LS27: 181.593969 | LT27: -40.92667343 | LU27: 0 | LV27: 47.89635416 | LW27: 181.593969 | LX27: 47.89635416 | LY27: 927 | LZ27: 1120 | MA27: 3.286810052 | MB27: 3.360150164 | MC27: 172.4724839 | MD27: -40.92667343 | ME27: 0 | MF27: 43.79775567 | MG27: 172.4724839 | MH27: 43.79775567 | MI27: 877 | MJ27: 1070 | MK27: 3.286810052 | ML27: 3.360150164 | MM27: 163.3509988 | MN27: -40.92667343 | MO27: 0 | MP27: 39.69915717 | MQ27: 163.3509988 | MR27: 39.69915717
C28: 18 | G28: 0.4869546988 | H28: -26.05420773 | I28: 24.34475224 | J28: 28 | K28: -38.11562045 | L28: -0.342300565 | M28: -19.6123777 | N28: -0.3563274249 | O28: -1999.73769 | P28: -112213.7443 | Q28: -3835589.467 | R28: 4921751585 | S28: -21.03203239 | T28: -38.11562045 | U28: -0.342300565 | V28: -128 | W28: 0.3945802131 | X28: ray18 | Y28: 18 | Z28: 106.9679676 | AA28: -38.11562045 | AB28: -2.401426451 | AC28: 0.4164191661 | AD28: 0.9231580205 | AE28: 0.3844206931 | AF28: 113.5559185 | AG28: 1 | AH28: 76.30744097 | AI28: 0.6719811878 | AJ28: 0.7368807781 | AK28: 0.37599998 | AL28: 42.22015859 | AM28: 21.54321195 | AN28: 20.67694663 | AO28: 0.360880798 | AP28: 0.3945802131 | AQ28: 0.01858023306 | AR28: 0.9998273924 | AS28: 0.01858237148 | AT28: 142.9540815 | AU28: -96.740311 | AV28: 10674.95177 | AW28: 110.4753241 | AX28: 5494.619199 | AY28: 20.34797662 | AZ28: -0.6875679839 | BA28: 20.3444644 | BB28: -37.73757205 | BC28: 0.3780483951 | BD28: 20.34797662 | BE28: 75.68756798 | BF28: 37.73757205 | BG28: 84.57382746 | BH28: 256.51 | BI28: 95.55591846 | BJ28: 20.34797662 | BK28: 84.57382746 | BL28: 382 | BM28: 0.05591846229 | BN28: 0.1940815377 | BO28: -21.02436325 | BP28: -38.11259435 | BQ28: 20.34025279 | BR28: 148 | BS28: 37.2226626 | BT28: 0.2226626036 | BU28: 0.02733739635 | BV28: -0.6602353062 | BW28: -37.73706415 | BX28: 530 | BY28: 2257 | BZ28: 2405 | CA28: -0.6875679839 | CB28: -0.6602353062 | CC28: 403.2827247 | CD28: -45.36491106 | CE28: 0 | CF28: 163.7376118 | CG28: 403.2827247 | CH28: 163.7376118 | CI28: 2207 | CJ28: 2355 | CK28: -0.6875679839 | CL28: -0.6602353062 | CM28: 394.3340548 | CN28: -45.36491106 | CO28: 0 | CP28: 159.2742827 | CQ28: 394.3340548 | CR28: 159.2742827 | CS28: 2157 | CT28: 2305 | CU28: -0.6875679839 | CV28: -0.6602353062 | CW28: 385.3853849 | CX28: -45.36491106 | CY28: 0 | CZ28: 154.8109536 | DA28: 385.3853849 | DB28: 154.8109536 | DC28: 2107 | DD28: 2255 | DE28: -0.6875679839 | DF28: -0.6602353062 | DG28: 376.4367149 | DH28: -45.36491106 | DI28: 0 | DJ28: 150.3476245 | DK28: 376.4367149 | DL28: 150.3476245 | DM28: 2057 | DN28: 2205 | DO28: -0.6875679839 | DP28: -0.6602353062 | DQ28: 367.488045 | DR28: -45.36491106 | DS28: 0 | DT28: 145.8842954 | DU28: 367.488045 | DV28: 145.8842954 | DW28: 2007 | DX28: 2155 | DY28: -0.6875679839 | DZ28: -0.6602353062 | EA28: 358.5393751 | EB28: -45.36491106 | EC28: 0 | ED28: 141.4209663 | EE28: 358.5393751 | EF28: 141.4209663 | EG28: 1957 | EH28: 2105 | EI28: -0.6875679839 | EJ28: -0.6602353062 | EK28: 349.5907052 | EL28: -45.36491106 | EM28: 0 | EN28: 136.9576372 | EO28: 349.5907052 | EP28: 136.9576372 | EQ28: 1907 | ER28: 2055 | ES28: -0.6875679839 | ET28: -0.6602353062 | EU28: 340.6420353 | EV28: -45.36491106 | EW28: 0 | EX28: 132.4943081 | EY28: 340.6420353 | EZ28: 132.4943081 | FA28: 1857 | FB28: 2005 | FC28: -0.6875679839 | FD28: -0.6602353062 | FE28: 331.6933654 | FF28: -45.36491106 | FG28: 0 | FH28: 128.030979 | FI28: 331.6933654 | FJ28: 128.030979 | FK28: 1807 | FL28: 1955 | FM28: -0.6875679839 | FN28: -0.6602353062 | FO28: 322.7446955 | FP28: -45.36491106 | FQ28: 0 | FR28: 123.5676499 | FS28: 322.7446955 | FT28: 123.5676499 | FU28: 1757 | FV28: 1905 | FW28: -0.6875679839 | FX28: -0.6602353062 | FY28: 313.7960255 | FZ28: -45.36491106 | GA28: 0 | GB28: 119.1043208 | GC28: 313.7960255 | GD28: 119.1043208 | GE28: 1707 | GF28: 1855 | GG28: -0.6875679839 | GH28: -0.6602353062 | GI28: 304.8473556 | GJ28: -45.36491106 | GK28: 0 | GL28: 114.6409916 | GM28: 304.8473556 | GN28: 114.6409916 | GO28: 1657 | GP28: 1805 | GQ28: -0.6875679839 | GR28: -0.6602353062 | GS28: 295.8986857 | GT28: -45.36491106 | GU28: 0 | GV28: 110.1776625 | GW28: 295.8986857 | GX28: 110.1776625 | GY28: 1607 | GZ28: 1755 | HA28: -0.6875679839 | HB28: -0.6602353062 | HC28: 286.9500158 | HD28: -45.36491106 | HE28: 0 | HF28: 105.7143334 | HG28: 286.9500158 | HH28: 105.7143334 | HI28: 1557 | HJ28: 1705 | HK28: -0.6875679839 | HL28: -0.6602353062 | HM28: 278.0013459 | HN28: -45.36491106 | HO28: 0 | HP28: 101.2510043 | HQ28: 278.0013459 | HR28: 101.2510043 | HS28: 1507 | HT28: 1655 | HU28: -0.6875679839 | HV28: -0.6602353062 | HW28: 269.052676 | HX28: -45.36491106 | HY28: 0 | HZ28: 96.78767521 | IA28: 269.052676 | IB28: 96.78767521 | IC28: 1457 | ID28: 1605 | IE28: -0.6875679839 | IF28: -0.6602353062 | IG28: 260.104006 | IH28: -45.36491106 | II28: 0 | IJ28: 92.3243461 | IK28: 260.104006 | IL28: 92.3243461 | IM28: 1407 | IN28: 1555 | IO28: -0.6875679839 | IP28: -0.6602353062 | IQ28: 251.1553361 | IR28: -45.36491106 | IS28: 0 | IT28: 87.86101699 | IU28: 251.1553361 | IV28: 87.86101699 | IW28: 1357 | IX28: 1505 | IY28: -0.6875679839 | IZ28: -0.6602353062 | JA28: 242.2066662 | JB28: -45.36491106 | JC28: 0 | JD28: 83.39768788 | JE28: 242.2066662 | JF28: 83.39768788 | JG28: 1307 | JH28: 1455 | JI28: -0.6875679839 | JJ28: -0.6602353062 | JK28: 233.2579963 | JL28: -45.36491106 | JM28: 0 | JN28: 78.93435877 | JO28: 233.2579963 | JP28: 78.93435877 | JQ28: 1257 | JR28: 1405 | JS28: -0.6875679839 | JT28: -0.6602353062 | JU28: 224.3093264 | JV28: -45.36491106 | JW28: 0 | JX28: 74.47102966 | JY28: 224.3093264 | JZ28: 74.47102966 | KA28: 1207 | KB28: 1355 | KC28: -0.6875679839 | KD28: -0.6602353062 | KE28: 215.3606565 | KF28: -45.36491106 | KG28: 0 | KH28: 70.00770055 | KI28: 215.3606565 | KJ28: 70.00770055 | KK28: 1157 | KL28: 1305 | KM28: -0.6875679839 | KN28: -0.6602353062 | KO28: 206.4119865 | KP28: -45.36491106 | KQ28: 0 | KR28: 65.54437144 | KS28: 206.4119865 | KT28: 65.54437144 | KU28: 1107 | KV28: 1255 | KW28: -0.6875679839 | KX28: -0.6602353062 | KY28: 197.4633166 | KZ28: -45.36491106 | LA28: 0 | LB28: 61.08104233 | LC28: 197.4633166 | LD28: 61.08104233 | LE28: 1057 | LF28: 1205 | LG28: -0.6875679839 | LH28: -0.6602353062 | LI28: 188.5146467 | LJ28: -45.36491106 | LK28: 0 | LL28: 56.61771322 | LM28: 188.5146467 | LN28: 56.61771322 | LO28: 1007 | LP28: 1155 | LQ28: -0.6875679839 | LR28: -0.6602353062 | LS28: 179.5659768 | LT28: -45.36491106 | LU28: 0 | LV28: 52.15438411 | LW28: 179.5659768 | LX28: 52.15438411 | LY28: 957 | LZ28: 1105 | MA28: -0.6875679839 | MB28: -0.6602353062 | MC28: 170.6173069 | MD28: -45.36491106 | ME28: 0 | MF28: 47.691055 | MG28: 170.6173069 | MH28: 47.691055 | MI28: 907 | MJ28: 1055 | MK28: -0.6875679839 | ML28: -0.6602353062 | MM28: 161.668637 | MN28: -45.36491106 | MO28: 0 | MP28: 43.22772589 | MQ28: 161.668637 | MR28: 43.22772589
C29: 19 | G29: 0.4695634596 | H29: -26.35888434 | I29: 23.33019633 | J29: 29 | K29: -43.56070909 | L29: -0.379167531 | M29: -21.72469925 | N29: -0.3984477688 | O29: -1971.125438 | P29: -108551.3761 | Q29: -3366806.336 | R29: 5147003632 | S29: -18.67397914 | T29: -43.56070909 | U29: -0.379167531 | V29: -128 | W29: 0.4218159693 | X29: ray19 | Y29: 19 | Z29: 109.3260209 | AA29: -43.56070909 | AB29: -2.228400144 | AC29: 0.4487524392 | AD29: 0.9123469547 | AE29: 0.4094179213 | AF29: 117.6848088 | AG29: 1 | AH29: 84.50251248 | AI29: 0.7180409551 | AJ29: 0.8009835003 | AK29: 0.4032090975 | AL29: 45.89297402 | AM29: 23.10217955 | AN29: 22.79079448 | AO29: 0.3977744027 | AP29: 0.4218159693 | AQ29: 0.01860687178 | AR29: 0.9998268972 | AS29: 0.01860901941 | AT29: 138.8251912 | AU29: -94.48460122 | AV29: 10672.34974 | AW29: 106.4434661 | AX29: 6691.132099 | AY29: 13.79541293 | AZ29: -4.880954237 | BA29: 13.7930249 | BB29: -43.30403442 | BC29: 0.2566746682 | BD29: 13.79541293 | BE29: 79.88095424 | BF29: 43.30403442 | BG29: 90.86366846 | BH29: 256.51 | BI29: 99.68480876 | BJ29: 13.79541293 | BK29: 90.86366846 | BL29: 398 | BM29: 0.1848087595 | BN29: 0.0651912405 | BO29: -18.66204023 | BP29: -43.55567302 | BQ29: 13.78338323 | BR29: 100 | BS29: 25.22359131 | BT29: 0.2235913063 | BU29: 0.02640869367 | BV29: -4.854550115 | BW29: -43.30354306 | BX29: 498 | BY29: 2289 | BZ29: 2389 | CA29: -4.880954237 | CB29: -4.854550115 | CC29: 397.5818603 | CD29: -49.05650908 | CE29: 0 | CF29: 174.9297624 | CG29: 397.5818603 | CH29: 174.9297624 | CI29: 2239 | CJ29: 2339 | CK29: -4.880954237 | CL29: -4.854550115 | CM29: 388.7912004 | CN29: -49.05650908 | CO29: 0 | CP29: 170.1627614 | CQ29: 388.7912004 | CR29: 170.1627614 | CS29: 2189 | CT29: 2289 | CU29: -4.880954237 | CV29: -4.854550115 | CW29: 380.0005405 | CX29: -49.05650908 | CY29: 0 | CZ29: 165.3957604 | DA29: 380.0005405 | DB29: 165.3957604 | DC29: 2139 | DD29: 2239 | DE29: -4.880954237 | DF29: -4.854550115 | DG29: 371.2098805 | DH29: -49.05650908 | DI29: 0 | DJ29: 160.6287594 | DK29: 371.2098805 | DL29: 160.6287594 | DM29: 2089 | DN29: 2189 | DO29: -4.880954237 | DP29: -4.854550115 | DQ29: 362.4192206 | DR29: -49.05650908 | DS29: 0 | DT29: 155.8617584 | DU29: 362.4192206 | DV29: 155.8617584 | DW29: 2039 | DX29: 2139 | DY29: -4.880954237 | DZ29: -4.854550115 | EA29: 353.6285607 | EB29: -49.05650908 | EC29: 0 | ED29: 151.0947574 | EE29: 353.6285607 | EF29: 151.0947574 | EG29: 1989 | EH29: 2089 | EI29: -4.880954237 | EJ29: -4.854550115 | EK29: 344.8379008 | EL29: -49.05650908 | EM29: 0 | EN29: 146.3277564 | EO29: 344.8379008 | EP29: 146.3277564 | EQ29: 1939 | ER29: 2039 | ES29: -4.880954237 | ET29: -4.854550115 | EU29: 336.0472409 | EV29: -49.05650908 | EW29: 0 | EX29: 141.5607554 | EY29: 336.0472409 | EZ29: 141.5607554 | FA29: 1889 | FB29: 1989 | FC29: -4.880954237 | FD29: -4.854550115 | FE29: 327.256581 | FF29: -49.05650908 | FG29: 0 | FH29: 136.7937544 | FI29: 327.256581 | FJ29: 136.7937544 | FK29: 1839 | FL29: 1939 | FM29: -4.880954237 | FN29: -4.854550115 | FO29: 318.4659211 | FP29: -49.05650908 | FQ29: 0 | FR29: 132.0267534 | FS29: 318.4659211 | FT29: 132.0267534 | FU29: 1789 | FV29: 1889 | FW29: -4.880954237 | FX29: -4.854550115 | FY29: 309.6752612 | FZ29: -49.05650908 | GA29: 0 | GB29: 127.2597525 | GC29: 309.6752612 | GD29: 127.2597525 | GE29: 1739 | GF29: 1839 | GG29: -4.880954237 | GH29: -4.854550115 | GI29: 300.8846013 | GJ29: -49.05650908 | GK29: 0 | GL29: 122.4927515 | GM29: 300.8846013 | GN29: 122.4927515 | GO29: 1689 | GP29: 1789 | GQ29: -4.880954237 | GR29: -4.854550115 | GS29: 292.0939414 | GT29: -49.05650908 | GU29: 0 | GV29: 117.7257505 | GW29: 292.0939414 | GX29: 117.7257505 | GY29: 1639 | GZ29: 1739 | HA29: -4.880954237 | HB29: -4.854550115 | HC29: 283.3032815 | HD29: -49.05650908 | HE29: 0 | HF29: 112.9587495 | HG29: 283.3032815 | HH29: 112.9587495 | HI29: 1589 | HJ29: 1689 | HK29: -4.880954237 | HL29: -4.854550115 | HM29: 274.5126216 | HN29: -49.05650908 | HO29: 0 | HP29: 108.1917485 | HQ29: 274.5126216 | HR29: 108.1917485 | HS29: 1539 | HT29: 1639 | HU29: -4.880954237 | HV29: -4.854550115 | HW29: 265.7219617 | HX29: -49.05650908 | HY29: 0 | HZ29: 103.4247475 | IA29: 265.7219617 | IB29: 103.4247475 | IC29: 1489 | ID29: 1589 | IE29: -4.880954237 | IF29: -4.854550115 | IG29: 256.9313018 | IH29: -49.05650908 | II29: 0 | IJ29: 98.6577465 | IK29: 256.9313018 | IL29: 98.6577465 | IM29: 1439 | IN29: 1539 | IO29: -4.880954237 | IP29: -4.854550115 | IQ29: 248.1406419 | IR29: -49.05650908 | IS29: 0 | IT29: 93.89074551 | IU29: 248.1406419 | IV29: 93.89074551 | IW29: 1389 | IX29: 1489 | IY29: -4.880954237 | IZ29: -4.854550115 | JA29: 239.349982 | JB29: -49.05650908 | JC29: 0 | JD29: 89.12374451 | JE29: 239.349982 | JF29: 89.12374451 | JG29: 1339 | JH29: 1439 | JI29: -4.880954237 | JJ29: -4.854550115 | JK29: 230.5593221 | JL29: -49.05650908 | JM29: 0 | JN29: 84.35674352 | JO29: 230.5593221 | JP29: 84.35674352 | JQ29: 1289 | JR29: 1389 | JS29: -4.880954237 | JT29: -4.854550115 | JU29: 221.7686622 | JV29: -49.05650908 | JW29: 0 | JX29: 79.58974253 | JY29: 221.7686622 | JZ29: 79.58974253 | KA29: 1239 | KB29: 1339 | KC29: -4.880954237 | KD29: -4.854550115 | KE29: 212.9780023 | KF29: -49.05650908 | KG29: 0 | KH29: 74.82274154 | KI29: 212.9780023 | KJ29: 74.82274154 | KK29: 1189 | KL29: 1289 | KM29: -4.880954237 | KN29: -4.854550115 | KO29: 204.1873424 | KP29: -49.05650908 | KQ29: 0 | KR29: 70.05574054 | KS29: 204.1873424 | KT29: 70.05574054 | KU29: 1139 | KV29: 1239 | KW29: -4.880954237 | KX29: -4.854550115 | KY29: 195.3966825 | KZ29: -49.05650908 | LA29: 0 | LB29: 65.28873955 | LC29: 195.3966825 | LD29: 65.28873955 | LE29: 1089 | LF29: 1189 | LG29: -4.880954237 | LH29: -4.854550115 | LI29: 186.6060226 | LJ29: -49.05650908 | LK29: 0 | LL29: 60.52173856 | LM29: 186.6060226 | LN29: 60.52173856 | LO29: 1039 | LP29: 1139 | LQ29: -4.880954237 | LR29: -4.854550115 | LS29: 177.8153627 | LT29: -49.05650908 | LU29: 0 | LV29: 55.75473757 | LW29: 177.8153627 | LX29: 55.75473757 | LY29: 989 | LZ29: 1089 | MA29: -4.880954237 | MB29: -4.854550115 | MC29: 169.0247028 | MD29: -49.05650908 | ME29: 0 | MF29: 50.98773657 | MG29: 169.0247028 | MH29: 50.98773657 | MI29: 939 | MJ29: 1039 | MK29: -4.880954237 | ML29: -4.854550115 | MM29: 160.2340429 | MN29: -49.05650908 | MO29: 0 | MP29: 46.22073558 | MQ29: 160.2340429 | MR29: 46.22073558
C30: 20 | G30: 0.4521722204 | H30: -26.64814296 | I30: 22.33339168 | J30: 30 | K30: -49.00579772 | L30: -0.4129612762 | M30: -23.66093823 | N30: -0.4381564261 | O30: -1941.227052 | P30: -104724.3826 | Q30: -2876951.174 | R30: 5382380868 | S30: -16.15456124 | T30: -49.00579772 | U30: -0.4129612762 | V30: -128 | W30: 0.4441313051 | X30: ray20 | Y30: 20 | Z30: 111.8454388 | AA30: -49.00579772 | AB30: -2.101558507 | AC30: 0.4758373353 | AD30: 0.9029842613 | AE30: 0.4296736247 | AF30: 122.1104843 | AG30: 1 | AH30: 92.30849914 | AI30: 0.7559424537 | AJ30: 0.8570925814 | AK30: 0.4258371442 | AL30: 49.10778756 | AM30: 24.39867113 | AN30: 24.70911644 | AO30: 0.4312554371 | AP30: 0.4441313051 | AQ30: 0.01829416087 | AR30: 0.9998326665 | AS30: 0.01829620202 | AT30: 134.3995157 | AU30: -92.05118122 | AV30: 10710.72225 | AW30: 102.1452106 | AX30: 8061.793778 | AY30: 6.917665858 | AZ30: -9.23805294 | BA30: 6.916508301 | BB30: -48.87925189 | BC30: 0.1265458331 | BD30: 6.917665858 | BE30: 84.23805294 | BF30: 48.87925189 | BG30: 97.39214973 | BH30: 256.51 | BI30: 104.1104843 | BJ30: 6.917665858 | BK30: 97.39214973 | BL30: 416 | BM30: 0.1104843227 | BN30: 0.1395156773 | BO30: -16.09316064 | BP30: -48.97852103 | BQ30: 6.855826425 | BR30: 50 | BS30: 12.54616236 | BT30: 0.04616235737 | BU30: 0.2038376426 | BV30: -9.034249406 | BW30: -48.87552306 | BX30: 466 | BY30: 2321 | BZ30: 2371 | CA30: -9.23805294 | CB30: -9.034249406 | CC30: 392.2318015 | CD30: -52.03631028 | CE30: 0 | CF30: 184.5065594 | CG30: 392.2318015 | CH30: 184.5065594 | CI30: 2271 | CJ30: 2321 | CK30: -9.23805294 | CL30: -9.034249406 | CM30: 383.5875522 | CN30: -52.03631028 | CO30: 0 | CP30: 179.4789402 | CQ30: 383.5875522 | CR30: 179.4789402 | CS30: 2221 | CT30: 2271 | CU30: -9.23805294 | CV30: -9.034249406 | CW30: 374.943303 | CX30: -52.03631028 | CY30: 0 | CZ30: 174.451321 | DA30: 374.943303 | DB30: 174.451321 | DC30: 2171 | DD30: 2221 | DE30: -9.23805294 | DF30: -9.034249406 | DG30: 366.2990537 | DH30: -52.03631028 | DI30: 0 | DJ30: 169.4237018 | DK30: 366.2990537 | DL30: 169.4237018 | DM30: 2121 | DN30: 2171 | DO30: -9.23805294 | DP30: -9.034249406 | DQ30: 357.6548044 | DR30: -52.03631028 | DS30: 0 | DT30: 164.3960827 | DU30: 357.6548044 | DV30: 164.3960827 | DW30: 2071 | DX30: 2121 | DY30: -9.23805294 | DZ30: -9.034249406 | EA30: 349.0105552 | EB30: -52.03631028 | EC30: 0 | ED30: 159.3684635 | EE30: 349.0105552 | EF30: 159.3684635 | EG30: 2021 | EH30: 2071 | EI30: -9.23805294 | EJ30: -9.034249406 | EK30: 340.3663059 | EL30: -52.03631028 | EM30: 0 | EN30: 154.3408443 | EO30: 340.3663059 | EP30: 154.3408443 | EQ30: 1971 | ER30: 2021 | ES30: -9.23805294 | ET30: -9.034249406 | EU30: 331.7220566 | EV30: -52.03631028 | EW30: 0 | EX30: 149.3132251 | EY30: 331.7220566 | EZ30: 149.3132251 | FA30: 1921 | FB30: 1971 | FC30: -9.23805294 | FD30: -9.034249406 | FE30: 323.0778074 | FF30: -52.03631028 | FG30: 0 | FH30: 144.2856059 | FI30: 323.0778074 | FJ30: 144.2856059 | FK30: 1871 | FL30: 1921 | FM30: -9.23805294 | FN30: -9.034249406 | FO30: 314.4335581 | FP30: -52.03631028 | FQ30: 0 | FR30: 139.2579867 | FS30: 314.4335581 | FT30: 139.2579867 | FU30: 1821 | FV30: 1871 | FW30: -9.23805294 | FX30: -9.034249406 | FY30: 305.7893088 | FZ30: -52.03631028 | GA30: 0 | GB30: 134.2303676 | GC30: 305.7893088 | GD30: 134.2303676 | GE30: 1771 | GF30: 1821 | GG30: -9.23805294 | GH30: -9.034249406 | GI30: 297.1450596 | GJ30: -52.03631028 | GK30: 0 | GL30: 129.2027484 | GM30: 297.1450596 | GN30: 129.2027484 | GO30: 1721 | GP30: 1771 | GQ30: -9.23805294 | GR30: -9.034249406 | GS30: 288.5008103 | GT30: -52.03631028 | GU30: 0 | GV30: 124.1751292 | GW30: 288.5008103 | GX30: 124.1751292 | GY30: 1671 | GZ30: 1721 | HA30: -9.23805294 | HB30: -9.034249406 | HC30: 279.856561 | HD30: -52.03631028 | HE30: 0 | HF30: 119.14751 | HG30: 279.856561 | HH30: 119.14751 | HI30: 1621 | HJ30: 1671 | HK30: -9.23805294 | HL30: -9.034249406 | HM30: 271.2123118 | HN30: -52.03631028 | HO30: 0 | HP30: 114.1198908 | HQ30: 271.2123118 | HR30: 114.1198908 | HS30: 1571 | HT30: 1621 | HU30: -9.23805294 | HV30: -9.034249406 | HW30: 262.5680625 | HX30: -52.03631028 | HY30: 0 | HZ30: 109.0922716 | IA30: 262.5680625 | IB30: 109.0922716 | IC30: 1521 | ID30: 1571 | IE30: -9.23805294 | IF30: -9.034249406 | IG30: 253.9238132 | IH30: -52.03631028 | II30: 0 | IJ30: 104.0646525 | IK30: 253.9238132 | IL30: 104.0646525 | IM30: 1471 | IN30: 1521 | IO30: -9.23805294 | IP30: -9.034249406 | IQ30: 245.279564 | IR30: -52.03631028 | IS30: 0 | IT30: 99.03703328 | IU30: 245.279564 | IV30: 99.03703328 | IW30: 1421 | IX30: 1471 | IY30: -9.23805294 | IZ30: -9.034249406 | JA30: 236.6353147 | JB30: -52.03631028 | JC30: 0 | JD30: 94.0094141 | JE30: 236.6353147 | JF30: 94.0094141 | JG30: 1371 | JH30: 1421 | JI30: -9.23805294 | JJ30: -9.034249406 | JK30: 227.9910654 | JL30: -52.03631028 | JM30: 0 | JN30: 88.98179492 | JO30: 227.9910654 | JP30: 88.98179492 | JQ30: 1321 | JR30: 1371 | JS30: -9.23805294 | JT30: -9.034249406 | JU30: 219.3468162 | JV30: -52.03631028 | JW30: 0 | JX30: 83.95417574 | JY30: 219.3468162 | JZ30: 83.95417574 | KA30: 1271 | KB30: 1321 | KC30: -9.23805294 | KD30: -9.034249406 | KE30: 210.7025669 | KF30: -52.03631028 | KG30: 0 | KH30: 78.92655655 | KI30: 210.7025669 | KJ30: 78.92655655 | KK30: 1221 | KL30: 1271 | KM30: -9.23805294 | KN30: -9.034249406 | KO30: 202.0583177 | KP30: -52.03631028 | KQ30: 0 | KR30: 73.89893737 | KS30: 202.0583177 | KT30: 73.89893737 | KU30: 1171 | KV30: 1221 | KW30: -9.23805294 | KX30: -9.034249406 | KY30: 193.4140684 | KZ30: -52.03631028 | LA30: 0 | LB30: 68.87131819 | LC30: 193.4140684 | LD30: 68.87131819 | LE30: 1121 | LF30: 1171 | LG30: -9.23805294 | LH30: -9.034249406 | LI30: 184.7698191 | LJ30: -52.03631028 | LK30: 0 | LL30: 63.84369901 | LM30: 184.7698191 | LN30: 63.84369901 | LO30: 1071 | LP30: 1121 | LQ30: -9.23805294 | LR30: -9.034249406 | LS30: 176.1255699 | LT30: -52.03631028 | LU30: 0 | LV30: 58.81607982 | LW30: 176.1255699 | LX30: 58.81607982 | LY30: 1021 | LZ30: 1071 | MA30: -9.23805294 | MB30: -9.034249406 | MC30: 167.4813206 | MD30: -52.03631028 | ME30: 0 | MF30: 53.78846064 | MG30: 167.4813206 | MH30: 53.78846064 | MI30: 971 | MJ30: 1021 | MK30: -9.23805294 | ML30: -9.034249406 | MM30: 158.8370713 | MN30: -52.03631028 | MO30: 0 | MP30: 48.76084146 | MQ30: 158.8370713 | MR30: 48.76084146
C31: 21 | G31: 0.4347809811 | H31: -26.92255078 | I31: 21.35328877 | J31: 31 | K31: -54.45088636 | L31: -0.4438999214 | M31: -25.43359202 | N31: -0.4755535926 | O31: -1910.473902 | P31: -100787.9795 | Q31: -2373091.578 | R31: 5624487287 | S31: -13.5 | T31: -54.45088636 | U31: -0.4438999214 | V31: -128 | W31: 0.4624674008 | X31: ray21 | Y31: 21 | Z31: 114.5 | AA31: -54.45088636 | AB31: -2.005915005 | AC31: 0.4985256092 | AD31: 0.8949543731 | AE31: 0.446157674 | AF31: 126.787811 | AG31: 1 | AH31: 99.81611254 | AI31: 0.7872689948 | AJ31: 0.9063673222 | AK31: 0.4447161274 | AL31: 51.93102225 | AM31: 25.48035718 | AN31: 26.45066507 | AO31: 0.4616511949 | AP31: 0.4624674008 | AQ31: 0.01775127348 | AR31: 0.9998424503 | AS31: 0.01775313823 | AT31: 129.722189 | AU31: -89.46667411 | AV31: 10797.14903 | AW31: 97.62195166 | AX31: 9606.32301 | AY31: -0.2182600294 | AZ31: -13.5 | BA31: 0 | BB31: -54.45088636 | BC31: 0 | BD31: 0 | BE31: 0 | BF31: 0 | BG31: 0 | BH31: 126.787811 | BI31: 108.787811 | BJ31: 0 | BK31: 0 | BL31: 435 | BM31: 0.03781102693 | BN31: 0.2121889731 | BO31: -13.38404974 | BP31: -54.39721169 | BQ31: 0.1277710168 | BR31: 0 | BS31: 0.2338209607 | BT31: 0.2338209607 | BU31: 0.01617903925 | BV31: -13.48382351 | BW31: -54.45059917 | BX31: 435 | BY31: 2352 | BZ31: 2352 | CA31: -13.5 | CB31: -13.48382351 | CC31: 387.1382383 | CD31: -54.45088636 | CE31: 0 | CF31: 192.0815967 | CG31: -128 | CH31: 0 | CI31: 2302 | CJ31: 2302 | CK31: -13.5 | CL31: -13.48382351 | CM31: 378.6216128 | CN31: -54.45088636 | CO31: 0 | CP31: 186.8406912 | CQ31: 378.6216128 | CR31: 186.8406912 | CS31: 2252 | CT31: 2252 | CU31: -13.5 | CV31: -13.48382351 | CW31: 370.1049874 | CX31: -54.45088636 | CY31: 0 | CZ31: 181.5997856 | DA31: 370.1049874 | DB31: 181.5997856 | DC31: 2202 | DD31: 2202 | DE31: -13.5 | DF31: -13.48382351 | DG31: 361.5883619 | DH31: -54.45088636 | DI31: 0 | DJ31: 176.3588801 | DK31: 361.5883619 | DL31: 176.3588801 | DM31: 2152 | DN31: 2152 | DO31: -13.5 | DP31: -13.48382351 | DQ31: 353.0717364 | DR31: -54.45088636 | DS31: 0 | DT31: 171.1179746 | DU31: 353.0717364 | DV31: 171.1179746 | DW31: 2102 | DX31: 2102 | DY31: -13.5 | DZ31: -13.48382351 | EA31: 344.555111 | EB31: -54.45088636 | EC31: 0 | ED31: 165.8770691 | EE31: 344.555111 | EF31: 165.8770691 | EG31: 2052 | EH31: 2052 | EI31: -13.5 | EJ31: -13.48382351 | EK31: 336.0384855 | EL31: -54.45088636 | EM31: 0 | EN31: 160.6361635 | EO31: 336.0384855 | EP31: 160.6361635 | EQ31: 2002 | ER31: 2002 | ES31: -13.5 | ET31: -13.48382351 | EU31: 327.5218601 | EV31: -54.45088636 | EW31: 0 | EX31: 155.395258 | EY31: 327.5218601 | EZ31: 155.395258 | FA31: 1952 | FB31: 1952 | FC31: -13.5 | FD31: -13.48382351 | FE31: 319.0052346 | FF31: -54.45088636 | FG31: 0 | FH31: 150.1543525 | FI31: 319.0052346 | FJ31: 150.1543525 | FK31: 1902 | FL31: 1902 | FM31: -13.5 | FN31: -13.48382351 | FO31: 310.4886091 | FP31: -54.45088636 | FQ31: 0 | FR31: 144.913447 | FS31: 310.4886091 | FT31: 144.913447 | FU31: 1852 | FV31: 1852 | FW31: -13.5 | FX31: -13.48382351 | FY31: 301.9719837 | FZ31: -54.45088636 | GA31: 0 | GB31: 139.6725414 | GC31: 301.9719837 | GD31: 139.6725414 | GE31: 1802 | GF31: 1802 | GG31: -13.5 | GH31: -13.48382351 | GI31: 293.4553582 | GJ31: -54.45088636 | GK31: 0 | GL31: 134.4316359 | GM31: 293.4553582 | GN31: 134.4316359 | GO31: 1752 | GP31: 1752 | GQ31: -13.5 | GR31: -13.48382351 | GS31: 284.9387327 | GT31: -54.45088636 | GU31: 0 | GV31: 129.1907304 | GW31: 284.9387327 | GX31: 129.1907304 | GY31: 1702 | GZ31: 1702 | HA31: -13.5 | HB31: -13.48382351 | HC31: 276.4221073 | HD31: -54.45088636 | HE31: 0 | HF31: 123.9498249 | HG31: 276.4221073 | HH31: 123.9498249 | HI31: 1652 | HJ31: 1652 | HK31: -13.5 | HL31: -13.48382351 | HM31: 267.9054818 | HN31: -54.45088636 | HO31: 0 | HP31: 118.7089193 | HQ31: 267.9054818 | HR31: 118.7089193 | HS31: 1602 | HT31: 1602 | HU31: -13.5 | HV31: -13.48382351 | HW31: 259.3888563 | HX31: -54.45088636 | HY31: 0 | HZ31: 113.4680138 | IA31: 259.3888563 | IB31: 113.4680138 | IC31: 1552 | ID31: 1552 | IE31: -13.5 | IF31: -13.48382351 | IG31: 250.8722309 | IH31: -54.45088636 | II31: 0 | IJ31: 108.2271083 | IK31: 250.8722309 | IL31: 108.2271083 | IM31: 1502 | IN31: 1502 | IO31: -13.5 | IP31: -13.48382351 | IQ31: 242.3556054 | IR31: -54.45088636 | IS31: 0 | IT31: 102.9862028 | IU31: 242.3556054 | IV31: 102.9862028 | IW31: 1452 | IX31: 1452 | IY31: -13.5 | IZ31: -13.48382351 | JA31: 233.83898 | JB31: -54.45088636 | JC31: 0 | JD31: 97.74529725 | JE31: 233.83898 | JF31: 97.74529725 | JG31: 1402 | JH31: 1402 | JI31: -13.5 | JJ31: -13.48382351 | JK31: 225.3223545 | JL31: -54.45088636 | JM31: 0 | JN31: 92.50439172 | JO31: 225.3223545 | JP31: 92.50439172 | JQ31: 1352 | JR31: 1352 | JS31: -13.5 | JT31: -13.48382351 | JU31: 216.805729 | JV31: -54.45088636 | JW31: 0 | JX31: 87.2634862 | JY31: 216.805729 | JZ31: 87.2634862 | KA31: 1302 | KB31: 1302 | KC31: -13.5 | KD31: -13.48382351 | KE31: 208.2891036 | KF31: -54.45088636 | KG31: 0 | KH31: 82.02258067 | KI31: 208.2891036 | KJ31: 82.02258067 | KK31: 1252 | KL31: 1252 | KM31: -13.5 | KN31: -13.48382351 | KO31: 199.7724781 | KP31: -54.45088636 | KQ31: 0 | KR31: 76.78167515 | KS31: 199.7724781 | KT31: 76.78167515 | KU31: 1202 | KV31: 1202 | KW31: -13.5 | KX31: -13.48382351 | KY31: 191.2558526 | KZ31: -54.45088636 | LA31: 0 | LB31: 71.54076963 | LC31: 191.2558526 | LD31: 71.54076963 | LE31: 1152 | LF31: 1152 | LG31: -13.5 | LH31: -13.48382351 | LI31: 182.7392272 | LJ31: -54.45088636 | LK31: 0 | LL31: 66.2998641 | LM31: 182.7392272 | LN31: 66.2998641 | LO31: 1102 | LP31: 1102 | LQ31: -13.5 | LR31: -13.48382351 | LS31: 174.2226017 | LT31: -54.45088636 | LU31: 0 | LV31: 61.05895858 | LW31: 174.2226017 | LX31: 61.05895858 | LY31: 1052 | LZ31: 1052 | MA31: -13.5 | MB31: -13.48382351 | MC31: 165.7059762 | MD31: -54.45088636 | ME31: 0 | MF31: 55.81805305 | MG31: 165.7059762 | MH31: 55.81805305 | MI31: 1002 | MJ31: 1002 | MK31: -13.5 | ML31: -13.48382351 | MM31: 157.1893508 | MN31: -54.45088636 | MO31: 0 | MP31: 50.57714753 | MQ31: 157.1893508 | MR31: 50.57714753
E32: =$T32/($S32-ShmEIO_arxH) -> 0 | G32: 0.4173897419 | H32: -27.18263544 | I32: 20.38889286 | AC32: alfa=b²-(at)²
E33: =$T33/($S33-ShmEIO_arxH) -> 0 | G33: 0.3999985026 | H33: -27.42888777 | I33: 19.43925956 | AC33: beta=(b²k+a²t²s-y0a²t)
E34: =$T34/($S34-ShmEIO_arxH) -> 0 | G34: 0.3826072634 | H34: -27.66176423 | I34: 18.50349076 | W34: =thet_ymegisto -> 0.8695619622 | AC34: gama=b²(k²-a²)-a²t²s²-a²y0²+2y0a²ts
E35: =$T35/($S35-ShmEIO_arxH) -> 0 | G35: 0.3652160241 | H35: -27.88168915 | I35: 17.58073096 | J35: 1 | K35: =J35+1 -> 2 | L35: =K35+1 -> 3 | M35: 4 | N35: 5 | O35: 6 | P35: 7 | Q35: 8 | R35: 9 | S35: 10 | W35: riza | BO35: =$V36+BN36/dEIKTHS*COS(BD36) ->  | BP35: =$W36+TAN($AQ36*(BO35-$V36)) ->  | BQ35: =SQRT((BO35-$AZ36)^2+(BP35-$BB36)^2) ->  | BR35: =INT(BQ35*dEIKTHS/DT) ->  | BS35: =$BQ35*dEIKTHS ->  | BT35: =$BS35-$BR35*DT ->  | BU35: =DT-BT35 ->  | BV35: =$AZ36+COS($AR36)*BU35 ->  | BW35: =$BB36+TAN($AR36)*(BV35-$AZ36) ->  | BX35: =$BL36+$BR35 ->  | BY35: =vimata-BX35 ->  | BZ35: =vimata-$BL36 -> 2787 | CA35: =IF((vimata)<=$BL36,ShmEIO_arxH+COS($L36)*(vimata)*DT,$AZ36) ->  | CB35: =IF($BY35*$BZ35<0,$BO35+$BZ35*DT/dEIKTHS*COS($AR36),IF($BY35>0,$AW36,0)) ->  | CC35: =IF(BY35>0,$BV35+$BY35*COS(ATAN((0-BW35)/(thesif-$BV35)))*DT,0) ->  | CD35: =TAN($L36)*(CA35-ShmEIO_arxH) ->  | CE35: =IF(BZ35>=0,BP35+TAN($AR36)*(CB35-BO35),0) ->  | CF35: =IF(BY35>0,BW35+(0-BW35)/(thesif-BV35)*(CC35-BV35),0) ->  | CG35: =IF(vimata<=$BL36,CA35,IF($BY35*$BZ35<0,$CB35,$CC35)) ->  | CH35: =IF(vimata<=$BL36,$CD35,IF($BY35*$BZ35<0,$CE35,$CF35)) -> 
G36: 0.3478247849 | H36: -28.08905677 | I36: 16.6701638 | L36: =ARXIKH_THESH -> -128 | Q36: ="" ->  | R36: AKYRO | V36: =S11 -> -13.5 | W36: =T11 -> 54.45088636 | X36: =$K36 -> 0 | Y36: =IF(W36<>ShmEIO_arxH,-2*Ah+Ah/COS($W36),ShmEIO_arxH) -> -119.6504775 | Z36: =IF(Y36<>ShmEIO_arxH,$N36,ShmEIO_arxH) -> 0 | AA36: =N36 -> 0 | AB36: =O36 -> 0 | AC36: =P36 -> 0 | AD36: =Q36 ->  | AE36: =R36 -> AKYRO | AW36: =#REF!*dEIKTHS+AU36*AS36 ->  | AX36: =AW36^2-(dEIKTHS^2-1)*(#REF!^2-AV36) ->  | AY36: =(AW36-SQRT(AX36))/(dEIKTHS^2-1) ->  | AZ36: =($V36+AY36*AS36) ->  | BA36: =AZ36-$V36 ->  | BB36: =$W36+BA36*$AT36 ->  | BC36: =BB36-W36 ->  | BD36: =SQRT(BA36^2+BC36^2) ->  | BE36: for min | BF36: =0-BB36 ->  | BG36: =SQRT(BE36^2+BF36^2) ->  | BH36: =AI36+dEIKTHS*BD36+BG36 ->  | BI36: =AI36 -> 0 | BL36: =INT(BI36/DT) -> 0 | BM36: =BI36-BL36*DT -> 0 | BN36: =DT-BM36 -> 0.25
G37: 0.3304335456 | H37: -28.28423306 | I37: 15.77100892 | J37: =IF(M37<>"",1,0) -> 1 | K37: =ARXIKH_THESH -> -128 | L37: =IF($T11<=Y_MEGISTO,$S11,K37) -> -13.5 | M37: =IF(ABS($T11)<=max_y,$AZ11,L37) -> -13.5 | N37: =IF(M37<>x_meg2,IF(L37<>M37,thesif,M37),thesif) -> 75 | O37: 0 | P37: =IF(L37=ARXIKH_THESH,0,$T11) -> 54.45088636 | Q37: =IF(ABS($T11)<Y_MEGISTO,$BB11,P37) -> 54.45088636 | R37: =IF(N37=ARXIKH_THESH,0,IF(AND(Q37<>AKYRO,Q38=AKYRO),1,0)) -> 0 | S37: =37 -> 37 | T37: =37 -> 37 | V37: =X11 -> ray1 | W37: =RizaHuygFiHyp(ShmEIO_arxH,object_y,M37,Q37,Ah,BAH,Cah,Y_MEGISTO,x_meg2,DEIKT_HUYGENS,thet_ymegisto) ->  | X37: =$K37 -> -128 | Z37: =M37 -> -13.5 | AA37: =N37 -> 75 | AB37: =object_y -> 16 | AC37: =IF(W37<>ShmEIO_arxH,BAH*TAN(W37),0) ->  | AD37: =IF(AC37<>0,Q37,0) ->  | AE37: =R37 -> 0 | AG37: DX1 | AH37: DY1 | AI37: DX2 | AJ37: DY2 | AK37: EXOT2 | AL37: ASIN2 | AM37: GONIAMESA | AN37: DYDX | AO37: KTXY | AP37: KATX | AQ37: KATHY | AR37: PROSPTOSI
G38: 0.3130423064 | H38: =-2*Ah+Ah/COS(G38) -> -28.46755742 | I38: =BAH*TAN(G38) -> 14.88251906 | J38: =IF(M38<>"",1,0) -> 1 | K38: -128 | L38: -16.15456124 | M38: =IF(ABS($T12)<=Y_MEGISTO,$AZ12,L38) -> -9.23805294 | N38: =IF(L38<>M38,thesif,M38) -> 75 | O38: 0 | P38: =IF(L38=ARXIKH_THESH,0,$T12) -> 49.00579772 | Q38: =IF(M38=L38,P38,IF(ABS($T12)<Y_MEGISTO,$BB12,P38)) -> 48.87925189 | R38: =IF(N38=ARXIKH_THESH,0,IF(N38=L38,P38,0)) -> 0 | S38: =S37+1 -> 38 | T38: =T37+1 -> 38 | V38: ray2 | W38: =RizaHuygFiHyp(ShmEIO_arxH,object_y,M38,Q38,Ah,BAH,Cah,Y_MEGISTO,x_meg2,DEIKT_HUYGENS,thet_ymegisto) -> 0.8207988459 | X38: -128 | Y38: -15.98829926 | Z38: =M38 -> -9.23805294 | AA38: =IF(Z38<>ShmEIO_arxH,N38,ShmEIO_arxH) -> 75 | AB38: 16 | AC38: 49.35462798 | AD38: 48.87925189 | AE38: =R38 -> 0 | AG38: =(Y38-ShmEIO_arxH) -> 112.0117007 | AH38: =AC38-object_y -> 33.35462798 | AI38: =$Z38-$Y38 -> 6.750246317 | AJ38: =$AD38-$AC38 -> -0.475376088 | AK38: =AI38*AQ38-AJ38*AP38 -> -2.479237659 | AL38: =AK38/SQRT(AI38^2+AJ38^2) -> -0.3663736791 | AM38: =ASIN(AL38) -> -0.3751087064 | AN38: =BAH/Ah/SIN($W38) -> 2.094617833 | AO38: =-1/AN38 -> -0.4774140583 | AP38: =1/SQRT(1+AO38^2) -> 0.9024314532 | AQ38: =AP38*AO38 -> -0.4308334624 | AR38: =(AG38*AQ38-AH38*AP38)/SQRT(AG38^2+AH38^2) -> -0.6704634305 | AS38: =ASIN(AR38/DEIKT_HUYGENS) -> -0.3751084702 | AT38: =SQRT(AP38^2+AQ38^2) -> 1 | AU38: =tetartoHyp(Y38,AC38,Z38,AD38,BI104,DEIKT_HUYGENS,DEIKT_BACK) -> -0.5930206104 | AV38: =DYDXHYP(BI104) -> -0.7225539031 | BB38: =IF(BA11<>0,BB11,0) -> 0 | BD38: miki 38 | BE38: 0.9066204358 | BF38: =$W38 -> 0.8207988459 | BG38: 992 | BH38: 992 | BI38: 148.7136467 | BJ38: 0.9069153676
G39: =G38-dthm -> 0.2956510672 | H39: -28.6393442 | I39: 14.00397732 | J39: 1 | K39: -128 | L39: -18.67397914 | M39: -4.880954237 | N39: 75 | O39: 0 | P39: 43.56070909 | Q39: 43.30403442 | R39: 0 | S39: =S38+1 -> 39 | T39: =T38+1 -> 39 | V39: ray3 | W39: 0.7670356019 | X39: -128 | Y39: -18.33166279 | Z39: =IF(Y39<>ShmEIO_arxH,M39,ShmEIO_arxH) -> -4.880954237 | AA39: 150 | AB39: 16 | AC39: 44.32006758 | AD39: 43.30403442 | AE39: =AD39+AU39*(AA39-Z39) -> -41.89996536 | AG39: 109.6683372 | AH39: 28.32006758 | AI39: 13.45070855 | AJ39: -1.016033163 | AK39: -4.622897201 | AL39: -0.3427153613 | AM39: -0.3498057856 | AN39: 2.208362095 | AO39: -0.4528242911 | AP39: 0.910956199 | AQ39: -0.4125030951 | AR39: =(AG39*AQ39-AH39*AP39)/SQRT(AG39^2+AH39^2) -> -0.62716892 | AS39: -0.3498056744 | AT39: =SQRT(AP39^2+AQ39^2) -> 1 | AU39: -0.5501257414 | BB39: =IF(BA12<>0,BB12,0) -> 48.87925189 | BD39: miki 39 | BE39: 0.8389335816 | BF39: =$W39 -> 0.7670356019 | BG39: 955 | BH39: 955 | BI39: 157.0164205 | BJ39: 0.8387123827
G40: 0.2782598279 | H40: -28.79988409 | I40: 13.13469472 | J40: 1 | K40: -128 | L40: -21.03203239 | M40: -0.6875679839 | N40: 75 | O40: 0 | P40: 38.11562045 | Q40: 37.73757205 | R40: 0 | S40: 40 | T40: 40 | V40: ray4 | W40: 0.7076989041 | X40: -128 | Y40: -20.51903253 | Z40: -0.6875679839 | AA40: 150 | AB40: 16 | AC40: 39.33612004 | AD40: 37.73757205 | AE40: =AD40+AU40*(AA40-Z40) -> -38.10206148 | AG40: 107.4809675 | AH40: 23.33612004 | AI40: 19.83146455 | AJ40: -1.598547988 | AK40: -6.272410781 | AL40: -0.315263265 | AM40: -0.3207340531 | AN40: 2.357549356 | AO40: -0.4241692745 | AP40: 0.9206059918 | AQ40: -0.3904927756 | AR40: -0.5769316511 | AS40: -0.3207339818 | AT40: 1 | AU40: -0.5032905803 | BB40: 43.30403442 | BD40: miki 40 | BE40: 0.7654955567 | BF40: 0.7076989041 | BG40: 915 | BH40: 915 | BI40: 170.1305804 | BJ40: 0.764979426
G41: 0.2608685887 | H41: -28.94944536 | I41: 12.27400777 | J41: 1 | K41: -128 | L41: -23.19769029 | M41: 3.286810052 | N41: 75 | O41: 0 | P41: 32.67053181 | Q41: 32.1915867 | R41: 0 | S41: 41 | T41: 41 | V41: ray5 | W41: 0.6423017045 | X41: -128 | Y41: -22.53367599 | Z41: 3.286810052 | AA41: 150 | AB41: 16 | AC41: 34.39768412 | AD41: 32.1915867 | AE41: -34.13640678 | AG41: 105.466324 | AH41: 18.39768412 | AI41: 25.82048605 | AJ41: -2.206097425 | AK41: -7.345024436 | AL41: -0.2834323536 | AM41: -0.2873713514 | AN41: 2.558446904 | AO41: -0.3908621275 | AP41: 0.9313824791 | AQ41: -0.3640421373 | AR41: -0.5186811845 | AS41: -0.2873713385 | AT41: 1 | AU41: -0.4520929134 | BB41: 37.73757205 | BD41: miki 41 | BE41: 0.6858639634 | BF41: 0.6423017045 | BG41: 872 | BH41: 872 | BI41: 181.9964271 | BJ41: 0.6857164975
G42: 0.2434773494 | H42: -29.08827502 | I42: 11.42127639 | J42: 1 | K42: -128 | L42: -25.1350821 | M42: 6.968160301 | N42: 75 | O42: 0 | P42: 27.22544318 | Q42: 26.68070969 | R42: 0 | S42: 42 | T42: 42 | V42: ray6 | W42: 0.5703534238 | X42: -128 | Y42: -24.35827929 | Z42: 6.968160301 | AA42: 150 | AB42: 16 | AC42: 29.49361683 | AD42: 26.68070969 | AE42: -30.02170929 | AG42: 103.6417207 | AH42: 13.49361683 | AI42: 31.32643959 | AJ42: -2.812907137 | AK42: -7.755972326 | AL42: -0.2465933765 | AM42: -0.2491634989 | AN42: 2.838540904 | AO42: -0.3522936727 | AP42: 0.9431818474 | AQ42: -0.332276997 | AR42: -0.4512658397 | AS42: -0.2491634768 | AT42: 1 | AU42: -0.3964321448 | BB42: 32.1915867 | BD42: miki 42 | BE42: 0.5998176029 | BF42: 0.5703534238 | BG42: 825 | BH42: 825 | BI42: 190.7698983 | BJ42: 0.5990802733
G43: 0.2260861102 | H43: -29.21659984 | I43: 10.57588178 | J43: 1 | K43: -128 | L43: -26.80421714 | M43: 10.26018582 | N43: 75 | O43: 0 | P43: 21.78035454 | Q43: 21.22072983 | R43: 0 | S43: 43 | T43: 43 | V43: ray7 | W43: 0.4913492495 | X43: -128 | Y43: -25.97470806 | Z43: 10.26018582 | AA43: 150 | AB43: 16 | AC43: 24.60405784 | AD43: 21.22072983 | AE43: -25.81319152 | AG43: 102.0252919 | AH43: 8.60405784 | AI43: 36.23489388 | AJ43: -3.383328005 | AK43: -7.427615153 | AL43: -0.2040973846 | AM43: -0.205541595 | AN43: 3.248326302 | AO43: -0.3078508459 | AP43: 0.9557364091 | AQ43: -0.294224262 | AR43: -0.3734981915 | AS43: -0.2055415826 | AT43: 1 | AU43: -0.3365821089 | BB43: 26.68070969 | BD43: miki 43 | BE43: 0.5073564752 | BF43: 0.4913492495 | BG43: 775 | BH43: 775 | BI43: 196.8124778 | BJ43: 0.5069140774
G44: 0.2086948709 | H44: -29.3346273 | I44: 9.737224572 | J44: 1 | K44: -128 | L44: -28.16287544 | M44: 13.04339294 | N44: 75 | O44: 0 | P44: 16.33526591 | Q44: 15.8248275 | R44: 0 | S44: 44 | T44: 44 | V44: ray8 | W44: 0.4047463447 | X44: -128 | Y44: -27.36300639 | Z44: 13.04339294 | AA44: 150 | AB44: 16 | AC44: 19.69709842 | AD44: 15.8248275 | AE44: -21.59353026 | AG44: 100.6369936 | AH44: 3.69709842 | AI44: 40.40639933 | AJ44: -3.872270918 | AK44: -6.304862476 | AL44: -0.155324617 | AM44: -0.15595605 | AN44: 3.891996306 | AO44: -0.2569375512 | AP44: 0.9685408755 | AQ44: -0.2488545208 | AR44: -0.2842440359 | AS44: -0.1559560427 | AT44: 1 | AU44: -0.2732132356 | BB44: 21.22072983 | BD44: miki 44 | BE44: 0.4085543132 | BF44: 0.4047463447 | BG44: 722 | BH44: 722 | BI44: 201.8874394 | BJ44: 0.4092179098
G45: 0.1913036317 | H45: -29.44254643 | I45: 8.904723016 | J45: 1 | K45: -128 | L45: -29.16998216 | M45: 15.18073226 | N45: 75 | O45: 0 | P45: 10.89017727 | Q45: 10.49795564 | R45: 0 | S45: 45 | T45: 45 | V45: ray9 | W45: 0.3099561834 | X45: -128 | Y45: -28.49887485 | Z45: 15.18073226 | AA45: 150 | AB45: 16 | AC45: 14.72591348 | AD45: 10.49795564 | AE45: -17.45531896 | AG45: 99.50112515 | AH45: -1.274086522 | AI45: 43.67960712 | AJ45: -4.227957842 | AK45: -4.379172993 | AL45: -0.0997903045 | AM45: -0.09995667149 | AN45: 5.024679316 | AO45: -0.199017676 | AP45: 0.980765513 | AQ45: -0.1951896731 | AR45: -0.1826162505 | AS45: -0.0999566678 | AT45: 1 | AU45: -0.2073388698 | BB45: 15.8248275 | BD45: miki 45 | BE45: 0.3033373839 | BF45: 0.3099561834 | BG45: 665 | BH45: 665 | BI45: 204.3415099 | BJ45: 0.3041484465
C46: =BSAHL/BAH*H46 -> 0.1254069425 | G46: 0.1739123924 | H46: -29.54052855 | I46: 8.077811254 | J46: 1 | K46: -128 | L46: -29.7903575 | M46: 16.53501184 | N46: 75 | O46: 0 | P46: 5.445088636 | Q46: =IF(M46=L46,P46,IF(ABS($T20)<Y_MEGISTO,$BB20,P46)) -> 5.231232315 | R46: 0 | S46: 46 | T46: 46 | V46: ray10 | W46: 0.2064515612 | X46: -128 | Y46: -29.34911193 | Z46: 16.53501184 | AA46: 150 | AB46: 16 | AC46: 9.629505852 | AD46: 5.231232315 | AE46: 5.231232315 | AG46: 98.65088807 | AH46: -6.370494148 | AI46: 45.88412377 | AJ46: -4.398273537 | AK46: -1.72341803 | AL46: -0.03738884644 | AM46: -0.03739756307 | AN46: 7.476590398 | AO46: -0.1337508071 | AP46: 0.9911736091 | AQ46: -0.1325702702 | AR46: -0.06842158525 | AS46: -0.03739756102 | AT46: 1 | AU46: 0 | BB46: 10.49795564 | BD46: miki 46 | BE46: 0.1914107556 | BF46: 0.2064515612 | BG46: 604 | BH46: 604 | BI46: 207.0851732 | BJ46: 0.1917056875
C47: 0.1257813711 | G47: 0.1565211532 | H47: -29.62872796 | I47: 7.255937729 | J47: 1 | K47: -128 | L47: -30 | M47: 17 | N47: 75 | O47: 0 | P47: 0 | Q47: 0 | R47: 0 | S47: 47 | T47: 47 | V47: ray11 | W47: 0.09416460649 | X47: -128 | Y47: -29.86650223 | Z47: 17 | AA47: 150 | AB47: 16 | AC47: 4.342376771 | AD47: 0 | AE47: -9.680829271 | AG47: 98.13349777 | AH47: -11.65762323 | AI47: 46.86650223 | AJ47: -4.342376771 | AK47: 1.464371178 | AL47: 0.03111232179 | AM47: 0.03111734331 | AN47: 16.29996121 | AO47: -0.06134983925 | AP47: 0.9981233943 | AQ47: -0.0612347098 | AR47: 0.05693555055 | AS47: 0.03111734423 | AT47: 1 | AU47: -0.07278819001 | BB47: 5.231232315 | BD47: miki 47 | BE47: 0.07262696237 | BF47: 0.09416460649 | BG47: 539 | BH47: 539 | BI47: 206.08506 | BJ47: 0.0718896328
C48: 0.126114855 | G48: 0.139129914 | H48: -29.70728256 | I48: 6.438563648 | J48: 1 | K48: -128 | L48: -29.7903575 | M48: 16.53501184 | N48: 75 | O48: 0 | P48: -5.445088636 | Q48: -5.231232315 | R48: 0 | S48: 48 | T48: 48 | V48: ray12 | W48: -0.02573156339 | X48: -128 | Y48: -29.99006556 | Z48: 16.53501184 | AA48: 150 | AB48: 16 | AC48: -1.183356384 | AD48: -5.231232315 | AE48: -6.056131967 | AG48: 98.00993444 | AH48: -17.18335638 | AI48: 46.5250774 | AJ48: -4.047875931 | AK48: 4.828235293 | AL48: 0.1033864842 | AM48: 0.1035715548 | AN48: -59.56813685 | AO48: 0.01678749836 | AP48: 0.9998591197 | AQ48: 0.01678513334 | AR48: 0.1891972661 | AS48: 0.1035715548 | AT48: 1 | AU48: -0.006180644554 | BB48: 0 | BD48: miki 48 | BE48: -0.05257159814 | BF48: -0.02573156339 | BG48: 471 | BH48: 471 | BI48: 207.5842506 | BJ48: -0.05345639362 | DJ48: SHMEIO_TELOYS
C49: 0.1264079123 | G49: 0.1217386747 | H49: -29.77631434 | I49: 5.625161521 | J49: 1 | K49: -128 | L49: -29.16998216 | M49: 15.18073226 | N49: 75 | O49: 0 | P49: -10.89017727 | Q49: -10.49795564 | R49: 0 | S49: 49 | T49: 49 | V49: ray13 | W49: -0.1500333709 | X49: -128 | Y49: -29.65915368 | Z49: 15.18073226 | AA49: 150 | AB49: 16 | AC49: -6.950519538 | AD49: -10.49795564 | AE49: -2.563418307 | AG49: 98.34084632 | AH49: -22.95051954 | AI49: 44.83988594 | AJ49: -3.547436099 | AK49: 7.883135922 | AL49: 0.1752587225 | AM49: 0.1761685518 | AN49: -10.25356645 | AO49: 0.09752704145 | AP49: 0.9952778973 | AQ49: 0.09706650875 | AR49: 0.3207234589 | AS49: 0.1761685501 | AT49: 1 | AU49: 0.05885314067 | BB49: -5.231232315 | BD49: miki 49 | BE49: -0.1816042724 | BF49: -0.1500333709 | BG49: 401 | BH49: 401 | BI49: 202.6461921 | BJ49: -0.1824890679 | DJ49: 300
C50: 0.1266609953 | G50: 0.1043474355 | H50: -29.83592991 | I50: 4.815213757 | J50: 1 | K50: -128 | L50: -28.16287544 | M50: 13.04339294 | N50: 75 | O50: 0 | P50: -16.33526591 | Q50: -15.8248275 | R50: 0 | S50: 50 | T50: 50 | V50: ray14 | W50: -0.2736463746 | X50: -128 | Y50: -28.84061825 | Z50: 13.04339294 | AA50: 150 | AB50: 16 | AC50: -12.90556542 | AD50: -15.8248275 | AE50: 0.7974669428 | AG50: 99.15938175 | AH50: -28.90556542 | AI50: 41.8840112 | AJ50: -2.919262086 | AK50: 10.14807285 | AL50: 0.2417035233 | AM50: 0.2441210441 | AN50: -5.67121776 | AO50: 0.1763289724 | AP50: 0.9848074176 | AQ50: 0.17365008 | AR50: 0.4423174436 | AS50: 0.2441210419 | AT50: 1 | AU50: 0.1213690584 | BB50: -10.49795564 | BD50: miki 50 | BE50: -0.3101945489 | BF50: -0.2736463746 | BG50: 332 | BH50: 332 | BI50: 206.2470314 | BJ50: -0.3096784182
C51: 0.1268744929 | G51: 0.08695619622 | H51: -29.88622086 | I51: 4.008211316 | J51: 1 | K51: -128 | L51: -26.80421714 | M51: 10.26018582 | N51: 75 | O51: 0 | P51: -21.78035454 | Q51: -21.22072983 | R51: 0 | S51: 51 | T51: 51 | U51: =$BJ51 -> -0.4331811207 | V51: ray15 | W51: -0.3911216247 | X51: -128 | Y51: =IF(U51<>ShmEIO_arxH,-2*Ah+Ah/COS($U51),ShmEIO_arxH) -> -26.94706705 | Z51: 10.26018582 | AA51: 150 | AB51: 16 | AC51: =IF(U51<>ShmEIO_arxH,BAH*TAN(U51),0) -> -21.26393046 | AD51: -21.22072983 | AE51: 18.9807934 | AG51: 101.0529329 | AH51: -37.26393046 | AI51: =$Z51-$Y51 -> 37.20725287 | AJ51: =$AD51-$AC51 -> 0.0432006275 | AK51: =AI51*AQ51-AJ51*AP51 -> 9.786889695 | AL51: =AK51/SQRT(AI51^2+AJ51^2) -> 0.2630369711 | AM51: =ASIN(AL51) -> 0.2661686777 | AN51: =BAH/Ah/SIN($U51) -> -3.651161028 | AO51: =-1/AN51 -> 0.2738854826 | AP51: =1/SQRT(1+AO51^2) -> 0.9644796971 | AQ51: =AP51*AO51 -> 0.2641569873 | AR51: =(AG51*AQ51-AH51*AP51)/SQRT(AG51^2+AH51^2) -> 0.5815360016 | AS51: 0.3233863939 | AT51: 1 | AU51: 0.2876883977 | BB51: -15.8248275 | BD51: miki 51 | BE51: -0.4336235185 | BF51: =$U51 -> -0.4331811207 | BG51: 265 | BH51: 265 | BI51: 193.211041 | BJ51: -0.4331811207
C52: 0.1270487318 | G52: 0.06956495698 | H52: -29.9272641 | I52: 3.203652409 | J52: 1 | K52: -128 | L52: -25.1350821 | M52: 6.968160301 | N52: 75 | O52: 0 | P52: -27.22544318 | Q52: -26.68070969 | R52: 0 | S52: 52 | T52: 52 | V52: ray16 | W52: -0.4985044058 | X52: -128 | Y52: =IF(W52<>ShmEIO_arxH,-2*Ah+Ah/COS($W52),ShmEIO_arxH) -> -25.8430518 | Z52: 6.968160301 | AA52: 150 | AB52: 16 | AC52: =IF(W52<>ShmEIO_arxH,BAH*TAN(W52),0) -> -25.02888018 | AD52: =IF(AC52<>0,Q52,0) -> -26.68070969 | AE52: 6.877846879 | AF52: =V52 -> ray16 | AG52: 102.1569482 | AH52: -41.02888018 | AI52: =$Z52-$Y52 -> 32.8112121 | AJ52: =$AD52-$AC52 -> -1.651829511 | AK52: =AI52*AQ52-AJ52*AP52 -> 11.34821217 | AL52: =AK52/SQRT(AI52^2+AJ52^2) -> 0.3454263928 | AM52: =ASIN(AL52) -> 0.3526931077 | AN52: =BAH/Ah/SIN($W52) -> -3.205547154 | AO52: =-1/AN52 -> 0.3119592232 | AP52: =1/SQRT(1+AO52^2) -> 0.9546268344 | AQ52: =AP52*AO52 -> 0.2978046457 | AR52: =(AG52*AQ52-AH52*AP52)/SQRT(AG52^2+AH52^2) -> 0.63213029 | AS52: 0.3526931026 | AT52: 1 | AU52: 0.2346229807 | BB52: -21.22072983 | BD52: miki 52 | BE52: -0.548573198 | BF52: -0.4985044058 | BG52: 202 | BH52: 202 | BI52: 200.4809205 | BJ52: -0.5493105276
C53: 0.1271839773 | G53: 0.05217371773 | H53: -29.95912219 | I53: 2.401041228 | J53: 1 | K53: -128 | L53: -23.19769029 | M53: 3.286810052 | N53: 75 | O53: 0 | P53: -32.67053181 | Q53: -32.1915867 | R53: 0 | S53: 53 | T53: 53 | V53: ray17 | W53: -0.5940573918 | X53: -128 | Y53: -23.79769301 | Z53: 3.286810052 | AA53: 150 | AB53: 16 | AC53: =IF(W53<>ShmEIO_arxH,BAH*TAN($BE53),0) -> -35.19645249 | AD53: -32.1915867 | AE53: 64.64845259 | AG53: 104.202307 | AH53: -51.19645249 | AI53: =$Z53-$Y53 -> 27.08450306 | AJ53: =$AD53-$AC53 -> 3.004865796 | AK53: =AI53*AQ53-AJ53*AP53 -> 6.468807109 | AL53: =AK53/SQRT(AI53^2+AJ53^2) -> 0.237381499 | AM53: 0.2396694101 | AN53: =BAH/Ah/SIN($W53) -> -2.738137919 | AO53: 0.3652116984 | AP53: 0.9393172701 | AQ53: 0.3430496556 | AR53: =(AG53*AQ53-AH53*AP53)/SQRT(AG53^2+AH53^2) -> 0.7221043608 | AS53: 0.4056243737 | AT53: 1 | AU53: 0.6600636202 | BB53: -26.68070969 | BD53: miki 53 | BE53: -0.6533477295 | BF53: -0.5940573918 | BG53: 146 | BH53: 146 | BI53: 177.2072141 | BJ53: -0.652536667 | BO53: =BO55+DEIKT_HUYGENS*BO54 -> 159.3222595 | BP53: 156.3133622 | BQ53: 153.7619389 | BR53: 151.6473783 | BS53: 149.943702 | BT53: 148.6198859 | BU53: 147.6410262 | BV53: 146.9700532 | BW53: 146.5695903 | BX53: 146.4036029 | BY53: 146.4386219 | BZ53: 146.6444838 | CA53: 146.9946398 | CB53: 147.4661433 | CC53: 148.0394277 | CD53: 148.6979739 | CE53: 149.4279327 | CF53: 150.2177509 | CG53: 151.0578223 | CH53: 151.9401779 | CI53: 152.858217 | CJ53: 153.8064796 | CK53: 154.7804545 | CL53: 155.7764199 | CM53: 156.7913115 | CN53: 157.8226133 | CO53: 158.8682677 | CP53: 159.9266015 | CQ53: 160.9962647 | CR53: 162.0761799 | CS53: 163.1655009 | CT53: 164.2635781 | CU53: =CU55+DEIKT_HUYGENS*CU54 -> 165.3699295 | CV53: 166.4842177 | CW53: 167.6062296 | CX53: 168.7358601 | CY53: 169.8730989 | CZ53: 171.0180184 | DA53: 172.170765 | DB53: 173.331551 | DC53: 174.5006478 | DD53: 175.6783813 | DE53: 176.865127 | DF53: 178.0613068 | DG53: 179.2673862 | DH53: 180.483872 | DI53: 181.7113107 | DJ53: 182.9502879 | DK53: 184.2014269 | DL53: 185.4653887 | DM53: 186.7428723 | DN53: 188.0346147 | DO53: 189.3413917 | DP53: 190.6640191 | DQ53: 192.0033535 | DR53: 193.3602942 | DS53: 194.735785 | DT53: 196.1308159 | DU53: 197.5464256 | DV53: 198.9837042 | DW53: 200.443796 | DX53: 201.9279026 | DY53: 203.4372866 | DZ53: 204.9732752 | EA53: =EA55+DEIKT_HUYGENS*EA54 -> 206.5372645 | EB53: 208.1307242 | EC53: 209.7552021 | ED53: 211.4123305 | EE53: 213.1038309 | EF53: 214.8315215 | EG53: 216.5973236 | EH53: 218.4032696 | EI53: 220.2515113 | EJ53: 222.1443288 | EK53: 224.0841409 | EL53: 226.0735156 | EM53: 228.1151826 | EN53: 230.2120457 | EO53: 232.3671979 | EP53: 234.5839367 | EQ53: 236.8657818 | ER53: 239.2164942 | ES53: 241.6400974 | ET53: 244.1409007 | EU53: 246.7235251 | EV53: 249.3929323 | EW53: 252.1544564 | EX53: 255.0138394 | EY53: 257.977271 | EZ53: 261.0514325 | FA53: 264.2435469 | FB53: 267.561434 | FC53: 271.0135733 | FD53: 274.609174 | FE53: 278.3582552 | FF53: 282.2717352 | FG53: =FG55+DEIKT_HUYGENS*FG54 -> 286.3615346 | FH53: 290.6406924 | FI53: 295.1234993 | FJ53: 299.8256496 | FK53: 304.7644167
C54: 0.1272804352 | G54: 0.03478247849 | H54: -29.98184354 | I54: 1.599886717 | J54: 1 | K54: -128 | L54: -21.03203239 | M54: -0.6875679839 | N54: 75 | O54: 0 | P54: -38.11562045 | Q54: -37.73757205 | R54: 0 | S54: 54 | T54: 54 | V54: ray18 | W54: -0.6778096327 | X54: -128 | Y54: -21.48652464 | Z54: -0.6875679839 | AA54: 150 | AB54: 16 | AC54: =IF(W54<>ShmEIO_arxH,BAH*TAN($BE54),0) -> -42.6320866 | AD54: -37.73757205 | AE54: -37.73757205 | AG54: 106.5134754 | AH54: -58.6320866 | AI54: 20.79895665 | AJ54: 4.894514544 | AK54: 3.346370254 | AL54: 0.1566132321 | AM54: 0.1572606307 | AN54: =BAH/Ah/SIN($W54) -> -2.444013122 | AO54: 0.4091631059 | AP54: 0.9255235379 | AQ54: 0.3786900854 | AR54: 0.7780663565 | AS54: 0.4391528726 | AT54: 1 | AU54: 0 | BB54: -32.1915867 | BD54: miki 54 | BE54: -0.7476521811 | BF54: -0.6778096327 | BG54: 94 | BH54: 94 | BI54: 181.0018727 | BJ54: -0.7483895107 | BO54: =SQRT(($BN$56-BO57)^2+($BN$55-BO56)^2) -> 21.05928036 | BP54: =SQRT(($BN$56-BP57)^2+($BN$55-BP56)^2) -> 20.22006202 | BQ54: 19.58259139 | BR54: 19.13894265 | BS54: 18.87795035 | BT54: 18.78541855 | BU54: 18.84478766 | BV54: 19.03809642 | BW54: 19.34702033 | BX54: 19.75379231 | BY54: 20.24188879 | BZ54: 20.7964493 | CA54: 21.40445917 | CB54: 22.05475449 | CC54: 22.73791176 | CD54: 23.44607522 | CE54: 24.17275963 | CF54: 24.91265302 | CG54: 25.66143317 | CH54: 26.41560427 | CI54: 27.17235565 | CJ54: 27.92944214 | CK54: 28.68508383 | CL54: 29.43788305 | CM54: 30.18675581 | CN54: 30.93087553 | CO54: 31.66962692 | CP54: 32.40256817 | CQ54: 33.12940003 | CR54: 33.84994046 | CS54: 34.5641039 | CT54: 35.27188426 | CU54: 35.97334097 | CV54: 36.66858754 | CW54: 37.35778219 | CX54: 38.0411201 | CY54: 38.71882717 | CZ54: 39.39115481 | DA54: 40.05837574 | DB54: 40.72078056 | DC54: 41.37867499 | DD54: 42.03237766 | DE54: 42.68221833 | DF54: 43.3285365 | DG54: 43.97168042 | DH54: 44.61200629 | DI54: 45.24987773 | DJ54: 45.88566548 | DK54: 46.51974722 | DL54: 47.15250765 | DM54: 47.7843386 | DN54: 48.4156393 | DO54: 49.04681685 | DP54: 49.67828662 | DQ54: 50.31047296 | DR54: 50.94380982 | DS54: 51.57874159 | DT54: 52.21572395 | DU54: 52.8552249 | DV54: 53.49772578 | DW54: 54.14372245 | DX54: 54.7937266 | DY54: 55.44826708 | DZ54: 56.10789142 | EA54: 56.77316743 | EB54: =SQRT(($BN$56-EB57)^2+($BN$55-EB56)^2) -> 57.44468496 | EC54: 58.12305776 | ED54: 58.80892556 | EE54: 59.50295624 | EF54: 60.20584823 | EG54: 60.91833311 | EH54: 61.6411784 | EI54: 62.37519066 | EJ54: 63.12121875 | EK54: 63.8801575 | EL54: 64.65295163 | EM54: 65.44060006 | EN54: 66.24416064 | EO54: 67.06475529 | EP54: 67.90357569 | EQ54: 68.76188948 | ER54: 69.64104714 | ES54: 70.54248952 | ET54: 71.46775617 | EU54: 72.41849459 | EV54: 73.39647045 | EW54: 74.40357891 | EX54: 75.4418573 | EY54: 76.51349911 | EZ54: 77.6208698 | FA54: 78.76652429 | FB54: 79.95322673 | FC54: 81.18397269 | FD54: 82.46201408 | FE54: 83.79088737 | FF54: 85.17444558 | FG54: 86.61689445 | FH54: 88.12283378 | FI54: 89.69730453 | FJ54: 91.34584274 | FK54: 93.07454152
C55: 0.1273382515 | G55: 0.01739123924 | H55: -29.9954626 | I55: 0.7997013629 | J55: 1 | K55: -128 | L55: -18.67397914 | M55: -4.880954237 | N55: 75 | O55: 0 | P55: -43.56070909 | Q55: -43.30403442 | R55: 0 | S55: 55 | T55: 55 | V55: ray19 | W55: -0.7507556013 | X55: -128 | Y55: -18.97007295 | Z55: -4.880954237 | AA55: 150 | AB55: 16 | AC55: =IF(W55<>ShmEIO_arxH,BAH*TAN($BE55),0) -> -50.46939639 | AD55: =IF(AC55<>0,Q55,0) -> -43.30403442 | AE55: -43.30403442 | AG55: 109.0299271 | AH55: -66.46939639 | AI55: 14.08911871 | AJ55: 7.16536197 | AK55: =AI55*AQ55-AJ55*AP55 -> -0.8167969385 | AL55: -0.05167472577 | AM55: -0.05169775109 | AN55: =BAH/Ah/SIN($W55) -> -2.246601292 | AO55: 0.4451168098 | AP55: 0.9135834312 | AQ55: 0.4066513424 | AR55: 0.8227690643 | AS55: 0.4663181267 | AT55: 1 | AU55: 0 | BB55: -37.73757205 | BD55: miki 55 | BE55: -0.8319289507 | BF55: -0.7507556013 | BG55: 49 | BH55: 49 | BI55: 158.2196057 | BJ55: -0.831339087 | BM55: y2 | BN55: =$Q$40 -> 37.73757205 | BO55: =SQRT((ShmEIO_arxH-BO57)^2+(object_y-BO56)^2) -> 120.7837765 | BP55: 119.3106487 | BQ55: 117.9257966 | BR55: 116.6231132 | BS55: 115.3970529 | BT55: 114.24257 | BU55: 113.1550648 | BV55: 112.1303368 | BW55: 111.1645431 | BX55: 110.2541629 | BY55: 109.3959654 | BZ55: 108.5869816 | CA55: 107.8244795 | CB55: 107.1059425 | CC55: 106.4290492 | CD55: 105.7916562 | CE55: 105.1917826 | CF55: 104.6275959 | CG55: 104.0973996 | CH55: 103.5996221 | CI55: 103.1328062 | CJ55: 102.6956005 | CK55: 102.2867511 | CL55: 101.9050939 | CM55: 101.5495484 | CN55: 101.2191111 | CO55: 100.9128504 | CP55: 100.6299017 | CQ55: 100.3694626 | CR55: 100.1307889 | CS55: 99.91319081 | CT55: 99.71602988 | CU55: =SQRT((ShmEIO_arxH-CU57)^2+(object_y-CU56)^2) -> 99.53871553 | CV55: 99.38070249 | CW55: 99.24148816 | CX55: 99.12061033 | CY55: 99.01764514 | CZ55: 98.9322051 | DA55: 98.86393743 | DB55: 98.81252253 | DC55: 98.77767254 | DD55: 98.75913014 | DE55: 98.75666746 | DF55: 98.77008503 | DG55: 98.79921102 | DH55: 98.84390044 | DI55: 98.90403449 | DJ55: 98.97952012 | DK55: 99.07028949 | DL55: 99.17629974 | DM55: 99.2975327 | DN55: 99.43399477 | DO55: 99.58571689 | DP55: 99.75275455 | DQ55: 99.93518796 | DR55: 100.1331223 | DS55: 100.3466879 | DT55: 100.5760411 | DU55: 100.821364 | DV55: 101.082866 | DW55: 101.3607839 | DX55: 101.6553829 | DY55: 101.9669579 | DZ55: 102.2958339 | EA55: =SQRT((ShmEIO_arxH-EA57)^2+(object_y-EA56)^2) -> 102.6423681 | EB55: 103.0069507 | EC55: 103.3900064 | ED55: 103.7919967 | EE55: 104.213421 | EF55: 104.6548192 | EG55: 105.116774 | EH55: 105.5999132 | EI55: 106.1049124 | EJ55: 106.6324985 | EK55: 107.1834526 | EL55: 107.7586141 | EM55: 108.3588845 | EN55: 108.9852317 | EO55: 109.6386957 | EP55: 110.3203932 | EQ55: 111.0315241 | ER55: 111.773378 | ES55: 112.5473416 | ET55: 113.3549069 | EU55: 114.19768 | EV55: 115.0773914 | EW55: 115.995907 | EX55: 116.9552406 | EY55: 117.9575676 | EZ55: 119.0052407 | FA55: 120.1008074 | FB55: 121.2470291 | FC55: 122.4469033 | FD55: 123.7036883 | FE55: 125.0209313 | FF55: 126.4024997 | FG55: =SQRT((ShmEIO_arxH-FG57)^2+(object_y-FG56)^2) -> 127.8526177 | FH55: 129.3759066 | FI55: 130.977432 | FJ55: 132.6627574 | FK55: 134.4380057
C56: 0.1273575139 | G56: -6.106226635e-16 | H56: -30 | I56: -2.807543138e-14 | J56: 1 | K56: -128 | L56: -16.15456124 | M56: -9.23805294 | N56: 75 | O56: 0 | P56: -49.00579772 | Q56: -48.87925189 | R56: 0 | S56: 56 | T56: 56 | V56: ray20 | W56: -0.8142430429 | X56: -128 | Y56: -16.29491952 | Z56: -9.23805294 | AA56: =IF(Z56<>ShmEIO_arxH,N56,ShmEIO_arxH) -> 75 | AB56: 16 | AC56: =IF(W56<>ShmEIO_arxH,BAH*TAN(W56),0) -> -48.71040847 | AD56: =IF(AC56<>0,Q56,0) -> -48.87925189 | AE56: -48.87925189 | AG56: =(Y56-ShmEIO_arxH) -> 111.7050805 | AH56: =AC56-object_y -> -64.71040847 | AI56: 7.056866578 | AJ56: -0.1688434155 | AK56: =AI56*AQ56-AJ56*AP56 -> 3.177676257 | AL56: =AK56/SQRT(AI56^2+AJ56^2) -> 0.4501668081 | AM56: =ASIN(AL56) -> 0.466952137 | AN56: =BAH/Ah/SIN($W56) -> -2.107534442 | AO56: =-1/AN56 -> 0.4744880938 | AP56: =1/SQRT(1+AO56^2) -> 0.903456665 | AQ56: =AP56*AO56 -> 0.4286794308 | AR56: =(AG56*AQ56-AH56*AP56)/SQRT(AG56^2+AH56^2) -> 0.8238034176 | AS56: =ASIN(AR56/DEIKT_HUYGENS) -> 0.4669510103 | AT56: =SQRT(AP56^2+AQ56^2) -> 1 | AU56: =tetartoHyp(Y56,AC56,Z56,AD56,BI122,DEIKT_HUYGENS,DEIKT_BACK) -> 0 | BB56: -43.30403442 | BD56: miki 56 | BE56: -0.9066204358 | BF56: -0.8142430429 | BG56: 8 | BH56: 8 | BI56: 156.9126701 | BJ56: -0.9069153676 | BM56: x2 | BN56: =$M$40 -> -0.6875679839 | BO56: =BAH*TAN(BO61) -> 54.45088636 | BP56: 52.56837977 | BQ56: 50.75928403 | BR56: 49.01835429 | BS56: 47.34081318 | BT56: 45.72229912 | BU56: 44.15882118 | BV56: 42.64671983 | BW56: 41.18263238 | BX56: 39.7634627 | BY56: 38.38635457 | BZ56: 37.04866808 | CA56: 35.74795874 | CB56: 34.48195892 | CC56: 33.24856138 | CD56: 32.04580453 | CE56: 30.87185924 | CF56: 29.72501705 | CG56: 28.60367957 | CH56: 27.50634893 | CI56: 26.43161918 | CJ56: 25.37816852 | CK56: 24.34475224 | CL56: 23.33019633 | CM56: 22.33339168 | CN56: 21.35328877 | CO56: 20.38889286 | CP56: 19.43925956 | CQ56: 18.50349076 | CR56: 17.58073096 | CS56: 16.6701638 | CT56: 15.77100892 | CU56: =BAH*TAN(CU61) -> 14.88251906 | CV56: 14.00397732 | CW56: 13.13469472 | CX56: 12.27400777 | CY56: 11.42127639 | CZ56: 10.57588178 | DA56: 9.737224572 | DB56: 8.904723016 | DC56: 8.077811254 | DD56: 7.255937729 | DE56: 6.438563648 | DF56: 5.625161521 | DG56: 4.815213757 | DH56: 4.008211316 | DI56: 3.203652409 | DJ56: 2.401041228 | DK56: 1.599886717 | DL56: 0.7997013629 | DM56: 0 | DN56: -0.7997013629 | DO56: -1.599886717 | DP56: -2.401041228 | DQ56: -3.203652409 | DR56: -4.008211316 | DS56: -4.815213757 | DT56: -5.625161521 | DU56: -6.438563648 | DV56: -7.255937729 | DW56: -8.077811254 | DX56: -8.904723016 | DY56: -9.737224572 | DZ56: -10.57588178 | EA56: =BAH*TAN(EA61) -> -11.42127639 | EB56: -12.27400777 | EC56: -13.13469472 | ED56: -14.00397732 | EE56: -14.88251906 | EF56: -15.77100892 | EG56: -16.6701638 | EH56: -17.58073096 | EI56: -18.50349076 | EJ56: -19.43925956 | EK56: -20.38889286 | EL56: -21.35328877 | EM56: -22.33339168 | EN56: -23.33019633 | EO56: -24.34475224 | EP56: -25.37816852 | EQ56: -26.43161918 | ER56: -27.50634893 | ES56: -28.60367957 | ET56: -29.72501705 | EU56: -30.87185924 | EV56: -32.04580453 | EW56: -33.24856138 | EX56: -34.48195892 | EY56: -35.74795874 | EZ56: -37.04866808 | FA56: -38.38635457 | FB56: -39.7634627 | FC56: -41.18263238 | FD56: -42.64671983 | FE56: -44.15882118 | FF56: -45.72229912 | FG56: -47.34081318 | FH56: -49.01835429 | FI56: -50.75928403 | FJ56: -52.56837977 | FK56: -54.45088636
C57: 0.1273382515 | G57: -0.01739123924 | H57: -29.9954626 | I57: -0.7997013629 | J57: 1 | K57: -128 | L57: -13.5 | M57: -13.5 | N57: -13.5 | O57: 0 | P57: -54.45088636 | Q57: -54.45088636 | R57: -54.45088636 | S57: 57 | T57: 57 | V57: ray21 | W57: -0.8694926371 | X57: -128 | Y57: -13.50381721 | Z57: -13.5 | AA57: =IF(Z57<>ShmEIO_arxH,N57,ShmEIO_arxH) -> -13.5 | AB57: 16 | AC57: =IF(W57<>ShmEIO_arxH,BAH*TAN(W57),0) -> -54.44322913 | AD57: =IF(AC57<>0,Q57,0) -> -54.45088636 | AE57: =R57 -> -54.45088636 | BB57: -48.87925189 | BH57: y1 = BAH * Tan(dGon(kkk)) 'dy/dt=bah/cos(fiky_^2 | BO57: =-2*Ah+Ah/COS(BO61) -> -13.5 | BP57: -14.43158672 | BQ57: -15.31332959 | BR57: -16.148586 | BS57: -16.94040678 | BT57: -17.69156998 | BU57: -18.4046101 | BV57: -19.08184382 | BW57: -19.72539231 | BX57: -20.337201 | BY57: -20.91905689 | BZ57: -21.47260382 | CA57: -21.99935607 | CB57: -22.50071032 | CC57: -22.97795637 | CD57: -23.43228662 | CE57: -23.86480456 | CF57: -24.27653241 | CG57: -24.66841786 | CH57: -25.04134022 | CI57: -25.39611592 | CJ57: -25.73350343 | CK57: -26.05420773 | CL57: -26.35888434 | CM57: -26.64814296 | CN57: -26.92255078 | CO57: -27.18263544 | CP57: -27.42888777 | CQ57: -27.66176423 | CR57: -27.88168915 | CS57: -28.08905677 | CT57: -28.28423306 | CU57: =-2*Ah+Ah/COS(CU61) -> -28.46755742 | CV57: -28.6393442 | CW57: -28.79988409 | CX57: -28.94944536 | CY57: -29.08827502 | CZ57: -29.21659984 | DA57: -29.3346273 | DB57: -29.44254643 | DC57: -29.54052855 | DD57: -29.62872796 | DE57: -29.70728256 | DF57: -29.77631434 | DG57: -29.83592991 | DH57: -29.88622086 | DI57: -29.9272641 | DJ57: -29.95912219 | DK57: -29.98184354 | DL57: -29.9954626 | DM57: -30 | DN57: -29.9954626 | DO57: -29.98184354 | DP57: -29.95912219 | DQ57: -29.9272641 | DR57: -29.88622086 | DS57: -29.83592991 | DT57: -29.77631434 | DU57: -29.70728256 | DV57: -29.62872796 | DW57: -29.54052855 | DX57: -29.44254643 | DY57: -29.3346273 | DZ57: -29.21659984 | EA57: =-2*Ah+Ah/COS(EA61) -> -29.08827502 | EB57: -28.94944536 | EC57: -28.79988409 | ED57: -28.6393442 | EE57: -28.46755742 | EF57: -28.28423306 | EG57: -28.08905677 | EH57: -27.88168915 | EI57: -27.66176423 | EJ57: -27.42888777 | EK57: -27.18263544 | EL57: -26.92255078 | EM57: -26.64814296 | EN57: -26.35888434 | EO57: -26.05420773 | EP57: -25.73350343 | EQ57: -25.39611592 | ER57: -25.04134022 | ES57: -24.66841786 | ET57: -24.27653241 | EU57: -23.86480456 | EV57: -23.43228662 | EW57: -22.97795637 | EX57: -22.50071032 | EY57: -21.99935607 | EZ57: -21.47260382 | FA57: -20.91905689 | FB57: -20.337201 | FC57: -19.72539231 | FD57: -19.08184382 | FE57: -18.4046101 | FF57: -17.69156998 | FG57: -16.94040678 | FH57: -16.148586 | FI57: -15.31332959 | FJ57: -14.43158672 | FK57: -13.5
C58: 0.1272804352 | G58: -0.03478247849 | H58: -29.98184354 | I58: -1.599886717 | L58: =ARXIKH_THESH -> -128 | T58: =IF(P58<>Q58,0,Q58) -> 0 | V58: 0 | Y58: X1 | Z58: X2 | AC58: Y1 | AD58: Y2 | AG58: DX1 | AH58: DY1 | AI58: DX2 | AJ58: DY2 | AK58: EXOT2 | AL58: ASIN2 | AP58: KTX | AQ58: KTY | AR58: PROSPTOSI | AS58: DIATHLASI | BB58: =IF(BA31<>0,BB31,0) -> 0 | BE58: =BHYP_0 ->  | BF58: =BHYP_1 ->  | BG58: =BHYP_2 ->  | BH58: =BHYP_3 ->  | BI58: =BHYP_4 ->  | BJ58: =BHYP_5 ->  | BK58: =BHYP_6 ->  | BL58: =BHYP_7 ->  | BM58: =BHYP_8 ->  | BN58: x1 | BO58: =MyFxhYPFifind(Ah, BAH, Cah, ARXIKH_THESH, object_y, $M$52, $Q$52, thet_ymegisto-BO59*dthm,DEIKT_HUYGENS,thet_ymegisto) -> -1.145429913 | BP58: -1.131260421 | BQ58: -1.117114053 | BR58: -1.102998311 | BS58: -1.088919952 | BT58: -1.074885015 | BU58: -1.060898855 | BV58: -1.046966175 | BW58: -1.03309106 | BX58: -1.019277004 | BY58: -1.005526947 | BZ58: -0.9918433017 | CA58: -0.9782279851 | CB58: -0.9646824462 | CC58: -0.9512076943 | CD58: -0.9378043251 | CE58: -0.9244725466 | CF58: -0.9112122022 | CG58: -0.898022794 | CH58: -0.8849035031 | CI58: -0.8718532099 | CJ58: -0.8588705117 | CK58: -0.8459537393 | CL58: -0.833100972 | CM58: -0.8203100503 | CN58: -0.807578588 | CO58: -0.7949039814 | CP58: -0.7822834178 | CQ58: -0.7697138809 | CR58: -0.7571921553 | CS58: -0.7447148286 | CT58: -0.7322782917 | CU58: =MyFxhYPFifind(Ah, BAH, Cah, ARXIKH_THESH, object_y, $M$52, $Q$52, thet_ymegisto-CU59*dthm,DEIKT_HUYGENS,thet_ymegisto) -> -0.7198787364 | CV58: -0.7075121514 | CW58: -0.6951743157 | CX58: -0.6828607894 | CY58: -0.6705669026 | CZ58: -0.658287741 | DA58: -0.6460181289 | DB58: -0.6337526094 | DC58: -0.6214854215 | DD58: -0.609210474 | DE58: -0.5969213155 | DF58: -0.5846111014 | DG58: -0.5722725569 | DH58: -0.5598979354 | DI58: -0.547478973 | DJ58: -0.5350068383 | DK58: -0.522472077 | DL58: -0.5098645514 | DM58: -0.4971731024 | DN58: -0.4843868349 | DO58: -0.4714923233 | DP58: -0.4584762407 | DQ58: -0.4453239076 | DR58: -0.4320194621 | DS58: -0.4185457486 | DT58: -0.4048841989 | DU58: -0.3910147024 | DV58: -0.376915466 | DW58: -0.3625628639 | DX58: -0.3479312753 | DY58: -0.332992911 | DZ58: -0.3177176288 | EA58: =MyFxhYPFifind(Ah, BAH, Cah, ARXIKH_THESH, object_y, $M$52, $Q$52, thet_ymegisto-EA59*dthm,DEIKT_HUYGENS,thet_ymegisto) -> -0.3020727377 | EB58: -0.2860227916 | EC58: -0.2695293745 | ED58: -0.2525508794 | EE58: -0.2350422843 | EF58: -0.2169549301 | EG58: -0.1982363078 | EH58: -0.1788298645 | EI58: -0.15867484 | EJ58: -0.1377061518 | EK58: -0.1158543478 | EL58: -0.09304565628 | EM58: -0.06920216422 | EN58: -0.04424216737 | EO58: -0.01808074085 | EP58: 0.009369410596 | EQ58: 0.0381967559 | ER58: 0.06848932075 | ES58: 0.1003325739 | ET58: 0.1338067435 | EU58: 0.1689835016 | EV58: 0.2059219843 | EW58: 0.2446641545 | EX58: 0.2852295855 | EY58: 0.3276098275 | EZ58: 0.3717626345 | FA58: 0.4176064499 | FB58: 0.4650156759 | FC58: 0.5138173436 | FD58: 0.5637898455 | FE58: 0.614664338 | FF58: 0.6661292605 | FG58: =MyFxhYPFifind(Ah, BAH, Cah, ARXIKH_THESH, object_y, $M$52, $Q$52, thet_ymegisto-FG59*dthm,DEIKT_HUYGENS,thet_ymegisto) -> 0.7178381341 | FH58: 0.7694204221 | FI58: 0.8204948188 | FJ58: 0.8706839474 | FK58: 0.919629199
C59: 0.1271839773 | G59: -0.05217371773 | H59: -29.95912219 | I59: -2.401041228 | Q59: alfa=b²-(at)^2 | T59: =IF(P59<>#REF!,0,#REF!) ->  | V59: 0 | W59: 20 | AM59: GON | AN59: DY/DX | AO59: KATH | AP59: KATHX | AQ59: KATHY | AR59: ASIN(PROSP | BO59: 0 | BP59: =BO59+1 -> 1 | BQ59: =BP59+1 -> 2 | BR59: 3 | BS59: 4 | BT59: 5 | BU59: 6 | BV59: 7 | BW59: 8 | BX59: 9 | BY59: 10 | BZ59: 11 | CA59: 12 | CB59: 13 | CC59: 14 | CD59: 15 | CE59: 16 | CF59: 17 | CG59: 18 | CH59: 19 | CI59: 20 | CJ59: 21 | CK59: 22 | CL59: 23 | CM59: 24 | CN59: 25 | CO59: 26 | CP59: 27 | CQ59: 28 | CR59: 29 | CS59: 30 | CT59: 31 | CU59: 32 | CV59: 33 | CW59: 34 | CX59: 35 | CY59: 36 | CZ59: 37 | DA59: 38 | DB59: 39 | DC59: 40 | DD59: 41 | DE59: 42 | DF59: 43 | DG59: 44 | DH59: 45 | DI59: 46 | DJ59: 47 | DK59: 48 | DL59: 49 | DM59: 50 | DN59: 51 | DO59: 52 | DP59: 53 | DQ59: 54 | DR59: 55 | DS59: 56 | DT59: 57 | DU59: 58 | DV59: 59 | DW59: 60 | DX59: 61 | DY59: =DX59+1 -> 62 | DZ59: 63 | EA59: 64 | EB59: 65 | EC59: =EB59+1 -> 66 | ED59: 67 | EE59: 68 | EF59: 69 | EG59: 70 | EH59: 71 | EI59: 72 | EJ59: 73 | EK59: 74 | EL59: 75 | EM59: 76 | EN59: 77 | EO59: 78 | EP59: 79 | EQ59: 80 | ER59: 81 | ES59: 82 | ET59: 83 | EU59: 84 | EV59: 85 | EW59: 86 | EX59: 87 | EY59: 88 | EZ59: 89 | FA59: 90 | FB59: 91 | FC59: 92 | FD59: 93 | FE59: 94 | FF59: 95 | FG59: 96 | FH59: 97 | FI59: 98 | FJ59: 99 | FK59: 100
C60: 0.1270487318 | G60: -0.06956495698 | H60: -29.9272641 | I60: -3.203652409 | M60: =COUNT(M37:M58) -> 21 | N60: =COUNT(N37:N58) -> 21 | Q60: beta=(s(at)^2+2b^2a--a²·y0·t) | BO60: =IF(BO58*BP58>0,0,1) -> 0 | BP60: 0 | BQ60: 0 | BR60: 0 | BS60: 0 | BT60: 0 | BU60: 0 | BV60: =IF(BV58*BW58>0,0,1) -> 0 | BW60: =IF(BW58*BX58>0,0,1) -> 0 | BX60: 0 | BY60: 0 | BZ60: 0 | CA60: 0 | CB60: 0 | CC60: 0 | CD60: 0 | CE60: 0 | CF60: 0 | CG60: 0 | CH60: 0 | CI60: 0 | CJ60: 0 | CK60: 0 | CL60: 0 | CM60: 0 | CN60: 0 | CO60: 0 | CP60: 0 | CQ60: 0 | CR60: 0 | CS60: 0 | CT60: 0 | CU60: 0 | CV60: 0 | CW60: 0 | CX60: 0 | CY60: 0 | CZ60: 0 | DA60: 0 | DB60: 0 | DC60: 0 | DD60: 0 | DE60: 0 | DF60: 0 | DG60: 0 | DH60: 0 | DI60: 0 | DJ60: 0 | DK60: 0 | DL60: 0 | DM60: 0 | DN60: 0 | DO60: 0 | DP60: 0 | DQ60: 0 | DR60: 0 | DS60: 0 | DT60: 0 | DU60: 0 | DV60: 0 | DW60: 0 | DX60: =IF(DX58*DY58>0,0,1) -> 0 | DY60: 0 | DZ60: 0 | EA60: 0 | EB60: 0 | EC60: 0 | ED60: 0 | EE60: 0 | EF60: 0 | EG60: 0 | EH60: 0 | EI60: =IF(EI58*EJ58>0,0,1) -> 0 | EJ60: 0 | EK60: 0 | EL60: 0 | EM60: 0 | EN60: 0 | EO60: 1 | EP60: 0 | EQ60: 0 | ER60: 0 | ES60: 0 | ET60: 0 | EU60: 0 | EV60: 0 | EW60: 0 | EX60: 0 | EY60: 0 | EZ60: 0 | FA60: 0 | FB60: 0 | FC60: 0 | FD60: 0 | FE60: 0 | FF60: 0 | FG60: 0 | FH60: 0 | FI60: 0 | FJ60: 0
C61: 0.1268744929 | G61: -0.08695619622 | H61: -29.88622086 | I61: -4.008211316 | O61: =ShmEIO_arxH -> -128 | P61: =ARXIKH_THESH -> -128 | Q61: gama=3(ab)²-(sat)²+2a²y0ts-a²y0² | BO61: =thet_ymegisto-BO59*dthm -> 0.8695619622 | BP61: 0.852170723 | BQ61: 0.8347794837 | BR61: 0.8173882445 | BS61: 0.7999970052 | BT61: 0.782605766 | BU61: 0.7652145267 | BV61: 0.7478232875 | BW61: 0.7304320483 | BX61: 0.713040809 | BY61: 0.6956495698 | BZ61: 0.6782583305 | CA61: 0.6608670913 | CB61: 0.643475852 | CC61: 0.6260846128 | CD61: 0.6086933735 | CE61: 0.5913021343 | CF61: 0.5739108951 | CG61: 0.5565196558 | CH61: 0.5391284166 | CI61: 0.5217371773 | CJ61: 0.5043459381 | CK61: 0.4869546988 | CL61: 0.4695634596 | CM61: 0.4521722204 | CN61: 0.4347809811 | CO61: 0.4173897419 | CP61: 0.3999985026 | CQ61: 0.3826072634 | CR61: 0.3652160241 | CS61: 0.3478247849 | CT61: 0.3304335456 | CU61: =thet_ymegisto-CU59*dthm -> 0.3130423064 | CV61: 0.2956510672 | CW61: 0.2782598279 | CX61: 0.2608685887 | CY61: 0.2434773494 | CZ61: 0.2260861102 | DA61: 0.2086948709 | DB61: 0.1913036317 | DC61: 0.1739123924 | DD61: 0.1565211532 | DE61: 0.139129914 | DF61: 0.1217386747 | DG61: 0.1043474355 | DH61: 0.08695619622 | DI61: 0.06956495698 | DJ61: 0.05217371773 | DK61: 0.03478247849 | DL61: 0.01739123924 | DM61: 0 | DN61: -0.01739123924 | DO61: -0.03478247849 | DP61: -0.05217371773 | DQ61: -0.06956495698 | DR61: -0.08695619622 | DS61: -0.1043474355 | DT61: -0.1217386747 | DU61: -0.139129914 | DV61: -0.1565211532 | DW61: -0.1739123924 | DX61: -0.1913036317 | DY61: -0.2086948709 | DZ61: -0.2260861102 | EA61: =thet_ymegisto-EA59*dthm -> -0.2434773494 | EB61: -0.2608685887 | EC61: -0.2782598279 | ED61: -0.2956510672 | EE61: -0.3130423064 | EF61: -0.3304335456 | EG61: -0.3478247849 | EH61: -0.3652160241 | EI61: -0.3826072634 | EJ61: -0.3999985026 | EK61: -0.4173897419 | EL61: -0.4347809811 | EM61: -0.4521722204 | EN61: -0.4695634596 | EO61: -0.4869546988 | EP61: -0.5043459381 | EQ61: -0.5217371773 | ER61: -0.5391284166 | ES61: -0.5565196558 | ET61: -0.5739108951 | EU61: -0.5913021343 | EV61: -0.6086933735 | EW61: -0.6260846128 | EX61: -0.643475852 | EY61: -0.6608670913 | EZ61: -0.6782583305 | FA61: -0.6956495698 | FB61: -0.713040809 | FC61: -0.7304320483 | FD61: -0.7478232875 | FE61: -0.7652145267 | FF61: -0.782605766 | FG61: -0.7999970052 | FH61: -0.8173882445 | FI61: -0.8347794837 | FJ61: -0.852170723 | FK61: -0.8695619622
C62: 0.1266609953 | G62: -0.1043474355 | H62: -29.83592991 | I62: -4.815213757 | K62: =object_y -> 16 | L62: ANTIKEIMENO | O62: =Ah -> 30 | DN62: =Y_MEGISTO -> 79.41017755 | EE62: =vimata_xek -> 72 | EV62: IF(RC[-4]>0;RC74+RC[-4]*COS(ATAN((0-RC75)/(thesif-RC74)))*DT/DEIKT_BACK;0) | FC62: 0 | FD62: 0 | FM62: =FC62+1 -> 1 | FN62: =FD62+1 -> 1 | FW62: =FM62+1 -> 2 | FX62: =FN62+1 -> 2 | GG62: =FW62+1 -> 3 | GH62: =FX62+1 -> 3 | GQ62: =GG62+1 -> 4 | GR62: =GH62+1 -> 4 | HA62: =GQ62+1 -> 5 | HB62: =GR62+1 -> 5 | HK62: =HA62+1 -> 6 | HL62: =HB62+1 -> 6 | HU62: =HK62+1 -> 7 | HV62: =HL62+1 -> 7 | IE62: =HU62+1 -> 8 | IF62: =HV62+1 -> 8 | IO62: =IE62+1 -> 9 | IP62: =IF62+1 -> 9 | IY62: =IO62+1 -> 10 | IZ62: =IP62+1 -> 10 | JI62: =IY62+1 -> 11 | JJ62: =IZ62+1 -> 11 | JS62: =JI62+1 -> 12 | JT62: =JJ62+1 -> 12 | KC62: =JS62+1 -> 13 | KD62: =JT62+1 -> 13 | KM62: =KC62+1 -> 14 | KN62: =KD62+1 -> 14 | KW62: =KM62+1 -> 15 | KX62: =KN62+1 -> 15 | LG62: =KW62+1 -> 16 | LH62: =KX62+1 -> 16 | LQ62: =LG62+1 -> 17 | LR62: =LH62+1 -> 17 | MA62: =LQ62+1 -> 18 | MB62: =LR62+1 -> 18 | MK62: =MA62+1 -> 19 | ML62: =MB62+1 -> 19 | MU62: =MK62+1 -> 20 | MV62: =ML62+1 -> 20 | NE62: =MU62+1 -> 21 | NF62: =MV62+1 -> 21 | NO62: =NE62+1 -> 22 | NP62: =NF62+1 -> 22 | NY62: =NO62+1 -> 23 | NZ62: =NP62+1 -> 23 | OI62: =NY62+1 -> 24 | OJ62: =NZ62+1 -> 24 | OS62: =OI62+1 -> 25 | OT62: =OJ62+1 -> 25 | PC62: =OS62+1 -> 26 | PD62: =OT62+1 -> 26 | PM62: =PC62+1 -> 27 | PN62: =PD62+1 -> 27 | PW62: 28 | PX62: 28
C63: 0.1264079123 | G63: -0.1217386747 | H63: -29.77631434 | I63: -5.625161521 | N63: tangent | O63: alfa | P63: beta | Q63: gama | R63: DISCRIMINANT | S63: X1 | T63: Y1 | V63: x0 | W63: y0 | Z63: DX | AA63: DY | AB63: DY/DX | AC63: KTXY | AD63: KATHX | AE63: KATHY | AF63: METRO1 | AG63: kathmetro | AH63: ext prod | AI63: sin(inc) | AJ63: incidence | AK63: diathlasis | AL63: degrinc | AM63: degrefr | AN63: strofis | AO63: STROFIS | AP63: FI | AQ63: OMEGA=THETA-FI | AR63: COS(ω) | AS63: tan(ω) | AU63: X | AW63: ya | CJ63: X FOR Y0-0 | CL63: DXDYMEAN | CM63: y2 | CN63: =$AX$101 -> dx2/dy | CQ63: dx/dy | CR63: kath | CS63: kathx | CT63: kathy | CU63: fi | CV63: dx2 | CW63: dy2 | CX63: exoteriko | CY63: sin(incident) | CZ63: SINREFRACTED | DA63: INCIDENCE | DB63: REFRACTION | DC63: FI2 | DD63: KLISI | DN63: =psaximo -> 8.443428246 | DQ63: x0 | DR63: x1 | DS63: x2 | DT63: x3 | DU63: y0 | DV63: y1 | DW63: y2 | DX63: y3 | DY63: dxdy1 | DZ63: dx/dy1 | EA63: fiky | EB63: gonia1 | EC63: gonia2 | ED63: gonia3 | EE63: metro1 | EF63: metro2 | EG63: metro3 | EH63: vimata 1 | EI63: RES1=MIKOS1-N*DT | EJ63: compl1 | EK63: x1 entos | EL63: y1 entos | EM63: metro2 | EN63: vimata2 | EO63: xronos2 | EP63: ypoloipo2 | EQ63: compl2 | ER63: x2ektos | ES63: y2ektos | ET63: v1+v2 | EU63: v-(v1+v2) | EV63: v-v1 | EW63: x left | EX63: x in | EY63: X RIGHT | EZ63: yleft | FA63: y in | FB63: yright | FC63: ="metOBJ"&TEXT(FM62,"0") -> metOBJ1 | FD63: ="metObjy"&TEXT(FN62,"0") -> metObjy1 | FE63: v-(v1+v2) | FF63: v-v1 | FG63: x left | FH63: x in | FI63: X RIGHT | FJ63: yleft | FK63: y in | FL63: yright | FM63: ="metOBJ"&TEXT(FW62,"0") -> metOBJ2 | FN63: ="metObjy"&TEXT(FX62,"0") -> metObjy2 | FO63: v-(v1+v2) | FP63: v-v1 | FQ63: x left | FR63: x in | FS63: X RIGHT | FT63: yleft | FU63: y in | FV63: yright | FW63: ="metOBJ"&TEXT(GG62,"0") -> metOBJ3 | FX63: ="metObjy"&TEXT(GH62,"0") -> metObjy3 | FY63: v-(v1+v2) | FZ63: v-v1 | GA63: x left | GB63: x in | GC63: X RIGHT | GD63: yleft | GE63: y in | GF63: yright | GG63: ="metOBJ"&TEXT(GQ62,"0") -> metOBJ4 | GH63: ="metObjy"&TEXT(GR62,"0") -> metObjy4 | GI63: v-(v1+v2) | GJ63: v-v1 | GK63: x left | GL63: x in | GM63: X RIGHT | GN63: yleft | GO63: y in | GP63: yright | GQ63: ="metOBJ"&TEXT(HA62,"0") -> metOBJ5 | GR63: ="metObjy"&TEXT(HB62,"0") -> metObjy5 | GS63: v-(v1+v2) | GT63: v-v1 | GU63: x left | GV63: x in | GW63: X RIGHT | GX63: yleft | GY63: y in | GZ63: yright | HA63: ="metOBJ"&TEXT(HK62,"0") -> metOBJ6 | HB63: ="metObjy"&TEXT(HL62,"0") -> metObjy6 | HC63: v-(v1+v2) | HD63: v-v1 | HE63: x left | HF63: x in | HG63: X RIGHT | HH63: yleft | HI63: y in | HJ63: yright | HK63: ="metOBJ"&TEXT(HU62,"0") -> metOBJ7 | HL63: ="metObjy"&TEXT(HV62,"0") -> metObjy7 | HM63: v-(v1+v2) | HN63: v-v1 | HO63: x left | HP63: x in | HQ63: X RIGHT | HR63: yleft | HS63: y in | HT63: yright | HU63: ="metOBJ"&TEXT(IE62,"0") -> metOBJ8 | HV63: ="metObjy"&TEXT(IF62,"0") -> metObjy8 | HW63: v-(v1+v2) | HX63: v-v1 | HY63: x left | HZ63: x in | IA63: X RIGHT | IB63: yleft | IC63: y in | ID63: yright | IE63: ="metOBJ"&TEXT(IO62,"0") -> metOBJ9 | IF63: ="metObjy"&TEXT(IP62,"0") -> metObjy9 | IG63: v-(v1+v2) | IH63: v-v1 | II63: x left | IJ63: x in | IK63: X RIGHT | IL63: yleft | IM63: y in | IN63: yright | IO63: ="metOBJ"&TEXT(IY62,"0") -> metOBJ10 | IP63: ="metObjy"&TEXT(IZ62,"0") -> metObjy10 | IQ63: v-(v1+v2) | IR63: v-v1 | IS63: x left | IT63: x in | IU63: X RIGHT | IV63: yleft | IW63: y in | IX63: yright | IY63: ="metOBJ"&TEXT(JI62,"0") -> metOBJ11 | IZ63: ="metObjy"&TEXT(JJ62,"0") -> metObjy11 | JA63: v-(v1+v2) | JB63: v-v1 | JC63: x left | JD63: x in | JE63: X RIGHT | JF63: yleft | JG63: y in | JH63: yright | JI63: ="metOBJ"&TEXT(JS62,"0") -> metOBJ12 | JJ63: ="metObjy"&TEXT(JT62,"0") -> metObjy12 | JK63: v-(v1+v2) | JL63: v-v1 | JM63: x left | JN63: x in | JO63: X RIGHT | JP63: yleft | JQ63: y in | JR63: yright | JS63: ="metOBJ"&TEXT(KC62,"0") -> metOBJ13 | JT63: ="metObjy"&TEXT(KD62,"0") -> metObjy13 | JU63: v-(v1+v2) | JV63: v-v1 | JW63: x left | JX63: x in | JY63: X RIGHT | JZ63: yleft | KA63: y in | KB63: yright | KC63: ="metOBJ"&TEXT(KM62,"0") -> metOBJ14 | KD63: ="metObjy"&TEXT(KN62,"0") -> metObjy14 | KE63: v-(v1+v2) | KF63: v-v1 | KG63: x left | KH63: x in | KI63: X RIGHT | KJ63: yleft | KK63: y in | KL63: yright | KM63: ="metOBJ"&TEXT(KW62,"0") -> metOBJ15 | KN63: ="metObjy"&TEXT(KX62,"0") -> metObjy15 | KO63: v-(v1+v2) | KP63: v-v1 | KQ63: x left | KR63: x in | KS63: X RIGHT | KT63: yleft | KU63: y in | KV63: yright | KW63: ="metOBJ"&TEXT(LG62,"0") -> metOBJ16 | KX63: ="metObjy"&TEXT(LH62,"0") -> metObjy16 | KY63: v-(v1+v2) | KZ63: v-v1 | LA63: x left | LB63: x in | LC63: X RIGHT | LD63: yleft | LE63: y in | LF63: yright | LG63: ="metOBJ"&TEXT(LQ62,"0") -> metOBJ17 | LH63: ="metObjy"&TEXT(LR62,"0") -> metObjy17 | LI63: v-(v1+v2) | LJ63: v-v1 | LK63: x left | LL63: x in | LM63: X RIGHT | LN63: yleft | LO63: y in | LP63: yright | LQ63: ="metOBJ"&TEXT(MA62,"0") -> metOBJ18 | LR63: ="metObjy"&TEXT(MB62,"0") -> metObjy18 | LS63: v-(v1+v2) | LT63: v-v1 | LU63: x left | LV63: x in | LW63: X RIGHT | LX63: yleft | LY63: y in | LZ63: yright | MA63: ="metOBJ"&TEXT(MK62,"0") -> metOBJ19 | MB63: ="metObjy"&TEXT(ML62,"0") -> metObjy19 | MC63: v-(v1+v2) | MD63: v-v1 | ME63: x left | MF63: x in | MG63: X RIGHT | MH63: yleft | MI63: y in | MJ63: yright | MK63: ="metOBJ"&TEXT(MU62,"0") -> metOBJ20 | ML63: ="metObjy"&TEXT(MV62,"0") -> metObjy20 | MM63: v-(v1+v2) | MN63: v-v1 | MO63: x left | MP63: x in | MQ63: X RIGHT | MR63: yleft | MS63: y in | MT63: yright | MU63: ="metOBJ"&TEXT(NE62,"0") -> metOBJ21 | MV63: ="metObjy"&TEXT(NF62,"0") -> metObjy21 | MW63: v-(v1+v2) | MX63: v-v1 | MY63: x left | MZ63: x in | NA63: X RIGHT | NB63: yleft | NC63: y in | ND63: yright | NE63: ="metOBJ"&TEXT(NO62,"0") -> metOBJ22 | NF63: ="metObjy"&TEXT(NP62,"0") -> metObjy22 | NG63: v-(v1+v2) | NH63: v-v1 | NI63: x left | NJ63: x in | NK63: X RIGHT | NL63: yleft | NM63: y in | NN63: yright | NO63: ="metOBJ"&TEXT(NY62,"0") -> metOBJ23 | NP63: ="metObjy"&TEXT(NZ62,"0") -> metObjy23 | NQ63: v-(v1+v2) | NR63: v-v1 | NS63: x left | NT63: x in | NU63: X RIGHT | NV63: yleft | NW63: y in | NX63: yright | NY63: ="metOBJ"&TEXT(OI62,"0") -> metOBJ24 | NZ63: ="metObjy"&TEXT(OJ62,"0") -> metObjy24 | OA63: v-(v1+v2) | OB63: v-v1 | OC63: x left | OD63: x in | OE63: X RIGHT | OF63: yleft | OG63: y in | OH63: yright | OI63: ="metOBJ"&TEXT(OS62,"0") -> metOBJ25 | OJ63: ="metObjy"&TEXT(OT62,"0") -> metObjy25 | OK63: v-(v1+v2) | OL63: v-v1 | OM63: x left | ON63: x in | OO63: X RIGHT | OP63: yleft | OQ63: y in | OR63: yright | OS63: ="metOBJ"&TEXT(PC62,"0") -> metOBJ26 | OT63: ="metObjy"&TEXT(PD62,"0") -> metObjy26 | OU63: v-(v1+v2) | OV63: v-v1 | OW63: x left | OX63: x in | OY63: X RIGHT | OZ63: yleft | PA63: y in | PB63: yright | PC63: ="metOBJ"&TEXT(PM62,"0") -> metOBJ27 | PD63: ="metObjy"&TEXT(PN62,"0") -> metObjy27 | PE63: v-(v1+v2) | PF63: v-v1 | PG63: x left | PH63: x in | PI63: X RIGHT | PJ63: yleft | PK63: y in | PL63: yright | PM63: ="metOBJ"&TEXT(PW62,"0") -> metOBJ28 | PN63: ="metObjy"&TEXT(PX62,"0") -> metObjy28
C64: 0.126114855 | G64: -0.139129914 | H64: -29.70728256 | I64: -6.438563648 | K64: =max_y -> 54.45088636 | L64: =ATAN((K64-ANTIKEIMENO)/ABS(ShmEIO_arxH)) -> 0.291821479 | M64: =DEGREES(L64) -> 16.72013912 | N64: =TAN(L64) -> 0.3003975497 | O64: =BAH^2-(N64*Ah)^2 -> 2032.795181 | P64: =2*Ah*BAH^2+(N64*Ah)^2*ARXIKH_THESH-ANTIKEIMENO*Ah^2*N64 -> 112119.3784 | Q64: =3*(Ah*BAH)^2-(N64*Ah*ARXIKH_THESH)^2-ANTIKEIMENO^2*Ah^2+2*ANTIKEIMENO*Ah^2*N64*ARXIKH_THESH -> 3039417.878 | R64: =P64^2-O64*Q64 -> 6392241009 | S64: =(-$P64+SQRT($R64))/$O64 -> -15.8244604 | T64: =ANTIKEIMENO+N64*(S64-ARXIKH_THESH) -> 49.69725723 | U64: =BAH*SQRT((S64+2*Ah)^2/Ah^2-1) -> 49.69725723 | V64: =ARXIKH_THESH -> -128 | W64: =ANTIKEIMENO -> 16 | X64: =CONCATENATE("ray",TEXT(Y64,"0")) -> ray1 | Y64: =1 -> 1 | Z64: =S64-ShmEIO_arxH -> 112.1755396 | AA64: =T64-ANTIKEIMENO -> 33.69725723 | AB64: =(BAH/Ah)^2*(S64+2*Ah)/T64 -> 2.087920556 | AC64: =-1/AB64 -> -0.4789454258 | AD64: =1/SQRT(1+AC64^2) -> 0.9018937718 | AE64: =AC64*AD64 -> -0.4319578966 | AF64: =SQRT(Z64^2+AA64^2) -> 117.1275238 | AG64: =AD64^2+AE64^2 -> 1 | AH64: =$Z64*$AE64-$AA64*$AD64 -> -78.84645655 | AI64: =AH64/AF64 -> -0.6731676211 | AJ64: =ASIN(AI64) -> -0.738484003 | AK64: =ASIN(AI64/DEIKT_HUYGENS) -> -0.3766970932 | AL64: =DEGREES(AJ64) -> -42.31201661 | AM64: =DEGREES(AK64) -> -21.5831536 | AN64: =AL64-AM64 -> -20.72886301 | AO64: =RADIANS(AN64) -> -0.3617869098 | AP64: =ATAN(AE64/AD64) -> -0.446662524 | AQ64: =-(AK64-AP64) -> -0.06996543073 | AR64: =COS(AQ64) -> 0.9975534175 | AS64: =TAN(AQ64) -> -0.07007981875 | AU64: =M37 -> -13.5 | AV64: =IF(AW64=PSAXIMOHYP,1,0) -> 0 | AW64: =IF(Q37="",IF(SIGN(AS64)=-1,AW63,AW65),Q37) -> 54.45088636 | CM64: =IF(CN64<>"",$BB11,"") ->  | CN64: =AX102 ->  | CO64: =IF(CN64<>"",ROW(CN64),"") ->  | CP64: =IF(CG64<>"",ROW(CG64),"") ->  | CQ64: =CN64 ->  | CR64: =-CQ64 ->  | CS64: =1/SQRT(1+CR64^2) ->  | CT64: =CS64*CR64 ->  | CU64: =ATAN(CT64/CS64) ->  | CV64: =CE64-S64 -> 15.8244604 | CW64: =CD64-T64 -> -49.69725723 | CX64: =CV64*CT64-CS64*CW64 ->  | CY64: =CX64/SQRT(CV64^2+CW64^2) ->  | CZ64: =CY64*DEIKT_HUYGENS/DEIKT_BACK ->  | DA64: =ASIN(CY64) ->  | DB64: =ASIN(CZ64) ->  | DC64: =IF(ABS(CY64)*DEIKT_HUYGENS/DEIKT_BACK<=1,ATAN(CT64/CS64),"") ->  | DD64: =IF(ABS(CZ64)<1,DC64-DB64,"") ->  | DE64: =IF(ABS($CD64)<=PSAXIMOHYP,650,$CE64) -> 650 | DF64: =IF(ABS(CZ64)<=1,$CD64+TAN(DD64)*(DE64-$CE64),CD64) ->  | DG64: =IF(SHOW_IMAGE=TRUE,ARXIKH_THESH,1000) -> 1000 | DH64: =IF(SHOW_IMAGE=TRUE,IF(ABS($DV64)<=Y_MEGISTO,$DR64,DG64),1000) -> 1000 | DI64: =IF(SHOW_IMAGE=TRUE,IF(ABS($DV64)<=Y_MEGISTO,$DS64,DH64),1000) -> 1000 | DJ64: =IF(SHOW_IMAGE=TRUE,IF(ABS($DV64)<Y_MEGISTO,$DT64,DI64),1000) -> 1000 | DK64: =IF(SHOW_IMAGE=TRUE,object_y,1000) -> 1000 | DL64: =IF(SHOW_IMAGE=TRUE,IF(ABS($CD64)<=max_y,DV64,DK64),1000) -> 1000 | DM64: =IF(SHOW_IMAGE=TRUE,IF(ABS($CD64)<=max_y,$DW64,DL64),1000) -> 1000 | DN64: =IF(SHOW_IMAGE=TRUE,IF(ABS($DV64)<=max_y,$DX64,DM64),1000) -> 1000 | DO64: ="OBJRAY"&TEXT(DP64,"0") -> OBJRAY1 | DP64: =1 -> 1 | DQ64: =K37 -> -128 | DR64: =-2*Ah+Ah/COS(EA64) ->  | DS64: =M37 -> -13.5 | DT64: =SHMEIO_TELOYS -> 300 | DU64: =object_y -> 16 | DV64: =BAH*TAN(EA64) ->  | DW64: =Q37 -> 54.45088636 | DX64: =DW64+TAN(DY64)*(SHMEIO_TELOYS-DS64) ->  | DY64: =tetartoHyp(DR64,DV64,DS64,DW64,K64,DEIKT_HUYGENS,DEIKT_BACK) ->  | DZ64: =DYDXHYP($K64) -> -0.7859454436 | EA64: =RizaHuygFiHyp(ShmEIO_arxH,object_y,DS64,DW64,Ah,BAH,Cah,max_7,x_meg2,DEIKT_HUYGENS,thet_ymegisto) ->  | EB64: =ATAN2((DR64-DQ64),DV64-DU64) ->  | EC64: =ATAN2((DS64-DR64),DW64-DV64) ->  | ED64: =ATAN2((DT64-DS64),DX64-DW64) ->  | EE64: =SQRT((ShmEIO_arxH+vimata_xek*DT*COS($EB64)-$DR64)^2+(vimata_xek*DT*SIN($EB64)-$DV64)^2) ->  | EF64: =DZ64 -> -0.7859454436 | EG64: =EC64 ->  | EH64: =INT(EE64/DT) ->  | EI64: =EE64-EH64*DT ->  | EJ64: =DT-EI64 ->  | EK64: =$DR64+(EI64*DT/DEIKT_HUYGENS*COS($EC64)) ->  | EL64: =$DV64+TAN($EC64)*(EK64-$DR64) ->  | EM64: =SQRT((EK64-$DS64)^2+(EL64-$DW64)^2) ->  | EN64: =INT(EM64*DEIKT_HUYGENS/DT) ->  | EO64: =$EM64*DEIKT_HUYGENS ->  | EP64: =$EO64-$EN64*DT ->  | EQ64: =DT-EP64 ->  | ER64: =$DS64+COS($ED64)*EQ64 ->  | ES64: =$DW64+TAN($ED64)*(ER64-$DS64) ->  | ET64: =$EH64+$EN64 ->  | EU64: =vimata-ET64 ->  | EV64: =vimata-$EH64 ->  | EW64: =IF(EV64<=0,ShmEIO_arxH+COS($EB64)*((vimata-FC$9*dvim+vimata_xek))*DT,$EK64) ->  | EX64: =IF(EU64*EV64<=0,$EK64+EV64*DT/DEIKT_HUYGENS*COS($EC64),IF(EV64>0,$ER64,0)) ->  | EY64: =IF(EU64>0,$ER64+EU64*COS($ED64)*DT/DEIKT_BACK,0) ->  | EZ64: =object_y+vimata_xek*DT*SIN($L64)+TAN($EB64)*(EW64-(ShmEIO_arxH+vimata_xek*DT*COS($EB64))) ->  | FA64: =IF(EV64>=0,$EL64+TAN($EC64)*(EX64-$EK64),0) ->  | FB64: =IF(EU64>0,$ES64+TAN($ED64)*(EY64-$ER64),0) ->  | FC64: =IF(SHOW_IMAGE=TRUE,IF($EE64>0,IF(vimata-FC$62*dvim>0,IF(EV64<0,EW64,IF($EE64<>0,IF(EU64*EV64<=0,EX64,EY64),$EK64)),ShmEIO_arxH),ARXIKH_THESH),ARXIKH_THESH) -> -128 | FD64: =IF(SHOW_IMAGE=TRUE,IF($EE64<>0,IF(vimata-FD$62*dvim>0,IF(EV64<0,EZ64,IF($EE64<>0,IF(EU64*EV64<0,FA64,FB64),$ES64))),object_y),object_y) -> 16 | FE64: =(vimata-FM$62*dvim)-$ET64 ->  | FF64: =(vimata-FN$62*dvim)-$EH64 ->  | FG64: =IF(FF64<0,ShmEIO_arxH+COS($EB64)*((vimata-FM$62*dvim+vimata_xek))*DT,$ER64) ->  | FH64: =IF(FE64*FF64<=0,$EK64+FF64*DT/DEIKT_HUYGENS*COS($EC64),IF(FF64>0,$ER64,0)) ->  | FI64: =IF(FE64>0,$ER64+FE64*COS($ED64)*DT/DEIKT_BACK,0) ->  | FJ64: =object_y+vimata_xek*DT*SIN($L64)+TAN($EB64)*(FG64-(ShmEIO_arxH+vimata_xek*DT*COS($EB64))) ->  | FK64: =IF(FF64>=0,$EL64+TAN($EC64)*(FH64-$EK64),0) ->  | FL64: =IF(FE64>0,$ES64+TAN($ED64)*(FI64-$ER64),0) ->  | FM64: =IF(SHOW_IMAGE=TRUE,IF($EE64>0,IF(vimata-FM$62*dvim>0,IF(FF64<0,FG64,IF($EE64<>0,IF(FE64*FF64<=0,FH64,FI64),$EK64)),ShmEIO_arxH),ARXIKH_THESH),ARXIKH_THESH) -> -128 | FN64: =IF(SHOW_IMAGE=TRUE,IF($EE64<>0,IF(vimata-FN$62*dvim>0,IF(FF64<0,FJ64,IF($EE64<>0,IF(FE64*FF64<0,FK64,FL64),$ES64))),object_y),object_y) -> 16 | FO64: =(vimata-FW$62*dvim)-$ET64 ->  | FP64: =(vimata-FX$62*dvim)-$EH64 ->  | FQ64: =IF(FP64<0,ShmEIO_arxH+COS($EB64)*((vimata-FW$62*dvim+vimata_xek))*DT,$ER64) ->  | FR64: =IF(FO64*FP64<=0,$EK64+FP64*DT/DEIKT_HUYGENS*COS($EC64),IF(FP64>0,$ER64,0)) ->  | FS64: =IF(FO64>0,$ER64+FO64*COS($ED64)*DT/DEIKT_BACK,0) ->  | FT64: =object_y+vimata_xek*DT*SIN($L64)+TAN($EB64)*(FQ64-(ShmEIO_arxH+vimata_xek*DT*COS($EB64))) ->  | FU64: =IF(FP64>=0,$EL64+TAN($EC64)*(FR64-$EK64),0) ->  | FV64: =IF(FO64>0,$ES64+TAN($ED64)*(FS64-$ER64),0) ->  | FW64: =IF(SHOW_IMAGE=TRUE,IF($EE64>0,IF(vimata-FW$62*dvim>0,IF(FP64<0,FQ64,IF($EE64<>0,IF(FO64*FP64<=0,FR64,FS64),$EK64)),ShmEIO_arxH),ARXIKH_THESH),ARXIKH_THESH) -> -128 | FX64: =IF(SHOW_IMAGE=TRUE,IF($EE64<>0,IF(vimata-FX$62*dvim>0,IF(FP64<0,FT64,IF($EE64<>0,IF(FO64*FP64<0,FU64,FV64),$ES64))),object_y),object_y) -> 16 | FY64: =(vimata-GG$62*dvim)-$ET64 ->  | FZ64: =(vimata-GH$62*dvim)-$EH64 ->  | GA64: =IF(FZ64<0,ShmEIO_arxH+COS($EB64)*((vimata-GG$62*dvim+vimata_xek))*DT,$ER64) ->  | GB64: =IF(FY64*FZ64<=0,$EK64+FZ64*DT/DEIKT_HUYGENS*COS($EC64),IF(FZ64>0,$ER64,0)) ->  | GC64: =IF(FY64>0,$ER64+FY64*COS($ED64)*DT/DEIKT_BACK,0) ->  | GD64: =object_y+vimata_xek*DT*SIN($L64)+TAN($EB64)*(GA64-(ShmEIO_arxH+vimata_xek*DT*COS($EB64))) ->  | GE64: =IF(FZ64>=0,$EL64+TAN($EC64)*(GB64-$EK64),0) ->  | GF64: =IF(FY64>0,$ES64+TAN($ED64)*(GC64-$ER64),0) ->  | GG64: =IF(SHOW_IMAGE=TRUE,IF($EE64>0,IF(vimata-GG$62*dvim>0,IF(FZ64<0,GA64,IF($EE64<>0,IF(FY64*FZ64<=0,GB64,GC64),$EK64)),ShmEIO_arxH),ARXIKH_THESH),ARXIKH_THESH) -> -128 | GH64: =IF(SHOW_IMAGE=TRUE,IF($EE64<>0,IF(vimata-GH$62*dvim>0,IF(FZ64<0,GD64,IF($EE64<>0,IF(FY64*FZ64<0,GE64,GF64),$ES64))),object_y),object_y) -> 16 | GI64: =(vimata-GQ$62*dvim)-$ET64 ->  | GJ64: =(vimata-GR$62*dvim)-$EH64 ->  | GK64: =IF(GJ64<0,ShmEIO_arxH+COS($EB64)*((vimata-GQ$62*dvim+vimata_xek))*DT,$ER64) ->  | GL64: =IF(GI64*GJ64<=0,$EK64+GJ64*DT/DEIKT_HUYGENS*COS($EC64),IF(GJ64>0,$ER64,0)) ->  | GM64: =IF(GI64>0,$ER64+GI64*COS($ED64)*DT/DEIKT_BACK,0) ->  | GN64: =object_y+vimata_xek*DT*SIN($L64)+TAN($EB64)*(GK64-(ShmEIO_arxH+vimata_xek*DT*COS($EB64))) ->  | GO64: =IF(GJ64>=0,$EL64+TAN($EC64)*(GL64-$EK64),0) ->  | GP64: =IF(GI64>0,$ES64+TAN($ED64)*(GM64-$ER64),0) ->  | GQ64: =IF(SHOW_IMAGE=TRUE,IF($EE64>0,IF(vimata-GQ$62*dvim>0,IF(GJ64<0,GK64,IF($EE64<>0,IF(GI64*GJ64<=0,GL64,GM64),$EK64)),ShmEIO_arxH),ARXIKH_THESH),ARXIKH_THESH) -> -128 | GR64: =IF(SHOW_IMAGE=TRUE,IF($EE64<>0,IF(vimata-GR$62*dvim>0,IF(GJ64<0,GN64,IF($EE64<>0,IF(GI64*GJ64<0,GO64,GP64),$ES64))),object_y),object_y) -> 16 | GS64: =(vimata-HA$62*dvim)-$ET64 ->  | GT64: =(vimata-HB$62*dvim)-$EH64 ->  | GU64: =IF(GT64<0,ShmEIO_arxH+COS($EB64)*((vimata-HA$62*dvim+vimata_xek))*DT,$ER64) ->  | GV64: =IF(GS64*GT64<=0,$EK64+GT64*DT/DEIKT_HUYGENS*COS($EC64),IF(GT64>0,$ER64,0)) ->  | GW64: =IF(GS64>0,$ER64+GS64*COS($ED64)*DT/DEIKT_BACK,0) ->  | GX64: =object_y+vimata_xek*DT*SIN($L64)+TAN($EB64)*(GU64-(ShmEIO_arxH+vimata_xek*DT*COS($EB64))) ->  | GY64: =IF(GT64>=0,$EL64+TAN($EC64)*(GV64-$EK64),0) ->  | GZ64: =IF(GS64>0,$ES64+TAN($ED64)*(GW64-$ER64),0) ->  | HA64: =IF(SHOW_IMAGE=TRUE,IF($EE64>0,IF(vimata-HA$62*dvim>0,IF(GT64<0,GU64,IF($EE64<>0,IF(GS64*GT64<=0,GV64,GW64),$EK64)),ShmEIO_arxH),ARXIKH_THESH),ARXIKH_THESH) -> -128 | HB64: =IF(SHOW_IMAGE=TRUE,IF($EE64<>0,IF(vimata-HB$62*dvim>0,IF(GT64<0,GX64,IF($EE64<>0,IF(GS64*GT64<0,GY64,GZ64),$ES64))),object_y),object_y) -> 16 | HC64: =(vimata-HK$62*dvim)-$ET64 ->  | HD64: =(vimata-HL$62*dvim)-$EH64 ->  | HE64: =IF(HD64<0,ShmEIO_arxH+COS($EB64)*((vimata-HK$62*dvim+vimata_xek))*DT,$ER64) ->  | HF64: =IF(HC64*HD64<=0,$EK64+HD64*DT/DEIKT_HUYGENS*COS($EC64),IF(HD64>0,$ER64,0)) ->  | HG64: =IF(HC64>0,$ER64+HC64*COS($ED64)*DT/DEIKT_BACK,0) ->  | HH64: =object_y+vimata_xek*DT*SIN($L64)+TAN($EB64)*(HE64-(ShmEIO_arxH+vimata_xek*DT*COS($EB64))) ->  | HI64: =IF(HD64>=0,$EL64+TAN($EC64)*(HF64-$EK64),0) ->  | HJ64: =IF(HC64>0,$ES64+TAN($ED64)*(HG64-$ER64),0) ->  | HK64: =IF(SHOW_IMAGE=TRUE,IF($EE64>0,IF(vimata-HK$62*dvim>0,IF(HD64<0,HE64,IF($EE64<>0,IF(HC64*HD64<=0,HF64,HG64),$EK64)),ShmEIO_arxH),ARXIKH_THESH),ARXIKH_THESH) -> -128 | HL64: =IF(SHOW_IMAGE=TRUE,IF($EE64<>0,IF(vimata-HL$62*dvim>0,IF(HD64<0,HH64,IF($EE64<>0,IF(HC64*HD64<0,HI64,HJ64),$ES64))),object_y),object_y) -> 16 | HM64: =(vimata-HU$62*dvim)-$ET64 ->  | HN64: =(vimata-HV$62*dvim)-$EH64 ->  | HO64: =IF(HN64<0,ShmEIO_arxH+COS($EB64)*((vimata-HU$62*dvim+vimata_xek))*DT,$ER64) ->  | HP64: =IF(HM64*HN64<=0,$EK64+HN64*DT/DEIKT_HUYGENS*COS($EC64),IF(HN64>0,$ER64,0)) ->  | HQ64: =IF(HM64>0,$ER64+HM64*COS($ED64)*DT/DEIKT_BACK,0) ->  | HR64: =object_y+vimata_xek*DT*SIN($L64)+TAN($EB64)*(HO64-(ShmEIO_arxH+vimata_xek*DT*COS($EB64))) ->  | HS64: =IF(HN64>=0,$EL64+TAN($EC64)*(HP64-$EK64),0) ->  | HT64: =IF(HM64>0,$ES64+TAN($ED64)*(HQ64-$ER64),0) ->  | HU64: =IF(SHOW_IMAGE=TRUE,IF($EE64>0,IF(vimata-HU$62*dvim>0,IF(HN64<0,HO64,IF($EE64<>0,IF(HM64*HN64<=0,HP64,HQ64),$EK64)),ShmEIO_arxH),ARXIKH_THESH),ARXIKH_THESH) -> -128 | HV64: =IF(SHOW_IMAGE=TRUE,IF($EE64<>0,IF(vimata-HV$62*dvim>0,IF(HN64<0,HR64,IF($EE64<>0,IF(HM64*HN64<0,HS64,HT64),$ES64))),object_y),object_y) -> 16 | HW64: =(vimata-IE$62*dvim)-$ET64 ->  | HX64: =(vimata-IF$62*dvim)-$EH64 ->  | HY64: =IF(HX64<0,ShmEIO_arxH+COS($EB64)*((vimata-IE$62*dvim+vimata_xek))*DT,$ER64) ->  | HZ64: =IF(HW64*HX64<=0,$EK64+HX64*DT/DEIKT_HUYGENS*COS($EC64),IF(HX64>0,$ER64,0)) ->  | IA64: =IF(HW64>0,$ER64+HW64*COS($ED64)*DT/DEIKT_BACK,0) ->  | IB64: =object_y+vimata_xek*DT*SIN($L64)+TAN($EB64)*(HY64-(ShmEIO_arxH+vimata_xek*DT*COS($EB64))) ->  | IC64: =IF(HX64>=0,$EL64+TAN($EC64)*(HZ64-$EK64),0) ->  | ID64: =IF(HW64>0,$ES64+TAN($ED64)*(IA64-$ER64),0) ->  | IE64: =IF(SHOW_IMAGE=TRUE,IF($EE64>0,IF(vimata-IE$62*dvim>0,IF(HX64<0,HY64,IF($EE64<>0,IF(HW64*HX64<=0,HZ64,IA64),$EK64)),ShmEIO_arxH),ARXIKH_THESH),ARXIKH_THESH) -> -128 | IF64: =IF(SHOW_IMAGE=TRUE,IF($EE64<>0,IF(vimata-IF$62*dvim>0,IF(HX64<0,IB64,IF($EE64<>0,IF(HW64*HX64<0,IC64,ID64),$ES64))),object_y),object_y) -> 16
